{"text_format":"1","workbook":"xlsx","n_sheets":1,"sheets":["LevUE"],"not_rendered":{"charts":0,"images":0,"macros":0,"external_links":1,"defined_names":20,"comments":1,"pivot_tables":0},"unopened":[],"bounds":{"document_bytes":16777216,"sheet_cells":100000,"rows_first":2000,"rows_last":500,"rows_between":2000,"halvings":0,"cell_chars":16384,"cell_head_chars":4096},"cells_cut":0,"cells_raw":0,"read":"whole","date_system":"1900"}

{"sheet":"LevUE","index":0,"n_rows":1532,"n_cols":288,"rows_kept":1532,"cut":false,"hidden":false,"merged":[]}
[null,null,null,null,null,null,null,null,null,null,null,null,null,null,null,null,null,null,null,null,1,2,3,4,5,6,7,8,9,10,11,12,13,14,15,16,17,18,19,20,21,22,23,24,25,26,27,28,29,30,31,32,33,34,35,36,37,38,39,40,41,42,43,44,45,46,47,48,49,50,51,52,53,54,55,56,57,58,59,60,61,62,63,64,65,66,67,68,69,70,71,72,73,74,75,76,77,78,79,80,81,82,83,84,85,86,87,88,89,90,91,92,93,94,95,96,97,98,99,100,101,102,103,104,105,106,107,108,109,110,111,112,113,114,115,116,117,118,119,120,121,122,123,124,125,126,127,128,129,130,131,132,133,134,135,136,137,138,139,140,141,142,143,144,145,146,147,148,149,150,151,152,153,154,155,156,157,158,159,160,161,162,163,164,165,166,167,168,169,170,171,172,173,174,175,176,177,178,179,180,181,182,183,184,185,186,187,188,189,190,191,192,193,194,195,196,197,198,199,200,201,202,203,204,205,206,207,208,209,210,211,212,213,214,215,216,217,218,219,220,221,222,223,224,225,226,227,228,229,230,231,232,233,234,235,236,237,238,239,240,241,242,243,244,245,246,247,248,249,250,null,null,{"$f":"TRANSPOSE(_xlfn.UNIQUE(_xlfn._xlws.FILTER(LEV[FAG],LEV[Medtag]<>\"\",0),FALSE,FALSE))","v":"Afstribning"},"Asfalt","Belægning","Beton Entreprenør","El-arbejder","Entreprenør","Kloak Beton","Kloak Plast","Lege udstyr","planter","Pleje","Ramning, pæle, spuns","Stål - Smed","Terræn inventar","Tømrer","Vognmandsydelser"]
[null,null,null,null,null,null,null,null,null,null,1,null,null,null,"MAIL",null,null,null,null,null,{"$f":"IF(U4<>0,_xlfn.XLOOKUP(U$1,LEV[[L/UE.id]:[L/UE.id]],LEV[[E-mail]:[E-mail]],\"\",0),\"\")","v":""},{"$f":"IF(V4<>0,_xlfn.XLOOKUP(V$1,LEV[[L/UE.id]:[L/UE.id]],LEV[[E-mail]:[E-mail]],\"\",0),\"\")","v":""},{"$f":"IF(W4<>0,_xlfn.XLOOKUP(W$1,LEV[[L/UE.id]:[L/UE.id]],LEV[[E-mail]:[E-mail]],\"\",0),\"\")","v":""},{"$f":"IF(X4<>0,_xlfn.XLOOKUP(X$1,LEV[[L/UE.id]:[L/UE.id]],LEV[[E-mail]:[E-mail]],\"\",0),\"\")","v":""},{"$f":"IF(Y4<>0,_xlfn.XLOOKUP(Y$1,LEV[[L/UE.id]:[L/UE.id]],LEV[[E-mail]:[E-mail]],\"\",0),\"\")","v":"jag@lkf.dk"},{"$f":"IF(Z4<>0,_xlfn.XLOOKUP(Z$1,LEV[[L/UE.id]:[L/UE.id]],LEV[[E-mail]:[E-mail]],\"\",0),\"\")","v":"jod@eurostar.as"},{"$f":"IF(AA4<>0,_xlfn.XLOOKUP(AA$1,LEV[[L/UE.id]:[L/UE.id]],LEV[[E-mail]:[E-mail]],\"\",0),\"\")","v":""},{"$f":"IF(AB4<>0,_xlfn.XLOOKUP(AB$1,LEV[[L/UE.id]:[L/UE.id]],LEV[[E-mail]:[E-mail]],\"\",0),\"\")","v":"asfalt.georg@mail.tele.dk"},{"$f":"IF(AC4<>0,_xlfn.XLOOKUP(AC$1,LEV[[L/UE.id]:[L/UE.id]],LEV[[E-mail]:[E-mail]],\"\",0),\"\")","v":"aal@ncc.dk"},{"$f":"IF(AD4<>0,_xlfn.XLOOKUP(AD$1,LEV[[L/UE.id]:[L/UE.id]],LEV[[E-mail]:[E-mail]],\"\",0),\"\")","v":"karin.l.jorgensen@peabasfalt.dk "},{"$f":"IF(AE4<>0,_xlfn.XLOOKUP(AE$1,LEV[[L/UE.id]:[L/UE.id]],LEV[[E-mail]:[E-mail]],\"\",0),\"\")","v":"KR@munck.dk"},{"$f":"IF(AF4<>0,_xlfn.XLOOKUP(AF$1,LEV[[L/UE.id]:[L/UE.id]],LEV[[E-mail]:[E-mail]],\"\",0),\"\")","v":"jp@asfaltsjakket.dk"},{"$f":"IF(AG4<>0,_xlfn.XLOOKUP(AG$1,LEV[[L/UE.id]:[L/UE.id]],LEV[[E-mail]:[E-mail]],\"\",0),\"\")","v":""},{"$f":"IF(AH4<>0,_xlfn.XLOOKUP(AH$1,LEV[[L/UE.id]:[L/UE.id]],LEV[[E-mail]:[E-mail]],\"\",0),\"\")","v":"salg@pankas.dk"},{"$f":"IF(AI4<>0,_xlfn.XLOOKUP(AI$1,LEV[[L/UE.id]:[L/UE.id]],LEV[[E-mail]:[E-mail]],\"\",0),\"\")","v":"TilbudSjaelland@Colas.DK"},{"$f":"IF(AJ4<>0,_xlfn.XLOOKUP(AJ$1,LEV[[L/UE.id]:[L/UE.id]],LEV[[E-mail]:[E-mail]],\"\",0),\"\")","v":""},{"$f":"IF(AK4<>0,_xlfn.XLOOKUP(AK$1,LEV[[L/UE.id]:[L/UE.id]],LEV[[E-mail]:[E-mail]],\"\",0),\"\")","v":""},{"$f":"IF(AL4<>0,_xlfn.XLOOKUP(AL$1,LEV[[L/UE.id]:[L/UE.id]],LEV[[E-mail]:[E-mail]],\"\",0),\"\")","v":"Info@Gammelrand.dk"},{"$f":"IF(AM4<>0,_xlfn.XLOOKUP(AM$1,LEV[[L/UE.id]:[L/UE.id]],LEV[[E-mail]:[E-mail]],\"\",0),\"\")","v":"Ordre22@ibf.dk"},{"$f":"IF(AN4<>0,_xlfn.XLOOKUP(AN$1,LEV[[L/UE.id]:[L/UE.id]],LEV[[E-mail]:[E-mail]],\"\",0),\"\")","v":""},{"$f":"IF(AO4<>0,_xlfn.XLOOKUP(AO$1,LEV[[L/UE.id]:[L/UE.id]],LEV[[E-mail]:[E-mail]],\"\",0),\"\")","v":""},{"$f":"IF(AP4<>0,_xlfn.XLOOKUP(AP$1,LEV[[L/UE.id]:[L/UE.id]],LEV[[E-mail]:[E-mail]],\"\",0),\"\")","v":"amb@tscherning.dk"},{"$f":"IF(AQ4<>0,_xlfn.XLOOKUP(AQ$1,LEV[[L/UE.id]:[L/UE.id]],LEV[[E-mail]:[E-mail]],\"\",0),\"\")","v":"jens@freitag.dk"},{"$f":"IF(AR4<>0,_xlfn.XLOOKUP(AR$1,LEV[[L/UE.id]:[L/UE.id]],LEV[[E-mail]:[E-mail]],\"\",0),\"\")","v":"Info@concretehead.dk"},{"$f":"IF(AS4<>0,_xlfn.XLOOKUP(AS$1,LEV[[L/UE.id]:[L/UE.id]],LEV[[E-mail]:[E-mail]],\"\",0),\"\")","v":""},{"$f":"IF(AT4<>0,_xlfn.XLOOKUP(AT$1,LEV[[L/UE.id]:[L/UE.id]],LEV[[E-mail]:[E-mail]],\"\",0),\"\")","v":""},{"$f":"IF(AU4<>0,_xlfn.XLOOKUP(AU$1,LEV[[L/UE.id]:[L/UE.id]],LEV[[E-mail]:[E-mail]],\"\",0),\"\")","v":""},{"$f":"IF(AV4<>0,_xlfn.XLOOKUP(AV$1,LEV[[L/UE.id]:[L/UE.id]],LEV[[E-mail]:[E-mail]],\"\",0),\"\")","v":""},{"$f":"IF(AW4<>0,_xlfn.XLOOKUP(AW$1,LEV[[L/UE.id]:[L/UE.id]],LEV[[E-mail]:[E-mail]],\"\",0),\"\")","v":""},{"$f":"IF(AX4<>0,_xlfn.XLOOKUP(AX$1,LEV[[L/UE.id]:[L/UE.id]],LEV[[E-mail]:[E-mail]],\"\",0),\"\")","v":""},{"$f":"IF(AY4<>0,_xlfn.XLOOKUP(AY$1,LEV[[L/UE.id]:[L/UE.id]],LEV[[E-mail]:[E-mail]],\"\",0),\"\")","v":""},{"$f":"IF(AZ4<>0,_xlfn.XLOOKUP(AZ$1,LEV[[L/UE.id]:[L/UE.id]],LEV[[E-mail]:[E-mail]],\"\",0),\"\")","v":""},{"$f":"IF(BA4<>0,_xlfn.XLOOKUP(BA$1,LEV[[L/UE.id]:[L/UE.id]],LEV[[E-mail]:[E-mail]],\"\",0),\"\")","v":""},{"$f":"IF(BB4<>0,_xlfn.XLOOKUP(BB$1,LEV[[L/UE.id]:[L/UE.id]],LEV[[E-mail]:[E-mail]],\"\",0),\"\")","v":""},{"$f":"IF(BC4<>0,_xlfn.XLOOKUP(BC$1,LEV[[L/UE.id]:[L/UE.id]],LEV[[E-mail]:[E-mail]],\"\",0),\"\")","v":""},{"$f":"IF(BD4<>0,_xlfn.XLOOKUP(BD$1,LEV[[L/UE.id]:[L/UE.id]],LEV[[E-mail]:[E-mail]],\"\",0),\"\")","v":""},{"$f":"IF(BE4<>0,_xlfn.XLOOKUP(BE$1,LEV[[L/UE.id]:[L/UE.id]],LEV[[E-mail]:[E-mail]],\"\",0),\"\")","v":""},{"$f":"IF(BF4<>0,_xlfn.XLOOKUP(BF$1,LEV[[L/UE.id]:[L/UE.id]],LEV[[E-mail]:[E-mail]],\"\",0),\"\")","v":""},{"$f":"IF(BG4<>0,_xlfn.XLOOKUP(BG$1,LEV[[L/UE.id]:[L/UE.id]],LEV[[E-mail]:[E-mail]],\"\",0),\"\")","v":""},{"$f":"IF(BH4<>0,_xlfn.XLOOKUP(BH$1,LEV[[L/UE.id]:[L/UE.id]],LEV[[E-mail]:[E-mail]],\"\",0),\"\")","v":""},{"$f":"IF(BI4<>0,_xlfn.XLOOKUP(BI$1,LEV[[L/UE.id]:[L/UE.id]],LEV[[E-mail]:[E-mail]],\"\",0),\"\")","v":"henrik@hh-installation.dk"},{"$f":"IF(BJ4<>0,_xlfn.XLOOKUP(BJ$1,LEV[[L/UE.id]:[L/UE.id]],LEV[[E-mail]:[E-mail]],\"\",0),\"\")","v":"info@dansksportsbelysning.dk"},{"$f":"IF(BK4<>0,_xlfn.XLOOKUP(BK$1,LEV[[L/UE.id]:[L/UE.id]],LEV[[E-mail]:[E-mail]],\"\",0),\"\")","v":""},{"$f":"IF(BL4<>0,_xlfn.XLOOKUP(BL$1,LEV[[L/UE.id]:[L/UE.id]],LEV[[E-mail]:[E-mail]],\"\",0),\"\")","v":""},{"$f":"IF(BM4<>0,_xlfn.XLOOKUP(BM$1,LEV[[L/UE.id]:[L/UE.id]],LEV[[E-mail]:[E-mail]],\"\",0),\"\")","v":""},{"$f":"IF(BN4<>0,_xlfn.XLOOKUP(BN$1,LEV[[L/UE.id]:[L/UE.id]],LEV[[E-mail]:[E-mail]],\"\",0),\"\")","v":""},{"$f":"IF(BO4<>0,_xlfn.XLOOKUP(BO$1,LEV[[L/UE.id]:[L/UE.id]],LEV[[E-mail]:[E-mail]],\"\",0),\"\")","v":"bie@mjeriksson.dk"},{"$f":"IF(BP4<>0,_xlfn.XLOOKUP(BP$1,LEV[[L/UE.id]:[L/UE.id]],LEV[[E-mail]:[E-mail]],\"\",0),\"\")","v":"tilbud@holboell.dk"},{"$f":"IF(BQ4<>0,_xlfn.XLOOKUP(BQ$1,LEV[[L/UE.id]:[L/UE.id]],LEV[[E-mail]:[E-mail]],\"\",0),\"\")","v":"sja@barslund.as"},{"$f":"IF(BR4<>0,_xlfn.XLOOKUP(BR$1,LEV[[L/UE.id]:[L/UE.id]],LEV[[E-mail]:[E-mail]],\"\",0),\"\")","v":""},{"$f":"IF(BS4<>0,_xlfn.XLOOKUP(BS$1,LEV[[L/UE.id]:[L/UE.id]],LEV[[E-mail]:[E-mail]],\"\",0),\"\")","v":""},{"$f":"IF(BT4<>0,_xlfn.XLOOKUP(BT$1,LEV[[L/UE.id]:[L/UE.id]],LEV[[E-mail]:[E-mail]],\"\",0),\"\")","v":""},{"$f":"IF(BU4<>0,_xlfn.XLOOKUP(BU$1,LEV[[L/UE.id]:[L/UE.id]],LEV[[E-mail]:[E-mail]],\"\",0),\"\")","v":""},{"$f":"IF(BV4<>0,_xlfn.XLOOKUP(BV$1,LEV[[L/UE.id]:[L/UE.id]],LEV[[E-mail]:[E-mail]],\"\",0),\"\")","v":""},{"$f":"IF(BW4<>0,_xlfn.XLOOKUP(BW$1,LEV[[L/UE.id]:[L/UE.id]],LEV[[E-mail]:[E-mail]],\"\",0),\"\")","v":""},{"$f":"IF(BX4<>0,_xlfn.XLOOKUP(BX$1,LEV[[L/UE.id]:[L/UE.id]],LEV[[E-mail]:[E-mail]],\"\",0),\"\")","v":""},{"$f":"IF(BY4<>0,_xlfn.XLOOKUP(BY$1,LEV[[L/UE.id]:[L/UE.id]],LEV[[E-mail]:[E-mail]],\"\",0),\"\")","v":""},{"$f":"IF(BZ4<>0,_xlfn.XLOOKUP(BZ$1,LEV[[L/UE.id]:[L/UE.id]],LEV[[E-mail]:[E-mail]],\"\",0),\"\")","v":""},{"$f":"IF(CA4<>0,_xlfn.XLOOKUP(CA$1,LEV[[L/UE.id]:[L/UE.id]],LEV[[E-mail]:[E-mail]],\"\",0),\"\")","v":""},{"$f":"IF(CB4<>0,_xlfn.XLOOKUP(CB$1,LEV[[L/UE.id]:[L/UE.id]],LEV[[E-mail]:[E-mail]],\"\",0),\"\")","v":""},{"$f":"IF(CC4<>0,_xlfn.XLOOKUP(CC$1,LEV[[L/UE.id]:[L/UE.id]],LEV[[E-mail]:[E-mail]],\"\",0),\"\")","v":""},{"$f":"IF(CD4<>0,_xlfn.XLOOKUP(CD$1,LEV[[L/UE.id]:[L/UE.id]],LEV[[E-mail]:[E-mail]],\"\",0),\"\")","v":""},{"$f":"IF(CE4<>0,_xlfn.XLOOKUP(CE$1,LEV[[L/UE.id]:[L/UE.id]],LEV[[E-mail]:[E-mail]],\"\",0),\"\")","v":""},{"$f":"IF(CF4<>0,_xlfn.XLOOKUP(CF$1,LEV[[L/UE.id]:[L/UE.id]],LEV[[E-mail]:[E-mail]],\"\",0),\"\")","v":"info@kantdesign.dk"},{"$f":"IF(CG4<>0,_xlfn.XLOOKUP(CG$1,LEV[[L/UE.id]:[L/UE.id]],LEV[[E-mail]:[E-mail]],\"\",0),\"\")","v":""},{"$f":"IF(CH4<>0,_xlfn.XLOOKUP(CH$1,LEV[[L/UE.id]:[L/UE.id]],LEV[[E-mail]:[E-mail]],\"\",0),\"\")","v":""},{"$f":"IF(CI4<>0,_xlfn.XLOOKUP(CI$1,LEV[[L/UE.id]:[L/UE.id]],LEV[[E-mail]:[E-mail]],\"\",0),\"\")","v":""},{"$f":"IF(CJ4<>0,_xlfn.XLOOKUP(CJ$1,LEV[[L/UE.id]:[L/UE.id]],LEV[[E-mail]:[E-mail]],\"\",0),\"\")","v":""},{"$f":"IF(CK4<>0,_xlfn.XLOOKUP(CK$1,LEV[[L/UE.id]:[L/UE.id]],LEV[[E-mail]:[E-mail]],\"\",0),\"\")","v":"info@gammelrand.dk"},{"$f":"IF(CL4<>0,_xlfn.XLOOKUP(CL$1,LEV[[L/UE.id]:[L/UE.id]],LEV[[E-mail]:[E-mail]],\"\",0),\"\")","v":"ordre16@ibf.dk"},{"$f":"IF(CM4<>0,_xlfn.XLOOKUP(CM$1,LEV[[L/UE.id]:[L/UE.id]],LEV[[E-mail]:[E-mail]],\"\",0),\"\")","v":"tilbud@nyrupplast.dk"},{"$f":"IF(CN4<>0,_xlfn.XLOOKUP(CN$1,LEV[[L/UE.id]:[L/UE.id]],LEV[[E-mail]:[E-mail]],\"\",0),\"\")","v":"mkj@lonhart.dk"},{"$f":"IF(CO4<>0,_xlfn.XLOOKUP(CO$1,LEV[[L/UE.id]:[L/UE.id]],LEV[[E-mail]:[E-mail]],\"\",0),\"\")","v":"tilbud@scanpipe.dk"},{"$f":"IF(CP4<>0,_xlfn.XLOOKUP(CP$1,LEV[[L/UE.id]:[L/UE.id]],LEV[[E-mail]:[E-mail]],\"\",0),\"\")","v":""},{"$f":"IF(CQ4<>0,_xlfn.XLOOKUP(CQ$1,LEV[[L/UE.id]:[L/UE.id]],LEV[[E-mail]:[E-mail]],\"\",0),\"\")","v":""},{"$f":"IF(CR4<>0,_xlfn.XLOOKUP(CR$1,LEV[[L/UE.id]:[L/UE.id]],LEV[[E-mail]:[E-mail]],\"\",0),\"\")","v":""},{"$f":"IF(CS4<>0,_xlfn.XLOOKUP(CS$1,LEV[[L/UE.id]:[L/UE.id]],LEV[[E-mail]:[E-mail]],\"\",0),\"\")","v":""},{"$f":"IF(CT4<>0,_xlfn.XLOOKUP(CT$1,LEV[[L/UE.id]:[L/UE.id]],LEV[[E-mail]:[E-mail]],\"\",0),\"\")","v":""},{"$f":"IF(CU4<>0,_xlfn.XLOOKUP(CU$1,LEV[[L/UE.id]:[L/UE.id]],LEV[[E-mail]:[E-mail]],\"\",0),\"\")","v":""},{"$f":"IF(CV4<>0,_xlfn.XLOOKUP(CV$1,LEV[[L/UE.id]:[L/UE.id]],LEV[[E-mail]:[E-mail]],\"\",0),\"\")","v":""},{"$f":"IF(CW4<>0,_xlfn.XLOOKUP(CW$1,LEV[[L/UE.id]:[L/UE.id]],LEV[[E-mail]:[E-mail]],\"\",0),\"\")","v":""},{"$f":"IF(CX4<>0,_xlfn.XLOOKUP(CX$1,LEV[[L/UE.id]:[L/UE.id]],LEV[[E-mail]:[E-mail]],\"\",0),\"\")","v":""},{"$f":"IF(CY4<>0,_xlfn.XLOOKUP(CY$1,LEV[[L/UE.id]:[L/UE.id]],LEV[[E-mail]:[E-mail]],\"\",0),\"\")","v":"sm@maxplay.dk"},{"$f":"IF(CZ4<>0,_xlfn.XLOOKUP(CZ$1,LEV[[L/UE.id]:[L/UE.id]],LEV[[E-mail]:[E-mail]],\"\",0),\"\")","v":""},{"$f":"IF(DA4<>0,_xlfn.XLOOKUP(DA$1,LEV[[L/UE.id]:[L/UE.id]],LEV[[E-mail]:[E-mail]],\"\",0),\"\")","v":"pp@hags.dk"},{"$f":"IF(DB4<>0,_xlfn.XLOOKUP(DB$1,LEV[[L/UE.id]:[L/UE.id]],LEV[[E-mail]:[E-mail]],\"\",0),\"\")","v":""},{"$f":"IF(DC4<>0,_xlfn.XLOOKUP(DC$1,LEV[[L/UE.id]:[L/UE.id]],LEV[[E-mail]:[E-mail]],\"\",0),\"\")","v":""},{"$f":"IF(DD4<>0,_xlfn.XLOOKUP(DD$1,LEV[[L/UE.id]:[L/UE.id]],LEV[[E-mail]:[E-mail]],\"\",0),\"\")","v":""},{"$f":"IF(DE4<>0,_xlfn.XLOOKUP(DE$1,LEV[[L/UE.id]:[L/UE.id]],LEV[[E-mail]:[E-mail]],\"\",0),\"\")","v":""},{"$f":"IF(DF4<>0,_xlfn.XLOOKUP(DF$1,LEV[[L/UE.id]:[L/UE.id]],LEV[[E-mail]:[E-mail]],\"\",0),\"\")","v":""},{"$f":"IF(DG4<>0,_xlfn.XLOOKUP(DG$1,LEV[[L/UE.id]:[L/UE.id]],LEV[[E-mail]:[E-mail]],\"\",0),\"\")","v":"mail@cado.dk"},{"$f":"IF(DH4<>0,_xlfn.XLOOKUP(DH$1,LEV[[L/UE.id]:[L/UE.id]],LEV[[E-mail]:[E-mail]],\"\",0),\"\")","v":"smilla@elverdal.dk"},{"$f":"IF(DI4<>0,_xlfn.XLOOKUP(DI$1,LEV[[L/UE.id]:[L/UE.id]],LEV[[E-mail]:[E-mail]],\"\",0),\"\")","v":"jesper@copla.dk"},{"$f":"IF(DJ4<>0,_xlfn.XLOOKUP(DJ$1,LEV[[L/UE.id]:[L/UE.id]],LEV[[E-mail]:[E-mail]],\"\",0),\"\")","v":""},{"$f":"IF(DK4<>0,_xlfn.XLOOKUP(DK$1,LEV[[L/UE.id]:[L/UE.id]],LEV[[E-mail]:[E-mail]],\"\",0),\"\")","v":""},{"$f":"IF(DL4<>0,_xlfn.XLOOKUP(DL$1,LEV[[L/UE.id]:[L/UE.id]],LEV[[E-mail]:[E-mail]],\"\",0),\"\")","v":""},{"$f":"IF(DM4<>0,_xlfn.XLOOKUP(DM$1,LEV[[L/UE.id]:[L/UE.id]],LEV[[E-mail]:[E-mail]],\"\",0),\"\")","v":""},{"$f":"IF(DN4<>0,_xlfn.XLOOKUP(DN$1,LEV[[L/UE.id]:[L/UE.id]],LEV[[E-mail]:[E-mail]],\"\",0),\"\")","v":""},{"$f":"IF(DO4<>0,_xlfn.XLOOKUP(DO$1,LEV[[L/UE.id]:[L/UE.id]],LEV[[E-mail]:[E-mail]],\"\",0),\"\")","v":""},{"$f":"IF(DP4<>0,_xlfn.XLOOKUP(DP$1,LEV[[L/UE.id]:[L/UE.id]],LEV[[E-mail]:[E-mail]],\"\",0),\"\")","v":""},{"$f":"IF(DQ4<>0,_xlfn.XLOOKUP(DQ$1,LEV[[L/UE.id]:[L/UE.id]],LEV[[E-mail]:[E-mail]],\"\",0),\"\")","v":""},{"$f":"IF(DR4<>0,_xlfn.XLOOKUP(DR$1,LEV[[L/UE.id]:[L/UE.id]],LEV[[E-mail]:[E-mail]],\"\",0),\"\")","v":""},{"$f":"IF(DS4<>0,_xlfn.XLOOKUP(DS$1,LEV[[L/UE.id]:[L/UE.id]],LEV[[E-mail]:[E-mail]],\"\",0),\"\")","v":""},{"$f":"IF(DT4<>0,_xlfn.XLOOKUP(DT$1,LEV[[L/UE.id]:[L/UE.id]],LEV[[E-mail]:[E-mail]],\"\",0),\"\")","v":"mail@holden.dk"},{"$f":"IF(DU4<>0,_xlfn.XLOOKUP(DU$1,LEV[[L/UE.id]:[L/UE.id]],LEV[[E-mail]:[E-mail]],\"\",0),\"\")","v":"om@birk-holm.dk"},{"$f":"IF(DV4<>0,_xlfn.XLOOKUP(DV$1,LEV[[L/UE.id]:[L/UE.id]],LEV[[E-mail]:[E-mail]],\"\",0),\"\")","v":"jl@danplanex.dk"},{"$f":"IF(DW4<>0,_xlfn.XLOOKUP(DW$1,LEV[[L/UE.id]:[L/UE.id]],LEV[[E-mail]:[E-mail]],\"\",0),\"\")","v":"info@proplant.dk"},{"$f":"IF(DX4<>0,_xlfn.XLOOKUP(DX$1,LEV[[L/UE.id]:[L/UE.id]],LEV[[E-mail]:[E-mail]],\"\",0),\"\")","v":"kaa@oknygaard.dk"},{"$f":"IF(DY4<>0,_xlfn.XLOOKUP(DY$1,LEV[[L/UE.id]:[L/UE.id]],LEV[[E-mail]:[E-mail]],\"\",0),\"\")","v":"boa@mjeriksson.dk"},{"$f":"IF(DZ4<>0,_xlfn.XLOOKUP(DZ$1,LEV[[L/UE.id]:[L/UE.id]],LEV[[E-mail]:[E-mail]],\"\",0),\"\")","v":"jeho@aarsleff.com"},{"$f":"IF(EA4<>0,_xlfn.XLOOKUP(EA$1,LEV[[L/UE.id]:[L/UE.id]],LEV[[E-mail]:[E-mail]],\"\",0),\"\")","v":"madkoc@hercules.dk"},{"$f":"IF(EB4<>0,_xlfn.XLOOKUP(EB$1,LEV[[L/UE.id]:[L/UE.id]],LEV[[E-mail]:[E-mail]],\"\",0),\"\")","v":""},{"$f":"IF(EC4<>0,_xlfn.XLOOKUP(EC$1,LEV[[L/UE.id]:[L/UE.id]],LEV[[E-mail]:[E-mail]],\"\",0),\"\")","v":""},{"$f":"IF(ED4<>0,_xlfn.XLOOKUP(ED$1,LEV[[L/UE.id]:[L/UE.id]],LEV[[E-mail]:[E-mail]],\"\",0),\"\")","v":""},{"$f":"IF(EE4<>0,_xlfn.XLOOKUP(EE$1,LEV[[L/UE.id]:[L/UE.id]],LEV[[E-mail]:[E-mail]],\"\",0),\"\")","v":""},{"$f":"IF(EF4<>0,_xlfn.XLOOKUP(EF$1,LEV[[L/UE.id]:[L/UE.id]],LEV[[E-mail]:[E-mail]],\"\",0),\"\")","v":""},{"$f":"IF(EG4<>0,_xlfn.XLOOKUP(EG$1,LEV[[L/UE.id]:[L/UE.id]],LEV[[E-mail]:[E-mail]],\"\",0),\"\")","v":""},{"$f":"IF(EH4<>0,_xlfn.XLOOKUP(EH$1,LEV[[L/UE.id]:[L/UE.id]],LEV[[E-mail]:[E-mail]],\"\",0),\"\")","v":""},{"$f":"IF(EI4<>0,_xlfn.XLOOKUP(EI$1,LEV[[L/UE.id]:[L/UE.id]],LEV[[E-mail]:[E-mail]],\"\",0),\"\")","v":""},{"$f":"IF(EJ4<>0,_xlfn.XLOOKUP(EJ$1,LEV[[L/UE.id]:[L/UE.id]],LEV[[E-mail]:[E-mail]],\"\",0),\"\")","v":""},{"$f":"IF(EK4<>0,_xlfn.XLOOKUP(EK$1,LEV[[L/UE.id]:[L/UE.id]],LEV[[E-mail]:[E-mail]],\"\",0),\"\")","v":""},{"$f":"IF(EL4<>0,_xlfn.XLOOKUP(EL$1,LEV[[L/UE.id]:[L/UE.id]],LEV[[E-mail]:[E-mail]],\"\",0),\"\")","v":"miansteel@aol.dk"},{"$f":"IF(EM4<>0,_xlfn.XLOOKUP(EM$1,LEV[[L/UE.id]:[L/UE.id]],LEV[[E-mail]:[E-mail]],\"\",0),\"\")","v":""},{"$f":"IF(EN4<>0,_xlfn.XLOOKUP(EN$1,LEV[[L/UE.id]:[L/UE.id]],LEV[[E-mail]:[E-mail]],\"\",0),\"\")","v":"Dm@martlev.dk"},{"$f":"IF(EO4<>0,_xlfn.XLOOKUP(EO$1,LEV[[L/UE.id]:[L/UE.id]],LEV[[E-mail]:[E-mail]],\"\",0),\"\")","v":""},{"$f":"IF(EP4<>0,_xlfn.XLOOKUP(EP$1,LEV[[L/UE.id]:[L/UE.id]],LEV[[E-mail]:[E-mail]],\"\",0),\"\")","v":"hitsa@hitsa.dk"},{"$f":"IF(EQ4<>0,_xlfn.XLOOKUP(EQ$1,LEV[[L/UE.id]:[L/UE.id]],LEV[[E-mail]:[E-mail]],\"\",0),\"\")","v":"info@inventarrum.dk"},{"$f":"IF(ER4<>0,_xlfn.XLOOKUP(ER$1,LEV[[L/UE.id]:[L/UE.id]],LEV[[E-mail]:[E-mail]],\"\",0),\"\")","v":""},{"$f":"IF(ES4<>0,_xlfn.XLOOKUP(ES$1,LEV[[L/UE.id]:[L/UE.id]],LEV[[E-mail]:[E-mail]],\"\",0),\"\")","v":""},{"$f":"IF(ET4<>0,_xlfn.XLOOKUP(ET$1,LEV[[L/UE.id]:[L/UE.id]],LEV[[E-mail]:[E-mail]],\"\",0),\"\")","v":""},{"$f":"IF(EU4<>0,_xlfn.XLOOKUP(EU$1,LEV[[L/UE.id]:[L/UE.id]],LEV[[E-mail]:[E-mail]],\"\",0),\"\")","v":"info@urban-elements.dk"},{"$f":"IF(EV4<>0,_xlfn.XLOOKUP(EV$1,LEV[[L/UE.id]:[L/UE.id]],LEV[[E-mail]:[E-mail]],\"\",0),\"\")","v":""},{"$f":"IF(EW4<>0,_xlfn.XLOOKUP(EW$1,LEV[[L/UE.id]:[L/UE.id]],LEV[[E-mail]:[E-mail]],\"\",0),\"\")","v":""},{"$f":"IF(EX4<>0,_xlfn.XLOOKUP(EX$1,LEV[[L/UE.id]:[L/UE.id]],LEV[[E-mail]:[E-mail]],\"\",0),\"\")","v":""},{"$f":"IF(EY4<>0,_xlfn.XLOOKUP(EY$1,LEV[[L/UE.id]:[L/UE.id]],LEV[[E-mail]:[E-mail]],\"\",0),\"\")","v":""},{"$f":"IF(EZ4<>0,_xlfn.XLOOKUP(EZ$1,LEV[[L/UE.id]:[L/UE.id]],LEV[[E-mail]:[E-mail]],\"\",0),\"\")","v":""},{"$f":"IF(FA4<>0,_xlfn.XLOOKUP(FA$1,LEV[[L/UE.id]:[L/UE.id]],LEV[[E-mail]:[E-mail]],\"\",0),\"\")","v":""},{"$f":"IF(FB4<>0,_xlfn.XLOOKUP(FB$1,LEV[[L/UE.id]:[L/UE.id]],LEV[[E-mail]:[E-mail]],\"\",0),\"\")","v":"udventar@g9.dk"},{"$f":"IF(FC4<>0,_xlfn.XLOOKUP(FC$1,LEV[[L/UE.id]:[L/UE.id]],LEV[[E-mail]:[E-mail]],\"\",0),\"\")","v":""},{"$f":"IF(FD4<>0,_xlfn.XLOOKUP(FD$1,LEV[[L/UE.id]:[L/UE.id]],LEV[[E-mail]:[E-mail]],\"\",0),\"\")","v":""},{"$f":"IF(FE4<>0,_xlfn.XLOOKUP(FE$1,LEV[[L/UE.id]:[L/UE.id]],LEV[[E-mail]:[E-mail]],\"\",0),\"\")","v":""},{"$f":"IF(FF4<>0,_xlfn.XLOOKUP(FF$1,LEV[[L/UE.id]:[L/UE.id]],LEV[[E-mail]:[E-mail]],\"\",0),\"\")","v":""},{"$f":"IF(FG4<>0,_xlfn.XLOOKUP(FG$1,LEV[[L/UE.id]:[L/UE.id]],LEV[[E-mail]:[E-mail]],\"\",0),\"\")","v":""},{"$f":"IF(FH4<>0,_xlfn.XLOOKUP(FH$1,LEV[[L/UE.id]:[L/UE.id]],LEV[[E-mail]:[E-mail]],\"\",0),\"\")","v":"info@fredewestas.dk"},{"$f":"IF(FI4<>0,_xlfn.XLOOKUP(FI$1,LEV[[L/UE.id]:[L/UE.id]],LEV[[E-mail]:[E-mail]],\"\",0),\"\")","v":"simon@urban-elements.dk"},{"$f":"IF(FJ4<>0,_xlfn.XLOOKUP(FJ$1,LEV[[L/UE.id]:[L/UE.id]],LEV[[E-mail]:[E-mail]],\"\",0),\"\")","v":"tomrermestersorenbruun@hotmail.com"},{"$f":"IF(FK4<>0,_xlfn.XLOOKUP(FK$1,LEV[[L/UE.id]:[L/UE.id]],LEV[[E-mail]:[E-mail]],\"\",0),\"\")","v":"tn85@hotmail.com"},{"$f":"IF(FL4<>0,_xlfn.XLOOKUP(FL$1,LEV[[L/UE.id]:[L/UE.id]],LEV[[E-mail]:[E-mail]],\"\",0),\"\")","v":"bm@christian-hansen.dk"},{"$f":"IF(FM4<>0,_xlfn.XLOOKUP(FM$1,LEV[[L/UE.id]:[L/UE.id]],LEV[[E-mail]:[E-mail]],\"\",0),\"\")","v":""},{"$f":"IF(FN4<>0,_xlfn.XLOOKUP(FN$1,LEV[[L/UE.id]:[L/UE.id]],LEV[[E-mail]:[E-mail]],\"\",0),\"\")","v":""},{"$f":"IF(FO4<>0,_xlfn.XLOOKUP(FO$1,LEV[[L/UE.id]:[L/UE.id]],LEV[[E-mail]:[E-mail]],\"\",0),\"\")","v":"tilbud@dsvtransport.dk"},{"$f":"IF(FP4<>0,_xlfn.XLOOKUP(FP$1,LEV[[L/UE.id]:[L/UE.id]],LEV[[E-mail]:[E-mail]],\"\",0),\"\")","v":"lars@vognmandfas.dk"},{"$f":"IF(FQ4<>0,_xlfn.XLOOKUP(FQ$1,LEV[[L/UE.id]:[L/UE.id]],LEV[[E-mail]:[E-mail]],\"\",0),\"\")","v":"crj@dansk-specialtransport.dk"},{"$f":"IF(FR4<>0,_xlfn.XLOOKUP(FR$1,LEV[[L/UE.id]:[L/UE.id]],LEV[[E-mail]:[E-mail]],\"\",0),\"\")","v":"tilbud@scttransport.dk"},{"$f":"IF(FS4<>0,_xlfn.XLOOKUP(FS$1,LEV[[L/UE.id]:[L/UE.id]],LEV[[E-mail]:[E-mail]],\"\",0),\"\")","v":""},{"$f":"IF(FT4<>0,_xlfn.XLOOKUP(FT$1,LEV[[L/UE.id]:[L/UE.id]],LEV[[E-mail]:[E-mail]],\"\",0),\"\")","v":""},{"$f":"IF(FU4<>0,_xlfn.XLOOKUP(FU$1,LEV[[L/UE.id]:[L/UE.id]],LEV[[E-mail]:[E-mail]],\"\",0),\"\")","v":""},{"$f":"IF(FV4<>0,_xlfn.XLOOKUP(FV$1,LEV[[L/UE.id]:[L/UE.id]],LEV[[E-mail]:[E-mail]],\"\",0),\"\")","v":""},{"$f":"IF(FW4<>0,_xlfn.XLOOKUP(FW$1,LEV[[L/UE.id]:[L/UE.id]],LEV[[E-mail]:[E-mail]],\"\",0),\"\")","v":""},{"$f":"IF(FX4<>0,_xlfn.XLOOKUP(FX$1,LEV[[L/UE.id]:[L/UE.id]],LEV[[E-mail]:[E-mail]],\"\",0),\"\")","v":""},{"$f":"IF(FY4<>0,_xlfn.XLOOKUP(FY$1,LEV[[L/UE.id]:[L/UE.id]],LEV[[E-mail]:[E-mail]],\"\",0),\"\")","v":""},{"$f":"IF(FZ4<>0,_xlfn.XLOOKUP(FZ$1,LEV[[L/UE.id]:[L/UE.id]],LEV[[E-mail]:[E-mail]],\"\",0),\"\")","v":""},{"$f":"IF(GA4<>0,_xlfn.XLOOKUP(GA$1,LEV[[L/UE.id]:[L/UE.id]],LEV[[E-mail]:[E-mail]],\"\",0),\"\")","v":""},{"$f":"IF(GB4<>0,_xlfn.XLOOKUP(GB$1,LEV[[L/UE.id]:[L/UE.id]],LEV[[E-mail]:[E-mail]],\"\",0),\"\")","v":""},{"$f":"IF(GC4<>0,_xlfn.XLOOKUP(GC$1,LEV[[L/UE.id]:[L/UE.id]],LEV[[E-mail]:[E-mail]],\"\",0),\"\")","v":""},{"$f":"IF(GD4<>0,_xlfn.XLOOKUP(GD$1,LEV[[L/UE.id]:[L/UE.id]],LEV[[E-mail]:[E-mail]],\"\",0),\"\")","v":""},{"$f":"IF(GE4<>0,_xlfn.XLOOKUP(GE$1,LEV[[L/UE.id]:[L/UE.id]],LEV[[E-mail]:[E-mail]],\"\",0),\"\")","v":""},{"$f":"IF(GF4<>0,_xlfn.XLOOKUP(GF$1,LEV[[L/UE.id]:[L/UE.id]],LEV[[E-mail]:[E-mail]],\"\",0),\"\")","v":""},{"$f":"IF(GG4<>0,_xlfn.XLOOKUP(GG$1,LEV[[L/UE.id]:[L/UE.id]],LEV[[E-mail]:[E-mail]],\"\",0),\"\")","v":""},{"$f":"IF(GH4<>0,_xlfn.XLOOKUP(GH$1,LEV[[L/UE.id]:[L/UE.id]],LEV[[E-mail]:[E-mail]],\"\",0),\"\")","v":""},{"$f":"IF(GI4<>0,_xlfn.XLOOKUP(GI$1,LEV[[L/UE.id]:[L/UE.id]],LEV[[E-mail]:[E-mail]],\"\",0),\"\")","v":""},{"$f":"IF(GJ4<>0,_xlfn.XLOOKUP(GJ$1,LEV[[L/UE.id]:[L/UE.id]],LEV[[E-mail]:[E-mail]],\"\",0),\"\")","v":""},{"$f":"IF(GK4<>0,_xlfn.XLOOKUP(GK$1,LEV[[L/UE.id]:[L/UE.id]],LEV[[E-mail]:[E-mail]],\"\",0),\"\")","v":""},{"$f":"IF(GL4<>0,_xlfn.XLOOKUP(GL$1,LEV[[L/UE.id]:[L/UE.id]],LEV[[E-mail]:[E-mail]],\"\",0),\"\")","v":""},{"$f":"IF(GM4<>0,_xlfn.XLOOKUP(GM$1,LEV[[L/UE.id]:[L/UE.id]],LEV[[E-mail]:[E-mail]],\"\",0),\"\")","v":""},{"$f":"IF(GN4<>0,_xlfn.XLOOKUP(GN$1,LEV[[L/UE.id]:[L/UE.id]],LEV[[E-mail]:[E-mail]],\"\",0),\"\")","v":""},{"$f":"IF(GO4<>0,_xlfn.XLOOKUP(GO$1,LEV[[L/UE.id]:[L/UE.id]],LEV[[E-mail]:[E-mail]],\"\",0),\"\")","v":""},{"$f":"IF(GP4<>0,_xlfn.XLOOKUP(GP$1,LEV[[L/UE.id]:[L/UE.id]],LEV[[E-mail]:[E-mail]],\"\",0),\"\")","v":""},{"$f":"IF(GQ4<>0,_xlfn.XLOOKUP(GQ$1,LEV[[L/UE.id]:[L/UE.id]],LEV[[E-mail]:[E-mail]],\"\",0),\"\")","v":""},{"$f":"IF(GR4<>0,_xlfn.XLOOKUP(GR$1,LEV[[L/UE.id]:[L/UE.id]],LEV[[E-mail]:[E-mail]],\"\",0),\"\")","v":""},{"$f":"IF(GS4<>0,_xlfn.XLOOKUP(GS$1,LEV[[L/UE.id]:[L/UE.id]],LEV[[E-mail]:[E-mail]],\"\",0),\"\")","v":""},{"$f":"IF(GT4<>0,_xlfn.XLOOKUP(GT$1,LEV[[L/UE.id]:[L/UE.id]],LEV[[E-mail]:[E-mail]],\"\",0),\"\")","v":""},{"$f":"IF(GU4<>0,_xlfn.XLOOKUP(GU$1,LEV[[L/UE.id]:[L/UE.id]],LEV[[E-mail]:[E-mail]],\"\",0),\"\")","v":""},{"$f":"IF(GV4<>0,_xlfn.XLOOKUP(GV$1,LEV[[L/UE.id]:[L/UE.id]],LEV[[E-mail]:[E-mail]],\"\",0),\"\")","v":""},{"$f":"IF(GW4<>0,_xlfn.XLOOKUP(GW$1,LEV[[L/UE.id]:[L/UE.id]],LEV[[E-mail]:[E-mail]],\"\",0),\"\")","v":""},{"$f":"IF(GX4<>0,_xlfn.XLOOKUP(GX$1,LEV[[L/UE.id]:[L/UE.id]],LEV[[E-mail]:[E-mail]],\"\",0),\"\")","v":""},{"$f":"IF(GY4<>0,_xlfn.XLOOKUP(GY$1,LEV[[L/UE.id]:[L/UE.id]],LEV[[E-mail]:[E-mail]],\"\",0),\"\")","v":""},{"$f":"IF(GZ4<>0,_xlfn.XLOOKUP(GZ$1,LEV[[L/UE.id]:[L/UE.id]],LEV[[E-mail]:[E-mail]],\"\",0),\"\")","v":""},{"$f":"IF(HA4<>0,_xlfn.XLOOKUP(HA$1,LEV[[L/UE.id]:[L/UE.id]],LEV[[E-mail]:[E-mail]],\"\",0),\"\")","v":""},{"$f":"IF(HB4<>0,_xlfn.XLOOKUP(HB$1,LEV[[L/UE.id]:[L/UE.id]],LEV[[E-mail]:[E-mail]],\"\",0),\"\")","v":""},{"$f":"IF(HC4<>0,_xlfn.XLOOKUP(HC$1,LEV[[L/UE.id]:[L/UE.id]],LEV[[E-mail]:[E-mail]],\"\",0),\"\")","v":""},{"$f":"IF(HD4<>0,_xlfn.XLOOKUP(HD$1,LEV[[L/UE.id]:[L/UE.id]],LEV[[E-mail]:[E-mail]],\"\",0),\"\")","v":""},{"$f":"IF(HE4<>0,_xlfn.XLOOKUP(HE$1,LEV[[L/UE.id]:[L/UE.id]],LEV[[E-mail]:[E-mail]],\"\",0),\"\")","v":""},{"$f":"IF(HF4<>0,_xlfn.XLOOKUP(HF$1,LEV[[L/UE.id]:[L/UE.id]],LEV[[E-mail]:[E-mail]],\"\",0),\"\")","v":""},{"$f":"IF(HG4<>0,_xlfn.XLOOKUP(HG$1,LEV[[L/UE.id]:[L/UE.id]],LEV[[E-mail]:[E-mail]],\"\",0),\"\")","v":""},{"$f":"IF(HH4<>0,_xlfn.XLOOKUP(HH$1,LEV[[L/UE.id]:[L/UE.id]],LEV[[E-mail]:[E-mail]],\"\",0),\"\")","v":""},{"$f":"IF(HI4<>0,_xlfn.XLOOKUP(HI$1,LEV[[L/UE.id]:[L/UE.id]],LEV[[E-mail]:[E-mail]],\"\",0),\"\")","v":""},{"$f":"IF(HJ4<>0,_xlfn.XLOOKUP(HJ$1,LEV[[L/UE.id]:[L/UE.id]],LEV[[E-mail]:[E-mail]],\"\",0),\"\")","v":""},{"$f":"IF(HK4<>0,_xlfn.XLOOKUP(HK$1,LEV[[L/UE.id]:[L/UE.id]],LEV[[E-mail]:[E-mail]],\"\",0),\"\")","v":""},{"$f":"IF(HL4<>0,_xlfn.XLOOKUP(HL$1,LEV[[L/UE.id]:[L/UE.id]],LEV[[E-mail]:[E-mail]],\"\",0),\"\")","v":""},{"$f":"IF(HM4<>0,_xlfn.XLOOKUP(HM$1,LEV[[L/UE.id]:[L/UE.id]],LEV[[E-mail]:[E-mail]],\"\",0),\"\")","v":""},{"$f":"IF(HN4<>0,_xlfn.XLOOKUP(HN$1,LEV[[L/UE.id]:[L/UE.id]],LEV[[E-mail]:[E-mail]],\"\",0),\"\")","v":""},{"$f":"IF(HO4<>0,_xlfn.XLOOKUP(HO$1,LEV[[L/UE.id]:[L/UE.id]],LEV[[E-mail]:[E-mail]],\"\",0),\"\")","v":""},{"$f":"IF(HP4<>0,_xlfn.XLOOKUP(HP$1,LEV[[L/UE.id]:[L/UE.id]],LEV[[E-mail]:[E-mail]],\"\",0),\"\")","v":""},{"$f":"IF(HQ4<>0,_xlfn.XLOOKUP(HQ$1,LEV[[L/UE.id]:[L/UE.id]],LEV[[E-mail]:[E-mail]],\"\",0),\"\")","v":""},{"$f":"IF(HR4<>0,_xlfn.XLOOKUP(HR$1,LEV[[L/UE.id]:[L/UE.id]],LEV[[E-mail]:[E-mail]],\"\",0),\"\")","v":""},{"$f":"IF(HS4<>0,_xlfn.XLOOKUP(HS$1,LEV[[L/UE.id]:[L/UE.id]],LEV[[E-mail]:[E-mail]],\"\",0),\"\")","v":""},{"$f":"IF(HT4<>0,_xlfn.XLOOKUP(HT$1,LEV[[L/UE.id]:[L/UE.id]],LEV[[E-mail]:[E-mail]],\"\",0),\"\")","v":""},{"$f":"IF(HU4<>0,_xlfn.XLOOKUP(HU$1,LEV[[L/UE.id]:[L/UE.id]],LEV[[E-mail]:[E-mail]],\"\",0),\"\")","v":""},{"$f":"IF(HV4<>0,_xlfn.XLOOKUP(HV$1,LEV[[L/UE.id]:[L/UE.id]],LEV[[E-mail]:[E-mail]],\"\",0),\"\")","v":""},{"$f":"IF(HW4<>0,_xlfn.XLOOKUP(HW$1,LEV[[L/UE.id]:[L/UE.id]],LEV[[E-mail]:[E-mail]],\"\",0),\"\")","v":""},{"$f":"IF(HX4<>0,_xlfn.XLOOKUP(HX$1,LEV[[L/UE.id]:[L/UE.id]],LEV[[E-mail]:[E-mail]],\"\",0),\"\")","v":""},{"$f":"IF(HY4<>0,_xlfn.XLOOKUP(HY$1,LEV[[L/UE.id]:[L/UE.id]],LEV[[E-mail]:[E-mail]],\"\",0),\"\")","v":""},{"$f":"IF(HZ4<>0,_xlfn.XLOOKUP(HZ$1,LEV[[L/UE.id]:[L/UE.id]],LEV[[E-mail]:[E-mail]],\"\",0),\"\")","v":""},{"$f":"IF(IA4<>0,_xlfn.XLOOKUP(IA$1,LEV[[L/UE.id]:[L/UE.id]],LEV[[E-mail]:[E-mail]],\"\",0),\"\")","v":""},{"$f":"IF(IB4<>0,_xlfn.XLOOKUP(IB$1,LEV[[L/UE.id]:[L/UE.id]],LEV[[E-mail]:[E-mail]],\"\",0),\"\")","v":""},{"$f":"IF(IC4<>0,_xlfn.XLOOKUP(IC$1,LEV[[L/UE.id]:[L/UE.id]],LEV[[E-mail]:[E-mail]],\"\",0),\"\")","v":""},{"$f":"IF(ID4<>0,_xlfn.XLOOKUP(ID$1,LEV[[L/UE.id]:[L/UE.id]],LEV[[E-mail]:[E-mail]],\"\",0),\"\")","v":""},{"$f":"IF(IE4<>0,_xlfn.XLOOKUP(IE$1,LEV[[L/UE.id]:[L/UE.id]],LEV[[E-mail]:[E-mail]],\"\",0),\"\")","v":""},{"$f":"IF(IF4<>0,_xlfn.XLOOKUP(IF$1,LEV[[L/UE.id]:[L/UE.id]],LEV[[E-mail]:[E-mail]],\"\",0),\"\")","v":""},{"$f":"IF(IG4<>0,_xlfn.XLOOKUP(IG$1,LEV[[L/UE.id]:[L/UE.id]],LEV[[E-mail]:[E-mail]],\"\",0),\"\")","v":""},{"$f":"IF(IH4<>0,_xlfn.XLOOKUP(IH$1,LEV[[L/UE.id]:[L/UE.id]],LEV[[E-mail]:[E-mail]],\"\",0),\"\")","v":""},{"$f":"IF(II4<>0,_xlfn.XLOOKUP(II$1,LEV[[L/UE.id]:[L/UE.id]],LEV[[E-mail]:[E-mail]],\"\",0),\"\")","v":""},{"$f":"IF(IJ4<>0,_xlfn.XLOOKUP(IJ$1,LEV[[L/UE.id]:[L/UE.id]],LEV[[E-mail]:[E-mail]],\"\",0),\"\")","v":""},{"$f":"IF(IK4<>0,_xlfn.XLOOKUP(IK$1,LEV[[L/UE.id]:[L/UE.id]],LEV[[E-mail]:[E-mail]],\"\",0),\"\")","v":""},{"$f":"IF(IL4<>0,_xlfn.XLOOKUP(IL$1,LEV[[L/UE.id]:[L/UE.id]],LEV[[E-mail]:[E-mail]],\"\",0),\"\")","v":""},{"$f":"IF(IM4<>0,_xlfn.XLOOKUP(IM$1,LEV[[L/UE.id]:[L/UE.id]],LEV[[E-mail]:[E-mail]],\"\",0),\"\")","v":""},{"$f":"IF(IN4<>0,_xlfn.XLOOKUP(IN$1,LEV[[L/UE.id]:[L/UE.id]],LEV[[E-mail]:[E-mail]],\"\",0),\"\")","v":""},{"$f":"IF(IO4<>0,_xlfn.XLOOKUP(IO$1,LEV[[L/UE.id]:[L/UE.id]],LEV[[E-mail]:[E-mail]],\"\",0),\"\")","v":""},{"$f":"IF(IP4<>0,_xlfn.XLOOKUP(IP$1,LEV[[L/UE.id]:[L/UE.id]],LEV[[E-mail]:[E-mail]],\"\",0),\"\")","v":""},{"$f":"IF(IQ4<>0,_xlfn.XLOOKUP(IQ$1,LEV[[L/UE.id]:[L/UE.id]],LEV[[E-mail]:[E-mail]],\"\",0),\"\")","v":""},{"$f":"IF(IR4<>0,_xlfn.XLOOKUP(IR$1,LEV[[L/UE.id]:[L/UE.id]],LEV[[E-mail]:[E-mail]],\"\",0),\"\")","v":""},{"$f":"IF(IS4<>0,_xlfn.XLOOKUP(IS$1,LEV[[L/UE.id]:[L/UE.id]],LEV[[E-mail]:[E-mail]],\"\",0),\"\")","v":""},{"$f":"IF(IT4<>0,_xlfn.XLOOKUP(IT$1,LEV[[L/UE.id]:[L/UE.id]],LEV[[E-mail]:[E-mail]],\"\",0),\"\")","v":""},{"$f":"IF(IU4<>0,_xlfn.XLOOKUP(IU$1,LEV[[L/UE.id]:[L/UE.id]],LEV[[E-mail]:[E-mail]],\"\",0),\"\")","v":""},{"$f":"IF(IV4<>0,_xlfn.XLOOKUP(IV$1,LEV[[L/UE.id]:[L/UE.id]],LEV[[E-mail]:[E-mail]],\"\",0),\"\")","v":""},{"$f":"IF(IW4<>0,_xlfn.XLOOKUP(IW$1,LEV[[L/UE.id]:[L/UE.id]],LEV[[E-mail]:[E-mail]],\"\",0),\"\")","v":""},{"$f":"IF(IX4<>0,_xlfn.XLOOKUP(IX$1,LEV[[L/UE.id]:[L/UE.id]],LEV[[E-mail]:[E-mail]],\"\",0),\"\")","v":""},{"$f":"IF(IY4<>0,_xlfn.XLOOKUP(IY$1,LEV[[L/UE.id]:[L/UE.id]],LEV[[E-mail]:[E-mail]],\"\",0),\"\")","v":""},{"$f":"IF(IZ4<>0,_xlfn.XLOOKUP(IZ$1,LEV[[L/UE.id]:[L/UE.id]],LEV[[E-mail]:[E-mail]],\"\",0),\"\")","v":""},{"$f":"IF(JA4<>0,_xlfn.XLOOKUP(JA$1,LEV[[L/UE.id]:[L/UE.id]],LEV[[E-mail]:[E-mail]],\"\",0),\"\")","v":""},{"$f":"IF(JB4<>0,_xlfn.XLOOKUP(JB$1,LEV[[L/UE.id]:[L/UE.id]],LEV[[E-mail]:[E-mail]],\"\",0),\"\")","v":""},{"$f":"IF(JC4<>0,_xlfn.XLOOKUP(JC$1,LEV[[L/UE.id]:[L/UE.id]],LEV[[E-mail]:[E-mail]],\"\",0),\"\")","v":""},{"$f":"IF(JD4<>0,_xlfn.XLOOKUP(JD$1,LEV[[L/UE.id]:[L/UE.id]],LEV[[E-mail]:[E-mail]],\"\",0),\"\")","v":""},{"$f":"IF(JE4<>0,_xlfn.XLOOKUP(JE$1,LEV[[L/UE.id]:[L/UE.id]],LEV[[E-mail]:[E-mail]],\"\",0),\"\")","v":""},{"$f":"IF(JF4<>0,_xlfn.XLOOKUP(JF$1,LEV[[L/UE.id]:[L/UE.id]],LEV[[E-mail]:[E-mail]],\"\",0),\"\")","v":""},{"$f":"IF(JG4<>0,_xlfn.XLOOKUP(JG$1,LEV[[L/UE.id]:[L/UE.id]],LEV[[E-mail]:[E-mail]],\"\",0),\"\")","v":""},{"$f":"IF(JH4<>0,_xlfn.XLOOKUP(JH$1,LEV[[L/UE.id]:[L/UE.id]],LEV[[E-mail]:[E-mail]],\"\",0),\"\")","v":""},{"$f":"IF(JI4<>0,_xlfn.XLOOKUP(JI$1,LEV[[L/UE.id]:[L/UE.id]],LEV[[E-mail]:[E-mail]],\"\",0),\"\")","v":""},{"$f":"IF(JJ4<>0,_xlfn.XLOOKUP(JJ$1,LEV[[L/UE.id]:[L/UE.id]],LEV[[E-mail]:[E-mail]],\"\",0),\"\")","v":""}]
[null,null,null,null,null,null,null,null,null,null,1,null,null,null,"LEV. Gruppe",null,null,null,null,null,{"$f":"IF(U4<>0,_xlfn.XLOOKUP(U$1,LEV[[L/UE.id]:[L/UE.id]],LEV[[FAG]:[FAG]],\"\",0),\"\")","v":""},{"$f":"IF(V4<>0,_xlfn.XLOOKUP(V$1,LEV[[L/UE.id]:[L/UE.id]],LEV[[FAG]:[FAG]],\"\",0),\"\")","v":""},{"$f":"IF(W4<>0,_xlfn.XLOOKUP(W$1,LEV[[L/UE.id]:[L/UE.id]],LEV[[FAG]:[FAG]],\"\",0),\"\")","v":""},{"$f":"IF(X4<>0,_xlfn.XLOOKUP(X$1,LEV[[L/UE.id]:[L/UE.id]],LEV[[FAG]:[FAG]],\"\",0),\"\")","v":""},{"$f":"IF(Y4<>0,_xlfn.XLOOKUP(Y$1,LEV[[L/UE.id]:[L/UE.id]],LEV[[FAG]:[FAG]],\"\",0),\"\")","v":"Afstribning"},{"$f":"IF(Z4<>0,_xlfn.XLOOKUP(Z$1,LEV[[L/UE.id]:[L/UE.id]],LEV[[FAG]:[FAG]],\"\",0),\"\")","v":"Afstribning"},{"$f":"IF(AA4<>0,_xlfn.XLOOKUP(AA$1,LEV[[L/UE.id]:[L/UE.id]],LEV[[FAG]:[FAG]],\"\",0),\"\")","v":""},{"$f":"IF(AB4<>0,_xlfn.XLOOKUP(AB$1,LEV[[L/UE.id]:[L/UE.id]],LEV[[FAG]:[FAG]],\"\",0),\"\")","v":"Asfalt"},{"$f":"IF(AC4<>0,_xlfn.XLOOKUP(AC$1,LEV[[L/UE.id]:[L/UE.id]],LEV[[FAG]:[FAG]],\"\",0),\"\")","v":"Asfalt"},{"$f":"IF(AD4<>0,_xlfn.XLOOKUP(AD$1,LEV[[L/UE.id]:[L/UE.id]],LEV[[FAG]:[FAG]],\"\",0),\"\")","v":"Asfalt"},{"$f":"IF(AE4<>0,_xlfn.XLOOKUP(AE$1,LEV[[L/UE.id]:[L/UE.id]],LEV[[FAG]:[FAG]],\"\",0),\"\")","v":"Asfalt"},{"$f":"IF(AF4<>0,_xlfn.XLOOKUP(AF$1,LEV[[L/UE.id]:[L/UE.id]],LEV[[FAG]:[FAG]],\"\",0),\"\")","v":"Asfalt"},{"$f":"IF(AG4<>0,_xlfn.XLOOKUP(AG$1,LEV[[L/UE.id]:[L/UE.id]],LEV[[FAG]:[FAG]],\"\",0),\"\")","v":""},{"$f":"IF(AH4<>0,_xlfn.XLOOKUP(AH$1,LEV[[L/UE.id]:[L/UE.id]],LEV[[FAG]:[FAG]],\"\",0),\"\")","v":"Asfalt"},{"$f":"IF(AI4<>0,_xlfn.XLOOKUP(AI$1,LEV[[L/UE.id]:[L/UE.id]],LEV[[FAG]:[FAG]],\"\",0),\"\")","v":"Asfalt"},{"$f":"IF(AJ4<>0,_xlfn.XLOOKUP(AJ$1,LEV[[L/UE.id]:[L/UE.id]],LEV[[FAG]:[FAG]],\"\",0),\"\")","v":""},{"$f":"IF(AK4<>0,_xlfn.XLOOKUP(AK$1,LEV[[L/UE.id]:[L/UE.id]],LEV[[FAG]:[FAG]],\"\",0),\"\")","v":""},{"$f":"IF(AL4<>0,_xlfn.XLOOKUP(AL$1,LEV[[L/UE.id]:[L/UE.id]],LEV[[FAG]:[FAG]],\"\",0),\"\")","v":"Belægning"},{"$f":"IF(AM4<>0,_xlfn.XLOOKUP(AM$1,LEV[[L/UE.id]:[L/UE.id]],LEV[[FAG]:[FAG]],\"\",0),\"\")","v":"Belægning"},{"$f":"IF(AN4<>0,_xlfn.XLOOKUP(AN$1,LEV[[L/UE.id]:[L/UE.id]],LEV[[FAG]:[FAG]],\"\",0),\"\")","v":""},{"$f":"IF(AO4<>0,_xlfn.XLOOKUP(AO$1,LEV[[L/UE.id]:[L/UE.id]],LEV[[FAG]:[FAG]],\"\",0),\"\")","v":""},{"$f":"IF(AP4<>0,_xlfn.XLOOKUP(AP$1,LEV[[L/UE.id]:[L/UE.id]],LEV[[FAG]:[FAG]],\"\",0),\"\")","v":"Beton Entreprenør"},{"$f":"IF(AQ4<>0,_xlfn.XLOOKUP(AQ$1,LEV[[L/UE.id]:[L/UE.id]],LEV[[FAG]:[FAG]],\"\",0),\"\")","v":"Beton Entreprenør"},{"$f":"IF(AR4<>0,_xlfn.XLOOKUP(AR$1,LEV[[L/UE.id]:[L/UE.id]],LEV[[FAG]:[FAG]],\"\",0),\"\")","v":"Beton Entreprenør"},{"$f":"IF(AS4<>0,_xlfn.XLOOKUP(AS$1,LEV[[L/UE.id]:[L/UE.id]],LEV[[FAG]:[FAG]],\"\",0),\"\")","v":""},{"$f":"IF(AT4<>0,_xlfn.XLOOKUP(AT$1,LEV[[L/UE.id]:[L/UE.id]],LEV[[FAG]:[FAG]],\"\",0),\"\")","v":""},{"$f":"IF(AU4<>0,_xlfn.XLOOKUP(AU$1,LEV[[L/UE.id]:[L/UE.id]],LEV[[FAG]:[FAG]],\"\",0),\"\")","v":""},{"$f":"IF(AV4<>0,_xlfn.XLOOKUP(AV$1,LEV[[L/UE.id]:[L/UE.id]],LEV[[FAG]:[FAG]],\"\",0),\"\")","v":""},{"$f":"IF(AW4<>0,_xlfn.XLOOKUP(AW$1,LEV[[L/UE.id]:[L/UE.id]],LEV[[FAG]:[FAG]],\"\",0),\"\")","v":""},{"$f":"IF(AX4<>0,_xlfn.XLOOKUP(AX$1,LEV[[L/UE.id]:[L/UE.id]],LEV[[FAG]:[FAG]],\"\",0),\"\")","v":""},{"$f":"IF(AY4<>0,_xlfn.XLOOKUP(AY$1,LEV[[L/UE.id]:[L/UE.id]],LEV[[FAG]:[FAG]],\"\",0),\"\")","v":""},{"$f":"IF(AZ4<>0,_xlfn.XLOOKUP(AZ$1,LEV[[L/UE.id]:[L/UE.id]],LEV[[FAG]:[FAG]],\"\",0),\"\")","v":""},{"$f":"IF(BA4<>0,_xlfn.XLOOKUP(BA$1,LEV[[L/UE.id]:[L/UE.id]],LEV[[FAG]:[FAG]],\"\",0),\"\")","v":""},{"$f":"IF(BB4<>0,_xlfn.XLOOKUP(BB$1,LEV[[L/UE.id]:[L/UE.id]],LEV[[FAG]:[FAG]],\"\",0),\"\")","v":""},{"$f":"IF(BC4<>0,_xlfn.XLOOKUP(BC$1,LEV[[L/UE.id]:[L/UE.id]],LEV[[FAG]:[FAG]],\"\",0),\"\")","v":""},{"$f":"IF(BD4<>0,_xlfn.XLOOKUP(BD$1,LEV[[L/UE.id]:[L/UE.id]],LEV[[FAG]:[FAG]],\"\",0),\"\")","v":""},{"$f":"IF(BE4<>0,_xlfn.XLOOKUP(BE$1,LEV[[L/UE.id]:[L/UE.id]],LEV[[FAG]:[FAG]],\"\",0),\"\")","v":""},{"$f":"IF(BF4<>0,_xlfn.XLOOKUP(BF$1,LEV[[L/UE.id]:[L/UE.id]],LEV[[FAG]:[FAG]],\"\",0),\"\")","v":""},{"$f":"IF(BG4<>0,_xlfn.XLOOKUP(BG$1,LEV[[L/UE.id]:[L/UE.id]],LEV[[FAG]:[FAG]],\"\",0),\"\")","v":""},{"$f":"IF(BH4<>0,_xlfn.XLOOKUP(BH$1,LEV[[L/UE.id]:[L/UE.id]],LEV[[FAG]:[FAG]],\"\",0),\"\")","v":""},{"$f":"IF(BI4<>0,_xlfn.XLOOKUP(BI$1,LEV[[L/UE.id]:[L/UE.id]],LEV[[FAG]:[FAG]],\"\",0),\"\")","v":"El-arbejder"},{"$f":"IF(BJ4<>0,_xlfn.XLOOKUP(BJ$1,LEV[[L/UE.id]:[L/UE.id]],LEV[[FAG]:[FAG]],\"\",0),\"\")","v":"El-arbejder"},{"$f":"IF(BK4<>0,_xlfn.XLOOKUP(BK$1,LEV[[L/UE.id]:[L/UE.id]],LEV[[FAG]:[FAG]],\"\",0),\"\")","v":""},{"$f":"IF(BL4<>0,_xlfn.XLOOKUP(BL$1,LEV[[L/UE.id]:[L/UE.id]],LEV[[FAG]:[FAG]],\"\",0),\"\")","v":""},{"$f":"IF(BM4<>0,_xlfn.XLOOKUP(BM$1,LEV[[L/UE.id]:[L/UE.id]],LEV[[FAG]:[FAG]],\"\",0),\"\")","v":""},{"$f":"IF(BN4<>0,_xlfn.XLOOKUP(BN$1,LEV[[L/UE.id]:[L/UE.id]],LEV[[FAG]:[FAG]],\"\",0),\"\")","v":""},{"$f":"IF(BO4<>0,_xlfn.XLOOKUP(BO$1,LEV[[L/UE.id]:[L/UE.id]],LEV[[FAG]:[FAG]],\"\",0),\"\")","v":"Entreprenør"},{"$f":"IF(BP4<>0,_xlfn.XLOOKUP(BP$1,LEV[[L/UE.id]:[L/UE.id]],LEV[[FAG]:[FAG]],\"\",0),\"\")","v":"Entreprenør"},{"$f":"IF(BQ4<>0,_xlfn.XLOOKUP(BQ$1,LEV[[L/UE.id]:[L/UE.id]],LEV[[FAG]:[FAG]],\"\",0),\"\")","v":"Entreprenør"},{"$f":"IF(BR4<>0,_xlfn.XLOOKUP(BR$1,LEV[[L/UE.id]:[L/UE.id]],LEV[[FAG]:[FAG]],\"\",0),\"\")","v":""},{"$f":"IF(BS4<>0,_xlfn.XLOOKUP(BS$1,LEV[[L/UE.id]:[L/UE.id]],LEV[[FAG]:[FAG]],\"\",0),\"\")","v":""},{"$f":"IF(BT4<>0,_xlfn.XLOOKUP(BT$1,LEV[[L/UE.id]:[L/UE.id]],LEV[[FAG]:[FAG]],\"\",0),\"\")","v":""},{"$f":"IF(BU4<>0,_xlfn.XLOOKUP(BU$1,LEV[[L/UE.id]:[L/UE.id]],LEV[[FAG]:[FAG]],\"\",0),\"\")","v":""},{"$f":"IF(BV4<>0,_xlfn.XLOOKUP(BV$1,LEV[[L/UE.id]:[L/UE.id]],LEV[[FAG]:[FAG]],\"\",0),\"\")","v":""},{"$f":"IF(BW4<>0,_xlfn.XLOOKUP(BW$1,LEV[[L/UE.id]:[L/UE.id]],LEV[[FAG]:[FAG]],\"\",0),\"\")","v":""},{"$f":"IF(BX4<>0,_xlfn.XLOOKUP(BX$1,LEV[[L/UE.id]:[L/UE.id]],LEV[[FAG]:[FAG]],\"\",0),\"\")","v":""},{"$f":"IF(BY4<>0,_xlfn.XLOOKUP(BY$1,LEV[[L/UE.id]:[L/UE.id]],LEV[[FAG]:[FAG]],\"\",0),\"\")","v":""},{"$f":"IF(BZ4<>0,_xlfn.XLOOKUP(BZ$1,LEV[[L/UE.id]:[L/UE.id]],LEV[[FAG]:[FAG]],\"\",0),\"\")","v":""},{"$f":"IF(CA4<>0,_xlfn.XLOOKUP(CA$1,LEV[[L/UE.id]:[L/UE.id]],LEV[[FAG]:[FAG]],\"\",0),\"\")","v":""},{"$f":"IF(CB4<>0,_xlfn.XLOOKUP(CB$1,LEV[[L/UE.id]:[L/UE.id]],LEV[[FAG]:[FAG]],\"\",0),\"\")","v":""},{"$f":"IF(CC4<>0,_xlfn.XLOOKUP(CC$1,LEV[[L/UE.id]:[L/UE.id]],LEV[[FAG]:[FAG]],\"\",0),\"\")","v":""},{"$f":"IF(CD4<>0,_xlfn.XLOOKUP(CD$1,LEV[[L/UE.id]:[L/UE.id]],LEV[[FAG]:[FAG]],\"\",0),\"\")","v":""},{"$f":"IF(CE4<>0,_xlfn.XLOOKUP(CE$1,LEV[[L/UE.id]:[L/UE.id]],LEV[[FAG]:[FAG]],\"\",0),\"\")","v":""},{"$f":"IF(CF4<>0,_xlfn.XLOOKUP(CF$1,LEV[[L/UE.id]:[L/UE.id]],LEV[[FAG]:[FAG]],\"\",0),\"\")","v":"Beton Entreprenør"},{"$f":"IF(CG4<>0,_xlfn.XLOOKUP(CG$1,LEV[[L/UE.id]:[L/UE.id]],LEV[[FAG]:[FAG]],\"\",0),\"\")","v":""},{"$f":"IF(CH4<>0,_xlfn.XLOOKUP(CH$1,LEV[[L/UE.id]:[L/UE.id]],LEV[[FAG]:[FAG]],\"\",0),\"\")","v":""},{"$f":"IF(CI4<>0,_xlfn.XLOOKUP(CI$1,LEV[[L/UE.id]:[L/UE.id]],LEV[[FAG]:[FAG]],\"\",0),\"\")","v":""},{"$f":"IF(CJ4<>0,_xlfn.XLOOKUP(CJ$1,LEV[[L/UE.id]:[L/UE.id]],LEV[[FAG]:[FAG]],\"\",0),\"\")","v":""},{"$f":"IF(CK4<>0,_xlfn.XLOOKUP(CK$1,LEV[[L/UE.id]:[L/UE.id]],LEV[[FAG]:[FAG]],\"\",0),\"\")","v":"Kloak Beton"},{"$f":"IF(CL4<>0,_xlfn.XLOOKUP(CL$1,LEV[[L/UE.id]:[L/UE.id]],LEV[[FAG]:[FAG]],\"\",0),\"\")","v":"Kloak Beton"},{"$f":"IF(CM4<>0,_xlfn.XLOOKUP(CM$1,LEV[[L/UE.id]:[L/UE.id]],LEV[[FAG]:[FAG]],\"\",0),\"\")","v":"Kloak Plast"},{"$f":"IF(CN4<>0,_xlfn.XLOOKUP(CN$1,LEV[[L/UE.id]:[L/UE.id]],LEV[[FAG]:[FAG]],\"\",0),\"\")","v":"Kloak Plast"},{"$f":"IF(CO4<>0,_xlfn.XLOOKUP(CO$1,LEV[[L/UE.id]:[L/UE.id]],LEV[[FAG]:[FAG]],\"\",0),\"\")","v":"Kloak Plast"},{"$f":"IF(CP4<>0,_xlfn.XLOOKUP(CP$1,LEV[[L/UE.id]:[L/UE.id]],LEV[[FAG]:[FAG]],\"\",0),\"\")","v":""},{"$f":"IF(CQ4<>0,_xlfn.XLOOKUP(CQ$1,LEV[[L/UE.id]:[L/UE.id]],LEV[[FAG]:[FAG]],\"\",0),\"\")","v":""},{"$f":"IF(CR4<>0,_xlfn.XLOOKUP(CR$1,LEV[[L/UE.id]:[L/UE.id]],LEV[[FAG]:[FAG]],\"\",0),\"\")","v":""},{"$f":"IF(CS4<>0,_xlfn.XLOOKUP(CS$1,LEV[[L/UE.id]:[L/UE.id]],LEV[[FAG]:[FAG]],\"\",0),\"\")","v":""},{"$f":"IF(CT4<>0,_xlfn.XLOOKUP(CT$1,LEV[[L/UE.id]:[L/UE.id]],LEV[[FAG]:[FAG]],\"\",0),\"\")","v":""},{"$f":"IF(CU4<>0,_xlfn.XLOOKUP(CU$1,LEV[[L/UE.id]:[L/UE.id]],LEV[[FAG]:[FAG]],\"\",0),\"\")","v":""},{"$f":"IF(CV4<>0,_xlfn.XLOOKUP(CV$1,LEV[[L/UE.id]:[L/UE.id]],LEV[[FAG]:[FAG]],\"\",0),\"\")","v":""},{"$f":"IF(CW4<>0,_xlfn.XLOOKUP(CW$1,LEV[[L/UE.id]:[L/UE.id]],LEV[[FAG]:[FAG]],\"\",0),\"\")","v":""},{"$f":"IF(CX4<>0,_xlfn.XLOOKUP(CX$1,LEV[[L/UE.id]:[L/UE.id]],LEV[[FAG]:[FAG]],\"\",0),\"\")","v":""},{"$f":"IF(CY4<>0,_xlfn.XLOOKUP(CY$1,LEV[[L/UE.id]:[L/UE.id]],LEV[[FAG]:[FAG]],\"\",0),\"\")","v":"Lege udstyr"},{"$f":"IF(CZ4<>0,_xlfn.XLOOKUP(CZ$1,LEV[[L/UE.id]:[L/UE.id]],LEV[[FAG]:[FAG]],\"\",0),\"\")","v":""},{"$f":"IF(DA4<>0,_xlfn.XLOOKUP(DA$1,LEV[[L/UE.id]:[L/UE.id]],LEV[[FAG]:[FAG]],\"\",0),\"\")","v":"Lege udstyr"},{"$f":"IF(DB4<>0,_xlfn.XLOOKUP(DB$1,LEV[[L/UE.id]:[L/UE.id]],LEV[[FAG]:[FAG]],\"\",0),\"\")","v":""},{"$f":"IF(DC4<>0,_xlfn.XLOOKUP(DC$1,LEV[[L/UE.id]:[L/UE.id]],LEV[[FAG]:[FAG]],\"\",0),\"\")","v":""},{"$f":"IF(DD4<>0,_xlfn.XLOOKUP(DD$1,LEV[[L/UE.id]:[L/UE.id]],LEV[[FAG]:[FAG]],\"\",0),\"\")","v":""},{"$f":"IF(DE4<>0,_xlfn.XLOOKUP(DE$1,LEV[[L/UE.id]:[L/UE.id]],LEV[[FAG]:[FAG]],\"\",0),\"\")","v":""},{"$f":"IF(DF4<>0,_xlfn.XLOOKUP(DF$1,LEV[[L/UE.id]:[L/UE.id]],LEV[[FAG]:[FAG]],\"\",0),\"\")","v":""},{"$f":"IF(DG4<>0,_xlfn.XLOOKUP(DG$1,LEV[[L/UE.id]:[L/UE.id]],LEV[[FAG]:[FAG]],\"\",0),\"\")","v":"Lege udstyr"},{"$f":"IF(DH4<>0,_xlfn.XLOOKUP(DH$1,LEV[[L/UE.id]:[L/UE.id]],LEV[[FAG]:[FAG]],\"\",0),\"\")","v":"Lege udstyr"},{"$f":"IF(DI4<>0,_xlfn.XLOOKUP(DI$1,LEV[[L/UE.id]:[L/UE.id]],LEV[[FAG]:[FAG]],\"\",0),\"\")","v":"Lege udstyr"},{"$f":"IF(DJ4<>0,_xlfn.XLOOKUP(DJ$1,LEV[[L/UE.id]:[L/UE.id]],LEV[[FAG]:[FAG]],\"\",0),\"\")","v":""},{"$f":"IF(DK4<>0,_xlfn.XLOOKUP(DK$1,LEV[[L/UE.id]:[L/UE.id]],LEV[[FAG]:[FAG]],\"\",0),\"\")","v":""},{"$f":"IF(DL4<>0,_xlfn.XLOOKUP(DL$1,LEV[[L/UE.id]:[L/UE.id]],LEV[[FAG]:[FAG]],\"\",0),\"\")","v":""},{"$f":"IF(DM4<>0,_xlfn.XLOOKUP(DM$1,LEV[[L/UE.id]:[L/UE.id]],LEV[[FAG]:[FAG]],\"\",0),\"\")","v":""},{"$f":"IF(DN4<>0,_xlfn.XLOOKUP(DN$1,LEV[[L/UE.id]:[L/UE.id]],LEV[[FAG]:[FAG]],\"\",0),\"\")","v":""},{"$f":"IF(DO4<>0,_xlfn.XLOOKUP(DO$1,LEV[[L/UE.id]:[L/UE.id]],LEV[[FAG]:[FAG]],\"\",0),\"\")","v":""},{"$f":"IF(DP4<>0,_xlfn.XLOOKUP(DP$1,LEV[[L/UE.id]:[L/UE.id]],LEV[[FAG]:[FAG]],\"\",0),\"\")","v":""},{"$f":"IF(DQ4<>0,_xlfn.XLOOKUP(DQ$1,LEV[[L/UE.id]:[L/UE.id]],LEV[[FAG]:[FAG]],\"\",0),\"\")","v":""},{"$f":"IF(DR4<>0,_xlfn.XLOOKUP(DR$1,LEV[[L/UE.id]:[L/UE.id]],LEV[[FAG]:[FAG]],\"\",0),\"\")","v":""},{"$f":"IF(DS4<>0,_xlfn.XLOOKUP(DS$1,LEV[[L/UE.id]:[L/UE.id]],LEV[[FAG]:[FAG]],\"\",0),\"\")","v":""},{"$f":"IF(DT4<>0,_xlfn.XLOOKUP(DT$1,LEV[[L/UE.id]:[L/UE.id]],LEV[[FAG]:[FAG]],\"\",0),\"\")","v":"planter"},{"$f":"IF(DU4<>0,_xlfn.XLOOKUP(DU$1,LEV[[L/UE.id]:[L/UE.id]],LEV[[FAG]:[FAG]],\"\",0),\"\")","v":"planter"},{"$f":"IF(DV4<>0,_xlfn.XLOOKUP(DV$1,LEV[[L/UE.id]:[L/UE.id]],LEV[[FAG]:[FAG]],\"\",0),\"\")","v":"planter"},{"$f":"IF(DW4<>0,_xlfn.XLOOKUP(DW$1,LEV[[L/UE.id]:[L/UE.id]],LEV[[FAG]:[FAG]],\"\",0),\"\")","v":"planter"},{"$f":"IF(DX4<>0,_xlfn.XLOOKUP(DX$1,LEV[[L/UE.id]:[L/UE.id]],LEV[[FAG]:[FAG]],\"\",0),\"\")","v":"Pleje"},{"$f":"IF(DY4<>0,_xlfn.XLOOKUP(DY$1,LEV[[L/UE.id]:[L/UE.id]],LEV[[FAG]:[FAG]],\"\",0),\"\")","v":"Ramning, pæle, spuns"},{"$f":"IF(DZ4<>0,_xlfn.XLOOKUP(DZ$1,LEV[[L/UE.id]:[L/UE.id]],LEV[[FAG]:[FAG]],\"\",0),\"\")","v":"Ramning, pæle, spuns"},{"$f":"IF(EA4<>0,_xlfn.XLOOKUP(EA$1,LEV[[L/UE.id]:[L/UE.id]],LEV[[FAG]:[FAG]],\"\",0),\"\")","v":"Ramning, pæle, spuns"},{"$f":"IF(EB4<>0,_xlfn.XLOOKUP(EB$1,LEV[[L/UE.id]:[L/UE.id]],LEV[[FAG]:[FAG]],\"\",0),\"\")","v":""},{"$f":"IF(EC4<>0,_xlfn.XLOOKUP(EC$1,LEV[[L/UE.id]:[L/UE.id]],LEV[[FAG]:[FAG]],\"\",0),\"\")","v":""},{"$f":"IF(ED4<>0,_xlfn.XLOOKUP(ED$1,LEV[[L/UE.id]:[L/UE.id]],LEV[[FAG]:[FAG]],\"\",0),\"\")","v":""},{"$f":"IF(EE4<>0,_xlfn.XLOOKUP(EE$1,LEV[[L/UE.id]:[L/UE.id]],LEV[[FAG]:[FAG]],\"\",0),\"\")","v":""},{"$f":"IF(EF4<>0,_xlfn.XLOOKUP(EF$1,LEV[[L/UE.id]:[L/UE.id]],LEV[[FAG]:[FAG]],\"\",0),\"\")","v":""},{"$f":"IF(EG4<>0,_xlfn.XLOOKUP(EG$1,LEV[[L/UE.id]:[L/UE.id]],LEV[[FAG]:[FAG]],\"\",0),\"\")","v":""},{"$f":"IF(EH4<>0,_xlfn.XLOOKUP(EH$1,LEV[[L/UE.id]:[L/UE.id]],LEV[[FAG]:[FAG]],\"\",0),\"\")","v":""},{"$f":"IF(EI4<>0,_xlfn.XLOOKUP(EI$1,LEV[[L/UE.id]:[L/UE.id]],LEV[[FAG]:[FAG]],\"\",0),\"\")","v":""},{"$f":"IF(EJ4<>0,_xlfn.XLOOKUP(EJ$1,LEV[[L/UE.id]:[L/UE.id]],LEV[[FAG]:[FAG]],\"\",0),\"\")","v":""},{"$f":"IF(EK4<>0,_xlfn.XLOOKUP(EK$1,LEV[[L/UE.id]:[L/UE.id]],LEV[[FAG]:[FAG]],\"\",0),\"\")","v":""},{"$f":"IF(EL4<>0,_xlfn.XLOOKUP(EL$1,LEV[[L/UE.id]:[L/UE.id]],LEV[[FAG]:[FAG]],\"\",0),\"\")","v":"Stål - Smed"},{"$f":"IF(EM4<>0,_xlfn.XLOOKUP(EM$1,LEV[[L/UE.id]:[L/UE.id]],LEV[[FAG]:[FAG]],\"\",0),\"\")","v":""},{"$f":"IF(EN4<>0,_xlfn.XLOOKUP(EN$1,LEV[[L/UE.id]:[L/UE.id]],LEV[[FAG]:[FAG]],\"\",0),\"\")","v":"Stål - Smed"},{"$f":"IF(EO4<>0,_xlfn.XLOOKUP(EO$1,LEV[[L/UE.id]:[L/UE.id]],LEV[[FAG]:[FAG]],\"\",0),\"\")","v":""},{"$f":"IF(EP4<>0,_xlfn.XLOOKUP(EP$1,LEV[[L/UE.id]:[L/UE.id]],LEV[[FAG]:[FAG]],\"\",0),\"\")","v":"Terræn inventar"},{"$f":"IF(EQ4<>0,_xlfn.XLOOKUP(EQ$1,LEV[[L/UE.id]:[L/UE.id]],LEV[[FAG]:[FAG]],\"\",0),\"\")","v":"Terræn inventar"},{"$f":"IF(ER4<>0,_xlfn.XLOOKUP(ER$1,LEV[[L/UE.id]:[L/UE.id]],LEV[[FAG]:[FAG]],\"\",0),\"\")","v":""},{"$f":"IF(ES4<>0,_xlfn.XLOOKUP(ES$1,LEV[[L/UE.id]:[L/UE.id]],LEV[[FAG]:[FAG]],\"\",0),\"\")","v":""},{"$f":"IF(ET4<>0,_xlfn.XLOOKUP(ET$1,LEV[[L/UE.id]:[L/UE.id]],LEV[[FAG]:[FAG]],\"\",0),\"\")","v":""},{"$f":"IF(EU4<>0,_xlfn.XLOOKUP(EU$1,LEV[[L/UE.id]:[L/UE.id]],LEV[[FAG]:[FAG]],\"\",0),\"\")","v":"Terræn inventar"},{"$f":"IF(EV4<>0,_xlfn.XLOOKUP(EV$1,LEV[[L/UE.id]:[L/UE.id]],LEV[[FAG]:[FAG]],\"\",0),\"\")","v":""},{"$f":"IF(EW4<>0,_xlfn.XLOOKUP(EW$1,LEV[[L/UE.id]:[L/UE.id]],LEV[[FAG]:[FAG]],\"\",0),\"\")","v":""},{"$f":"IF(EX4<>0,_xlfn.XLOOKUP(EX$1,LEV[[L/UE.id]:[L/UE.id]],LEV[[FAG]:[FAG]],\"\",0),\"\")","v":""},{"$f":"IF(EY4<>0,_xlfn.XLOOKUP(EY$1,LEV[[L/UE.id]:[L/UE.id]],LEV[[FAG]:[FAG]],\"\",0),\"\")","v":""},{"$f":"IF(EZ4<>0,_xlfn.XLOOKUP(EZ$1,LEV[[L/UE.id]:[L/UE.id]],LEV[[FAG]:[FAG]],\"\",0),\"\")","v":""},{"$f":"IF(FA4<>0,_xlfn.XLOOKUP(FA$1,LEV[[L/UE.id]:[L/UE.id]],LEV[[FAG]:[FAG]],\"\",0),\"\")","v":""},{"$f":"IF(FB4<>0,_xlfn.XLOOKUP(FB$1,LEV[[L/UE.id]:[L/UE.id]],LEV[[FAG]:[FAG]],\"\",0),\"\")","v":"Terræn inventar"},{"$f":"IF(FC4<>0,_xlfn.XLOOKUP(FC$1,LEV[[L/UE.id]:[L/UE.id]],LEV[[FAG]:[FAG]],\"\",0),\"\")","v":""},{"$f":"IF(FD4<>0,_xlfn.XLOOKUP(FD$1,LEV[[L/UE.id]:[L/UE.id]],LEV[[FAG]:[FAG]],\"\",0),\"\")","v":""},{"$f":"IF(FE4<>0,_xlfn.XLOOKUP(FE$1,LEV[[L/UE.id]:[L/UE.id]],LEV[[FAG]:[FAG]],\"\",0),\"\")","v":""},{"$f":"IF(FF4<>0,_xlfn.XLOOKUP(FF$1,LEV[[L/UE.id]:[L/UE.id]],LEV[[FAG]:[FAG]],\"\",0),\"\")","v":""},{"$f":"IF(FG4<>0,_xlfn.XLOOKUP(FG$1,LEV[[L/UE.id]:[L/UE.id]],LEV[[FAG]:[FAG]],\"\",0),\"\")","v":""},{"$f":"IF(FH4<>0,_xlfn.XLOOKUP(FH$1,LEV[[L/UE.id]:[L/UE.id]],LEV[[FAG]:[FAG]],\"\",0),\"\")","v":"Tømrer"},{"$f":"IF(FI4<>0,_xlfn.XLOOKUP(FI$1,LEV[[L/UE.id]:[L/UE.id]],LEV[[FAG]:[FAG]],\"\",0),\"\")","v":"Tømrer"},{"$f":"IF(FJ4<>0,_xlfn.XLOOKUP(FJ$1,LEV[[L/UE.id]:[L/UE.id]],LEV[[FAG]:[FAG]],\"\",0),\"\")","v":"Tømrer"},{"$f":"IF(FK4<>0,_xlfn.XLOOKUP(FK$1,LEV[[L/UE.id]:[L/UE.id]],LEV[[FAG]:[FAG]],\"\",0),\"\")","v":"Tømrer"},{"$f":"IF(FL4<>0,_xlfn.XLOOKUP(FL$1,LEV[[L/UE.id]:[L/UE.id]],LEV[[FAG]:[FAG]],\"\",0),\"\")","v":"Tømrer"},{"$f":"IF(FM4<>0,_xlfn.XLOOKUP(FM$1,LEV[[L/UE.id]:[L/UE.id]],LEV[[FAG]:[FAG]],\"\",0),\"\")","v":""},{"$f":"IF(FN4<>0,_xlfn.XLOOKUP(FN$1,LEV[[L/UE.id]:[L/UE.id]],LEV[[FAG]:[FAG]],\"\",0),\"\")","v":""},{"$f":"IF(FO4<>0,_xlfn.XLOOKUP(FO$1,LEV[[L/UE.id]:[L/UE.id]],LEV[[FAG]:[FAG]],\"\",0),\"\")","v":"Vognmandsydelser"},{"$f":"IF(FP4<>0,_xlfn.XLOOKUP(FP$1,LEV[[L/UE.id]:[L/UE.id]],LEV[[FAG]:[FAG]],\"\",0),\"\")","v":"Vognmandsydelser"},{"$f":"IF(FQ4<>0,_xlfn.XLOOKUP(FQ$1,LEV[[L/UE.id]:[L/UE.id]],LEV[[FAG]:[FAG]],\"\",0),\"\")","v":"Vognmandsydelser"},{"$f":"IF(FR4<>0,_xlfn.XLOOKUP(FR$1,LEV[[L/UE.id]:[L/UE.id]],LEV[[FAG]:[FAG]],\"\",0),\"\")","v":"Vognmandsydelser"},{"$f":"IF(FS4<>0,_xlfn.XLOOKUP(FS$1,LEV[[L/UE.id]:[L/UE.id]],LEV[[FAG]:[FAG]],\"\",0),\"\")","v":""},{"$f":"IF(FT4<>0,_xlfn.XLOOKUP(FT$1,LEV[[L/UE.id]:[L/UE.id]],LEV[[FAG]:[FAG]],\"\",0),\"\")","v":""},{"$f":"IF(FU4<>0,_xlfn.XLOOKUP(FU$1,LEV[[L/UE.id]:[L/UE.id]],LEV[[FAG]:[FAG]],\"\",0),\"\")","v":""},{"$f":"IF(FV4<>0,_xlfn.XLOOKUP(FV$1,LEV[[L/UE.id]:[L/UE.id]],LEV[[FAG]:[FAG]],\"\",0),\"\")","v":""},{"$f":"IF(FW4<>0,_xlfn.XLOOKUP(FW$1,LEV[[L/UE.id]:[L/UE.id]],LEV[[FAG]:[FAG]],\"\",0),\"\")","v":""},{"$f":"IF(FX4<>0,_xlfn.XLOOKUP(FX$1,LEV[[L/UE.id]:[L/UE.id]],LEV[[FAG]:[FAG]],\"\",0),\"\")","v":""},{"$f":"IF(FY4<>0,_xlfn.XLOOKUP(FY$1,LEV[[L/UE.id]:[L/UE.id]],LEV[[FAG]:[FAG]],\"\",0),\"\")","v":""},{"$f":"IF(FZ4<>0,_xlfn.XLOOKUP(FZ$1,LEV[[L/UE.id]:[L/UE.id]],LEV[[FAG]:[FAG]],\"\",0),\"\")","v":""},{"$f":"IF(GA4<>0,_xlfn.XLOOKUP(GA$1,LEV[[L/UE.id]:[L/UE.id]],LEV[[FAG]:[FAG]],\"\",0),\"\")","v":""},{"$f":"IF(GB4<>0,_xlfn.XLOOKUP(GB$1,LEV[[L/UE.id]:[L/UE.id]],LEV[[FAG]:[FAG]],\"\",0),\"\")","v":""},{"$f":"IF(GC4<>0,_xlfn.XLOOKUP(GC$1,LEV[[L/UE.id]:[L/UE.id]],LEV[[FAG]:[FAG]],\"\",0),\"\")","v":""},{"$f":"IF(GD4<>0,_xlfn.XLOOKUP(GD$1,LEV[[L/UE.id]:[L/UE.id]],LEV[[FAG]:[FAG]],\"\",0),\"\")","v":""},{"$f":"IF(GE4<>0,_xlfn.XLOOKUP(GE$1,LEV[[L/UE.id]:[L/UE.id]],LEV[[FAG]:[FAG]],\"\",0),\"\")","v":""},{"$f":"IF(GF4<>0,_xlfn.XLOOKUP(GF$1,LEV[[L/UE.id]:[L/UE.id]],LEV[[FAG]:[FAG]],\"\",0),\"\")","v":""},{"$f":"IF(GG4<>0,_xlfn.XLOOKUP(GG$1,LEV[[L/UE.id]:[L/UE.id]],LEV[[FAG]:[FAG]],\"\",0),\"\")","v":""},{"$f":"IF(GH4<>0,_xlfn.XLOOKUP(GH$1,LEV[[L/UE.id]:[L/UE.id]],LEV[[FAG]:[FAG]],\"\",0),\"\")","v":""},{"$f":"IF(GI4<>0,_xlfn.XLOOKUP(GI$1,LEV[[L/UE.id]:[L/UE.id]],LEV[[FAG]:[FAG]],\"\",0),\"\")","v":""},{"$f":"IF(GJ4<>0,_xlfn.XLOOKUP(GJ$1,LEV[[L/UE.id]:[L/UE.id]],LEV[[FAG]:[FAG]],\"\",0),\"\")","v":""},{"$f":"IF(GK4<>0,_xlfn.XLOOKUP(GK$1,LEV[[L/UE.id]:[L/UE.id]],LEV[[FAG]:[FAG]],\"\",0),\"\")","v":""},{"$f":"IF(GL4<>0,_xlfn.XLOOKUP(GL$1,LEV[[L/UE.id]:[L/UE.id]],LEV[[FAG]:[FAG]],\"\",0),\"\")","v":""},{"$f":"IF(GM4<>0,_xlfn.XLOOKUP(GM$1,LEV[[L/UE.id]:[L/UE.id]],LEV[[FAG]:[FAG]],\"\",0),\"\")","v":""},{"$f":"IF(GN4<>0,_xlfn.XLOOKUP(GN$1,LEV[[L/UE.id]:[L/UE.id]],LEV[[FAG]:[FAG]],\"\",0),\"\")","v":""},{"$f":"IF(GO4<>0,_xlfn.XLOOKUP(GO$1,LEV[[L/UE.id]:[L/UE.id]],LEV[[FAG]:[FAG]],\"\",0),\"\")","v":""},{"$f":"IF(GP4<>0,_xlfn.XLOOKUP(GP$1,LEV[[L/UE.id]:[L/UE.id]],LEV[[FAG]:[FAG]],\"\",0),\"\")","v":""},{"$f":"IF(GQ4<>0,_xlfn.XLOOKUP(GQ$1,LEV[[L/UE.id]:[L/UE.id]],LEV[[FAG]:[FAG]],\"\",0),\"\")","v":""},{"$f":"IF(GR4<>0,_xlfn.XLOOKUP(GR$1,LEV[[L/UE.id]:[L/UE.id]],LEV[[FAG]:[FAG]],\"\",0),\"\")","v":""},{"$f":"IF(GS4<>0,_xlfn.XLOOKUP(GS$1,LEV[[L/UE.id]:[L/UE.id]],LEV[[FAG]:[FAG]],\"\",0),\"\")","v":""},{"$f":"IF(GT4<>0,_xlfn.XLOOKUP(GT$1,LEV[[L/UE.id]:[L/UE.id]],LEV[[FAG]:[FAG]],\"\",0),\"\")","v":""},{"$f":"IF(GU4<>0,_xlfn.XLOOKUP(GU$1,LEV[[L/UE.id]:[L/UE.id]],LEV[[FAG]:[FAG]],\"\",0),\"\")","v":""},{"$f":"IF(GV4<>0,_xlfn.XLOOKUP(GV$1,LEV[[L/UE.id]:[L/UE.id]],LEV[[FAG]:[FAG]],\"\",0),\"\")","v":""},{"$f":"IF(GW4<>0,_xlfn.XLOOKUP(GW$1,LEV[[L/UE.id]:[L/UE.id]],LEV[[FAG]:[FAG]],\"\",0),\"\")","v":""},{"$f":"IF(GX4<>0,_xlfn.XLOOKUP(GX$1,LEV[[L/UE.id]:[L/UE.id]],LEV[[FAG]:[FAG]],\"\",0),\"\")","v":""},{"$f":"IF(GY4<>0,_xlfn.XLOOKUP(GY$1,LEV[[L/UE.id]:[L/UE.id]],LEV[[FAG]:[FAG]],\"\",0),\"\")","v":""},{"$f":"IF(GZ4<>0,_xlfn.XLOOKUP(GZ$1,LEV[[L/UE.id]:[L/UE.id]],LEV[[FAG]:[FAG]],\"\",0),\"\")","v":""},{"$f":"IF(HA4<>0,_xlfn.XLOOKUP(HA$1,LEV[[L/UE.id]:[L/UE.id]],LEV[[FAG]:[FAG]],\"\",0),\"\")","v":""},{"$f":"IF(HB4<>0,_xlfn.XLOOKUP(HB$1,LEV[[L/UE.id]:[L/UE.id]],LEV[[FAG]:[FAG]],\"\",0),\"\")","v":""},{"$f":"IF(HC4<>0,_xlfn.XLOOKUP(HC$1,LEV[[L/UE.id]:[L/UE.id]],LEV[[FAG]:[FAG]],\"\",0),\"\")","v":""},{"$f":"IF(HD4<>0,_xlfn.XLOOKUP(HD$1,LEV[[L/UE.id]:[L/UE.id]],LEV[[FAG]:[FAG]],\"\",0),\"\")","v":""},{"$f":"IF(HE4<>0,_xlfn.XLOOKUP(HE$1,LEV[[L/UE.id]:[L/UE.id]],LEV[[FAG]:[FAG]],\"\",0),\"\")","v":""},{"$f":"IF(HF4<>0,_xlfn.XLOOKUP(HF$1,LEV[[L/UE.id]:[L/UE.id]],LEV[[FAG]:[FAG]],\"\",0),\"\")","v":""},{"$f":"IF(HG4<>0,_xlfn.XLOOKUP(HG$1,LEV[[L/UE.id]:[L/UE.id]],LEV[[FAG]:[FAG]],\"\",0),\"\")","v":""},{"$f":"IF(HH4<>0,_xlfn.XLOOKUP(HH$1,LEV[[L/UE.id]:[L/UE.id]],LEV[[FAG]:[FAG]],\"\",0),\"\")","v":""},{"$f":"IF(HI4<>0,_xlfn.XLOOKUP(HI$1,LEV[[L/UE.id]:[L/UE.id]],LEV[[FAG]:[FAG]],\"\",0),\"\")","v":""},{"$f":"IF(HJ4<>0,_xlfn.XLOOKUP(HJ$1,LEV[[L/UE.id]:[L/UE.id]],LEV[[FAG]:[FAG]],\"\",0),\"\")","v":""},{"$f":"IF(HK4<>0,_xlfn.XLOOKUP(HK$1,LEV[[L/UE.id]:[L/UE.id]],LEV[[FAG]:[FAG]],\"\",0),\"\")","v":""},{"$f":"IF(HL4<>0,_xlfn.XLOOKUP(HL$1,LEV[[L/UE.id]:[L/UE.id]],LEV[[FAG]:[FAG]],\"\",0),\"\")","v":""},{"$f":"IF(HM4<>0,_xlfn.XLOOKUP(HM$1,LEV[[L/UE.id]:[L/UE.id]],LEV[[FAG]:[FAG]],\"\",0),\"\")","v":""},{"$f":"IF(HN4<>0,_xlfn.XLOOKUP(HN$1,LEV[[L/UE.id]:[L/UE.id]],LEV[[FAG]:[FAG]],\"\",0),\"\")","v":""},{"$f":"IF(HO4<>0,_xlfn.XLOOKUP(HO$1,LEV[[L/UE.id]:[L/UE.id]],LEV[[FAG]:[FAG]],\"\",0),\"\")","v":""},{"$f":"IF(HP4<>0,_xlfn.XLOOKUP(HP$1,LEV[[L/UE.id]:[L/UE.id]],LEV[[FAG]:[FAG]],\"\",0),\"\")","v":""},{"$f":"IF(HQ4<>0,_xlfn.XLOOKUP(HQ$1,LEV[[L/UE.id]:[L/UE.id]],LEV[[FAG]:[FAG]],\"\",0),\"\")","v":""},{"$f":"IF(HR4<>0,_xlfn.XLOOKUP(HR$1,LEV[[L/UE.id]:[L/UE.id]],LEV[[FAG]:[FAG]],\"\",0),\"\")","v":""},{"$f":"IF(HS4<>0,_xlfn.XLOOKUP(HS$1,LEV[[L/UE.id]:[L/UE.id]],LEV[[FAG]:[FAG]],\"\",0),\"\")","v":""},{"$f":"IF(HT4<>0,_xlfn.XLOOKUP(HT$1,LEV[[L/UE.id]:[L/UE.id]],LEV[[FAG]:[FAG]],\"\",0),\"\")","v":""},{"$f":"IF(HU4<>0,_xlfn.XLOOKUP(HU$1,LEV[[L/UE.id]:[L/UE.id]],LEV[[FAG]:[FAG]],\"\",0),\"\")","v":""},{"$f":"IF(HV4<>0,_xlfn.XLOOKUP(HV$1,LEV[[L/UE.id]:[L/UE.id]],LEV[[FAG]:[FAG]],\"\",0),\"\")","v":""},{"$f":"IF(HW4<>0,_xlfn.XLOOKUP(HW$1,LEV[[L/UE.id]:[L/UE.id]],LEV[[FAG]:[FAG]],\"\",0),\"\")","v":""},{"$f":"IF(HX4<>0,_xlfn.XLOOKUP(HX$1,LEV[[L/UE.id]:[L/UE.id]],LEV[[FAG]:[FAG]],\"\",0),\"\")","v":""},{"$f":"IF(HY4<>0,_xlfn.XLOOKUP(HY$1,LEV[[L/UE.id]:[L/UE.id]],LEV[[FAG]:[FAG]],\"\",0),\"\")","v":""},{"$f":"IF(HZ4<>0,_xlfn.XLOOKUP(HZ$1,LEV[[L/UE.id]:[L/UE.id]],LEV[[FAG]:[FAG]],\"\",0),\"\")","v":""},{"$f":"IF(IA4<>0,_xlfn.XLOOKUP(IA$1,LEV[[L/UE.id]:[L/UE.id]],LEV[[FAG]:[FAG]],\"\",0),\"\")","v":""},{"$f":"IF(IB4<>0,_xlfn.XLOOKUP(IB$1,LEV[[L/UE.id]:[L/UE.id]],LEV[[FAG]:[FAG]],\"\",0),\"\")","v":""},{"$f":"IF(IC4<>0,_xlfn.XLOOKUP(IC$1,LEV[[L/UE.id]:[L/UE.id]],LEV[[FAG]:[FAG]],\"\",0),\"\")","v":""},{"$f":"IF(ID4<>0,_xlfn.XLOOKUP(ID$1,LEV[[L/UE.id]:[L/UE.id]],LEV[[FAG]:[FAG]],\"\",0),\"\")","v":""},{"$f":"IF(IE4<>0,_xlfn.XLOOKUP(IE$1,LEV[[L/UE.id]:[L/UE.id]],LEV[[FAG]:[FAG]],\"\",0),\"\")","v":""},{"$f":"IF(IF4<>0,_xlfn.XLOOKUP(IF$1,LEV[[L/UE.id]:[L/UE.id]],LEV[[FAG]:[FAG]],\"\",0),\"\")","v":""},{"$f":"IF(IG4<>0,_xlfn.XLOOKUP(IG$1,LEV[[L/UE.id]:[L/UE.id]],LEV[[FAG]:[FAG]],\"\",0),\"\")","v":""},{"$f":"IF(IH4<>0,_xlfn.XLOOKUP(IH$1,LEV[[L/UE.id]:[L/UE.id]],LEV[[FAG]:[FAG]],\"\",0),\"\")","v":""},{"$f":"IF(II4<>0,_xlfn.XLOOKUP(II$1,LEV[[L/UE.id]:[L/UE.id]],LEV[[FAG]:[FAG]],\"\",0),\"\")","v":""},{"$f":"IF(IJ4<>0,_xlfn.XLOOKUP(IJ$1,LEV[[L/UE.id]:[L/UE.id]],LEV[[FAG]:[FAG]],\"\",0),\"\")","v":""},{"$f":"IF(IK4<>0,_xlfn.XLOOKUP(IK$1,LEV[[L/UE.id]:[L/UE.id]],LEV[[FAG]:[FAG]],\"\",0),\"\")","v":""},{"$f":"IF(IL4<>0,_xlfn.XLOOKUP(IL$1,LEV[[L/UE.id]:[L/UE.id]],LEV[[FAG]:[FAG]],\"\",0),\"\")","v":""},{"$f":"IF(IM4<>0,_xlfn.XLOOKUP(IM$1,LEV[[L/UE.id]:[L/UE.id]],LEV[[FAG]:[FAG]],\"\",0),\"\")","v":""},{"$f":"IF(IN4<>0,_xlfn.XLOOKUP(IN$1,LEV[[L/UE.id]:[L/UE.id]],LEV[[FAG]:[FAG]],\"\",0),\"\")","v":""},{"$f":"IF(IO4<>0,_xlfn.XLOOKUP(IO$1,LEV[[L/UE.id]:[L/UE.id]],LEV[[FAG]:[FAG]],\"\",0),\"\")","v":""},{"$f":"IF(IP4<>0,_xlfn.XLOOKUP(IP$1,LEV[[L/UE.id]:[L/UE.id]],LEV[[FAG]:[FAG]],\"\",0),\"\")","v":""},{"$f":"IF(IQ4<>0,_xlfn.XLOOKUP(IQ$1,LEV[[L/UE.id]:[L/UE.id]],LEV[[FAG]:[FAG]],\"\",0),\"\")","v":""},{"$f":"IF(IR4<>0,_xlfn.XLOOKUP(IR$1,LEV[[L/UE.id]:[L/UE.id]],LEV[[FAG]:[FAG]],\"\",0),\"\")","v":""},{"$f":"IF(IS4<>0,_xlfn.XLOOKUP(IS$1,LEV[[L/UE.id]:[L/UE.id]],LEV[[FAG]:[FAG]],\"\",0),\"\")","v":""},{"$f":"IF(IT4<>0,_xlfn.XLOOKUP(IT$1,LEV[[L/UE.id]:[L/UE.id]],LEV[[FAG]:[FAG]],\"\",0),\"\")","v":""},{"$f":"IF(IU4<>0,_xlfn.XLOOKUP(IU$1,LEV[[L/UE.id]:[L/UE.id]],LEV[[FAG]:[FAG]],\"\",0),\"\")","v":""},{"$f":"IF(IV4<>0,_xlfn.XLOOKUP(IV$1,LEV[[L/UE.id]:[L/UE.id]],LEV[[FAG]:[FAG]],\"\",0),\"\")","v":""},{"$f":"IF(IW4<>0,_xlfn.XLOOKUP(IW$1,LEV[[L/UE.id]:[L/UE.id]],LEV[[FAG]:[FAG]],\"\",0),\"\")","v":""},{"$f":"IF(IX4<>0,_xlfn.XLOOKUP(IX$1,LEV[[L/UE.id]:[L/UE.id]],LEV[[FAG]:[FAG]],\"\",0),\"\")","v":""},{"$f":"IF(IY4<>0,_xlfn.XLOOKUP(IY$1,LEV[[L/UE.id]:[L/UE.id]],LEV[[FAG]:[FAG]],\"\",0),\"\")","v":""},{"$f":"IF(IZ4<>0,_xlfn.XLOOKUP(IZ$1,LEV[[L/UE.id]:[L/UE.id]],LEV[[FAG]:[FAG]],\"\",0),\"\")","v":""},{"$f":"IF(JA4<>0,_xlfn.XLOOKUP(JA$1,LEV[[L/UE.id]:[L/UE.id]],LEV[[FAG]:[FAG]],\"\",0),\"\")","v":""},{"$f":"IF(JB4<>0,_xlfn.XLOOKUP(JB$1,LEV[[L/UE.id]:[L/UE.id]],LEV[[FAG]:[FAG]],\"\",0),\"\")","v":""},{"$f":"IF(JC4<>0,_xlfn.XLOOKUP(JC$1,LEV[[L/UE.id]:[L/UE.id]],LEV[[FAG]:[FAG]],\"\",0),\"\")","v":""},{"$f":"IF(JD4<>0,_xlfn.XLOOKUP(JD$1,LEV[[L/UE.id]:[L/UE.id]],LEV[[FAG]:[FAG]],\"\",0),\"\")","v":""},{"$f":"IF(JE4<>0,_xlfn.XLOOKUP(JE$1,LEV[[L/UE.id]:[L/UE.id]],LEV[[FAG]:[FAG]],\"\",0),\"\")","v":""},{"$f":"IF(JF4<>0,_xlfn.XLOOKUP(JF$1,LEV[[L/UE.id]:[L/UE.id]],LEV[[FAG]:[FAG]],\"\",0),\"\")","v":""},{"$f":"IF(JG4<>0,_xlfn.XLOOKUP(JG$1,LEV[[L/UE.id]:[L/UE.id]],LEV[[FAG]:[FAG]],\"\",0),\"\")","v":""},{"$f":"IF(JH4<>0,_xlfn.XLOOKUP(JH$1,LEV[[L/UE.id]:[L/UE.id]],LEV[[FAG]:[FAG]],\"\",0),\"\")","v":""},{"$f":"IF(JI4<>0,_xlfn.XLOOKUP(JI$1,LEV[[L/UE.id]:[L/UE.id]],LEV[[FAG]:[FAG]],\"\",0),\"\")","v":""},{"$f":"IF(JJ4<>0,_xlfn.XLOOKUP(JJ$1,LEV[[L/UE.id]:[L/UE.id]],LEV[[FAG]:[FAG]],\"\",0),\"\")","v":""}]
[null,null,null,null,null,null,null,null,null,null,1,null,null,null,"Medtaget",null,null,null,null,null,{"$f":"_xlfn.XLOOKUP(U$1,LEV[[L/UE.id]:[L/UE.id]],LEV[[Medtag]:[Medtag]],\"\",0)","v":0},{"$f":"_xlfn.XLOOKUP(V$1,LEV[[L/UE.id]:[L/UE.id]],LEV[[Medtag]:[Medtag]],\"\",0)","v":0},{"$f":"_xlfn.XLOOKUP(W$1,LEV[[L/UE.id]:[L/UE.id]],LEV[[Medtag]:[Medtag]],\"\",0)","v":0},{"$f":"_xlfn.XLOOKUP(X$1,LEV[[L/UE.id]:[L/UE.id]],LEV[[Medtag]:[Medtag]],\"\",0)","v":0},{"$f":"_xlfn.XLOOKUP(Y$1,LEV[[L/UE.id]:[L/UE.id]],LEV[[Medtag]:[Medtag]],\"\",0)","v":"x"},{"$f":"_xlfn.XLOOKUP(Z$1,LEV[[L/UE.id]:[L/UE.id]],LEV[[Medtag]:[Medtag]],\"\",0)","v":"x"},{"$f":"_xlfn.XLOOKUP(AA$1,LEV[[L/UE.id]:[L/UE.id]],LEV[[Medtag]:[Medtag]],\"\",0)","v":0},{"$f":"_xlfn.XLOOKUP(AB$1,LEV[[L/UE.id]:[L/UE.id]],LEV[[Medtag]:[Medtag]],\"\",0)","v":"x"},{"$f":"_xlfn.XLOOKUP(AC$1,LEV[[L/UE.id]:[L/UE.id]],LEV[[Medtag]:[Medtag]],\"\",0)","v":"x"},{"$f":"_xlfn.XLOOKUP(AD$1,LEV[[L/UE.id]:[L/UE.id]],LEV[[Medtag]:[Medtag]],\"\",0)","v":"x"},{"$f":"_xlfn.XLOOKUP(AE$1,LEV[[L/UE.id]:[L/UE.id]],LEV[[Medtag]:[Medtag]],\"\",0)","v":"x"},{"$f":"_xlfn.XLOOKUP(AF$1,LEV[[L/UE.id]:[L/UE.id]],LEV[[Medtag]:[Medtag]],\"\",0)","v":"x"},{"$f":"_xlfn.XLOOKUP(AG$1,LEV[[L/UE.id]:[L/UE.id]],LEV[[Medtag]:[Medtag]],\"\",0)","v":0},{"$f":"_xlfn.XLOOKUP(AH$1,LEV[[L/UE.id]:[L/UE.id]],LEV[[Medtag]:[Medtag]],\"\",0)","v":"x"},{"$f":"_xlfn.XLOOKUP(AI$1,LEV[[L/UE.id]:[L/UE.id]],LEV[[Medtag]:[Medtag]],\"\",0)","v":"x"},{"$f":"_xlfn.XLOOKUP(AJ$1,LEV[[L/UE.id]:[L/UE.id]],LEV[[Medtag]:[Medtag]],\"\",0)","v":0},{"$f":"_xlfn.XLOOKUP(AK$1,LEV[[L/UE.id]:[L/UE.id]],LEV[[Medtag]:[Medtag]],\"\",0)","v":0},{"$f":"_xlfn.XLOOKUP(AL$1,LEV[[L/UE.id]:[L/UE.id]],LEV[[Medtag]:[Medtag]],\"\",0)","v":"x"},{"$f":"_xlfn.XLOOKUP(AM$1,LEV[[L/UE.id]:[L/UE.id]],LEV[[Medtag]:[Medtag]],\"\",0)","v":"x"},{"$f":"_xlfn.XLOOKUP(AN$1,LEV[[L/UE.id]:[L/UE.id]],LEV[[Medtag]:[Medtag]],\"\",0)","v":0},{"$f":"_xlfn.XLOOKUP(AO$1,LEV[[L/UE.id]:[L/UE.id]],LEV[[Medtag]:[Medtag]],\"\",0)","v":0},{"$f":"_xlfn.XLOOKUP(AP$1,LEV[[L/UE.id]:[L/UE.id]],LEV[[Medtag]:[Medtag]],\"\",0)","v":"x"},{"$f":"_xlfn.XLOOKUP(AQ$1,LEV[[L/UE.id]:[L/UE.id]],LEV[[Medtag]:[Medtag]],\"\",0)","v":"x"},{"$f":"_xlfn.XLOOKUP(AR$1,LEV[[L/UE.id]:[L/UE.id]],LEV[[Medtag]:[Medtag]],\"\",0)","v":"x"},{"$f":"_xlfn.XLOOKUP(AS$1,LEV[[L/UE.id]:[L/UE.id]],LEV[[Medtag]:[Medtag]],\"\",0)","v":0},{"$f":"_xlfn.XLOOKUP(AT$1,LEV[[L/UE.id]:[L/UE.id]],LEV[[Medtag]:[Medtag]],\"\",0)","v":0},{"$f":"_xlfn.XLOOKUP(AU$1,LEV[[L/UE.id]:[L/UE.id]],LEV[[Medtag]:[Medtag]],\"\",0)","v":0},{"$f":"_xlfn.XLOOKUP(AV$1,LEV[[L/UE.id]:[L/UE.id]],LEV[[Medtag]:[Medtag]],\"\",0)","v":0},{"$f":"_xlfn.XLOOKUP(AW$1,LEV[[L/UE.id]:[L/UE.id]],LEV[[Medtag]:[Medtag]],\"\",0)","v":0},{"$f":"_xlfn.XLOOKUP(AX$1,LEV[[L/UE.id]:[L/UE.id]],LEV[[Medtag]:[Medtag]],\"\",0)","v":0},{"$f":"_xlfn.XLOOKUP(AY$1,LEV[[L/UE.id]:[L/UE.id]],LEV[[Medtag]:[Medtag]],\"\",0)","v":0},{"$f":"_xlfn.XLOOKUP(AZ$1,LEV[[L/UE.id]:[L/UE.id]],LEV[[Medtag]:[Medtag]],\"\",0)","v":0},{"$f":"_xlfn.XLOOKUP(BA$1,LEV[[L/UE.id]:[L/UE.id]],LEV[[Medtag]:[Medtag]],\"\",0)","v":0},{"$f":"_xlfn.XLOOKUP(BB$1,LEV[[L/UE.id]:[L/UE.id]],LEV[[Medtag]:[Medtag]],\"\",0)","v":0},{"$f":"_xlfn.XLOOKUP(BC$1,LEV[[L/UE.id]:[L/UE.id]],LEV[[Medtag]:[Medtag]],\"\",0)","v":0},{"$f":"_xlfn.XLOOKUP(BD$1,LEV[[L/UE.id]:[L/UE.id]],LEV[[Medtag]:[Medtag]],\"\",0)","v":0},{"$f":"_xlfn.XLOOKUP(BE$1,LEV[[L/UE.id]:[L/UE.id]],LEV[[Medtag]:[Medtag]],\"\",0)","v":0},{"$f":"_xlfn.XLOOKUP(BF$1,LEV[[L/UE.id]:[L/UE.id]],LEV[[Medtag]:[Medtag]],\"\",0)","v":0},{"$f":"_xlfn.XLOOKUP(BG$1,LEV[[L/UE.id]:[L/UE.id]],LEV[[Medtag]:[Medtag]],\"\",0)","v":0},{"$f":"_xlfn.XLOOKUP(BH$1,LEV[[L/UE.id]:[L/UE.id]],LEV[[Medtag]:[Medtag]],\"\",0)","v":0},{"$f":"_xlfn.XLOOKUP(BI$1,LEV[[L/UE.id]:[L/UE.id]],LEV[[Medtag]:[Medtag]],\"\",0)","v":"x"},{"$f":"_xlfn.XLOOKUP(BJ$1,LEV[[L/UE.id]:[L/UE.id]],LEV[[Medtag]:[Medtag]],\"\",0)","v":"x"},{"$f":"_xlfn.XLOOKUP(BK$1,LEV[[L/UE.id]:[L/UE.id]],LEV[[Medtag]:[Medtag]],\"\",0)","v":0},{"$f":"_xlfn.XLOOKUP(BL$1,LEV[[L/UE.id]:[L/UE.id]],LEV[[Medtag]:[Medtag]],\"\",0)","v":0},{"$f":"_xlfn.XLOOKUP(BM$1,LEV[[L/UE.id]:[L/UE.id]],LEV[[Medtag]:[Medtag]],\"\",0)","v":0},{"$f":"_xlfn.XLOOKUP(BN$1,LEV[[L/UE.id]:[L/UE.id]],LEV[[Medtag]:[Medtag]],\"\",0)","v":0},{"$f":"_xlfn.XLOOKUP(BO$1,LEV[[L/UE.id]:[L/UE.id]],LEV[[Medtag]:[Medtag]],\"\",0)","v":"x"},{"$f":"_xlfn.XLOOKUP(BP$1,LEV[[L/UE.id]:[L/UE.id]],LEV[[Medtag]:[Medtag]],\"\",0)","v":"x"},{"$f":"_xlfn.XLOOKUP(BQ$1,LEV[[L/UE.id]:[L/UE.id]],LEV[[Medtag]:[Medtag]],\"\",0)","v":"x"},{"$f":"_xlfn.XLOOKUP(BR$1,LEV[[L/UE.id]:[L/UE.id]],LEV[[Medtag]:[Medtag]],\"\",0)","v":0},{"$f":"_xlfn.XLOOKUP(BS$1,LEV[[L/UE.id]:[L/UE.id]],LEV[[Medtag]:[Medtag]],\"\",0)","v":0},{"$f":"_xlfn.XLOOKUP(BT$1,LEV[[L/UE.id]:[L/UE.id]],LEV[[Medtag]:[Medtag]],\"\",0)","v":0},{"$f":"_xlfn.XLOOKUP(BU$1,LEV[[L/UE.id]:[L/UE.id]],LEV[[Medtag]:[Medtag]],\"\",0)","v":0},{"$f":"_xlfn.XLOOKUP(BV$1,LEV[[L/UE.id]:[L/UE.id]],LEV[[Medtag]:[Medtag]],\"\",0)","v":0},{"$f":"_xlfn.XLOOKUP(BW$1,LEV[[L/UE.id]:[L/UE.id]],LEV[[Medtag]:[Medtag]],\"\",0)","v":0},{"$f":"_xlfn.XLOOKUP(BX$1,LEV[[L/UE.id]:[L/UE.id]],LEV[[Medtag]:[Medtag]],\"\",0)","v":0},{"$f":"_xlfn.XLOOKUP(BY$1,LEV[[L/UE.id]:[L/UE.id]],LEV[[Medtag]:[Medtag]],\"\",0)","v":0},{"$f":"_xlfn.XLOOKUP(BZ$1,LEV[[L/UE.id]:[L/UE.id]],LEV[[Medtag]:[Medtag]],\"\",0)","v":0},{"$f":"_xlfn.XLOOKUP(CA$1,LEV[[L/UE.id]:[L/UE.id]],LEV[[Medtag]:[Medtag]],\"\",0)","v":0},{"$f":"_xlfn.XLOOKUP(CB$1,LEV[[L/UE.id]:[L/UE.id]],LEV[[Medtag]:[Medtag]],\"\",0)","v":0},{"$f":"_xlfn.XLOOKUP(CC$1,LEV[[L/UE.id]:[L/UE.id]],LEV[[Medtag]:[Medtag]],\"\",0)","v":0},{"$f":"_xlfn.XLOOKUP(CD$1,LEV[[L/UE.id]:[L/UE.id]],LEV[[Medtag]:[Medtag]],\"\",0)","v":0},{"$f":"_xlfn.XLOOKUP(CE$1,LEV[[L/UE.id]:[L/UE.id]],LEV[[Medtag]:[Medtag]],\"\",0)","v":0},{"$f":"_xlfn.XLOOKUP(CF$1,LEV[[L/UE.id]:[L/UE.id]],LEV[[Medtag]:[Medtag]],\"\",0)","v":"x"},{"$f":"_xlfn.XLOOKUP(CG$1,LEV[[L/UE.id]:[L/UE.id]],LEV[[Medtag]:[Medtag]],\"\",0)","v":0},{"$f":"_xlfn.XLOOKUP(CH$1,LEV[[L/UE.id]:[L/UE.id]],LEV[[Medtag]:[Medtag]],\"\",0)","v":0},{"$f":"_xlfn.XLOOKUP(CI$1,LEV[[L/UE.id]:[L/UE.id]],LEV[[Medtag]:[Medtag]],\"\",0)","v":0},{"$f":"_xlfn.XLOOKUP(CJ$1,LEV[[L/UE.id]:[L/UE.id]],LEV[[Medtag]:[Medtag]],\"\",0)","v":0},{"$f":"_xlfn.XLOOKUP(CK$1,LEV[[L/UE.id]:[L/UE.id]],LEV[[Medtag]:[Medtag]],\"\",0)","v":"x"},{"$f":"_xlfn.XLOOKUP(CL$1,LEV[[L/UE.id]:[L/UE.id]],LEV[[Medtag]:[Medtag]],\"\",0)","v":"x"},{"$f":"_xlfn.XLOOKUP(CM$1,LEV[[L/UE.id]:[L/UE.id]],LEV[[Medtag]:[Medtag]],\"\",0)","v":"x"},{"$f":"_xlfn.XLOOKUP(CN$1,LEV[[L/UE.id]:[L/UE.id]],LEV[[Medtag]:[Medtag]],\"\",0)","v":"x"},{"$f":"_xlfn.XLOOKUP(CO$1,LEV[[L/UE.id]:[L/UE.id]],LEV[[Medtag]:[Medtag]],\"\",0)","v":"x"},{"$f":"_xlfn.XLOOKUP(CP$1,LEV[[L/UE.id]:[L/UE.id]],LEV[[Medtag]:[Medtag]],\"\",0)","v":0},{"$f":"_xlfn.XLOOKUP(CQ$1,LEV[[L/UE.id]:[L/UE.id]],LEV[[Medtag]:[Medtag]],\"\",0)","v":0},{"$f":"_xlfn.XLOOKUP(CR$1,LEV[[L/UE.id]:[L/UE.id]],LEV[[Medtag]:[Medtag]],\"\",0)","v":0},{"$f":"_xlfn.XLOOKUP(CS$1,LEV[[L/UE.id]:[L/UE.id]],LEV[[Medtag]:[Medtag]],\"\",0)","v":0},{"$f":"_xlfn.XLOOKUP(CT$1,LEV[[L/UE.id]:[L/UE.id]],LEV[[Medtag]:[Medtag]],\"\",0)","v":0},{"$f":"_xlfn.XLOOKUP(CU$1,LEV[[L/UE.id]:[L/UE.id]],LEV[[Medtag]:[Medtag]],\"\",0)","v":0},{"$f":"_xlfn.XLOOKUP(CV$1,LEV[[L/UE.id]:[L/UE.id]],LEV[[Medtag]:[Medtag]],\"\",0)","v":0},{"$f":"_xlfn.XLOOKUP(CW$1,LEV[[L/UE.id]:[L/UE.id]],LEV[[Medtag]:[Medtag]],\"\",0)","v":0},{"$f":"_xlfn.XLOOKUP(CX$1,LEV[[L/UE.id]:[L/UE.id]],LEV[[Medtag]:[Medtag]],\"\",0)","v":0},{"$f":"_xlfn.XLOOKUP(CY$1,LEV[[L/UE.id]:[L/UE.id]],LEV[[Medtag]:[Medtag]],\"\",0)","v":"x"},{"$f":"_xlfn.XLOOKUP(CZ$1,LEV[[L/UE.id]:[L/UE.id]],LEV[[Medtag]:[Medtag]],\"\",0)","v":0},{"$f":"_xlfn.XLOOKUP(DA$1,LEV[[L/UE.id]:[L/UE.id]],LEV[[Medtag]:[Medtag]],\"\",0)","v":"x"},{"$f":"_xlfn.XLOOKUP(DB$1,LEV[[L/UE.id]:[L/UE.id]],LEV[[Medtag]:[Medtag]],\"\",0)","v":0},{"$f":"_xlfn.XLOOKUP(DC$1,LEV[[L/UE.id]:[L/UE.id]],LEV[[Medtag]:[Medtag]],\"\",0)","v":0},{"$f":"_xlfn.XLOOKUP(DD$1,LEV[[L/UE.id]:[L/UE.id]],LEV[[Medtag]:[Medtag]],\"\",0)","v":0},{"$f":"_xlfn.XLOOKUP(DE$1,LEV[[L/UE.id]:[L/UE.id]],LEV[[Medtag]:[Medtag]],\"\",0)","v":0},{"$f":"_xlfn.XLOOKUP(DF$1,LEV[[L/UE.id]:[L/UE.id]],LEV[[Medtag]:[Medtag]],\"\",0)","v":0},{"$f":"_xlfn.XLOOKUP(DG$1,LEV[[L/UE.id]:[L/UE.id]],LEV[[Medtag]:[Medtag]],\"\",0)","v":"x"},{"$f":"_xlfn.XLOOKUP(DH$1,LEV[[L/UE.id]:[L/UE.id]],LEV[[Medtag]:[Medtag]],\"\",0)","v":"x"},{"$f":"_xlfn.XLOOKUP(DI$1,LEV[[L/UE.id]:[L/UE.id]],LEV[[Medtag]:[Medtag]],\"\",0)","v":"x"},{"$f":"_xlfn.XLOOKUP(DJ$1,LEV[[L/UE.id]:[L/UE.id]],LEV[[Medtag]:[Medtag]],\"\",0)","v":0},{"$f":"_xlfn.XLOOKUP(DK$1,LEV[[L/UE.id]:[L/UE.id]],LEV[[Medtag]:[Medtag]],\"\",0)","v":0},{"$f":"_xlfn.XLOOKUP(DL$1,LEV[[L/UE.id]:[L/UE.id]],LEV[[Medtag]:[Medtag]],\"\",0)","v":0},{"$f":"_xlfn.XLOOKUP(DM$1,LEV[[L/UE.id]:[L/UE.id]],LEV[[Medtag]:[Medtag]],\"\",0)","v":0},{"$f":"_xlfn.XLOOKUP(DN$1,LEV[[L/UE.id]:[L/UE.id]],LEV[[Medtag]:[Medtag]],\"\",0)","v":0},{"$f":"_xlfn.XLOOKUP(DO$1,LEV[[L/UE.id]:[L/UE.id]],LEV[[Medtag]:[Medtag]],\"\",0)","v":0},{"$f":"_xlfn.XLOOKUP(DP$1,LEV[[L/UE.id]:[L/UE.id]],LEV[[Medtag]:[Medtag]],\"\",0)","v":0},{"$f":"_xlfn.XLOOKUP(DQ$1,LEV[[L/UE.id]:[L/UE.id]],LEV[[Medtag]:[Medtag]],\"\",0)","v":0},{"$f":"_xlfn.XLOOKUP(DR$1,LEV[[L/UE.id]:[L/UE.id]],LEV[[Medtag]:[Medtag]],\"\",0)","v":0},{"$f":"_xlfn.XLOOKUP(DS$1,LEV[[L/UE.id]:[L/UE.id]],LEV[[Medtag]:[Medtag]],\"\",0)","v":0},{"$f":"_xlfn.XLOOKUP(DT$1,LEV[[L/UE.id]:[L/UE.id]],LEV[[Medtag]:[Medtag]],\"\",0)","v":"x"},{"$f":"_xlfn.XLOOKUP(DU$1,LEV[[L/UE.id]:[L/UE.id]],LEV[[Medtag]:[Medtag]],\"\",0)","v":"x"},{"$f":"_xlfn.XLOOKUP(DV$1,LEV[[L/UE.id]:[L/UE.id]],LEV[[Medtag]:[Medtag]],\"\",0)","v":"x"},{"$f":"_xlfn.XLOOKUP(DW$1,LEV[[L/UE.id]:[L/UE.id]],LEV[[Medtag]:[Medtag]],\"\",0)","v":"x"},{"$f":"_xlfn.XLOOKUP(DX$1,LEV[[L/UE.id]:[L/UE.id]],LEV[[Medtag]:[Medtag]],\"\",0)","v":"x"},{"$f":"_xlfn.XLOOKUP(DY$1,LEV[[L/UE.id]:[L/UE.id]],LEV[[Medtag]:[Medtag]],\"\",0)","v":"x"},{"$f":"_xlfn.XLOOKUP(DZ$1,LEV[[L/UE.id]:[L/UE.id]],LEV[[Medtag]:[Medtag]],\"\",0)","v":"x"},{"$f":"_xlfn.XLOOKUP(EA$1,LEV[[L/UE.id]:[L/UE.id]],LEV[[Medtag]:[Medtag]],\"\",0)","v":"x"},{"$f":"_xlfn.XLOOKUP(EB$1,LEV[[L/UE.id]:[L/UE.id]],LEV[[Medtag]:[Medtag]],\"\",0)","v":0},{"$f":"_xlfn.XLOOKUP(EC$1,LEV[[L/UE.id]:[L/UE.id]],LEV[[Medtag]:[Medtag]],\"\",0)","v":0},{"$f":"_xlfn.XLOOKUP(ED$1,LEV[[L/UE.id]:[L/UE.id]],LEV[[Medtag]:[Medtag]],\"\",0)","v":0},{"$f":"_xlfn.XLOOKUP(EE$1,LEV[[L/UE.id]:[L/UE.id]],LEV[[Medtag]:[Medtag]],\"\",0)","v":0},{"$f":"_xlfn.XLOOKUP(EF$1,LEV[[L/UE.id]:[L/UE.id]],LEV[[Medtag]:[Medtag]],\"\",0)","v":0},{"$f":"_xlfn.XLOOKUP(EG$1,LEV[[L/UE.id]:[L/UE.id]],LEV[[Medtag]:[Medtag]],\"\",0)","v":0},{"$f":"_xlfn.XLOOKUP(EH$1,LEV[[L/UE.id]:[L/UE.id]],LEV[[Medtag]:[Medtag]],\"\",0)","v":0},{"$f":"_xlfn.XLOOKUP(EI$1,LEV[[L/UE.id]:[L/UE.id]],LEV[[Medtag]:[Medtag]],\"\",0)","v":0},{"$f":"_xlfn.XLOOKUP(EJ$1,LEV[[L/UE.id]:[L/UE.id]],LEV[[Medtag]:[Medtag]],\"\",0)","v":0},{"$f":"_xlfn.XLOOKUP(EK$1,LEV[[L/UE.id]:[L/UE.id]],LEV[[Medtag]:[Medtag]],\"\",0)","v":0},{"$f":"_xlfn.XLOOKUP(EL$1,LEV[[L/UE.id]:[L/UE.id]],LEV[[Medtag]:[Medtag]],\"\",0)","v":"x"},{"$f":"_xlfn.XLOOKUP(EM$1,LEV[[L/UE.id]:[L/UE.id]],LEV[[Medtag]:[Medtag]],\"\",0)","v":0},{"$f":"_xlfn.XLOOKUP(EN$1,LEV[[L/UE.id]:[L/UE.id]],LEV[[Medtag]:[Medtag]],\"\",0)","v":"x"},{"$f":"_xlfn.XLOOKUP(EO$1,LEV[[L/UE.id]:[L/UE.id]],LEV[[Medtag]:[Medtag]],\"\",0)","v":0},{"$f":"_xlfn.XLOOKUP(EP$1,LEV[[L/UE.id]:[L/UE.id]],LEV[[Medtag]:[Medtag]],\"\",0)","v":"x"},{"$f":"_xlfn.XLOOKUP(EQ$1,LEV[[L/UE.id]:[L/UE.id]],LEV[[Medtag]:[Medtag]],\"\",0)","v":"x"},{"$f":"_xlfn.XLOOKUP(ER$1,LEV[[L/UE.id]:[L/UE.id]],LEV[[Medtag]:[Medtag]],\"\",0)","v":0},{"$f":"_xlfn.XLOOKUP(ES$1,LEV[[L/UE.id]:[L/UE.id]],LEV[[Medtag]:[Medtag]],\"\",0)","v":0},{"$f":"_xlfn.XLOOKUP(ET$1,LEV[[L/UE.id]:[L/UE.id]],LEV[[Medtag]:[Medtag]],\"\",0)","v":0},{"$f":"_xlfn.XLOOKUP(EU$1,LEV[[L/UE.id]:[L/UE.id]],LEV[[Medtag]:[Medtag]],\"\",0)","v":"x"},{"$f":"_xlfn.XLOOKUP(EV$1,LEV[[L/UE.id]:[L/UE.id]],LEV[[Medtag]:[Medtag]],\"\",0)","v":0},{"$f":"_xlfn.XLOOKUP(EW$1,LEV[[L/UE.id]:[L/UE.id]],LEV[[Medtag]:[Medtag]],\"\",0)","v":0},{"$f":"_xlfn.XLOOKUP(EX$1,LEV[[L/UE.id]:[L/UE.id]],LEV[[Medtag]:[Medtag]],\"\",0)","v":0},{"$f":"_xlfn.XLOOKUP(EY$1,LEV[[L/UE.id]:[L/UE.id]],LEV[[Medtag]:[Medtag]],\"\",0)","v":0},{"$f":"_xlfn.XLOOKUP(EZ$1,LEV[[L/UE.id]:[L/UE.id]],LEV[[Medtag]:[Medtag]],\"\",0)","v":0},{"$f":"_xlfn.XLOOKUP(FA$1,LEV[[L/UE.id]:[L/UE.id]],LEV[[Medtag]:[Medtag]],\"\",0)","v":0},{"$f":"_xlfn.XLOOKUP(FB$1,LEV[[L/UE.id]:[L/UE.id]],LEV[[Medtag]:[Medtag]],\"\",0)","v":"x"},{"$f":"_xlfn.XLOOKUP(FC$1,LEV[[L/UE.id]:[L/UE.id]],LEV[[Medtag]:[Medtag]],\"\",0)","v":0},{"$f":"_xlfn.XLOOKUP(FD$1,LEV[[L/UE.id]:[L/UE.id]],LEV[[Medtag]:[Medtag]],\"\",0)","v":0},{"$f":"_xlfn.XLOOKUP(FE$1,LEV[[L/UE.id]:[L/UE.id]],LEV[[Medtag]:[Medtag]],\"\",0)","v":0},{"$f":"_xlfn.XLOOKUP(FF$1,LEV[[L/UE.id]:[L/UE.id]],LEV[[Medtag]:[Medtag]],\"\",0)","v":0},{"$f":"_xlfn.XLOOKUP(FG$1,LEV[[L/UE.id]:[L/UE.id]],LEV[[Medtag]:[Medtag]],\"\",0)","v":0},{"$f":"_xlfn.XLOOKUP(FH$1,LEV[[L/UE.id]:[L/UE.id]],LEV[[Medtag]:[Medtag]],\"\",0)","v":"x"},{"$f":"_xlfn.XLOOKUP(FI$1,LEV[[L/UE.id]:[L/UE.id]],LEV[[Medtag]:[Medtag]],\"\",0)","v":"x"},{"$f":"_xlfn.XLOOKUP(FJ$1,LEV[[L/UE.id]:[L/UE.id]],LEV[[Medtag]:[Medtag]],\"\",0)","v":"x"},{"$f":"_xlfn.XLOOKUP(FK$1,LEV[[L/UE.id]:[L/UE.id]],LEV[[Medtag]:[Medtag]],\"\",0)","v":"x"},{"$f":"_xlfn.XLOOKUP(FL$1,LEV[[L/UE.id]:[L/UE.id]],LEV[[Medtag]:[Medtag]],\"\",0)","v":"x"},{"$f":"_xlfn.XLOOKUP(FM$1,LEV[[L/UE.id]:[L/UE.id]],LEV[[Medtag]:[Medtag]],\"\",0)","v":0},{"$f":"_xlfn.XLOOKUP(FN$1,LEV[[L/UE.id]:[L/UE.id]],LEV[[Medtag]:[Medtag]],\"\",0)","v":0},{"$f":"_xlfn.XLOOKUP(FO$1,LEV[[L/UE.id]:[L/UE.id]],LEV[[Medtag]:[Medtag]],\"\",0)","v":"x"},{"$f":"_xlfn.XLOOKUP(FP$1,LEV[[L/UE.id]:[L/UE.id]],LEV[[Medtag]:[Medtag]],\"\",0)","v":"x"},{"$f":"_xlfn.XLOOKUP(FQ$1,LEV[[L/UE.id]:[L/UE.id]],LEV[[Medtag]:[Medtag]],\"\",0)","v":"x"},{"$f":"_xlfn.XLOOKUP(FR$1,LEV[[L/UE.id]:[L/UE.id]],LEV[[Medtag]:[Medtag]],\"\",0)","v":"x"},{"$f":"_xlfn.XLOOKUP(FS$1,LEV[[L/UE.id]:[L/UE.id]],LEV[[Medtag]:[Medtag]],\"\",0)","v":0},{"$f":"_xlfn.XLOOKUP(FT$1,LEV[[L/UE.id]:[L/UE.id]],LEV[[Medtag]:[Medtag]],\"\",0)","v":0},{"$f":"_xlfn.XLOOKUP(FU$1,LEV[[L/UE.id]:[L/UE.id]],LEV[[Medtag]:[Medtag]],\"\",0)","v":0},{"$f":"_xlfn.XLOOKUP(FV$1,LEV[[L/UE.id]:[L/UE.id]],LEV[[Medtag]:[Medtag]],\"\",0)","v":0},{"$f":"_xlfn.XLOOKUP(FW$1,LEV[[L/UE.id]:[L/UE.id]],LEV[[Medtag]:[Medtag]],\"\",0)","v":0},{"$f":"_xlfn.XLOOKUP(FX$1,LEV[[L/UE.id]:[L/UE.id]],LEV[[Medtag]:[Medtag]],\"\",0)","v":0},{"$f":"_xlfn.XLOOKUP(FY$1,LEV[[L/UE.id]:[L/UE.id]],LEV[[Medtag]:[Medtag]],\"\",0)","v":0},{"$f":"_xlfn.XLOOKUP(FZ$1,LEV[[L/UE.id]:[L/UE.id]],LEV[[Medtag]:[Medtag]],\"\",0)","v":0},{"$f":"_xlfn.XLOOKUP(GA$1,LEV[[L/UE.id]:[L/UE.id]],LEV[[Medtag]:[Medtag]],\"\",0)","v":0},{"$f":"_xlfn.XLOOKUP(GB$1,LEV[[L/UE.id]:[L/UE.id]],LEV[[Medtag]:[Medtag]],\"\",0)","v":0},{"$f":"_xlfn.XLOOKUP(GC$1,LEV[[L/UE.id]:[L/UE.id]],LEV[[Medtag]:[Medtag]],\"\",0)","v":0},{"$f":"_xlfn.XLOOKUP(GD$1,LEV[[L/UE.id]:[L/UE.id]],LEV[[Medtag]:[Medtag]],\"\",0)","v":0},{"$f":"_xlfn.XLOOKUP(GE$1,LEV[[L/UE.id]:[L/UE.id]],LEV[[Medtag]:[Medtag]],\"\",0)","v":0},{"$f":"_xlfn.XLOOKUP(GF$1,LEV[[L/UE.id]:[L/UE.id]],LEV[[Medtag]:[Medtag]],\"\",0)","v":0},{"$f":"_xlfn.XLOOKUP(GG$1,LEV[[L/UE.id]:[L/UE.id]],LEV[[Medtag]:[Medtag]],\"\",0)","v":0},{"$f":"_xlfn.XLOOKUP(GH$1,LEV[[L/UE.id]:[L/UE.id]],LEV[[Medtag]:[Medtag]],\"\",0)","v":0},{"$f":"_xlfn.XLOOKUP(GI$1,LEV[[L/UE.id]:[L/UE.id]],LEV[[Medtag]:[Medtag]],\"\",0)","v":0},{"$f":"_xlfn.XLOOKUP(GJ$1,LEV[[L/UE.id]:[L/UE.id]],LEV[[Medtag]:[Medtag]],\"\",0)","v":0},{"$f":"_xlfn.XLOOKUP(GK$1,LEV[[L/UE.id]:[L/UE.id]],LEV[[Medtag]:[Medtag]],\"\",0)","v":0},{"$f":"_xlfn.XLOOKUP(GL$1,LEV[[L/UE.id]:[L/UE.id]],LEV[[Medtag]:[Medtag]],\"\",0)","v":0},{"$f":"_xlfn.XLOOKUP(GM$1,LEV[[L/UE.id]:[L/UE.id]],LEV[[Medtag]:[Medtag]],\"\",0)","v":0},{"$f":"_xlfn.XLOOKUP(GN$1,LEV[[L/UE.id]:[L/UE.id]],LEV[[Medtag]:[Medtag]],\"\",0)","v":0},{"$f":"_xlfn.XLOOKUP(GO$1,LEV[[L/UE.id]:[L/UE.id]],LEV[[Medtag]:[Medtag]],\"\",0)","v":0},{"$f":"_xlfn.XLOOKUP(GP$1,LEV[[L/UE.id]:[L/UE.id]],LEV[[Medtag]:[Medtag]],\"\",0)","v":0},{"$f":"_xlfn.XLOOKUP(GQ$1,LEV[[L/UE.id]:[L/UE.id]],LEV[[Medtag]:[Medtag]],\"\",0)","v":0},{"$f":"_xlfn.XLOOKUP(GR$1,LEV[[L/UE.id]:[L/UE.id]],LEV[[Medtag]:[Medtag]],\"\",0)","v":0},{"$f":"_xlfn.XLOOKUP(GS$1,LEV[[L/UE.id]:[L/UE.id]],LEV[[Medtag]:[Medtag]],\"\",0)","v":0},{"$f":"_xlfn.XLOOKUP(GT$1,LEV[[L/UE.id]:[L/UE.id]],LEV[[Medtag]:[Medtag]],\"\",0)","v":0},{"$f":"_xlfn.XLOOKUP(GU$1,LEV[[L/UE.id]:[L/UE.id]],LEV[[Medtag]:[Medtag]],\"\",0)","v":0},{"$f":"_xlfn.XLOOKUP(GV$1,LEV[[L/UE.id]:[L/UE.id]],LEV[[Medtag]:[Medtag]],\"\",0)","v":0},{"$f":"_xlfn.XLOOKUP(GW$1,LEV[[L/UE.id]:[L/UE.id]],LEV[[Medtag]:[Medtag]],\"\",0)","v":0},{"$f":"_xlfn.XLOOKUP(GX$1,LEV[[L/UE.id]:[L/UE.id]],LEV[[Medtag]:[Medtag]],\"\",0)","v":0},{"$f":"_xlfn.XLOOKUP(GY$1,LEV[[L/UE.id]:[L/UE.id]],LEV[[Medtag]:[Medtag]],\"\",0)","v":0},{"$f":"_xlfn.XLOOKUP(GZ$1,LEV[[L/UE.id]:[L/UE.id]],LEV[[Medtag]:[Medtag]],\"\",0)","v":0},{"$f":"_xlfn.XLOOKUP(HA$1,LEV[[L/UE.id]:[L/UE.id]],LEV[[Medtag]:[Medtag]],\"\",0)","v":0},{"$f":"_xlfn.XLOOKUP(HB$1,LEV[[L/UE.id]:[L/UE.id]],LEV[[Medtag]:[Medtag]],\"\",0)","v":0},{"$f":"_xlfn.XLOOKUP(HC$1,LEV[[L/UE.id]:[L/UE.id]],LEV[[Medtag]:[Medtag]],\"\",0)","v":0},{"$f":"_xlfn.XLOOKUP(HD$1,LEV[[L/UE.id]:[L/UE.id]],LEV[[Medtag]:[Medtag]],\"\",0)","v":0},{"$f":"_xlfn.XLOOKUP(HE$1,LEV[[L/UE.id]:[L/UE.id]],LEV[[Medtag]:[Medtag]],\"\",0)","v":0},{"$f":"_xlfn.XLOOKUP(HF$1,LEV[[L/UE.id]:[L/UE.id]],LEV[[Medtag]:[Medtag]],\"\",0)","v":0},{"$f":"_xlfn.XLOOKUP(HG$1,LEV[[L/UE.id]:[L/UE.id]],LEV[[Medtag]:[Medtag]],\"\",0)","v":0},{"$f":"_xlfn.XLOOKUP(HH$1,LEV[[L/UE.id]:[L/UE.id]],LEV[[Medtag]:[Medtag]],\"\",0)","v":0},{"$f":"_xlfn.XLOOKUP(HI$1,LEV[[L/UE.id]:[L/UE.id]],LEV[[Medtag]:[Medtag]],\"\",0)","v":0},{"$f":"_xlfn.XLOOKUP(HJ$1,LEV[[L/UE.id]:[L/UE.id]],LEV[[Medtag]:[Medtag]],\"\",0)","v":0},{"$f":"_xlfn.XLOOKUP(HK$1,LEV[[L/UE.id]:[L/UE.id]],LEV[[Medtag]:[Medtag]],\"\",0)","v":0},{"$f":"_xlfn.XLOOKUP(HL$1,LEV[[L/UE.id]:[L/UE.id]],LEV[[Medtag]:[Medtag]],\"\",0)","v":0},{"$f":"_xlfn.XLOOKUP(HM$1,LEV[[L/UE.id]:[L/UE.id]],LEV[[Medtag]:[Medtag]],\"\",0)","v":0},{"$f":"_xlfn.XLOOKUP(HN$1,LEV[[L/UE.id]:[L/UE.id]],LEV[[Medtag]:[Medtag]],\"\",0)","v":0},{"$f":"_xlfn.XLOOKUP(HO$1,LEV[[L/UE.id]:[L/UE.id]],LEV[[Medtag]:[Medtag]],\"\",0)","v":0},{"$f":"_xlfn.XLOOKUP(HP$1,LEV[[L/UE.id]:[L/UE.id]],LEV[[Medtag]:[Medtag]],\"\",0)","v":0},{"$f":"_xlfn.XLOOKUP(HQ$1,LEV[[L/UE.id]:[L/UE.id]],LEV[[Medtag]:[Medtag]],\"\",0)","v":0},{"$f":"_xlfn.XLOOKUP(HR$1,LEV[[L/UE.id]:[L/UE.id]],LEV[[Medtag]:[Medtag]],\"\",0)","v":0},{"$f":"_xlfn.XLOOKUP(HS$1,LEV[[L/UE.id]:[L/UE.id]],LEV[[Medtag]:[Medtag]],\"\",0)","v":0},{"$f":"_xlfn.XLOOKUP(HT$1,LEV[[L/UE.id]:[L/UE.id]],LEV[[Medtag]:[Medtag]],\"\",0)","v":0},{"$f":"_xlfn.XLOOKUP(HU$1,LEV[[L/UE.id]:[L/UE.id]],LEV[[Medtag]:[Medtag]],\"\",0)","v":0},{"$f":"_xlfn.XLOOKUP(HV$1,LEV[[L/UE.id]:[L/UE.id]],LEV[[Medtag]:[Medtag]],\"\",0)","v":0},{"$f":"_xlfn.XLOOKUP(HW$1,LEV[[L/UE.id]:[L/UE.id]],LEV[[Medtag]:[Medtag]],\"\",0)","v":0},{"$f":"_xlfn.XLOOKUP(HX$1,LEV[[L/UE.id]:[L/UE.id]],LEV[[Medtag]:[Medtag]],\"\",0)","v":0},{"$f":"_xlfn.XLOOKUP(HY$1,LEV[[L/UE.id]:[L/UE.id]],LEV[[Medtag]:[Medtag]],\"\",0)","v":0},{"$f":"_xlfn.XLOOKUP(HZ$1,LEV[[L/UE.id]:[L/UE.id]],LEV[[Medtag]:[Medtag]],\"\",0)","v":0},{"$f":"_xlfn.XLOOKUP(IA$1,LEV[[L/UE.id]:[L/UE.id]],LEV[[Medtag]:[Medtag]],\"\",0)","v":0},{"$f":"_xlfn.XLOOKUP(IB$1,LEV[[L/UE.id]:[L/UE.id]],LEV[[Medtag]:[Medtag]],\"\",0)","v":0},{"$f":"_xlfn.XLOOKUP(IC$1,LEV[[L/UE.id]:[L/UE.id]],LEV[[Medtag]:[Medtag]],\"\",0)","v":0},{"$f":"_xlfn.XLOOKUP(ID$1,LEV[[L/UE.id]:[L/UE.id]],LEV[[Medtag]:[Medtag]],\"\",0)","v":0},{"$f":"_xlfn.XLOOKUP(IE$1,LEV[[L/UE.id]:[L/UE.id]],LEV[[Medtag]:[Medtag]],\"\",0)","v":0},{"$f":"_xlfn.XLOOKUP(IF$1,LEV[[L/UE.id]:[L/UE.id]],LEV[[Medtag]:[Medtag]],\"\",0)","v":0},{"$f":"_xlfn.XLOOKUP(IG$1,LEV[[L/UE.id]:[L/UE.id]],LEV[[Medtag]:[Medtag]],\"\",0)","v":0},{"$f":"_xlfn.XLOOKUP(IH$1,LEV[[L/UE.id]:[L/UE.id]],LEV[[Medtag]:[Medtag]],\"\",0)","v":0},{"$f":"_xlfn.XLOOKUP(II$1,LEV[[L/UE.id]:[L/UE.id]],LEV[[Medtag]:[Medtag]],\"\",0)","v":0},{"$f":"_xlfn.XLOOKUP(IJ$1,LEV[[L/UE.id]:[L/UE.id]],LEV[[Medtag]:[Medtag]],\"\",0)","v":0},{"$f":"_xlfn.XLOOKUP(IK$1,LEV[[L/UE.id]:[L/UE.id]],LEV[[Medtag]:[Medtag]],\"\",0)","v":0},{"$f":"_xlfn.XLOOKUP(IL$1,LEV[[L/UE.id]:[L/UE.id]],LEV[[Medtag]:[Medtag]],\"\",0)","v":0},{"$f":"_xlfn.XLOOKUP(IM$1,LEV[[L/UE.id]:[L/UE.id]],LEV[[Medtag]:[Medtag]],\"\",0)","v":0},{"$f":"_xlfn.XLOOKUP(IN$1,LEV[[L/UE.id]:[L/UE.id]],LEV[[Medtag]:[Medtag]],\"\",0)","v":0},{"$f":"_xlfn.XLOOKUP(IO$1,LEV[[L/UE.id]:[L/UE.id]],LEV[[Medtag]:[Medtag]],\"\",0)","v":0},{"$f":"_xlfn.XLOOKUP(IP$1,LEV[[L/UE.id]:[L/UE.id]],LEV[[Medtag]:[Medtag]],\"\",0)","v":0},{"$f":"_xlfn.XLOOKUP(IQ$1,LEV[[L/UE.id]:[L/UE.id]],LEV[[Medtag]:[Medtag]],\"\",0)","v":0},{"$f":"_xlfn.XLOOKUP(IR$1,LEV[[L/UE.id]:[L/UE.id]],LEV[[Medtag]:[Medtag]],\"\",0)","v":0},{"$f":"_xlfn.XLOOKUP(IS$1,LEV[[L/UE.id]:[L/UE.id]],LEV[[Medtag]:[Medtag]],\"\",0)","v":0},{"$f":"_xlfn.XLOOKUP(IT$1,LEV[[L/UE.id]:[L/UE.id]],LEV[[Medtag]:[Medtag]],\"\",0)","v":0},{"$f":"_xlfn.XLOOKUP(IU$1,LEV[[L/UE.id]:[L/UE.id]],LEV[[Medtag]:[Medtag]],\"\",0)","v":0},{"$f":"_xlfn.XLOOKUP(IV$1,LEV[[L/UE.id]:[L/UE.id]],LEV[[Medtag]:[Medtag]],\"\",0)","v":0},{"$f":"_xlfn.XLOOKUP(IW$1,LEV[[L/UE.id]:[L/UE.id]],LEV[[Medtag]:[Medtag]],\"\",0)","v":0},{"$f":"_xlfn.XLOOKUP(IX$1,LEV[[L/UE.id]:[L/UE.id]],LEV[[Medtag]:[Medtag]],\"\",0)","v":0},{"$f":"_xlfn.XLOOKUP(IY$1,LEV[[L/UE.id]:[L/UE.id]],LEV[[Medtag]:[Medtag]],\"\",0)","v":0},{"$f":"_xlfn.XLOOKUP(IZ$1,LEV[[L/UE.id]:[L/UE.id]],LEV[[Medtag]:[Medtag]],\"\",0)","v":0},{"$f":"_xlfn.XLOOKUP(JA$1,LEV[[L/UE.id]:[L/UE.id]],LEV[[Medtag]:[Medtag]],\"\",0)","v":0},{"$f":"_xlfn.XLOOKUP(JB$1,LEV[[L/UE.id]:[L/UE.id]],LEV[[Medtag]:[Medtag]],\"\",0)","v":0},{"$f":"_xlfn.XLOOKUP(JC$1,LEV[[L/UE.id]:[L/UE.id]],LEV[[Medtag]:[Medtag]],\"\",0)","v":0},{"$f":"_xlfn.XLOOKUP(JD$1,LEV[[L/UE.id]:[L/UE.id]],LEV[[Medtag]:[Medtag]],\"\",0)","v":0},{"$f":"_xlfn.XLOOKUP(JE$1,LEV[[L/UE.id]:[L/UE.id]],LEV[[Medtag]:[Medtag]],\"\",0)","v":0},{"$f":"_xlfn.XLOOKUP(JF$1,LEV[[L/UE.id]:[L/UE.id]],LEV[[Medtag]:[Medtag]],\"\",0)","v":0},{"$f":"_xlfn.XLOOKUP(JG$1,LEV[[L/UE.id]:[L/UE.id]],LEV[[Medtag]:[Medtag]],\"\",0)","v":0},{"$f":"_xlfn.XLOOKUP(JH$1,LEV[[L/UE.id]:[L/UE.id]],LEV[[Medtag]:[Medtag]],\"\",0)","v":0},{"$f":"_xlfn.XLOOKUP(JI$1,LEV[[L/UE.id]:[L/UE.id]],LEV[[Medtag]:[Medtag]],\"\",0)","v":0},{"$f":"_xlfn.XLOOKUP(JJ$1,LEV[[L/UE.id]:[L/UE.id]],LEV[[Medtag]:[Medtag]],\"\",0)","v":0}]
[null,null,null,null,null,null,null,null,null,null,1,null,null,null,"LEV. NAVN",null,null,null,null,null,{"$f":"_xlfn.XLOOKUP(U$1,LEV[[L/UE.id]:[L/UE.id]],LEV[[NAVN]:[NAVN]],\"\",0)","v":"Joca"},{"$f":"_xlfn.XLOOKUP(V$1,LEV[[L/UE.id]:[L/UE.id]],LEV[[NAVN]:[NAVN]],\"\",0)","v":"Rubæk"},{"$f":"_xlfn.XLOOKUP(W$1,LEV[[L/UE.id]:[L/UE.id]],LEV[[NAVN]:[NAVN]],\"\",0)","v":"Be-Low"},{"$f":"_xlfn.XLOOKUP(X$1,LEV[[L/UE.id]:[L/UE.id]],LEV[[NAVN]:[NAVN]],\"\",0)","v":"E.J. Vejstriber"},{"$f":"_xlfn.XLOOKUP(Y$1,LEV[[L/UE.id]:[L/UE.id]],LEV[[NAVN]:[NAVN]],\"\",0)","v":"LKF Sjælland - Munck"},{"$f":"_xlfn.XLOOKUP(Z$1,LEV[[L/UE.id]:[L/UE.id]],LEV[[NAVN]:[NAVN]],\"\",0)","v":"Eurostar Danmark A/S (SafeRoad)"},{"$f":"_xlfn.XLOOKUP(AA$1,LEV[[L/UE.id]:[L/UE.id]],LEV[[NAVN]:[NAVN]],\"\",0)","v":"All Remove Danmark"},{"$f":"_xlfn.XLOOKUP(AB$1,LEV[[L/UE.id]:[L/UE.id]],LEV[[NAVN]:[NAVN]],\"\",0)","v":"Georg Jørgensen"},{"$f":"_xlfn.XLOOKUP(AC$1,LEV[[L/UE.id]:[L/UE.id]],LEV[[NAVN]:[NAVN]],\"\",0)","v":"NCC Roads A/S"},{"$f":"_xlfn.XLOOKUP(AD$1,LEV[[L/UE.id]:[L/UE.id]],LEV[[NAVN]:[NAVN]],\"\",0)","v":"PEAB A/S"},{"$f":"_xlfn.XLOOKUP(AE$1,LEV[[L/UE.id]:[L/UE.id]],LEV[[NAVN]:[NAVN]],\"\",0)","v":"Munck Asfalt A/S"},{"$f":"_xlfn.XLOOKUP(AF$1,LEV[[L/UE.id]:[L/UE.id]],LEV[[NAVN]:[NAVN]],\"\",0)","v":"Asfalt sjakket"},{"$f":"_xlfn.XLOOKUP(AG$1,LEV[[L/UE.id]:[L/UE.id]],LEV[[NAVN]:[NAVN]],\"\",0)","v":"Asfalt specialisterne"},{"$f":"_xlfn.XLOOKUP(AH$1,LEV[[L/UE.id]:[L/UE.id]],LEV[[NAVN]:[NAVN]],\"\",0)","v":"Pankas"},{"$f":"_xlfn.XLOOKUP(AI$1,LEV[[L/UE.id]:[L/UE.id]],LEV[[NAVN]:[NAVN]],\"\",0)","v":"Colas Vejmateriale A/S"},{"$f":"_xlfn.XLOOKUP(AJ$1,LEV[[L/UE.id]:[L/UE.id]],LEV[[NAVN]:[NAVN]],\"\",0)","v":"Total Diamanten"},{"$f":"_xlfn.XLOOKUP(AK$1,LEV[[L/UE.id]:[L/UE.id]],LEV[[NAVN]:[NAVN]],\"\",0)","v":"Farum Beton"},{"$f":"_xlfn.XLOOKUP(AL$1,LEV[[L/UE.id]:[L/UE.id]],LEV[[NAVN]:[NAVN]],\"\",0)","v":"Gammelrand"},{"$f":"_xlfn.XLOOKUP(AM$1,LEV[[L/UE.id]:[L/UE.id]],LEV[[NAVN]:[NAVN]],\"\",0)","v":"IBF Betonvarer"},{"$f":"_xlfn.XLOOKUP(AN$1,LEV[[L/UE.id]:[L/UE.id]],LEV[[NAVN]:[NAVN]],\"\",0)","v":"Byggebjerg Beton A/S"},{"$f":"_xlfn.XLOOKUP(AO$1,LEV[[L/UE.id]:[L/UE.id]],LEV[[NAVN]:[NAVN]],\"\",0)","v":"Århus Cementvarefabrik"},{"$f":"_xlfn.XLOOKUP(AP$1,LEV[[L/UE.id]:[L/UE.id]],LEV[[NAVN]:[NAVN]],\"\",0)","v":"Tscherning"},{"$f":"_xlfn.XLOOKUP(AQ$1,LEV[[L/UE.id]:[L/UE.id]],LEV[[NAVN]:[NAVN]],\"\",0)","v":"K. Freitag"},{"$f":"_xlfn.XLOOKUP(AR$1,LEV[[L/UE.id]:[L/UE.id]],LEV[[NAVN]:[NAVN]],\"\",0)","v":"ConcreteHead"},{"$f":"_xlfn.XLOOKUP(AS$1,LEV[[L/UE.id]:[L/UE.id]],LEV[[NAVN]:[NAVN]],\"\",0)","v":"KW beton teknik"},{"$f":"_xlfn.XLOOKUP(AT$1,LEV[[L/UE.id]:[L/UE.id]],LEV[[NAVN]:[NAVN]],\"\",0)","v":"FA Brolægning"},{"$f":"_xlfn.XLOOKUP(AU$1,LEV[[L/UE.id]:[L/UE.id]],LEV[[NAVN]:[NAVN]],\"\",0)","v":"DT Brolægning"},{"$f":"_xlfn.XLOOKUP(AV$1,LEV[[L/UE.id]:[L/UE.id]],LEV[[NAVN]:[NAVN]],\"\",0)","v":0},{"$f":"_xlfn.XLOOKUP(AW$1,LEV[[L/UE.id]:[L/UE.id]],LEV[[NAVN]:[NAVN]],\"\",0)","v":"Brix Brolægning"},{"$f":"_xlfn.XLOOKUP(AX$1,LEV[[L/UE.id]:[L/UE.id]],LEV[[NAVN]:[NAVN]],\"\",0)","v":"P.P. Brolægning A/S"},{"$f":"_xlfn.XLOOKUP(AY$1,LEV[[L/UE.id]:[L/UE.id]],LEV[[NAVN]:[NAVN]],\"\",0)","v":"Byagers Brolægning"},{"$f":"_xlfn.XLOOKUP(AZ$1,LEV[[L/UE.id]:[L/UE.id]],LEV[[NAVN]:[NAVN]],\"\",0)","v":"Landskab & Brolægning"},{"$f":"_xlfn.XLOOKUP(BA$1,LEV[[L/UE.id]:[L/UE.id]],LEV[[NAVN]:[NAVN]],\"\",0)","v":"Dybdal brolægning"},{"$f":"_xlfn.XLOOKUP(BB$1,LEV[[L/UE.id]:[L/UE.id]],LEV[[NAVN]:[NAVN]],\"\",0)","v":"Wurtz Brolægning"},{"$f":"_xlfn.XLOOKUP(BC$1,LEV[[L/UE.id]:[L/UE.id]],LEV[[NAVN]:[NAVN]],\"\",0)","v":"T.O.Brolægning"},{"$f":"_xlfn.XLOOKUP(BD$1,LEV[[L/UE.id]:[L/UE.id]],LEV[[NAVN]:[NAVN]],\"\",0)","v":"Danboring A/S "},{"$f":"_xlfn.XLOOKUP(BE$1,LEV[[L/UE.id]:[L/UE.id]],LEV[[NAVN]:[NAVN]],\"\",0)","v":"Brandt Diamant"},{"$f":"_xlfn.XLOOKUP(BF$1,LEV[[L/UE.id]:[L/UE.id]],LEV[[NAVN]:[NAVN]],\"\",0)","v":"SWARCO TRAFIK A/S"},{"$f":"_xlfn.XLOOKUP(BG$1,LEV[[L/UE.id]:[L/UE.id]],LEV[[NAVN]:[NAVN]],\"\",0)","v":"ITS Teknik \n(Dansk Trafik Teknik / Olsen Engineering)"},{"$f":"_xlfn.XLOOKUP(BH$1,LEV[[L/UE.id]:[L/UE.id]],LEV[[NAVN]:[NAVN]],\"\",0)","v":"Kaels El"},{"$f":"_xlfn.XLOOKUP(BI$1,LEV[[L/UE.id]:[L/UE.id]],LEV[[NAVN]:[NAVN]],\"\",0)","v":"HH Installation ApS"},{"$f":"_xlfn.XLOOKUP(BJ$1,LEV[[L/UE.id]:[L/UE.id]],LEV[[NAVN]:[NAVN]],\"\",0)","v":"Dansk sportbelysning"},{"$f":"_xlfn.XLOOKUP(BK$1,LEV[[L/UE.id]:[L/UE.id]],LEV[[NAVN]:[NAVN]],\"\",0)","v":"Filtenborg El"},{"$f":"_xlfn.XLOOKUP(BL$1,LEV[[L/UE.id]:[L/UE.id]],LEV[[NAVN]:[NAVN]],\"\",0)","v":"Axeltoft El"},{"$f":"_xlfn.XLOOKUP(BM$1,LEV[[L/UE.id]:[L/UE.id]],LEV[[NAVN]:[NAVN]],\"\",0)","v":"Nordens El"},{"$f":"_xlfn.XLOOKUP(BN$1,LEV[[L/UE.id]:[L/UE.id]],LEV[[NAVN]:[NAVN]],\"\",0)","v":"Citytech"},{"$f":"_xlfn.XLOOKUP(BO$1,LEV[[L/UE.id]:[L/UE.id]],LEV[[NAVN]:[NAVN]],\"\",0)","v":"MJ Eriksson"},{"$f":"_xlfn.XLOOKUP(BP$1,LEV[[L/UE.id]:[L/UE.id]],LEV[[NAVN]:[NAVN]],\"\",0)","v":"Hollbøll"},{"$f":"_xlfn.XLOOKUP(BQ$1,LEV[[L/UE.id]:[L/UE.id]],LEV[[NAVN]:[NAVN]],\"\",0)","v":"Barslund"},{"$f":"_xlfn.XLOOKUP(BR$1,LEV[[L/UE.id]:[L/UE.id]],LEV[[NAVN]:[NAVN]],\"\",0)","v":"MSE"},{"$f":"_xlfn.XLOOKUP(BS$1,LEV[[L/UE.id]:[L/UE.id]],LEV[[NAVN]:[NAVN]],\"\",0)","v":"Benny Petersen"},{"$f":"_xlfn.XLOOKUP(BT$1,LEV[[L/UE.id]:[L/UE.id]],LEV[[NAVN]:[NAVN]],\"\",0)","v":"Jordkonsulenterne"},{"$f":"_xlfn.XLOOKUP(BU$1,LEV[[L/UE.id]:[L/UE.id]],LEV[[NAVN]:[NAVN]],\"\",0)","v":"Jord - Miljø A/S"},{"$f":"_xlfn.XLOOKUP(BV$1,LEV[[L/UE.id]:[L/UE.id]],LEV[[NAVN]:[NAVN]],\"\",0)","v":"VM  Flag og Stænger A/S"},{"$f":"_xlfn.XLOOKUP(BW$1,LEV[[L/UE.id]:[L/UE.id]],LEV[[NAVN]:[NAVN]],\"\",0)","v":"Soprema"},{"$f":"_xlfn.XLOOKUP(BX$1,LEV[[L/UE.id]:[L/UE.id]],LEV[[NAVN]:[NAVN]],\"\",0)","v":"Høchendorff Skifer & Granit Aps"},{"$f":"_xlfn.XLOOKUP(BY$1,LEV[[L/UE.id]:[L/UE.id]],LEV[[NAVN]:[NAVN]],\"\",0)","v":"Zurface"},{"$f":"_xlfn.XLOOKUP(BZ$1,LEV[[L/UE.id]:[L/UE.id]],LEV[[NAVN]:[NAVN]],\"\",0)","v":"Bent Vangsø Natursten"},{"$f":"_xlfn.XLOOKUP(CA$1,LEV[[L/UE.id]:[L/UE.id]],LEV[[NAVN]:[NAVN]],\"\",0)","v":"Per Aarsleff"},{"$f":"_xlfn.XLOOKUP(CB$1,LEV[[L/UE.id]:[L/UE.id]],LEV[[NAVN]:[NAVN]],\"\",0)","v":"PileByg A/S"},{"$f":"_xlfn.XLOOKUP(CC$1,LEV[[L/UE.id]:[L/UE.id]],LEV[[NAVN]:[NAVN]],\"\",0)","v":"Kibo Sjælland"},{"$f":"_xlfn.XLOOKUP(CD$1,LEV[[L/UE.id]:[L/UE.id]],LEV[[NAVN]:[NAVN]],\"\",0)","v":"Poda Hegn"},{"$f":"_xlfn.XLOOKUP(CE$1,LEV[[L/UE.id]:[L/UE.id]],LEV[[NAVN]:[NAVN]],\"\",0)","v":"Trådvarerfabrikken ISHØJ"},{"$f":"_xlfn.XLOOKUP(CF$1,LEV[[L/UE.id]:[L/UE.id]],LEV[[NAVN]:[NAVN]],\"\",0)","v":"KantDesign"},{"$f":"_xlfn.XLOOKUP(CG$1,LEV[[L/UE.id]:[L/UE.id]],LEV[[NAVN]:[NAVN]],\"\",0)","v":"Per Aarsleff A/S"},{"$f":"_xlfn.XLOOKUP(CH$1,LEV[[L/UE.id]:[L/UE.id]],LEV[[NAVN]:[NAVN]],\"\",0)","v":"Norrecco A/S"},{"$f":"_xlfn.XLOOKUP(CI$1,LEV[[L/UE.id]:[L/UE.id]],LEV[[NAVN]:[NAVN]],\"\",0)","v":"Steffen Sten ApS"},{"$f":"_xlfn.XLOOKUP(CJ$1,LEV[[L/UE.id]:[L/UE.id]],LEV[[NAVN]:[NAVN]],\"\",0)","v":"Klinker Outdoor"},{"$f":"_xlfn.XLOOKUP(CK$1,LEV[[L/UE.id]:[L/UE.id]],LEV[[NAVN]:[NAVN]],\"\",0)","v":"Gammelrand Beton I/S"},{"$f":"_xlfn.XLOOKUP(CL$1,LEV[[L/UE.id]:[L/UE.id]],LEV[[NAVN]:[NAVN]],\"\",0)","v":"IBF"},{"$f":"_xlfn.XLOOKUP(CM$1,LEV[[L/UE.id]:[L/UE.id]],LEV[[NAVN]:[NAVN]],\"\",0)","v":"Nyrup Plast A/S"},{"$f":"_xlfn.XLOOKUP(CN$1,LEV[[L/UE.id]:[L/UE.id]],LEV[[NAVN]:[NAVN]],\"\",0)","v":"Lønhart"},{"$f":"_xlfn.XLOOKUP(CO$1,LEV[[L/UE.id]:[L/UE.id]],LEV[[NAVN]:[NAVN]],\"\",0)","v":"Scanpipe"},{"$f":"_xlfn.XLOOKUP(CP$1,LEV[[L/UE.id]:[L/UE.id]],LEV[[NAVN]:[NAVN]],\"\",0)","v":"Nordisk Kunstgræs Import ApS"},{"$f":"_xlfn.XLOOKUP(CQ$1,LEV[[L/UE.id]:[L/UE.id]],LEV[[NAVN]:[NAVN]],\"\",0)","v":"Citylawn"},{"$f":"_xlfn.XLOOKUP(CR$1,LEV[[L/UE.id]:[L/UE.id]],LEV[[NAVN]:[NAVN]],\"\",0)","v":"Evergreen Sport"},{"$f":"_xlfn.XLOOKUP(CS$1,LEV[[L/UE.id]:[L/UE.id]],LEV[[NAVN]:[NAVN]],\"\",0)","v":"Laiderz"},{"$f":"_xlfn.XLOOKUP(CT$1,LEV[[L/UE.id]:[L/UE.id]],LEV[[NAVN]:[NAVN]],\"\",0)","v":"TF Sport"},{"$f":"_xlfn.XLOOKUP(CU$1,LEV[[L/UE.id]:[L/UE.id]],LEV[[NAVN]:[NAVN]],\"\",0)","v":"FiveStar grass, Holland"},{"$f":"_xlfn.XLOOKUP(CV$1,LEV[[L/UE.id]:[L/UE.id]],LEV[[NAVN]:[NAVN]],\"\",0)","v":"WGS"},{"$f":"_xlfn.XLOOKUP(CW$1,LEV[[L/UE.id]:[L/UE.id]],LEV[[NAVN]:[NAVN]],\"\",0)","v":"Unisport"},{"$f":"_xlfn.XLOOKUP(CX$1,LEV[[L/UE.id]:[L/UE.id]],LEV[[NAVN]:[NAVN]],\"\",0)","v":"Sport performance"},{"$f":"_xlfn.XLOOKUP(CY$1,LEV[[L/UE.id]:[L/UE.id]],LEV[[NAVN]:[NAVN]],\"\",0)","v":"Maxplay"},{"$f":"_xlfn.XLOOKUP(CZ$1,LEV[[L/UE.id]:[L/UE.id]],LEV[[NAVN]:[NAVN]],\"\",0)","v":"Tress"},{"$f":"_xlfn.XLOOKUP(DA$1,LEV[[L/UE.id]:[L/UE.id]],LEV[[NAVN]:[NAVN]],\"\",0)","v":"Hags"},{"$f":"_xlfn.XLOOKUP(DB$1,LEV[[L/UE.id]:[L/UE.id]],LEV[[NAVN]:[NAVN]],\"\",0)","v":"Uniqa A/S"},{"$f":"_xlfn.XLOOKUP(DC$1,LEV[[L/UE.id]:[L/UE.id]],LEV[[NAVN]:[NAVN]],\"\",0)","v":"Uno Koncept A/S"},{"$f":"_xlfn.XLOOKUP(DD$1,LEV[[L/UE.id]:[L/UE.id]],LEV[[NAVN]:[NAVN]],\"\",0)","v":"Kompan"},{"$f":"_xlfn.XLOOKUP(DE$1,LEV[[L/UE.id]:[L/UE.id]],LEV[[NAVN]:[NAVN]],\"\",0)","v":"Lars Laj "},{"$f":"_xlfn.XLOOKUP(DF$1,LEV[[L/UE.id]:[L/UE.id]],LEV[[NAVN]:[NAVN]],\"\",0)","v":"Lekolar A/S"},{"$f":"_xlfn.XLOOKUP(DG$1,LEV[[L/UE.id]:[L/UE.id]],LEV[[NAVN]:[NAVN]],\"\",0)","v":"Cado A/S"},{"$f":"_xlfn.XLOOKUP(DH$1,LEV[[L/UE.id]:[L/UE.id]],LEV[[NAVN]:[NAVN]],\"\",0)","v":"Elverdal"},{"$f":"_xlfn.XLOOKUP(DI$1,LEV[[L/UE.id]:[L/UE.id]],LEV[[NAVN]:[NAVN]],\"\",0)","v":"Copla legepladser"},{"$f":"_xlfn.XLOOKUP(DJ$1,LEV[[L/UE.id]:[L/UE.id]],LEV[[NAVN]:[NAVN]],\"\",0)","v":"Danske natur legepladser"},{"$f":"_xlfn.XLOOKUP(DK$1,LEV[[L/UE.id]:[L/UE.id]],LEV[[NAVN]:[NAVN]],\"\",0)","v":"Dansk Celleglas"},{"$f":"_xlfn.XLOOKUP(DL$1,LEV[[L/UE.id]:[L/UE.id]],LEV[[NAVN]:[NAVN]],\"\",0)","v":"Mads Boye"},{"$f":"_xlfn.XLOOKUP(DM$1,LEV[[L/UE.id]:[L/UE.id]],LEV[[NAVN]:[NAVN]],\"\",0)","v":"Murermester A. Holst"},{"$f":"_xlfn.XLOOKUP(DN$1,LEV[[L/UE.id]:[L/UE.id]],LEV[[NAVN]:[NAVN]],\"\",0)","v":"Thomas Espenhain Murermester"},{"$f":"_xlfn.XLOOKUP(DO$1,LEV[[L/UE.id]:[L/UE.id]],LEV[[NAVN]:[NAVN]],\"\",0)","v":"Christian Hansen"},{"$f":"_xlfn.XLOOKUP(DP$1,LEV[[L/UE.id]:[L/UE.id]],LEV[[NAVN]:[NAVN]],\"\",0)","v":"LH Hokkerup A/S"},{"$f":"_xlfn.XLOOKUP(DQ$1,LEV[[L/UE.id]:[L/UE.id]],LEV[[NAVN]:[NAVN]],\"\",0)","v":"Georg Tscherning A/S"},{"$f":"_xlfn.XLOOKUP(DR$1,LEV[[L/UE.id]:[L/UE.id]],LEV[[NAVN]:[NAVN]],\"\",0)","v":"Weisleder Nedrivning A/S"},{"$f":"_xlfn.XLOOKUP(DS$1,LEV[[L/UE.id]:[L/UE.id]],LEV[[NAVN]:[NAVN]],\"\",0)","v":"Midtsjællands Nedbrydning"},{"$f":"_xlfn.XLOOKUP(DT$1,LEV[[L/UE.id]:[L/UE.id]],LEV[[NAVN]:[NAVN]],\"\",0)","v":"Holdens Planteskole A/S"},{"$f":"_xlfn.XLOOKUP(DU$1,LEV[[L/UE.id]:[L/UE.id]],LEV[[NAVN]:[NAVN]],\"\",0)","v":"Birkholm Planteskole"},{"$f":"_xlfn.XLOOKUP(DV$1,LEV[[L/UE.id]:[L/UE.id]],LEV[[NAVN]:[NAVN]],\"\",0)","v":"Danplanex"},{"$f":"_xlfn.XLOOKUP(DW$1,LEV[[L/UE.id]:[L/UE.id]],LEV[[NAVN]:[NAVN]],\"\",0)","v":"Proplant"},{"$f":"_xlfn.XLOOKUP(DX$1,LEV[[L/UE.id]:[L/UE.id]],LEV[[NAVN]:[NAVN]],\"\",0)","v":"OKN DRIFT"},{"$f":"_xlfn.XLOOKUP(DY$1,LEV[[L/UE.id]:[L/UE.id]],LEV[[NAVN]:[NAVN]],\"\",0)","v":"M.J.Eriksson A/S"},{"$f":"_xlfn.XLOOKUP(DZ$1,LEV[[L/UE.id]:[L/UE.id]],LEV[[NAVN]:[NAVN]],\"\",0)","v":"Per Aarsleff A/S"},{"$f":"_xlfn.XLOOKUP(EA$1,LEV[[L/UE.id]:[L/UE.id]],LEV[[NAVN]:[NAVN]],\"\",0)","v":"NCC / Hercules Fundering"},{"$f":"_xlfn.XLOOKUP(EB$1,LEV[[L/UE.id]:[L/UE.id]],LEV[[NAVN]:[NAVN]],\"\",0)","v":"Semitech A/S"},{"$f":"_xlfn.XLOOKUP(EC$1,LEV[[L/UE.id]:[L/UE.id]],LEV[[NAVN]:[NAVN]],\"\",0)","v":"Elefantriste A/S"},{"$f":"_xlfn.XLOOKUP(ED$1,LEV[[L/UE.id]:[L/UE.id]],LEV[[NAVN]:[NAVN]],\"\",0)","v":"HedeDanmark"},{"$f":"_xlfn.XLOOKUP(EE$1,LEV[[L/UE.id]:[L/UE.id]],LEV[[NAVN]:[NAVN]],\"\",0)","v":"Aarup Saltværn"},{"$f":"_xlfn.XLOOKUP(EF$1,LEV[[L/UE.id]:[L/UE.id]],LEV[[NAVN]:[NAVN]],\"\",0)","v":"Trafikprodukter"},{"$f":"_xlfn.XLOOKUP(EG$1,LEV[[L/UE.id]:[L/UE.id]],LEV[[NAVN]:[NAVN]],\"\",0)","v":"SafeRoad - (Daluiso)"},{"$f":"_xlfn.XLOOKUP(EH$1,LEV[[L/UE.id]:[L/UE.id]],LEV[[NAVN]:[NAVN]],\"\",0)","v":"Byggros"},{"$f":"_xlfn.XLOOKUP(EI$1,LEV[[L/UE.id]:[L/UE.id]],LEV[[NAVN]:[NAVN]],\"\",0)","v":"Peter Meyer A/S, Entreprenør"},{"$f":"_xlfn.XLOOKUP(EJ$1,LEV[[L/UE.id]:[L/UE.id]],LEV[[NAVN]:[NAVN]],\"\",0)","v":"Per Aarsleff"},{"$f":"_xlfn.XLOOKUP(EK$1,LEV[[L/UE.id]:[L/UE.id]],LEV[[NAVN]:[NAVN]],\"\",0)","v":"Danboring A/S"},{"$f":"_xlfn.XLOOKUP(EL$1,LEV[[L/UE.id]:[L/UE.id]],LEV[[NAVN]:[NAVN]],\"\",0)","v":"Mian Steel"},{"$f":"_xlfn.XLOOKUP(EM$1,LEV[[L/UE.id]:[L/UE.id]],LEV[[NAVN]:[NAVN]],\"\",0)","v":"JQ stålmontage"},{"$f":"_xlfn.XLOOKUP(EN$1,LEV[[L/UE.id]:[L/UE.id]],LEV[[NAVN]:[NAVN]],\"\",0)","v":"Martlev Structural Design"},{"$f":"_xlfn.XLOOKUP(EO$1,LEV[[L/UE.id]:[L/UE.id]],LEV[[NAVN]:[NAVN]],\"\",0)","v":"Aarsleff"},{"$f":"_xlfn.XLOOKUP(EP$1,LEV[[L/UE.id]:[L/UE.id]],LEV[[NAVN]:[NAVN]],\"\",0)","v":"Hitsa-Hejls"},{"$f":"_xlfn.XLOOKUP(EQ$1,LEV[[L/UE.id]:[L/UE.id]],LEV[[NAVN]:[NAVN]],\"\",0)","v":"Inventarrum A/S"},{"$f":"_xlfn.XLOOKUP(ER$1,LEV[[L/UE.id]:[L/UE.id]],LEV[[NAVN]:[NAVN]],\"\",0)","v":"Out-sider A/S"},{"$f":"_xlfn.XLOOKUP(ES$1,LEV[[L/UE.id]:[L/UE.id]],LEV[[NAVN]:[NAVN]],\"\",0)","v":"Park-Udstyr.dk"},{"$f":"_xlfn.XLOOKUP(ET$1,LEV[[L/UE.id]:[L/UE.id]],LEV[[NAVN]:[NAVN]],\"\",0)","v":"Træningspavillonen ApS"},{"$f":"_xlfn.XLOOKUP(EU$1,LEV[[L/UE.id]:[L/UE.id]],LEV[[NAVN]:[NAVN]],\"\",0)","v":"Urban Elements ApS"},{"$f":"_xlfn.XLOOKUP(EV$1,LEV[[L/UE.id]:[L/UE.id]],LEV[[NAVN]:[NAVN]],\"\",0)","v":"Veksø-Taulov A/S"},{"$f":"_xlfn.XLOOKUP(EW$1,LEV[[L/UE.id]:[L/UE.id]],LEV[[NAVN]:[NAVN]],\"\",0)","v":"Vestre AB"},{"$f":"_xlfn.XLOOKUP(EX$1,LEV[[L/UE.id]:[L/UE.id]],LEV[[NAVN]:[NAVN]],\"\",0)","v":"Mastellone"},{"$f":"_xlfn.XLOOKUP(EY$1,LEV[[L/UE.id]:[L/UE.id]],LEV[[NAVN]:[NAVN]],\"\",0)","v":"GH Form ApS"},{"$f":"_xlfn.XLOOKUP(EZ$1,LEV[[L/UE.id]:[L/UE.id]],LEV[[NAVN]:[NAVN]],\"\",0)","v":"Thors-Design ApS"},{"$f":"_xlfn.XLOOKUP(FA$1,LEV[[L/UE.id]:[L/UE.id]],LEV[[NAVN]:[NAVN]],\"\",0)","v":"ParkZone A/S"},{"$f":"_xlfn.XLOOKUP(FB$1,LEV[[L/UE.id]:[L/UE.id]],LEV[[NAVN]:[NAVN]],\"\",0)","v":"G9 landskab. park & byrum A/S"},{"$f":"_xlfn.XLOOKUP(FC$1,LEV[[L/UE.id]:[L/UE.id]],LEV[[NAVN]:[NAVN]],\"\",0)","v":"Zenzo Group ApS"},{"$f":"_xlfn.XLOOKUP(FD$1,LEV[[L/UE.id]:[L/UE.id]],LEV[[NAVN]:[NAVN]],\"\",0)","v":"?"},{"$f":"_xlfn.XLOOKUP(FE$1,LEV[[L/UE.id]:[L/UE.id]],LEV[[NAVN]:[NAVN]],\"\",0)","v":"?"},{"$f":"_xlfn.XLOOKUP(FF$1,LEV[[L/UE.id]:[L/UE.id]],LEV[[NAVN]:[NAVN]],\"\",0)","v":"?"},{"$f":"_xlfn.XLOOKUP(FG$1,LEV[[L/UE.id]:[L/UE.id]],LEV[[NAVN]:[NAVN]],\"\",0)","v":"?"},{"$f":"_xlfn.XLOOKUP(FH$1,LEV[[L/UE.id]:[L/UE.id]],LEV[[NAVN]:[NAVN]],\"\",0)","v":"Frede West"},{"$f":"_xlfn.XLOOKUP(FI$1,LEV[[L/UE.id]:[L/UE.id]],LEV[[NAVN]:[NAVN]],\"\",0)","v":"S. Rosendal ApS Tømrerfirma"},{"$f":"_xlfn.XLOOKUP(FJ$1,LEV[[L/UE.id]:[L/UE.id]],LEV[[NAVN]:[NAVN]],\"\",0)","v":"Tømrerfirmaet Søren Bruun"},{"$f":"_xlfn.XLOOKUP(FK$1,LEV[[L/UE.id]:[L/UE.id]],LEV[[NAVN]:[NAVN]],\"\",0)","v":"Tomas Nielsen"},{"$f":"_xlfn.XLOOKUP(FL$1,LEV[[L/UE.id]:[L/UE.id]],LEV[[NAVN]:[NAVN]],\"\",0)","v":"Christian Hansen"},{"$f":"_xlfn.XLOOKUP(FM$1,LEV[[L/UE.id]:[L/UE.id]],LEV[[NAVN]:[NAVN]],\"\",0)","v":"Orev ApS"},{"$f":"_xlfn.XLOOKUP(FN$1,LEV[[L/UE.id]:[L/UE.id]],LEV[[NAVN]:[NAVN]],\"\",0)","v":"Danregn"},{"$f":"_xlfn.XLOOKUP(FO$1,LEV[[L/UE.id]:[L/UE.id]],LEV[[NAVN]:[NAVN]],\"\",0)","v":"DSV Transport A/S"},{"$f":"_xlfn.XLOOKUP(FP$1,LEV[[L/UE.id]:[L/UE.id]],LEV[[NAVN]:[NAVN]],\"\",0)","v":"Frede Andersen & Søn"},{"$f":"_xlfn.XLOOKUP(FQ$1,LEV[[L/UE.id]:[L/UE.id]],LEV[[NAVN]:[NAVN]],\"\",0)","v":"CRJ"},{"$f":"_xlfn.XLOOKUP(FR$1,LEV[[L/UE.id]:[L/UE.id]],LEV[[NAVN]:[NAVN]],\"\",0)","v":"SCT"},{"$f":"_xlfn.XLOOKUP(FS$1,LEV[[L/UE.id]:[L/UE.id]],LEV[[NAVN]:[NAVN]],\"\",0)","v":0},{"$f":"_xlfn.XLOOKUP(FT$1,LEV[[L/UE.id]:[L/UE.id]],LEV[[NAVN]:[NAVN]],\"\",0)","v":0},{"$f":"_xlfn.XLOOKUP(FU$1,LEV[[L/UE.id]:[L/UE.id]],LEV[[NAVN]:[NAVN]],\"\",0)","v":0},{"$f":"_xlfn.XLOOKUP(FV$1,LEV[[L/UE.id]:[L/UE.id]],LEV[[NAVN]:[NAVN]],\"\",0)","v":0},{"$f":"_xlfn.XLOOKUP(FW$1,LEV[[L/UE.id]:[L/UE.id]],LEV[[NAVN]:[NAVN]],\"\",0)","v":0},{"$f":"_xlfn.XLOOKUP(FX$1,LEV[[L/UE.id]:[L/UE.id]],LEV[[NAVN]:[NAVN]],\"\",0)","v":0},{"$f":"_xlfn.XLOOKUP(FY$1,LEV[[L/UE.id]:[L/UE.id]],LEV[[NAVN]:[NAVN]],\"\",0)","v":0},{"$f":"_xlfn.XLOOKUP(FZ$1,LEV[[L/UE.id]:[L/UE.id]],LEV[[NAVN]:[NAVN]],\"\",0)","v":0},{"$f":"_xlfn.XLOOKUP(GA$1,LEV[[L/UE.id]:[L/UE.id]],LEV[[NAVN]:[NAVN]],\"\",0)","v":0},{"$f":"_xlfn.XLOOKUP(GB$1,LEV[[L/UE.id]:[L/UE.id]],LEV[[NAVN]:[NAVN]],\"\",0)","v":0},{"$f":"_xlfn.XLOOKUP(GC$1,LEV[[L/UE.id]:[L/UE.id]],LEV[[NAVN]:[NAVN]],\"\",0)","v":0},{"$f":"_xlfn.XLOOKUP(GD$1,LEV[[L/UE.id]:[L/UE.id]],LEV[[NAVN]:[NAVN]],\"\",0)","v":0},{"$f":"_xlfn.XLOOKUP(GE$1,LEV[[L/UE.id]:[L/UE.id]],LEV[[NAVN]:[NAVN]],\"\",0)","v":0},{"$f":"_xlfn.XLOOKUP(GF$1,LEV[[L/UE.id]:[L/UE.id]],LEV[[NAVN]:[NAVN]],\"\",0)","v":0},{"$f":"_xlfn.XLOOKUP(GG$1,LEV[[L/UE.id]:[L/UE.id]],LEV[[NAVN]:[NAVN]],\"\",0)","v":0},{"$f":"_xlfn.XLOOKUP(GH$1,LEV[[L/UE.id]:[L/UE.id]],LEV[[NAVN]:[NAVN]],\"\",0)","v":0},{"$f":"_xlfn.XLOOKUP(GI$1,LEV[[L/UE.id]:[L/UE.id]],LEV[[NAVN]:[NAVN]],\"\",0)","v":0},{"$f":"_xlfn.XLOOKUP(GJ$1,LEV[[L/UE.id]:[L/UE.id]],LEV[[NAVN]:[NAVN]],\"\",0)","v":0},{"$f":"_xlfn.XLOOKUP(GK$1,LEV[[L/UE.id]:[L/UE.id]],LEV[[NAVN]:[NAVN]],\"\",0)","v":0},{"$f":"_xlfn.XLOOKUP(GL$1,LEV[[L/UE.id]:[L/UE.id]],LEV[[NAVN]:[NAVN]],\"\",0)","v":0},{"$f":"_xlfn.XLOOKUP(GM$1,LEV[[L/UE.id]:[L/UE.id]],LEV[[NAVN]:[NAVN]],\"\",0)","v":0},{"$f":"_xlfn.XLOOKUP(GN$1,LEV[[L/UE.id]:[L/UE.id]],LEV[[NAVN]:[NAVN]],\"\",0)","v":0},{"$f":"_xlfn.XLOOKUP(GO$1,LEV[[L/UE.id]:[L/UE.id]],LEV[[NAVN]:[NAVN]],\"\",0)","v":0},{"$f":"_xlfn.XLOOKUP(GP$1,LEV[[L/UE.id]:[L/UE.id]],LEV[[NAVN]:[NAVN]],\"\",0)","v":0},{"$f":"_xlfn.XLOOKUP(GQ$1,LEV[[L/UE.id]:[L/UE.id]],LEV[[NAVN]:[NAVN]],\"\",0)","v":0},{"$f":"_xlfn.XLOOKUP(GR$1,LEV[[L/UE.id]:[L/UE.id]],LEV[[NAVN]:[NAVN]],\"\",0)","v":0},{"$f":"_xlfn.XLOOKUP(GS$1,LEV[[L/UE.id]:[L/UE.id]],LEV[[NAVN]:[NAVN]],\"\",0)","v":0},{"$f":"_xlfn.XLOOKUP(GT$1,LEV[[L/UE.id]:[L/UE.id]],LEV[[NAVN]:[NAVN]],\"\",0)","v":0},{"$f":"_xlfn.XLOOKUP(GU$1,LEV[[L/UE.id]:[L/UE.id]],LEV[[NAVN]:[NAVN]],\"\",0)","v":0},{"$f":"_xlfn.XLOOKUP(GV$1,LEV[[L/UE.id]:[L/UE.id]],LEV[[NAVN]:[NAVN]],\"\",0)","v":0},{"$f":"_xlfn.XLOOKUP(GW$1,LEV[[L/UE.id]:[L/UE.id]],LEV[[NAVN]:[NAVN]],\"\",0)","v":0},{"$f":"_xlfn.XLOOKUP(GX$1,LEV[[L/UE.id]:[L/UE.id]],LEV[[NAVN]:[NAVN]],\"\",0)","v":0},{"$f":"_xlfn.XLOOKUP(GY$1,LEV[[L/UE.id]:[L/UE.id]],LEV[[NAVN]:[NAVN]],\"\",0)","v":0},{"$f":"_xlfn.XLOOKUP(GZ$1,LEV[[L/UE.id]:[L/UE.id]],LEV[[NAVN]:[NAVN]],\"\",0)","v":0},{"$f":"_xlfn.XLOOKUP(HA$1,LEV[[L/UE.id]:[L/UE.id]],LEV[[NAVN]:[NAVN]],\"\",0)","v":0},{"$f":"_xlfn.XLOOKUP(HB$1,LEV[[L/UE.id]:[L/UE.id]],LEV[[NAVN]:[NAVN]],\"\",0)","v":0},{"$f":"_xlfn.XLOOKUP(HC$1,LEV[[L/UE.id]:[L/UE.id]],LEV[[NAVN]:[NAVN]],\"\",0)","v":0},{"$f":"_xlfn.XLOOKUP(HD$1,LEV[[L/UE.id]:[L/UE.id]],LEV[[NAVN]:[NAVN]],\"\",0)","v":0},{"$f":"_xlfn.XLOOKUP(HE$1,LEV[[L/UE.id]:[L/UE.id]],LEV[[NAVN]:[NAVN]],\"\",0)","v":0},{"$f":"_xlfn.XLOOKUP(HF$1,LEV[[L/UE.id]:[L/UE.id]],LEV[[NAVN]:[NAVN]],\"\",0)","v":0},{"$f":"_xlfn.XLOOKUP(HG$1,LEV[[L/UE.id]:[L/UE.id]],LEV[[NAVN]:[NAVN]],\"\",0)","v":0},{"$f":"_xlfn.XLOOKUP(HH$1,LEV[[L/UE.id]:[L/UE.id]],LEV[[NAVN]:[NAVN]],\"\",0)","v":0},{"$f":"_xlfn.XLOOKUP(HI$1,LEV[[L/UE.id]:[L/UE.id]],LEV[[NAVN]:[NAVN]],\"\",0)","v":0},{"$f":"_xlfn.XLOOKUP(HJ$1,LEV[[L/UE.id]:[L/UE.id]],LEV[[NAVN]:[NAVN]],\"\",0)","v":0},{"$f":"_xlfn.XLOOKUP(HK$1,LEV[[L/UE.id]:[L/UE.id]],LEV[[NAVN]:[NAVN]],\"\",0)","v":0},{"$f":"_xlfn.XLOOKUP(HL$1,LEV[[L/UE.id]:[L/UE.id]],LEV[[NAVN]:[NAVN]],\"\",0)","v":0},{"$f":"_xlfn.XLOOKUP(HM$1,LEV[[L/UE.id]:[L/UE.id]],LEV[[NAVN]:[NAVN]],\"\",0)","v":0},{"$f":"_xlfn.XLOOKUP(HN$1,LEV[[L/UE.id]:[L/UE.id]],LEV[[NAVN]:[NAVN]],\"\",0)","v":0},{"$f":"_xlfn.XLOOKUP(HO$1,LEV[[L/UE.id]:[L/UE.id]],LEV[[NAVN]:[NAVN]],\"\",0)","v":0},{"$f":"_xlfn.XLOOKUP(HP$1,LEV[[L/UE.id]:[L/UE.id]],LEV[[NAVN]:[NAVN]],\"\",0)","v":0},{"$f":"_xlfn.XLOOKUP(HQ$1,LEV[[L/UE.id]:[L/UE.id]],LEV[[NAVN]:[NAVN]],\"\",0)","v":0},{"$f":"_xlfn.XLOOKUP(HR$1,LEV[[L/UE.id]:[L/UE.id]],LEV[[NAVN]:[NAVN]],\"\",0)","v":0},{"$f":"_xlfn.XLOOKUP(HS$1,LEV[[L/UE.id]:[L/UE.id]],LEV[[NAVN]:[NAVN]],\"\",0)","v":0},{"$f":"_xlfn.XLOOKUP(HT$1,LEV[[L/UE.id]:[L/UE.id]],LEV[[NAVN]:[NAVN]],\"\",0)","v":0},{"$f":"_xlfn.XLOOKUP(HU$1,LEV[[L/UE.id]:[L/UE.id]],LEV[[NAVN]:[NAVN]],\"\",0)","v":0},{"$f":"_xlfn.XLOOKUP(HV$1,LEV[[L/UE.id]:[L/UE.id]],LEV[[NAVN]:[NAVN]],\"\",0)","v":0},{"$f":"_xlfn.XLOOKUP(HW$1,LEV[[L/UE.id]:[L/UE.id]],LEV[[NAVN]:[NAVN]],\"\",0)","v":0},{"$f":"_xlfn.XLOOKUP(HX$1,LEV[[L/UE.id]:[L/UE.id]],LEV[[NAVN]:[NAVN]],\"\",0)","v":0},{"$f":"_xlfn.XLOOKUP(HY$1,LEV[[L/UE.id]:[L/UE.id]],LEV[[NAVN]:[NAVN]],\"\",0)","v":0},{"$f":"_xlfn.XLOOKUP(HZ$1,LEV[[L/UE.id]:[L/UE.id]],LEV[[NAVN]:[NAVN]],\"\",0)","v":0},{"$f":"_xlfn.XLOOKUP(IA$1,LEV[[L/UE.id]:[L/UE.id]],LEV[[NAVN]:[NAVN]],\"\",0)","v":0},{"$f":"_xlfn.XLOOKUP(IB$1,LEV[[L/UE.id]:[L/UE.id]],LEV[[NAVN]:[NAVN]],\"\",0)","v":0},{"$f":"_xlfn.XLOOKUP(IC$1,LEV[[L/UE.id]:[L/UE.id]],LEV[[NAVN]:[NAVN]],\"\",0)","v":0},{"$f":"_xlfn.XLOOKUP(ID$1,LEV[[L/UE.id]:[L/UE.id]],LEV[[NAVN]:[NAVN]],\"\",0)","v":0},{"$f":"_xlfn.XLOOKUP(IE$1,LEV[[L/UE.id]:[L/UE.id]],LEV[[NAVN]:[NAVN]],\"\",0)","v":0},{"$f":"_xlfn.XLOOKUP(IF$1,LEV[[L/UE.id]:[L/UE.id]],LEV[[NAVN]:[NAVN]],\"\",0)","v":0},{"$f":"_xlfn.XLOOKUP(IG$1,LEV[[L/UE.id]:[L/UE.id]],LEV[[NAVN]:[NAVN]],\"\",0)","v":0},{"$f":"_xlfn.XLOOKUP(IH$1,LEV[[L/UE.id]:[L/UE.id]],LEV[[NAVN]:[NAVN]],\"\",0)","v":0},{"$f":"_xlfn.XLOOKUP(II$1,LEV[[L/UE.id]:[L/UE.id]],LEV[[NAVN]:[NAVN]],\"\",0)","v":0},{"$f":"_xlfn.XLOOKUP(IJ$1,LEV[[L/UE.id]:[L/UE.id]],LEV[[NAVN]:[NAVN]],\"\",0)","v":0},{"$f":"_xlfn.XLOOKUP(IK$1,LEV[[L/UE.id]:[L/UE.id]],LEV[[NAVN]:[NAVN]],\"\",0)","v":0},{"$f":"_xlfn.XLOOKUP(IL$1,LEV[[L/UE.id]:[L/UE.id]],LEV[[NAVN]:[NAVN]],\"\",0)","v":0},{"$f":"_xlfn.XLOOKUP(IM$1,LEV[[L/UE.id]:[L/UE.id]],LEV[[NAVN]:[NAVN]],\"\",0)","v":0},{"$f":"_xlfn.XLOOKUP(IN$1,LEV[[L/UE.id]:[L/UE.id]],LEV[[NAVN]:[NAVN]],\"\",0)","v":0},{"$f":"_xlfn.XLOOKUP(IO$1,LEV[[L/UE.id]:[L/UE.id]],LEV[[NAVN]:[NAVN]],\"\",0)","v":0},{"$f":"_xlfn.XLOOKUP(IP$1,LEV[[L/UE.id]:[L/UE.id]],LEV[[NAVN]:[NAVN]],\"\",0)","v":0},{"$f":"_xlfn.XLOOKUP(IQ$1,LEV[[L/UE.id]:[L/UE.id]],LEV[[NAVN]:[NAVN]],\"\",0)","v":0},{"$f":"_xlfn.XLOOKUP(IR$1,LEV[[L/UE.id]:[L/UE.id]],LEV[[NAVN]:[NAVN]],\"\",0)","v":0},{"$f":"_xlfn.XLOOKUP(IS$1,LEV[[L/UE.id]:[L/UE.id]],LEV[[NAVN]:[NAVN]],\"\",0)","v":0},{"$f":"_xlfn.XLOOKUP(IT$1,LEV[[L/UE.id]:[L/UE.id]],LEV[[NAVN]:[NAVN]],\"\",0)","v":0},{"$f":"_xlfn.XLOOKUP(IU$1,LEV[[L/UE.id]:[L/UE.id]],LEV[[NAVN]:[NAVN]],\"\",0)","v":0},{"$f":"_xlfn.XLOOKUP(IV$1,LEV[[L/UE.id]:[L/UE.id]],LEV[[NAVN]:[NAVN]],\"\",0)","v":0},{"$f":"_xlfn.XLOOKUP(IW$1,LEV[[L/UE.id]:[L/UE.id]],LEV[[NAVN]:[NAVN]],\"\",0)","v":0},{"$f":"_xlfn.XLOOKUP(IX$1,LEV[[L/UE.id]:[L/UE.id]],LEV[[NAVN]:[NAVN]],\"\",0)","v":0},{"$f":"_xlfn.XLOOKUP(IY$1,LEV[[L/UE.id]:[L/UE.id]],LEV[[NAVN]:[NAVN]],\"\",0)","v":0},{"$f":"_xlfn.XLOOKUP(IZ$1,LEV[[L/UE.id]:[L/UE.id]],LEV[[NAVN]:[NAVN]],\"\",0)","v":0},{"$f":"_xlfn.XLOOKUP(JA$1,LEV[[L/UE.id]:[L/UE.id]],LEV[[NAVN]:[NAVN]],\"\",0)","v":0},{"$f":"_xlfn.XLOOKUP(JB$1,LEV[[L/UE.id]:[L/UE.id]],LEV[[NAVN]:[NAVN]],\"\",0)","v":0},{"$f":"_xlfn.XLOOKUP(JC$1,LEV[[L/UE.id]:[L/UE.id]],LEV[[NAVN]:[NAVN]],\"\",0)","v":0},{"$f":"_xlfn.XLOOKUP(JD$1,LEV[[L/UE.id]:[L/UE.id]],LEV[[NAVN]:[NAVN]],\"\",0)","v":0},{"$f":"_xlfn.XLOOKUP(JE$1,LEV[[L/UE.id]:[L/UE.id]],LEV[[NAVN]:[NAVN]],\"\",0)","v":0},{"$f":"_xlfn.XLOOKUP(JF$1,LEV[[L/UE.id]:[L/UE.id]],LEV[[NAVN]:[NAVN]],\"\",0)","v":0},{"$f":"_xlfn.XLOOKUP(JG$1,LEV[[L/UE.id]:[L/UE.id]],LEV[[NAVN]:[NAVN]],\"\",0)","v":0},{"$f":"_xlfn.XLOOKUP(JH$1,LEV[[L/UE.id]:[L/UE.id]],LEV[[NAVN]:[NAVN]],\"\",0)","v":0},{"$f":"_xlfn.XLOOKUP(JI$1,LEV[[L/UE.id]:[L/UE.id]],LEV[[NAVN]:[NAVN]],\"\",0)","v":0},{"$f":"_xlfn.XLOOKUP(JJ$1,LEV[[L/UE.id]:[L/UE.id]],LEV[[NAVN]:[NAVN]],\"\",0)","v":0}]
[null,null,null,null,null,null,null,null,null,null,1,null,null,null,"SUM",null,null,null,null,null,{"$f":"SUM(Tabel5[1])","v":0},{"$f":"SUM(Tabel5[2])","v":0},{"$f":"SUM(Tabel5[3])","v":0},{"$f":"SUM(Tabel5[4])","v":0},{"$f":"SUM(Tabel5[5])","v":69950},{"$f":"SUM(Tabel5[6])","v":0},{"$f":"SUM(Tabel5[7])","v":0},{"$f":"SUM(Tabel5[8])","v":0},{"$f":"SUM(Tabel5[9])","v":577845},{"$f":"SUM(Tabel5[10])","v":1146970},{"$f":"SUM(Tabel5[11])","v":0},{"$f":"SUM(Tabel5[12])","v":659750},{"$f":"SUM(Tabel5[13])","v":0},{"$f":"SUM(Tabel5[14])","v":553940},{"$f":"SUM(Tabel5[15])","v":508750},{"$f":"SUM(Tabel5[16])","v":0},{"$f":"SUM(Tabel5[17])","v":0},{"$f":"SUM(Tabel5[18])","v":65289},{"$f":"SUM(Tabel5[19])","v":95674},{"$f":"SUM(Tabel5[20])","v":0},{"$f":"SUM(Tabel5[21])","v":0},{"$f":"SUM(Tabel5[22])","v":144664},{"$f":"SUM(Tabel5[23])","v":261300},{"$f":"SUM(Tabel5[24])","v":0},{"$f":"SUM(Tabel5[25])","v":0},{"$f":"SUM(Tabel5[26])","v":0},{"$f":"SUM(Tabel5[27])","v":0},{"$f":"SUM(Tabel5[28])","v":0},{"$f":"SUM(Tabel5[29])","v":0},{"$f":"SUM(Tabel5[30])","v":0},{"$f":"SUM(Tabel5[31])","v":0},{"$f":"SUM(Tabel5[32])","v":0},{"$f":"SUM(Tabel5[33])","v":0},{"$f":"SUM(Tabel5[34])","v":0},{"$f":"SUM(Tabel5[35])","v":0},{"$f":"SUM(Tabel5[36])","v":0},{"$f":"SUM(Tabel5[37])","v":0},{"$f":"SUM(Tabel5[38])","v":0},{"$f":"SUM(Tabel5[39])","v":0},{"$f":"SUM(Tabel5[40])","v":0},{"$f":"SUM(Tabel5[41])","v":0},{"$f":"SUM(Tabel5[42])","v":0},{"$f":"SUM(Tabel5[43])","v":0},{"$f":"SUM(Tabel5[44])","v":0},{"$f":"SUM(Tabel5[45])","v":0},{"$f":"SUM(Tabel5[46])","v":0},{"$f":"SUM(Tabel5[47])","v":0},{"$f":"SUM(Tabel5[48])","v":0},{"$f":"SUM(Tabel5[49])","v":0},{"$f":"SUM(Tabel5[50])","v":0},{"$f":"SUM(Tabel5[51])","v":0},{"$f":"SUM(Tabel5[52])","v":0},{"$f":"SUM(Tabel5[53])","v":0},{"$f":"SUM(Tabel5[54])","v":0},{"$f":"SUM(Tabel5[55])","v":0},{"$f":"SUM(Tabel5[56])","v":0},{"$f":"SUM(Tabel5[57])","v":0},{"$f":"SUM(Tabel5[58])","v":0},{"$f":"SUM(Tabel5[59])","v":0},{"$f":"SUM(Tabel5[60])","v":0},{"$f":"SUM(Tabel5[61])","v":0},{"$f":"SUM(Tabel5[62])","v":0},{"$f":"SUM(Tabel5[63])","v":0},{"$f":"SUM(Tabel5[64])","v":148250},{"$f":"SUM(Tabel5[65])","v":0},{"$f":"SUM(Tabel5[66])","v":0},{"$f":"SUM(Tabel5[67])","v":0},{"$f":"SUM(Tabel5[68])","v":0},{"$f":"SUM(Tabel5[69])","v":103468},{"$f":"SUM(Tabel5[70])","v":0},{"$f":"SUM(Tabel5[71])","v":249715},{"$f":"SUM(Tabel5[72])","v":0},{"$f":"SUM(Tabel5[73])","v":0},{"$f":"SUM(Tabel5[74])","v":0},{"$f":"SUM(Tabel5[75])","v":0},{"$f":"SUM(Tabel5[76])","v":0},{"$f":"SUM(Tabel5[77])","v":0},{"$f":"SUM(Tabel5[78])","v":0},{"$f":"SUM(Tabel5[79])","v":0},{"$f":"SUM(Tabel5[80])","v":0},{"$f":"SUM(Tabel5[81])","v":0},{"$f":"SUM(Tabel5[82])","v":0},{"$f":"SUM(Tabel5[83])","v":214475},{"$f":"SUM(Tabel5[84])","v":0},{"$f":"SUM(Tabel5[85])","v":209400},{"$f":"SUM(Tabel5[86])","v":0},{"$f":"SUM(Tabel5[87])","v":0},{"$f":"SUM(Tabel5[88])","v":0},{"$f":"SUM(Tabel5[89])","v":0},{"$f":"SUM(Tabel5[90])","v":0},{"$f":"SUM(Tabel5[91])","v":254615},{"$f":"SUM(Tabel5[92])","v":0},{"$f":"SUM(Tabel5[93])","v":0},{"$f":"SUM(Tabel5[94])","v":0},{"$f":"SUM(Tabel5[95])","v":0},{"$f":"SUM(Tabel5[96])","v":0},{"$f":"SUM(Tabel5[97])","v":0},{"$f":"SUM(Tabel5[98])","v":0},{"$f":"SUM(Tabel5[99])","v":0},{"$f":"SUM(Tabel5[100])","v":0},{"$f":"SUM(Tabel5[101])","v":0},{"$f":"SUM(Tabel5[102])","v":0},{"$f":"SUM(Tabel5[103])","v":0},{"$f":"SUM(Tabel5[104])","v":0},{"$f":"SUM(Tabel5[105])","v":0},{"$f":"SUM(Tabel5[106])","v":0},{"$f":"SUM(Tabel5[107])","v":0},{"$f":"SUM(Tabel5[108])","v":321558.5},{"$f":"SUM(Tabel5[109])","v":0},{"$f":"SUM(Tabel5[110])","v":0},{"$f":"SUM(Tabel5[111])","v":0},{"$f":"SUM(Tabel5[112])","v":0},{"$f":"SUM(Tabel5[113])","v":0},{"$f":"SUM(Tabel5[114])","v":0},{"$f":"SUM(Tabel5[115])","v":0},{"$f":"SUM(Tabel5[116])","v":0},{"$f":"SUM(Tabel5[117])","v":0},{"$f":"SUM(Tabel5[118])","v":0},{"$f":"SUM(Tabel5[119])","v":0},{"$f":"SUM(Tabel5[120])","v":0},{"$f":"SUM(Tabel5[121])","v":0},{"$f":"SUM(Tabel5[122])","v":177746},{"$f":"SUM(Tabel5[123])","v":0},{"$f":"SUM(Tabel5[124])","v":0},{"$f":"SUM(Tabel5[125])","v":0},{"$f":"SUM(Tabel5[126])","v":158081},{"$f":"SUM(Tabel5[127])","v":0},{"$f":"SUM(Tabel5[128])","v":0},{"$f":"SUM(Tabel5[129])","v":0},{"$f":"SUM(Tabel5[130])","v":0},{"$f":"SUM(Tabel5[131])","v":0},{"$f":"SUM(Tabel5[132])","v":0},{"$f":"SUM(Tabel5[133])","v":0},{"$f":"SUM(Tabel5[134])","v":0},{"$f":"SUM(Tabel5[135])","v":0},{"$f":"SUM(Tabel5[136])","v":0},{"$f":"SUM(Tabel5[137])","v":0},{"$f":"SUM(Tabel5[138])","v":0},{"$f":"SUM(Tabel5[139])","v":0},{"$f":"SUM(Tabel5[140])","v":0},{"$f":"SUM(Tabel5[141])","v":0},{"$f":"SUM(Tabel5[142])","v":0},{"$f":"SUM(Tabel5[143])","v":0},{"$f":"SUM(Tabel5[144])","v":1051100},{"$f":"SUM(Tabel5[145])","v":668260},{"$f":"SUM(Tabel5[146])","v":0},{"$f":"SUM(Tabel5[147])","v":0},{"$f":"SUM(Tabel5[148])","v":848352.48},{"$f":"SUM(Tabel5[149])","v":0},{"$f":"SUM(Tabel5[150])","v":0},{"$f":"SUM(Tabel5[151])","v":0},{"$f":"SUM(Tabel5[152])","v":0},{"$f":"SUM(Tabel5[153])","v":0},{"$f":"SUM(Tabel5[154])","v":0},{"$f":"SUM(Tabel5[155])","v":0},{"$f":"SUM(Tabel5[156])","v":0},{"$f":"SUM(Tabel5[157])","v":0},{"$f":"SUM(Tabel5[158])","v":0},{"$f":"SUM(Tabel5[159])","v":0},{"$f":"SUM(Tabel5[160])","v":0},{"$f":"SUM(Tabel5[161])","v":0},{"$f":"SUM(Tabel5[162])","v":0},{"$f":"SUM(Tabel5[163])","v":0},{"$f":"SUM(Tabel5[164])","v":0},{"$f":"SUM(Tabel5[165])","v":0},{"$f":"SUM(Tabel5[166])","v":0},{"$f":"SUM(Tabel5[167])","v":0},{"$f":"SUM(Tabel5[168])","v":0},{"$f":"SUM(Tabel5[169])","v":0},{"$f":"SUM(Tabel5[170])","v":0},{"$f":"SUM(Tabel5[171])","v":0},{"$f":"SUM(Tabel5[172])","v":0},{"$f":"SUM(Tabel5[173])","v":0},{"$f":"SUM(Tabel5[174])","v":0},{"$f":"SUM(Tabel5[175])","v":0},{"$f":"SUM(Tabel5[176])","v":0},{"$f":"SUM(Tabel5[177])","v":0},{"$f":"SUM(Tabel5[178])","v":0},{"$f":"SUM(Tabel5[179])","v":0},{"$f":"SUM(Tabel5[180])","v":0},{"$f":"SUM(Tabel5[181])","v":0},{"$f":"SUM(Tabel5[182])","v":0},{"$f":"SUM(Tabel5[183])","v":0},{"$f":"SUM(Tabel5[184])","v":0},{"$f":"SUM(Tabel5[185])","v":0},{"$f":"SUM(Tabel5[186])","v":0},{"$f":"SUM(Tabel5[187])","v":0},{"$f":"SUM(Tabel5[188])","v":0},{"$f":"SUM(Tabel5[189])","v":0},{"$f":"SUM(Tabel5[190])","v":0},{"$f":"SUM(Tabel5[191])","v":0},{"$f":"SUM(Tabel5[192])","v":0},{"$f":"SUM(Tabel5[193])","v":0},{"$f":"SUM(Tabel5[194])","v":0},{"$f":"SUM(Tabel5[195])","v":0},{"$f":"SUM(Tabel5[196])","v":0},{"$f":"SUM(Tabel5[197])","v":0},{"$f":"SUM(Tabel5[198])","v":0},{"$f":"SUM(Tabel5[199])","v":0},{"$f":"SUM(Tabel5[200])","v":0},{"$f":"SUM(Tabel5[201])","v":0},{"$f":"SUM(Tabel5[202])","v":0},{"$f":"SUM(Tabel5[203])","v":0},{"$f":"SUM(Tabel5[204])","v":0},{"$f":"SUM(Tabel5[205])","v":0},{"$f":"SUM(Tabel5[206])","v":0},{"$f":"SUM(Tabel5[207])","v":0},{"$f":"SUM(Tabel5[208])","v":0},{"$f":"SUM(Tabel5[209])","v":0},{"$f":"SUM(Tabel5[210])","v":0},{"$f":"SUM(Tabel5[211])","v":0},{"$f":"SUM(Tabel5[212])","v":0},{"$f":"SUM(Tabel5[213])","v":0},{"$f":"SUM(Tabel5[214])","v":0},{"$f":"SUM(Tabel5[215])","v":0},{"$f":"SUM(Tabel5[216])","v":0},{"$f":"SUM(Tabel5[217])","v":0},{"$f":"SUM(Tabel5[218])","v":0},{"$f":"SUM(Tabel5[219])","v":0},{"$f":"SUM(Tabel5[220])","v":0},{"$f":"SUM(Tabel5[221])","v":0},{"$f":"SUM(Tabel5[222])","v":0},{"$f":"SUM(Tabel5[223])","v":0},{"$f":"SUM(Tabel5[224])","v":0},{"$f":"SUM(Tabel5[225])","v":0},{"$f":"SUM(Tabel5[226])","v":0},{"$f":"SUM(Tabel5[227])","v":0},{"$f":"SUM(Tabel5[228])","v":0},{"$f":"SUM(Tabel5[229])","v":0},{"$f":"SUM(Tabel5[230])","v":0},{"$f":"SUM(Tabel5[231])","v":0},{"$f":"SUM(Tabel5[232])","v":0},{"$f":"SUM(Tabel5[233])","v":0},{"$f":"SUM(Tabel5[234])","v":0},{"$f":"SUM(Tabel5[235])","v":0},{"$f":"SUM(Tabel5[236])","v":0},{"$f":"SUM(Tabel5[237])","v":0},{"$f":"SUM(Tabel5[238])","v":0},{"$f":"SUM(Tabel5[239])","v":0},{"$f":"SUM(Tabel5[240])","v":0},{"$f":"SUM(Tabel5[241])","v":0},{"$f":"SUM(Tabel5[242])","v":0},{"$f":"SUM(Tabel5[243])","v":0},{"$f":"SUM(Tabel5[244])","v":0},{"$f":"SUM(Tabel5[245])","v":0},{"$f":"SUM(Tabel5[246])","v":0},{"$f":"SUM(Tabel5[247])","v":0},{"$f":"SUM(Tabel5[248])","v":0},{"$f":"SUM(Tabel5[249])","v":0},{"$f":"SUM(Tabel5[250])","v":0}]
["L/UE.id","Medtag","FAG","NAVN","E-mail","KONTAKTPERSON","TLF","GADE","BY","Bemærkninger",1,null,null,null,"ID","Pos","Tekst","Mængde","enh.","FAG","1","2","3","4","5","6","7","8","9","10","11","12","13","14","15","16","17","18","19","20","21","22","23","24","25","26","27","28","29","30","31","32","33","34","35","36","37","38","39","40","41","42","43","44","45","46","47","48","49","50","51","52","53","54","55","56","57","58","59","60","61","62","63","64","65","66","67","68","69","70","71","72","73","74","75","76","77","78","79","80","81","82","83","84","85","86","87","88","89","90","91","92","93","94","95","96","97","98","99","100","101","102","103","104","105","106","107","108","109","110","111","112","113","114","115","116","117","118","119","120","121","122","123","124","125","126","127","128","129","130","131","132","133","134","135","136","137","138","139","140","141","142","143","144","145","146","147","148","149","150","151","152","153","154","155","156","157","158","159","160","161","162","163","164","165","166","167","168","169","170","171","172","173","174","175","176","177","178","179","180","181","182","183","184","185","186","187","188","189","190","191","192","193","194","195","196","197","198","199","200","201","202","203","204","205","206","207","208","209","210","211","212","213","214","215","216","217","218","219","220","221","222","223","224","225","226","227","228","229","230","231","232","233","234","235","236","237","238","239","240","241","242","243","244","245","246","247","248","249","250"]
[1,null,"Affaldssystemer","Joca","joca@joca.dk",null,null,null,null,null,1,null,null,null,1,"3","","",""]
[2,null,"Affaldssystemer","Rubæk","sd@rubaek.dk","Steen Drastrup",null,null,null,null,1,null,null,null,2,"","","",""]
[3,null,"Affaldssystemer","Be-Low","ktl@be-low.dk","Karsten Thier Larsen",null,null,null,null,1,null,null,null,3,"Pos. Nr.","Ydelse","Antal","Enhed"]
[4,null,"Afstribning","E.J. Vejstriber","ej@ejvej.dk","Erling",40206979,"Græsmarksvej 18","4591 Føllenslev",null,1,null,null,null,4,"","","",""]
[5,"x","Afstribning","LKF Sjælland - Munck","jag@lkf.dk","Jan Grønborg",30855405,"Toftegårdsvej 18","5800 Nyborg",null,1,null,null,null,5,"3.1.1","Rydningsarbejder - Jord","",""]
[6,"x","Afstribning","Eurostar Danmark A/S (SafeRoad)","jod@eurostar.as","Johnny Damm",58360099,"Tigervej 12-14","4600 Køge",null,1,null,null,null,6,"3.1.1.1","Asfaltbelægninger",620,"m2","Asfalt"]
[7,null,"Anti graffiti","All Remove Danmark","PL@allremove.dk",null,70100707,null,null,null,1,null,null,null,7,"3.1.1.2","Flisebelægninger",10,"m2",""]
[8,"x","Asfalt","Georg Jørgensen","asfalt.georg@mail.tele.dk","Georg Jørgensen ",47333790,"Kvinderupvej 17","3550 Slangerup",null,1,null,null,null,8,"3.1.1.3","Grusarealer",60,"m2",""]
[9,"x","Asfalt","NCC Roads A/S","aal@ncc.dk","André Aabo",20124272,"Hørkær 8","2730 Herlev",null,1,null,null,null,9,"3.1.1.4","Budskads",1,"sum",""]
[10,"x","Asfalt","PEAB A/S","karin.l.jorgensen@peabasfalt.dk ","Karin L. Jørgensen","23300798","Nordhavnsvej 2","4600 Køge",null,1,null,null,null,10,"3.1.1.5","Betonkonstruktioner",30,"m3",""]
[11,"x","Asfalt","Munck Asfalt A/S","KR@munck.dk","Kim Reggelsen",22667470,"Lyngageren 63, Svogerslev","4000 Roskilde",null,1,null,null,null,11,"3.1.1.6","Kabler",1,"sum",""]
[12,"x","Asfalt","Asfalt sjakket","jp@asfaltsjakket.dk","Jens Petersen",21283511,"Sallerup gade 25","4750 Lundby",null,1,null,null,null,12,"3.1.1.7","Kloakledninger og brønde",1,"sum",""]
[13,null,"Asfalt","Asfalt specialisterne","Palle@asfaltspecialisterne.com","Palle Andersen",40480347,"Dyssegårdsvej 87","4621 Gadstrup",null,1,null,null,null,13,"3.1.1.8","Vand - og varmeledninger",1,"sum",""]
[14,"x","Asfalt","Pankas","salg@pankas.dk","Martin W. Skipper",45650300,"Rundforbivej 34","2950 Vedbæk",null,1,null,null,null,14,"3.1.1.9","Adgang til byggeplads",1,"sum",""]
[15,"x","Asfalt","Colas Vejmateriale A/S","TilbudSjaelland@Colas.DK","Niels-Erik Strube",45989898,"Fabriksparken 34-36","2600 Glostrup",null,1,null,null,null,15,"","","i alt","",""]
[16,null,"Asfalt/Beton skæring","Total Diamanten","ma@totaldiamanten.dk","Michael Arrild",43714304,"Guldalderen 9","2640 Taastrup",null,1,null,null,null,16,"","","","",""]
[17,null,"Belægning","Farum Beton","info@farumbeton.dk","Farum beton",44951544,"Bygmarken 24","3520 Farum",null,1,null,null,null,17,"3.1.2","Udgravning - Jord","","",""]
[18,"x","Belægning","Gammelrand","Info@Gammelrand.dk","Gammelrand",59280100,"Gl. Skovvej 6A\n","4470 Svebølle\n",null,1,null,null,null,18,"3.1.2.1","Bygning 6 - udgravning",750,"m3",""]
[19,"x","Belægning","IBF Betonvarer","Ordre22@ibf.dk","IBF",46757788,null,null,null,1,null,null,null,19,"3.1.2.2","Bygning 6 - bortkørsel af jord inkl. fra ledninger",1000,"m3",""]
[20,null,"Beton elementer","Byggebjerg Beton A/S","mail@byggebjerg.dk",null,74833420,null,null,null,1,null,null,null,20,"3.1.2.3","Bygning 3 - udgravning",60,"m3",""]
[21,null,"Beton elementer","Århus Cementvarefabrik","ppl@aarhuscementvarefabrik.dk","Per",83221233,null,null,null,1,null,null,null,21,"3.1.2.4","Bygning 3 - bortkørsel af jord inkl. fra ledninger",60,"m3",""]
[22,"x","Beton Entreprenør","Tscherning","amb@tscherning.dk","Anders Mølgaard Berntsen","71727711",null,null,null,1,null,null,null,22,"3.1.2.5","Terrænregulering og belægninger - udgravning",750,"m3",""]
[23,"x","Beton Entreprenør","K. Freitag","jens@freitag.dk","Knud -, Poul -, Jens Fritag",56508090,"Langemarksvej 2","4660 St. Heddinge",null,1,null,null,null,23,"3.1.2.6","Terrænregulering og belægninger - bortkørsel af jord",750,"m3",""]
[24,"x","Beton Entreprenør","ConcreteHead","Info@concretehead.dk","Martin Andersen",31907808,"Agervang 6","Kirke Hyllinge",null,1,null,null,null,24,"3.1.2.7","Screening for ammmunition",1,"sum",""]
[25,null,"Beton Entreprenør","KW beton teknik","kw@kw-betonteknik.dk","Kasper W.",29483275,null,null,null,1,null,null,null,25,"3.1.2.8","Geoteknisk kontrol ",1,"sum",""]
[26,null,"Brolægger","FA Brolægning","f.a.brolaegning@gmail.com","Freddy Andersen",21492028,null,null,null,1,null,null,null,26,"","","","",""]
[27,null,"Brolægger","DT Brolægning","dt@dt-bro.dk","Dennis Thun",60736797,null,null,null,1,null,null,null,27,"3.2.1","Udgravning - Jordarbejder for ledninger","","",""]
[28,null,"Brolægger",null,null,null,null,null,null,null,1,null,null,null,28,"3.2.1.1","Brønde, kloak- og drænledninger",950,"m3",""]
[29,null,"Brolægger","Brix Brolægning","Brix2brolaegning@gmail.com","Tom Brix",25127217,"Hvidtjærnevej 11","3300 Frederiksværk",null,1,null,null,null,29,"3.2.1.2","Varme- og vandledninger",60,"m3",""]
[30,null,"Brolægger","P.P. Brolægning A/S","ppbro@ppbro.dk","Kasper Thomsen",46770770,"Sønder Mellemvej 41, Postboks 129","4000 Roskilde",null,1,null,null,null,30,"3.2.1.3","Varme- og vandledninger - afdækning aht. Brandvej",1,"sum",""]
[31,null,"Brolægger","Byagers Brolægning","info@byagersbrolaegning.dk","Jenki Byager",50458242,"Parkvej 24","4773 Stensved",null,1,null,null,null,31,"3.2.1.4","EL, svagstrøm, kabeltrækrør og kabelbrønde",360,"m3",""]
[32,null,"Brolægger","Landskab & Brolægning","mr@landogbro.dk","Martin Rasmussen",20704072,"Ryttervænget 22","4700 Næstved",null,1,null,null,null,32,"3.2.1.5","EL, svagstrøm, kabeltrækrør og kabelbrønde - afdækning aht. Brandvej",1,"sum",""]
[33,null,"Brolægger","Dybdal brolægning","mads@dybdalbro.dk","Mads Dybdal",26277603,"Leif Panduros Vej 49","4700 Næstved",null,1,null,null,null,33,"3.2.1.6","Byggeplads",1,"sum",""]
[34,null,"Brolægger","Wurtz Brolægning","tilbud@wurtz.as",null,20716399,"Industrivej 57","4683 Rønnede",null,1,null,null,null,34,"","","i alt","",""]
[35,null,"Brolægger","T.O.Brolægning","jaamaan@msn.com","Theis Olsen",29460215,"Bjælkerupvej 95","4660 Store Heddinge",null,1,null,null,null,35,"","","","",""]
[36,null,"Diamant boring","Danboring A/S ","info@danboring.dk",null,86884155,null,null,null,1,null,null,null,36,"3.1.3","Tørholdelse - Jord","","",""]
[37,null,"Diamant boring","Brandt Diamant","post@brandtdiamant.dk",null,57673383,null,null,null,1,null,null,null,37,"3.1.3.1","Interimsdræn og pumpesumpe",1,"sum",""]
[38,null,"El - Signal anlæg","SWARCO TRAFIK A/S","ib.ragborg@swarco.COM","Ib Ragborg",36888888,"Tonsbakken 16-18","2740 Skovlunde",null,1,null,null,null,38,"3.2.2","Tørholdelse - Jordarbejder for ledninger","","",""]
[39,null,"El - Signal anlæg","ITS Teknik \n(Dansk Trafik Teknik / Olsen Engineering)","salg@its-teknik.dk",null,46757227,"Københavnsvej 265","4000 Roskilde",null,1,null,null,null,39,"3.2.2.1","Brønde, kloak og dræn",1,"sum",""]
[40,null,"El-arbejder","Kaels El","ck@kaels.dk",null,null,null,null,null,1,null,null,null,40,"3.2.2.2","Vand - og varmeledninger",1,"sum",""]
[41,"x","El-arbejder","HH Installation ApS","henrik@hh-installation.dk","Henrik",58501218,null,null,null,1,null,null,null,41,"3.2.2.3","EL, svagstrøm, trækrør inkl. kabelbrønde",1,"sum",""]
[42,"x","El-arbejder","Dansk sportbelysning","info@dansksportsbelysning.dk",null,null,null,null,null,1,null,null,null,42,"3.2.2.4","Sugespidsanlæg",1,"sum","Tørholdelse"]
[43,null,"El-arbejder","Filtenborg El","mail@filtenborgel.dk",null,null,null,null,null,1,null,null,null,43,"","","i alt","",""]
[44,null,"El-arbejder","Axeltoft El","mb@axeltoft.dk",null,null,null,null,null,1,null,null,null,44,"","","","",""]
[45,null,"El-arbejder","Nordens El","INFO@NORDENS-INSTALLATION.DK",null,null,null,null,null,1,null,null,null,45,"3.1.4","Til- og påfyldning - Jord","","",""]
[46,null,"El-arbejder","Citytech","adm@citytech.dk",null,null,null,null,null,1,null,null,null,46,"3.1.4.1","Udgravning for bygning 6 - alm. Til- og påfyldning",250,"m3",""]
[47,"x","Entreprenør","MJ Eriksson","bie@mjeriksson.dk",null,null,null,null,null,1,null,null,null,47,"3.1.4.2","Udgravning for bygning 6 - 4-8 mm perlesten",75,"m3",""]
[48,"x","Entreprenør","Hollbøll","tilbud@holboell.dk",null,null,null,null,null,1,null,null,null,48,"3.1.4.3","Udgravning i bygning 3 - alm. Til-og påfyldning",25,"m3",""]
[49,"x","Entreprenør","Barslund","sja@barslund.as",null,null,null,null,null,1,null,null,null,49,"3.1.4.4","Udgravning i bygning 3 - 4-8 mm perlesten",20,"m3",""]
[50,null,"Entreprenør","MSE","JL@mse.dk",null,null,null,null,null,1,null,null,null,50,"3.1.4.5","Udgravning for terrænregulering og belægninger",150,"m3",""]
[51,null,"Entreprenør","Benny Petersen","mab@bennypetersen.dk",null,null,null,null,null,1,null,null,null,51,"3.1.4.6","Underbygning for belægninger",1500,"m2",""]
[52,null,"FJ analyser","Jordkonsulenterne","info@jordkonsulenterne.dk","Peter Nørgaard",50293679,"Blidahlund 2 - 1. sal","2929 Charlottenlund",null,1,null,null,null,52,"3.1.4.7","Udlægning af muld",50,"m2",""]
[53,null,"FJ analyser","Jord - Miljø A/S","jordmil@jordmil.dk","Søren Vincents, Ole Stang, Anders Søvsø",35820402,"Eremitageparken 341","2800 Kgs. Lyngby",null,1,null,null,null,53,"","","","",""]
[54,null,"Flagstænger","VM  Flag og Stænger A/S","vm-flag@vm-flag.dk",null,76600500,null,null,null,1,null,null,null,54,"3.2.3","Til- og påfyldning - Jordarbejder for ledninger","","",""]
[55,null,"flisefødder","Soprema","vdideriksen@soprema.dk",null,56144020,null,null,null,1,null,null,null,55,"3.2.3.1","Brønde, kloak og dræn",800,"m3",""]
[56,null,"Granitleverance","Høchendorff Skifer & Granit Aps","BO@Hochendorff.dk","Bo Høchendorff",25746797,"Søholmparken 15","4200 Slagelse",null,1,null,null,null,56,"3.2.3.2","Vand- og varmeledninger",55,"m3",""]
[57,null,"Granitleverance","Zurface","hly@zurface.dk","Henrik Lykke",70101066,"Vindmøllevej 45","2300 København S",null,1,null,null,null,57,"3.2.3.3","EL, svagstrøm, trækrør inkl. kabelbrønde",100,"m3",""]
[58,null,"Granitleverance","Bent Vangsø Natursten","info@vangsoe.dk","Bent Vangsø",70201822,"Fynsvej 8","5500 Middelfart",null,1,null,null,null,58,"3.2.3.4","Underbygning for belægninger",350,"m2",""]
[59,null,"Grundvandsænkning","Per Aarsleff","mbon@aarsleff.com","Mikkel B. Nielsen","2026 3561 ",null,null,null,1,null,null,null,59,"3.2.3.5","Asfaltbelægning",300,"m2","Asfalt",null,null,null,null,null,null,null,null,17400,22500,null,15000,null,10500,15000]
[60,null,"Hegnsarbejder","PileByg A/S","info@pilebyg.dk",null,98962071,null,null,null,1,null,null,null,60,"3.2.3.6","Rød asfalt",24,"m2","Asfalt",null,null,null,null,null,null,null,null,6720,6000,null,3000,null,840,1200]
[61,null,"Hegnsarbejder","Kibo Sjælland","ca@kibo-system.dk","Kristian Andersen",20537391,"Salbjergvej 37","4632 Havdrup",null,1,null,null,null,61,"3.2.3.7","Termoplastcirkler",1,"sum","Termoplast"]
[62,null,"Hegnsarbejder","Poda Hegn","entreprise@podahegn.dk","Klaus Fuglsang",46340101,"Øde Hastrupvej 65","4000 Roskilde",null,1,null,null,null,62,"3.2.3.8","Grusarealer på p-plads",60,"m2",""]
[63,null,"Hegnsarbejder","Trådvarerfabrikken ISHØJ","mb@ishoj-hegn.dk","Michael Bjørn",43732233,"Industrivangen 2-4","2635 Ishøj",null,1,null,null,null,63,"3.2.3.9","Reetablering af byggepladsadgang - Ørestads Boulevard",1,"sum",""]
[64,"x","Beton Entreprenør","KantDesign","info@kantdesign.dk","Kim Petersen",60807010,null,null,null,1,null,null,null,64,"3.2.3.10","Reetablering af byggepladsadgang - Artillerivej",1,"sum",""]
[65,null,"Jordankre, Sekantpæle","Per Aarsleff A/S","kbj@aarsleff.com","Karsten Johannessen",87442519,"Industriholmen 2","2650 Hvidovre",null,1,null,null,null,65,"","","i alt","",""]
[66,null,"Jordrens og deponi","Norrecco A/S","peter@norrecco.dk","Peter Arevad, Morten Friis, Henrik Jacobsen",70252532,"K-Vej 19, Prøvestenen","2300 København S",null,1,null,null,null,66,"","","","",""]
[67,null,"Klinker","Steffen Sten ApS","info@steffensten.dk","Michael",65916430,null,null,null,1,null,null,null,67,"3.1.5","Afstivning og indfatning - jord","","",""]
[68,null,"Klinker","Klinker Outdoor","info@klinker-outdoor.dk","Anne Marie Harris",70605580,"Kronborg 2A","3000 Helsingør",null,1,null,null,null,68,"3.1.5.1","Midlertidig indfatningsvægge ved bygning 6",1,"sum","Spuns"]
[69,"x","Kloak Beton","Gammelrand Beton I/S","info@gammelrand.dk","Gammelrand Beton",59280100,"Gl.Skovvej 6a","4470 Svebølle",null,1,null,null,null,69,"3.1.5.2","Midlertidig indfatningsvægge ved bygning 3",1,"sum","spuns"]
[70,"x","Kloak Beton","IBF","ordre16@ibf.dk","Svend Aage Bladt",20242764,"Stegshavevej 30, \nLysholt Allé 4","5750 Ringe\n7430 Ikast",null,1,null,null,null,70,"","","","",""]
[71,"x","Kloak Plast","Nyrup Plast A/S","tilbud@nyrupplast.dk","Rasmus Nielsen",53728790,"Kannikevej 1","4296 Nyrup",null,1,null,null,null,71,"3.2.4","Afstivning og indfatning - jordarbejder for ledninger","","",""]
[72,"x","Kloak Plast","Lønhart","mkj@lonhart.dk","Michael Klitgaard Jensen",44947722,null,null,null,1,null,null,null,72,"3.2.4.1","Brønde, kloak og dræn",1,"sum",""]
[73,"x","Kloak Plast","Scanpipe","tilbud@scanpipe.dk","Simon Christensen",63763074,"Greve Main 31","2670 Greve",null,1,null,null,null,73,"3.2.4.2","Vand - og varmeledninger",1,"sum",""]
[74,null,"Kunstgræs","Nordisk Kunstgræs Import ApS","salg@HVAX.com",null,66185046,null,null,null,1,null,null,null,74,"3.2.4.3","EL, svagstrøm, trækrør og kabelbrønde",1,"sum",""]
[75,null,"Kunstgræs","Citylawn","te@citylawn.dk","Thies Elkjær",20705083,null,null,null,1,null,null,null,75,"","","i alt","",""]
[76,null,"Kunstgræs","Evergreen Sport","mir@evergreensport.dk","Michael L. Ravn",25529100,"Kokkedal Industripark 2A","2980 Kokkedal",null,1,null,null,null,76,"","","","",""]
[77,null,"Kunstgræs","Laiderz","Trine@laiderz.dk","Trine Laiderz",41296143,"Fuglebækvej 2A, 1.th","2770 Tårnby",null,1,null,null,null,77,"","","","",""]
[78,null,"Kunstgræs","TF Sport","henrik@tfsport-fritid.dk","Henrik Hvistendahl",null,null,null,null,1,null,null,null,78,3,"Jord, faste ydelser","","I alt overføres til samleside",""]
[79,null,"Kunstgræs","FiveStar grass, Holland","tiemen.boes@fivestargrass.nl",null,null,null,null,null,1,null,null,null,79,"","","","",""]
[80,null,"Kunstgræs","WGS","martin@wgs.dk","Martin Høeg",null,null,null,null,1,null,null,null,80,"","","","",""]
[81,null,"Kunstgræs","Unisport","jan.lyngemark@unisport.com",null,null,null,null,null,1,null,null,null,81,"3.A","Variable ydelser","","",""]
[82,null,"Kunstgræs","Sport performance","info@sportperformance.dk","Carsten Nielsen",null,null,null,null,1,null,null,null,82,"3.A.1","Bortkørsel af klasse 4 jord",50,"m3",""]
[83,"x","Lege udstyr","Maxplay","sm@maxplay.dk","Søren Mittag ","30 30 08 16",null,null,null,1,null,null,null,83,"3.A.2","Sortering af jord for byggeaffald",50,"m3",""]
[84,null,"Lege udstyr","Tress","mea@TRESS.DK","Martin Andersen",40626736,null,null,null,1,null,null,null,84,"","","","",""]
[85,"x","Lege udstyr","Hags","pp@hags.dk","Peter Poulsen","2054 2080",null,null,null,1,null,null,null,85,"3.A","Jord, variable ydelser","","I alt overføres til samleside",""]
[86,null,"Lege udstyr","Uniqa A/S","info@uniqa.dk",null,70215090,null,null,null,1,null,null,null,86,"","","","",""]
[87,null,"Lege udstyr","Uno Koncept A/S","info@uno.dk",null,70206070,null,null,null,1,null,null,null,87,"","","","",""]
[88,null,"Lege udstyr","Kompan","JeaDuu@Kompan.com","Jeanette Duus",22743796,null,null,null,1,null,null,null,88,"","","","",""]
[89,null,"Lege udstyr","Lars Laj ","larslaj@larslaj.dk",null,32821033,null,null,null,1,null,null,null,89,"","","","",""]
[90,null,"Lege udstyr","Lekolar A/S","Lonnie.Nordstedt@lekolar.dk",null,70206080,null,null,null,1,null,null,null,90,"","","","",""]
[91,"x","Lege udstyr","Cado A/S","mail@cado.dk",null,70222628,null,null,null,1,null,null,null,91,"20","","","",""]
[92,"x","Lege udstyr","Elverdal","smilla@elverdal.dk","Smilla Thorsager",60910142,null,null,null,1,null,null,null,92,"","","","",""]
[93,"x","Lege udstyr","Copla legepladser","jesper@copla.dk","Jesper Tornefeldt",20601737,null,null,null,1,null,null,null,93,"Pos. Nr.","Ydelse","Antal","Enhed",""]
[94,null,"Lege udstyr","Danske natur legepladser","salg@samm-sall.dk",null,null,null,null,null,1,null,null,null,94,"","","","",""]
[95,null,"Let vægt fyld","Dansk Celleglas","info@danskcelleglas.dk","Henrik Dalsø",23986849,null,null,null,1,null,null,null,95,"20.1","Regn- og spildevandsledninger","","","KloakPP"]
[96,null,"Maskinlægning","Mads Boye","madsboye@mail.dk",null,40195733,null,null,null,1,null,null,null,96,"20.1.1","Spildevand bygning 1 - ø110/160 PP inkl. opstropning",1,"sum","KloakPP",null,null,null,null,null,null,null,null,null,null,null,null,null,null,null,null,null,null,null,null,null,null,null,null,null,null,null,null,null,null,null,null,null,null,null,null,null,null,null,null,null,null,null,null,null,null,null,null,null,null,null,null,null,null,null,null,null,null,null,null,null,null,null,null,null,null,null,null,null,null,1120]
[97,null,"Murer","Murermester A. Holst","a.holst@post.tele.dk",null,58268586,null,null,null,1,null,null,null,97,"20.1.2","Spildevand bygning 3 - ø110/160 PP inkl. opstropning",60,"m","KloakPP",null,null,null,null,null,null,null,null,null,null,null,null,null,null,null,null,null,null,null,null,null,null,null,null,null,null,null,null,null,null,null,null,null,null,null,null,null,null,null,null,null,null,null,null,null,null,null,null,null,null,null,null,null,null,null,null,null,null,null,null,null,null,null,null,null,null,null,null,null,null,2220]
[98,null,"Murer","Thomas Espenhain Murermester","thomas_espenhain@hotmail.com",null,56507153,null,null,null,1,null,null,null,98,"20.1.3","Spildevand bygning 3 - Tilslutning til eksisterende kloak",6,"stk","KloakPP",null,null,null,null,null,null,null,null,null,null,null,null,null,null,null,null,null,null,null,null,null,null,null,null,null,null,null,null,null,null,null,null,null,null,null,null,null,null,null,null,null,null,null,null,null,null,null,null,null,null,null,null,null,null,null,null,null,null,null,null,null,null,null,null,null,null,null,null,null,null,550]
[99,null,"Murer","Christian Hansen","bm@christian-hansen.dk","Brian Mostel",null,null,null,null,1,null,null,null,99,"20.1.4","Spildevand bygning 5 - partliner",2,"stk","KloakPP",null,null,null,null,null,null,null,null,null,null,null,null,null,null,null,null,null,null,null,null,null,null,null,null,null,null,null,null,null,null,null,null,null,null,null,null,null,null,null,null,null,null,null,null,null,null,null,null,null,null,null,null,null,null,null,null,null,null,null,null,null,null,null,null,null,null,null,null,null,null,630]
[100,null,"Nedbrydning","LH Hokkerup A/S","JDL@Hockerup.dk","Jakob Darling lavard",46365760,"Rønøs allé 4","4000 Roskilde",null,1,null,null,null,100,"20.1.5","Spildevand bygning 5 - tilstøbning",1,"sum","KloakPP",null,null,null,null,null,null,null,null,null,null,null,null,null,null,null,null,null,null,null,null,null,null,null,null,null,null,null,null,null,null,null,null,null,null,null,null,null,null,null,null,null,null,null,null,null,null,null,null,null,null,null,null,null,null,null,null,null,null,null,null,null,null,null,null,null,null,null,null,null,null,630]
[101,null,"Nedbrydning","Georg Tscherning A/S","kb@nedrivning.dk","Klaus Bodilsen ",70207050,"Guldalderen 32,  Fløng","2640 Hedehusene",null,1,null,null,null,101,"20.1.6","","","","KloakPP"]
[102,null,"Nedbrydning","Weisleder Nedrivning A/S","firma@weisleder.dk",null,58545605,null,null,null,1,null,null,null,102,"20.1.7","Regn- og spildevandskloak fra bygning 6","","","KloakPP"]
[103,null,"Nedbrydning","Midtsjællands Nedbrydning","tc@nedbrydning.dk",null,57801648,null,null,null,1,null,null,null,103,"20.1.8","ø110/160 PP",210,"m","KloakPP",null,null,null,null,null,null,null,null,null,null,null,null,null,null,null,null,null,null,null,null,null,null,null,null,null,null,null,null,null,null,null,null,null,null,null,null,null,null,null,null,null,null,null,null,null,null,null,null,null,null,null,null,null,null,null,null,null,null,null,null,null,null,null,null,null,null,null,null,null,null,11690]
[104,"x","planter","Holdens Planteskole A/S","mail@holden.dk",null,75364099,null,null,null,1,null,null,null,104,"20.1.9","ø200 PP",30,"m","KloakPP",null,null,null,null,null,null,null,null,null,null,null,null,null,null,null,null,null,null,null,null,null,null,null,null,null,null,null,null,null,null,null,null,null,null,null,null,null,null,null,null,null,null,null,null,null,null,null,null,null,null,null,null,null,null,null,null,null,null,null,null,null,null,null,null,null,null,null,null,null,null,1990]
[105,"x","planter","Birkholm Planteskole","om@birk-holm.dk","Ove",48173126,null,null,null,1,null,null,null,105,"20.1.10","ø300 PP",6,"m","KloakPP",null,null,null,null,null,null,null,null,null,null,null,null,null,null,null,null,null,null,null,null,null,null,null,null,null,null,null,null,null,null,null,null,null,null,null,null,null,null,null,null,null,null,null,null,null,null,null,null,null,null,null,null,null,null,null,null,null,null,null,null,null,null,null,null,null,null,null,null,null,null,1018]
[106,"x","planter","Danplanex","jl@danplanex.dk","Jan Larsen",null,null,null,null,1,null,null,null,106,"20.1.11","ø600 Bt",56,"m","KloakPP"]
[107,"x","planter","Proplant","info@proplant.dk","Henrik Thomsen",93942121,null,null,null,1,null,null,null,107,"20.1.12","Opstropning af kloak under gulve",210,"stk","KloakPP",null,null,null,null,null,null,null,null,null,null,null,null,null,null,null,null,null,null,null,null,null,null,null,null,null,null,null,null,null,null,null,null,null,null,null,null,null,null,null,null,null,null,null,null,null,null,null,null,null,null,null,null,null,null,null,null,null,null,null,null,null,null,null,null,null,null,null,null,null,null,6352]
[108,"x","Pleje","OKN DRIFT","kaa@oknygaard.dk",null,null,null,null,null,1,null,null,null,108,"20.1.13","Omlægning af regnvandskloak i skolegård",1,"sum","KloakPP"]
[109,"x","Ramning, pæle, spuns","M.J.Eriksson A/S","boa@mjeriksson.dk","Bo Amundsen",43730421,"Gl. Køge Landevej 773","2660 Brøndby str.",null,1,null,null,null,109,"20.1.14","TV-inspektion, brøndrapporter og indmåling",1,"sum","KloakPP"]
[110,"x","Ramning, pæle, spuns","Per Aarsleff A/S","jeho@aarsleff.com","Jesper Hollensen",20263588,"Industriholmen 2","2650 Hvidovre",null,1,null,null,null,110,"20.1.15","\"kloak som udført\"",1,"sum","KloakPP"]
[111,"x","Ramning, pæle, spuns","NCC / Hercules Fundering","madkoc@hercules.dk","Mads Kock",61965864,"Tobaksvejen 2A","2860 Søborg",null,1,null,null,null,111,"20.1.16","DV materiale",1,"sum","KloakPP"]
[112,null,"Riste","Semitech A/S","cph@semitech.dk","Camilla Hansen",58302028,null,null,null,1,null,null,null,112,"","","i alt","",""]
[113,null,"Riste","Elefantriste A/S","mail@elefantriste.com",null,97426133,null,null,null,1,null,null,null,113,"","","","",""]
[114,null,"Rydning","HedeDanmark","tilbud@hededanmark.dk","-",21209775,"Smedetoften 4","3600 Frederikssund",null,1,null,null,null,114,"20.2","Brønde og afløb ","","","KloakPP"]
[115,null,"Saltværn","Aarup Saltværn","mail@naturvare.dk",null,40622120,null,null,null,1,null,null,null,115,"20.2.1","ø315 nedløbsbrønde / tagbrønde inkl. dæksel/rist",12,"stk","KloakPP",null,null,null,null,null,null,null,null,null,null,null,null,null,null,null,null,null,null,null,null,null,null,null,null,null,null,null,null,null,null,null,null,null,null,null,null,null,null,null,null,null,null,null,null,null,null,null,null,null,null,null,null,null,null,null,null,null,null,null,null,null,null,null,null,null,null,null,null,null,null,18426]
[116,null,"Skilte","Trafikprodukter","info@trafikprodukter.dk",null,59302424,null,null,null,1,null,null,null,116,"20.2.2","ø425 sandfangsbrønde inkl. dæksel/rist",4,"stk","KloakPP",null,null,null,null,null,null,null,null,null,null,null,null,null,null,null,null,null,null,null,null,null,null,null,null,null,null,null,null,null,null,null,null,null,null,null,null,null,null,null,null,null,null,null,null,null,null,null,null,null,null,null,null,null,null,null,null,null,null,null,null,null,null,null,null,null,null,null,null,null,null,9835]
[117,null,"Skilte","SafeRoad - (Daluiso)","Tilbud@daluiso.dk","Kim Madsen <kim.madsen@saferoad.dk>",33261742,"Tigervej 12-14","4600 Køge",null,1,null,null,null,117,"20.2.3","ø600 spulebrønd inkl. dæksel",8,"stk","KloakPP",null,null,null,null,null,null,null,null,null,null,null,null,null,null,null,null,null,null,null,null,null,null,null,null,null,null,null,null,null,null,null,null,null,null,null,null,null,null,null,null,null,null,null,null,null,null,null,null,null,null,null,null,null,null,null,null,null,null,null,null,null,null,null,null,null,null,null,null,null,null,34451]
[118,null,"Special prod.","Byggros","Info@byggros.dk","Byggros",59489000,"Springstrup 11","4300 Holbæk",null,1,null,null,null,118,"20.2.4","ø1250 nedgangsbrønd inkl. dæksel",4,"stk","KloakBB",null,null,null,null,null,null,null,null,null,null,null,null,null,null,null,null,null,null,null,null,null,null,null,null,null,null,null,null,null,null,null,null,null,null,null,null,null,null,null,null,null,null,null,null,null,null,null,null,null,null,null,null,null,null,null,null,null,null,null,null,null,null,null,null,null,null,null,null,103468]
[119,null,"Strømpeforing","Peter Meyer A/S, Entreprenør","peter@meyer-as.dk",null,56562038,null,null,null,1,null,null,null,119,"20.2.5","Prøveudtagningsbrønd inkl. dæksel",1,"stk","KloakPP",null,null,null,null,null,null,null,null,null,null,null,null,null,null,null,null,null,null,null,null,null,null,null,null,null,null,null,null,null,null,null,null,null,null,null,null,null,null,null,null,null,null,null,null,null,null,null,null,null,null,null,null,null,null,null,null,null,null,null,null,null,null,null,null,null,null,null,null,null,null,3328]
[120,null,"Strømpeforing","Per Aarsleff","tik@aarsleff.com","Tim Krarup",20263453,null,null,null,1,null,null,null,120,"20.2.6","Tilslutninger til eksisterende brønde / kloak",10,"stk","KloakPP"]
[121,null,"Styret underboring","Danboring A/S","info@danboring.dk","Adm. Dir. Thorbjørn Risgaard",86884155,"Teglgårdsvej 4","8620 Kjellerup",null,1,null,null,null,121,"20.2.7","Sokkelaffugter inkl afløb til regnvandskloak",77,"m","KloakPP",null,null,null,null,null,null,null,null,null,null,null,null,null,null,null,null,null,null,null,null,null,null,null,null,null,null,null,null,null,null,null,null,null,null,null,null,null,null,null,null,null,null,null,null,null,null,null,null,null,null,null,null,null,null,null,null,null,null,null,null,null,null,null,null,null,null,null,null,null,null,27776]
[122,"x","Stål - Smed","Mian Steel","miansteel@aol.dk","Michael Petersen",24627447,null,null,null,1,null,null,null,122,"20.2.8","Skraberiste inkl afløb til regnvandskloak",5,"stk","KloakPP",null,null,null,null,null,null,null,null,null,null,null,null,null,null,null,null,null,null,null,null,null,null,null,null,null,null,null,null,null,null,null,null,null,null,null,null,null,null,null,null,null,null,null,null,null,null,null,null,null,null,null,null,null,null,null,null,null,null,null,null,null,null,null,null,null,null,null,null,null,null,1215]
[123,null,"Stål - Smed","JQ stålmontage","pb@jq-staalmontage.dk> ","Poul Børge Pedersen",40204558,"Værkstedsvej 17","4600 Næstved",null,1,null,null,null,123,"20.2.9","Fedtudskiller inkl. dæksel",1,"stk","KloakPP",null,null,null,null,null,null,null,null,null,null,null,null,null,null,null,null,null,null,null,null,null,null,null,null,null,null,null,null,null,null,null,null,null,null,null,null,null,null,null,null,null,null,null,null,null,null,null,null,null,null,null,null,null,null,null,null,null,null,null,null,null,null,null,null,null,null,null,null,null,null,25751]
[124,"x","Stål - Smed","Martlev Structural Design","Dm@martlev.dk","Dennis Martlev",40144745,"Valsømaglevej 7","4100 Ringsted",null,1,null,null,null,124,"","","i alt","",""]
[125,null,"Sugespids","Aarsleff","Morten Nederlund <mne@aarsleff.com>",null,"2026 3503 ",null,null,null,1,null,null,null,125,"","","","",""]
[126,"x","Terræn inventar","Hitsa-Hejls","hitsa@hitsa.dk",null,75574155,null,null,null,1,null,null,null,126,"20.3","Drænledninger ","","","KloakPP"]
[127,"x","Terræn inventar","Inventarrum A/S","info@inventarrum.dk",null,75564700,null,null,null,1,null,null,null,127,"20.3.1","Ø150/170 drænledninger",260,"m","KloakPP",null,null,null,null,null,null,null,null,null,null,null,null,null,null,null,null,null,null,null,null,null,null,null,null,null,null,null,null,null,null,null,null,null,null,null,null,null,null,null,null,null,null,null,null,null,null,null,null,null,null,null,null,null,null,null,null,null,null,null,null,null,null,null,null,null,null,null,null,null,null,5687]
[128,null,"Terræn inventar","Out-sider A/S","info@out-sider.dk",null,22617420,null,null,null,1,null,null,null,128,"20.3.2","Tilslutning til eksisterende drænledninger",4,"stk","KloakPP",null,null,null,null,null,null,null,null,null,null,null,null,null,null,null,null,null,null,null,null,null,null,null,null,null,null,null,null,null,null,null,null,null,null,null,null,null,null,null,null,null,null,null,null,null,null,null,null,null,null,null,null,null,null,null,null,null,null,null,null,null,null,null,null,null,null,null,null,null,null,361]
[129,null,"Terræn inventar","Park-Udstyr.dk","info@park-udstyr.dk",null,31969551,null,null,null,1,null,null,null,129,"20.3.3","Gennemføringer i fundamenter",15,"stk","KloakPP",null,null,null,null,null,null,null,null,null,null,null,null,null,null,null,null,null,null,null,null,null,null,null,null,null,null,null,null,null,null,null,null,null,null,null,null,null,null,null,null,null,null,null,null,null,null,null,null,null,null,null,null,null,null,null,null,null,null,null,null,null,null,null,null,null,null,null,null,null,null,1728]
[130,null,"Terræn inventar","Træningspavillonen ApS","info@trainingPavilion.com",null,51208010,null,null,null,1,null,null,null,130,"20.3.4","ø315 rensebrønde inkl. sandfang",6,"stk","KloakPP",null,null,null,null,null,null,null,null,null,null,null,null,null,null,null,null,null,null,null,null,null,null,null,null,null,null,null,null,null,null,null,null,null,null,null,null,null,null,null,null,null,null,null,null,null,null,null,null,null,null,null,null,null,null,null,null,null,null,null,null,null,null,null,null,null,null,null,null,null,null,9851]
[131,"x","Terræn inventar","Urban Elements ApS","info@urban-elements.dk",null,48288099,null,null,null,1,null,null,null,131,"","","i alt","",""]
[132,null,"Terræn inventar","Veksø-Taulov A/S","info@vekso.com",null,79212200,null,null,null,1,null,null,null,132,"","","","",""]
[133,null,"Terræn inventar","Vestre AB","info@vestre.se",null,46560688877,null,null,null,1,null,null,null,133,"20.4","Gulvafløb og fodbøjninger","","","KloakPP"]
[134,null,"Terræn inventar","Mastellone","m@mastellone.dk",null,38285853,null,null,null,1,null,null,null,134,"20.4.1","145x145 gulvafløb ",5,"stk","KloakPP",null,null,null,null,null,null,null,null,null,null,null,null,null,null,null,null,null,null,null,null,null,null,null,null,null,null,null,null,null,null,null,null,null,null,null,null,null,null,null,null,null,null,null,null,null,null,null,null,null,null,null,null,null,null,null,null,null,null,null,null,null,null,null,null,null,null,null,null,null,null,2010]
[135,null,"Terræn inventar","GH Form ApS","mail@ghform.dk",null,59440990,null,null,null,1,null,null,null,135,"20.4.2","400x400 gulvbrønd",7,"stk","KloakPP",null,null,null,null,null,null,null,null,null,null,null,null,null,null,null,null,null,null,null,null,null,null,null,null,null,null,null,null,null,null,null,null,null,null,null,null,null,null,null,null,null,null,null,null,null,null,null,null,null,null,null,null,null,null,null,null,null,null,null,null,null,null,null,null,null,null,null,null,null,null,18137]
[136,null,"Terræn inventar","Thors-Design ApS","mail@thors-design.dk",null,97133995,null,null,null,1,null,null,null,136,"20.4.3","400x800 gulvbrønd",2,"stk","KloakPP",null,null,null,null,null,null,null,null,null,null,null,null,null,null,null,null,null,null,null,null,null,null,null,null,null,null,null,null,null,null,null,null,null,null,null,null,null,null,null,null,null,null,null,null,null,null,null,null,null,null,null,null,null,null,null,null,null,null,null,null,null,null,null,null,null,null,null,null,null,null,6786]
[137,null,"Terræn inventar","ParkZone A/S","sagsbehandling@parkzone.dk",null,70252696,null,null,null,1,null,null,null,137,"20.4.4","Gulvafløbsrander - bygning 3 med i alt 10 tilslutninger",20,"m","KloakPP",null,null,null,null,null,null,null,null,null,null,null,null,null,null,null,null,null,null,null,null,null,null,null,null,null,null,null,null,null,null,null,null,null,null,null,null,null,null,null,null,null,null,null,null,null,null,null,null,null,null,null,null,null,null,null,null,null,null,null,null,null,null,null,null,null,null,null,null,null,null,40305]
[138,"x","Terræn inventar","G9 landskab. park & byrum A/S","udventar@g9.dk",null,70232999,null,null,null,1,null,null,null,138,"20.4.5","Gulvafløbsrander - bygning 6 med i alt 4 tilslutninger",3.6,"m","KloakPP",null,null,null,null,null,null,null,null,null,null,null,null,null,null,null,null,null,null,null,null,null,null,null,null,null,null,null,null,null,null,null,null,null,null,null,null,null,null,null,null,null,null,null,null,null,null,null,null,null,null,null,null,null,null,null,null,null,null,null,null,null,null,null,null,null,null,null,null,null,null,10718]
[139,null,"Terræn inventar","Zenzo Group ApS","zenzo@zenzo,dk",null,70271900,null,null,null,1,null,null,null,139,"20.4.6","Fodbøjninger - bygning 3",14,"stk","KloakPP",null,null,null,null,null,null,null,null,null,null,null,null,null,null,null,null,null,null,null,null,null,null,null,null,null,null,null,null,null,null,null,null,null,null,null,null,null,null,null,null,null,null,null,null,null,null,null,null,null,null,null,null,null,null,null,null,null,null,null,null,null,null,null,null,null,null,null,null,null,null,663]
[140,null,"Terræn inventar","?",null,null,null,null,null,null,1,null,null,null,140,"20.4.7","Fodbøjninger - bygning 6",25,"stk","KloakPP",null,null,null,null,null,null,null,null,null,null,null,null,null,null,null,null,null,null,null,null,null,null,null,null,null,null,null,null,null,null,null,null,null,null,null,null,null,null,null,null,null,null,null,null,null,null,null,null,null,null,null,null,null,null,null,null,null,null,null,null,null,null,null,null,null,null,null,null,null,null,1184]
[141,null,"Terræn inventar","?",null,null,null,null,null,null,1,null,null,null,141,"20.4.8","Radonsikring, vandtætning og fundamenter",14,"stk","KloakPP",null,null,null,null,null,null,null,null,null,null,null,null,null,null,null,null,null,null,null,null,null,null,null,null,null,null,null,null,null,null,null,null,null,null,null,null,null,null,null,null,null,null,null,null,null,null,null,null,null,null,null,null,null,null,null,null,null,null,null,null,null,null,null,null,null,null,null,null,null,null,2410]
[142,null,"Terræn inventar","?",null,null,null,null,null,null,1,null,null,null,142,"20.4.9","Radonsikring, vandtætning og fundamenter",28,"stk","KloakPP",null,null,null,null,null,null,null,null,null,null,null,null,null,null,null,null,null,null,null,null,null,null,null,null,null,null,null,null,null,null,null,null,null,null,null,null,null,null,null,null,null,null,null,null,null,null,null,null,null,null,null,null,null,null,null,null,null,null,null,null,null,null,null,null,null,null,null,null,null,null,2893]
[143,null,"Terræn inventar","?",null,null,null,null,null,null,1,null,null,null,143,"","","i alt","",""]
[144,"x","Tømrer","Frede West","info@fredewestas.dk","Lars West",43521787,null,null,null,1,null,null,null,144,"","","","",""]
[145,"x","Tømrer","S. Rosendal ApS Tømrerfirma","simon@urban-elements.dk","Simon Rosendahl",40957404,"Christian Eilersvej 2","3390 Hundested",null,1,null,null,null,145,"","","","",""]
[146,"x","Tømrer","Tømrerfirmaet Søren Bruun","tomrermestersorenbruun@hotmail.com",null,30329698,"Vordingborgvej 62","4773 Stensved",null,1,null,null,null,146,"20","Afløb i jord, faste ydelser","","I alt overføres til samleside",""]
[147,"x","Tømrer","Tomas Nielsen","tn85@hotmail.com",null,20498448,null,null,null,1,null,null,null,147,"","","","",""]
[148,"x","Tømrer","Christian Hansen","bm@christian-hansen.dk","Brian Mostel","29 73 64 40 ","Håndværkervej 1","3390 Hundested",null,1,null,null,null,148,"","","","",""]
[149,null,"Vandingssystem","Orev ApS","post@orev.dk",null,86107137,null,null,null,1,null,null,null,149,"20.05","Variable ydelser","","",""]
[150,null,"Vandingssystem","Danregn","danregn@danregn.dk","Heidi Jørgsen",55725200,"Hylledevej 12","4640 Faxe",null,1,null,null,null,150,"20.05.1","Svendetimer",50,"timer",""]
[151,"x","Vognmandsydelser","DSV Transport A/S","tilbud@dsvtransport.dk",null,"47524700","Gammel Marbjergvej 17","4000 Roskilde",null,1,null,null,null,151,"20.05.2","Lærlingetimer",50,"timer",""]
[152,"x","Vognmandsydelser","Frede Andersen & Søn","lars@vognmandfas.dk","Lars Andersen",55700380,"Uglehøjvej 2","4700 Næstved",null,1,null,null,null,152,"20.05.3","Kloakmester",25,"timer",""]
[153,"x","Vognmandsydelser","CRJ","crj@dansk-specialtransport.dk","Carsten Rørby Johansen","55 50 60 41","Håndværkervej 1","4160 Herlufmagle",null,1,null,null,null,153,"","","","",""]
[154,"x","Vognmandsydelser","SCT","tilbud@scttransport.dk","Christian LY Hansen",41383834,"Stæremosen 21-23","3250 Gilleleje",null,1,null,null,null,154,"20.A","Afløb i jord, variable ydelser","","I alt overføres til samleside",""]
[155,null,null,null,null,null,null,null,null,null,1,null,null,null,155,"","","","",""]
[156,null,null,null,null,null,null,null,null,null,1,null,null,null,156,"","","","",""]
[157,null,null,null,null,null,null,null,null,null,1,null,null,null,157,"","","","",""]
[158,null,null,null,null,null,null,null,null,null,1,null,null,null,158,"","","","",""]
[159,null,null,null,null,null,null,null,null,null,1,null,null,null,159,"25","","","",""]
[160,null,null,null,null,null,null,null,null,null,1,null,null,null,160,"","","","",""]
[161,null,null,null,null,null,null,null,null,null,1,null,null,null,161,"Pos. Nr.","Ydelse","Antal","Enhed",""]
[162,null,null,null,null,null,null,null,null,null,1,null,null,null,162,"","","","",""]
[163,null,null,null,null,null,null,null,null,null,1,null,null,null,163,"25.01.01","Rydning i terræn ",1,"SUM",""]
[164,null,null,null,null,null,null,null,null,null,1,null,null,null,164,"","","i alt","",""]
[165,null,null,null,null,null,null,null,null,null,1,null,null,null,165,"","","","",""]
[166,null,null,null,null,null,null,null,null,null,1,null,null,null,166,"25","Rydning i terræn, faste ydelser","","I alt overføres til samleside",""]
[167,null,null,null,null,null,null,null,null,null,1,null,null,null,167,"","","","",""]
[168,null,null,null,null,null,null,null,null,null,1,null,null,null,168,"","","","",""]
[169,null,null,null,null,null,null,null,null,null,1,null,null,null,169,"","","","",""]
[170,null,null,null,null,null,null,null,null,null,1,null,null,null,170,"25.02","Variable ydelser","","",""]
[171,null,null,null,null,null,null,null,null,null,1,null,null,null,171,"25.02.01","Jordprøver\nPrøveudtagning samt analysering af jord for indhold af olie, PAH, Cd, Cu, Pb og Zn. Analyse skal foretages på godkendt laboratorium.",10,"stk",""]
[172,null,null,null,null,null,null,null,null,null,1,null,null,null,172,"25.02.02","Bortkørsel af kl. 0/1 jord.\nBortskaffelse til kontrolleret modtager station ekskl. jordprøver.",50,"ton",""]
[173,null,null,null,null,null,null,null,null,null,1,null,null,null,173,"25.02.03","Bortkørsel af klasse 2/3-jord. \nBortskaffelse til kontrolleret modtagestation, inkl. alle afgifter.",50,"ton",""]
[174,null,null,null,null,null,null,null,null,null,1,null,null,null,174,"25.02.04","Bortkørsel af forurenet jord klasse 4: B(a)p (Benzapyren) max 25 mg/kg – PAH total max 100 mg/kg, inkl. deponeringsafgift",50,"ton",""]
[175,null,null,null,null,null,null,null,null,null,1,null,null,null,175,"25.02.05","Bortkørsel af forurenet jord klasse 4: tung olie (C20-C35) max 1000 mg/kg, inkl. deponeringsafgift",50,"ton",""]
[176,null,null,null,null,null,null,null,null,null,1,null,null,null,176,"25.02.06","Bortkørsel af forurenet jord klasse 4: bly (pb) max 1500 mg/kg, Kobber (Cu) max 2500 mg/kg  inkl. Deponeringsafgift",50,"ton",""]
[177,null,null,null,null,null,null,null,null,null,1,null,null,null,177,"25.02.07","Tilkørsel af ren råjord.",50,"ton",""]
[178,null,null,null,null,null,null,null,null,null,1,null,null,null,178,"","","","",""]
[179,null,null,null,null,null,null,null,null,null,1,null,null,null,179,"25.02.08","Svendetimer, rydningsarbejde",50,"timer",""]
[180,null,null,null,null,null,null,null,null,null,1,null,null,null,180,"25.02.09","Lærlingetimer, rydningsarbejde",50,"timer",""]
[181,null,null,null,null,null,null,null,null,null,1,null,null,null,181,"","","","",""]
[182,null,null,null,null,null,null,null,null,null,1,null,null,null,182,"25.A","Rydning i terræn, variable ydelser","","I alt overføres til samleside",""]
[183,null,null,null,null,null,null,null,null,null,1,null,null,null,183,"","","","",""]
[184,null,null,null,null,null,null,null,null,null,1,null,null,null,184,"","","","",""]
[185,null,null,null,null,null,null,null,null,null,1,null,null,null,185,"","","","",""]
[186,null,null,null,null,null,null,null,null,null,1,null,null,null,186,"","","","",""]
[187,null,null,null,null,null,null,null,null,null,1,null,null,null,187,"26","","","",""]
[188,null,null,null,null,null,null,null,null,null,1,null,null,null,188,"","","","",""]
[189,null,null,null,null,null,null,null,null,null,1,null,null,null,189,"Pos. Nr.","Ydelse","Antal","Enhed",""]
[190,null,null,null,null,null,null,null,null,null,1,null,null,null,190,"","","","",""]
[191,null,null,null,null,null,null,null,null,null,1,null,null,null,191,"26.01.01","Betonkantsten, KA1",85,"lbm","Belægning, xBrolægger",null,null,null,null,null,null,null,null,null,null,null,null,null,null,null,null,null,6978,9542]
[192,null,null,null,null,null,null,null,null,null,1,null,null,null,192,"26.01.02","Betonkantsten, KA2",75,"lbm","Belægning",null,null,null,null,null,null,null,null,null,null,null,null,null,null,null,null,null,22444,30429]
[193,null,null,null,null,null,null,null,null,null,1,null,null,null,193,"26.01.03","Pladsstøbt betonkant, KA3",75,"lbm","Insitu kant",null,null,null,null,null,null,null,null,null,null,null,null,null,null,null,null,null,null,null,null,null,124200,202500,null,null,null,null,null,null,null,null,null,null,null,null,null,null,null,null,null,null,null,null,null,null,null,null,null,null,null,null,null,null,null,null,null,null,null,null,null,null,null,null,123750]
[194,null,null,null,null,null,null,null,null,null,1,null,null,null,194,"26.01.04","Betonkantsten, KA4",10,"lbm","Belægning",null,null,null,null,null,null,null,null,null,null,null,null,null,null,null,null,null,3052,3146]
[195,null,null,null,null,null,null,null,null,null,1,null,null,null,195,"26.02.01","Stålkant, ST1",50,"lbm","Smed",null,null,null,null,null,null,null,null,null,null,null,null,null,null,null,null,null,null,null,null,null,null,null,null,null,null,null,null,null,null,null,null,null,null,null,null,null,null,null,null,null,null,null,null,null,null,null,null,null,null,null,null,null,null,null,null,null,null,null,null,null,null,null,null,null,null,null,null,null,null,null,null,null,null,null,null,null,null,null,null,null,null,null,null,null,null,null,null,null,null,null,null,null,null,null,null,null,null,null,null,null,null,null,null,null,null,null,null,null,null,null,null,null,null,null,null,null,null,null,null,null,52900]
[196,null,null,null,null,null,null,null,null,null,1,null,null,null,196,"26.02.02","Stålkant, ST2",50,"lbm","Smed",null,null,null,null,null,null,null,null,null,null,null,null,null,null,null,null,null,null,null,null,null,null,null,null,null,null,null,null,null,null,null,null,null,null,null,null,null,null,null,null,null,null,null,null,null,null,null,null,null,null,null,null,null,null,null,null,null,null,null,null,null,null,null,null,null,null,null,null,null,null,null,null,null,null,null,null,null,null,null,null,null,null,null,null,null,null,null,null,null,null,null,null,null,null,null,null,null,null,null,null,null,null,null,null,null,null,null,null,null,null,null,null,null,null,null,null,null,null,null,null,null,52900]
[197,null,null,null,null,null,null,null,null,null,1,null,null,null,197,"26.02.03","Stålkant, ST3",20,"lbm","Smed",null,null,null,null,null,null,null,null,null,null,null,null,null,null,null,null,null,null,null,null,null,null,null,null,null,null,null,null,null,null,null,null,null,null,null,null,null,null,null,null,null,null,null,null,null,null,null,null,null,null,null,null,null,null,null,null,null,null,null,null,null,null,null,null,null,null,null,null,null,null,null,null,null,null,null,null,null,null,null,null,null,null,null,null,null,null,null,null,null,null,null,null,null,null,null,null,null,null,null,null,null,null,null,null,null,null,null,null,null,null,null,null,null,null,null,null,null,null,null,null,null,19920]
[198,null,null,null,null,null,null,null,null,null,1,null,null,null,198,"26.03.01","Støttemur, murblokke, SM",15,"lbm","Belægning",null,null,null,null,null,null,null,null,null,null,null,null,null,null,null,null,null,0,109]
[199,null,null,null,null,null,null,null,null,null,1,null,null,null,199,"26.04.01","Betonflise BE",450,"m2","Belægning",null,null,null,null,null,null,null,null,null,null,null,null,null,null,null,null,null,32815,52448]
[200,null,null,null,null,null,null,null,null,null,1,null,null,null,200,"26.05.01","Grusbelægning GRU",130,"m2",""]
[201,null,null,null,null,null,null,null,null,null,1,null,null,null,201,"26.06.01","Affræsning forud for nyt asfaltslidlag",1500,"m2","Asfalt",null,null,null,null,null,null,null,null,57000,63000,null,75000,null,52500,75000]
[202,null,null,null,null,null,null,null,null,null,1,null,null,null,202,"26.06.02","Nyt asfaltslidlag, AS1",3250,"m2","Asfalt",null,null,null,null,null,null,null,null,370500,763750,null,409500,null,357500,308750]
[203,null,null,null,null,null,null,null,null,null,1,null,null,null,203,"26.06.03","Ny asfalt, AS2 kun slidlag prissættes her. ",850,"m2","Asfalt",null,null,null,null,null,null,null,null,96900,233750,null,127500,null,93500,80750]
[204,null,null,null,null,null,null,null,null,null,1,null,null,null,204,"26.06.04","Ny asfaltrampe, AS3",85,"m2","Asfalt",null,null,null,null,null,null,null,null,29325,57970,null,29750,null,39100,28050]
[205,null,null,null,null,null,null,null,null,null,1,null,null,null,205,"26.07.01","Rodvenligt bærelag RO",375,"m2","Byggros"]
[206,null,null,null,null,null,null,null,null,null,1,null,null,null,206,"26.08.01","Opstribning på asfalt, Leg på streg, OP1",1,"stk","Termoplast",null,null,null,null,32500]
[207,null,null,null,null,null,null,null,null,null,1,null,null,null,207,"26.08.02","Opstribning på asfalt, Ostespil, OP2",3,"stk","Termoplast",null,null,null,null,3200]
[208,null,null,null,null,null,null,null,null,null,1,null,null,null,208,"26.08.03","Opstribning på asfalt, Cirkler og bogstaver, OP3",1,"SUM","Termoplast",null,null,null,null,13250]
[209,null,null,null,null,null,null,null,null,null,1,null,null,null,209,"26.08.04","Opstribning på asfalt, Ur, OP4",1,"stk","Termoplast",null,null,null,null,3500]
[210,null,null,null,null,null,null,null,null,null,1,null,null,null,210,"26.08.05","Opstribning på asfat. Løbebane, OP5",1,"SUM","Termoplast",null,null,null,null,17500]
[211,null,null,null,null,null,null,null,null,null,1,null,null,null,211,"26.09.01","Gummibuler BU1",3,"stk","LEG",null,null,null,null,null,null,null,null,null,null,null,null,null,null,null,null,null,null,null,null,null,null,null,null,null,null,null,null,null,null,null,null,null,null,null,null,null,null,null,null,null,null,null,null,null,null,null,null,null,null,null,null,null,null,null,null,null,null,null,null,null,null,null,null,null,null,null,null,null,null,null,null,null,null,null,null,null,null,null,null,null,null,8400,null,10500,null,null,null,null,null,8250]
[212,null,null,null,null,null,null,null,null,null,1,null,null,null,212,"26.09.02","Gummibuler BU2",7,"stk","LEG",null,null,null,null,null,null,null,null,null,null,null,null,null,null,null,null,null,null,null,null,null,null,null,null,null,null,null,null,null,null,null,null,null,null,null,null,null,null,null,null,null,null,null,null,null,null,null,null,null,null,null,null,null,null,null,null,null,null,null,null,null,null,null,null,null,null,null,null,null,null,null,null,null,null,null,null,null,null,null,null,null,null,26600,null,24500,null,null,null,null,null,34825]
[213,null,null,null,null,null,null,null,null,null,1,null,null,null,213,"26.09.03","Gummibuler BU3",3,"stk","LEG",null,null,null,null,null,null,null,null,null,null,null,null,null,null,null,null,null,null,null,null,null,null,null,null,null,null,null,null,null,null,null,null,null,null,null,null,null,null,null,null,null,null,null,null,null,null,null,null,null,null,null,null,null,null,null,null,null,null,null,null,null,null,null,null,null,null,null,null,null,null,null,null,null,null,null,null,null,null,null,null,null,null,14400,null,10500,null,null,null,null,null,20490]
[214,null,null,null,null,null,null,null,null,null,1,null,null,null,214,"26.09.04","Gummibuler BU4",1,"stk","LEG",null,null,null,null,null,null,null,null,null,null,null,null,null,null,null,null,null,null,null,null,null,null,null,null,null,null,null,null,null,null,null,null,null,null,null,null,null,null,null,null,null,null,null,null,null,null,null,null,null,null,null,null,null,null,null,null,null,null,null,null,null,null,null,null,null,null,null,null,null,null,null,null,null,null,null,null,null,null,null,null,null,null,5800,null,3500,null,null,null,null,null,11750]
[215,null,null,null,null,null,null,null,null,null,1,null,null,null,215,"26.09.04","Gummibelægning, GB",45,"m2","LEG",null,null,null,null,null,null,null,null,null,null,null,null,null,null,null,null,null,null,null,null,null,null,null,null,null,null,null,null,null,null,null,null,null,null,null,null,null,null,null,null,null,null,null,null,null,null,null,null,null,null,null,null,null,null,null,null,null,null,null,null,null,null,null,null,null,null,null,null,null,null,null,null,null,null,null,null,null,null,null,null,null,null,49275,null,39600,null,null,null,null,null,75375]
[216,null,null,null,null,null,null,null,null,null,1,null,null,null,216,"26.10.01","Træpodie 1, TP1",1,"stk","Tømre, LEG",null,null,null,null,null,null,null,null,null,null,null,null,null,null,null,null,null,null,null,null,null,null,null,null,null,null,null,null,null,null,null,null,null,null,null,null,null,null,null,null,null,null,null,null,null,null,null,null,null,null,null,null,null,null,null,null,null,null,null,null,null,null,null,null,null,null,null,null,null,null,null,null,null,null,null,null,null,null,null,null,null,null,null,null,null,null,null,null,null,null,null,null,null,null,null,null,null,null,null,null,null,null,null,null,null,null,null,null,null,null,null,null,null,null,null,null,null,null,null,null,null,null,null,null,null,null,null,null,null,null,null,null,null,null,null,null,null,null,null,null,null,null,null,122980,80100,null,null,84065.63]
[217,null,null,null,null,null,null,null,null,null,1,null,null,null,217,"26.10.02","Træpodie 2, TP2",1,"stk","Tømre, LEG",null,null,null,null,null,null,null,null,null,null,null,null,null,null,null,null,null,null,null,null,null,null,null,null,null,null,null,null,null,null,null,null,null,null,null,null,null,null,null,null,null,null,null,null,null,null,null,null,null,null,null,null,null,null,null,null,null,null,null,null,null,null,null,null,null,null,null,null,null,null,null,null,null,null,null,null,null,null,null,null,null,null,null,null,null,null,null,null,null,null,null,null,null,null,null,null,null,null,null,null,null,null,null,null,null,null,null,null,null,null,null,null,null,null,null,null,null,null,null,null,null,null,null,null,null,null,null,null,null,null,null,null,null,null,null,null,null,null,null,null,null,null,null,145320,91600,null,null,102197]
[218,null,null,null,null,null,null,null,null,null,null,null,null,null,218,"26.10.03","Træpodie 3, TP3",1,"stk","Tømre, LEG",null,null,null,null,null,null,null,null,null,null,null,null,null,null,null,null,null,null,null,null,null,null,null,null,null,null,null,null,null,null,null,null,null,null,null,null,null,null,null,null,null,null,null,null,null,null,null,null,null,null,null,null,null,null,null,null,null,null,null,null,null,null,null,null,null,null,null,null,null,null,null,null,null,null,null,null,null,null,null,null,null,null,null,null,null,null,null,null,null,null,null,null,null,null,null,null,null,null,null,null,null,null,null,null,null,null,null,null,null,null,null,null,null,null,null,null,null,null,null,null,null,null,null,null,null,null,null,null,null,null,null,null,null,null,null,null,null,null,null,null,null,null,null,148220,84500,null,null,88198]
[219,null,null,null,null,null,null,null,null,null,null,null,null,null,219,"26.10.04","Træpodie 4, TP4",1,"stk","Tømre, LEG",null,null,null,null,null,null,null,null,null,null,null,null,null,null,null,null,null,null,null,null,null,null,null,null,null,null,null,null,null,null,null,null,null,null,null,null,null,null,null,null,null,null,null,null,null,null,null,null,null,null,null,null,null,null,null,null,null,null,null,null,null,null,null,null,null,null,null,null,null,null,null,null,null,null,null,null,null,null,null,null,null,null,null,null,null,null,null,null,null,null,null,null,null,null,null,null,null,null,null,null,null,null,null,null,null,null,null,null,null,null,null,null,null,null,null,null,null,null,null,null,null,null,null,null,null,null,null,null,null,null,null,null,null,null,null,null,null,null,null,null,null,null,null,54700,31500,null,null,42382.36]
[220,null,null,null,null,null,null,null,null,null,null,null,null,null,220,"26.10.05","Træpodie 5, TP5",1,"stk","Tømre, LEG",null,null,null,null,null,null,null,null,null,null,null,null,null,null,null,null,null,null,null,null,null,null,null,null,null,null,null,null,null,null,null,null,null,null,null,null,null,null,null,null,null,null,null,null,null,null,null,null,null,null,null,null,null,null,null,null,null,null,null,null,null,null,null,null,null,null,null,null,null,null,null,null,null,null,null,null,null,null,null,null,null,null,null,null,null,null,null,null,null,null,null,null,null,null,null,null,null,null,null,null,null,null,null,null,null,null,null,null,null,null,null,null,null,null,null,null,null,null,null,null,null,null,null,null,null,null,null,null,null,null,null,null,null,null,null,null,null,null,null,null,null,null,null,54700,31500,null,null,42382.36]
[221,null,null,null,null,null,null,null,null,null,null,null,null,null,221,"26.10.06","Træpodie 6, TP6",1,"stk","Tømre, LEG",null,null,null,null,null,null,null,null,null,null,null,null,null,null,null,null,null,null,null,null,null,null,null,null,null,null,null,null,null,null,null,null,null,null,null,null,null,null,null,null,null,null,null,null,null,null,null,null,null,null,null,null,null,null,null,null,null,null,null,null,null,null,null,null,null,null,null,null,null,null,null,null,null,null,null,null,null,null,null,null,null,null,null,null,null,null,null,null,null,null,null,null,null,null,null,null,null,null,null,null,null,null,null,null,null,null,null,null,null,null,null,null,null,null,null,null,null,null,null,null,null,null,null,null,null,null,null,null,null,null,null,null,null,null,null,null,null,null,null,null,null,null,null,54700,31500,null,null,42382.36]
[222,null,null,null,null,null,null,null,null,null,null,null,null,null,222,"26.10.07","Træpodie 7, TP7",1,"stk","Tømre, LEG",null,null,null,null,null,null,null,null,null,null,null,null,null,null,null,null,null,null,null,null,null,null,null,null,null,null,null,null,null,null,null,null,null,null,null,null,null,null,null,null,null,null,null,null,null,null,null,null,null,null,null,null,null,null,null,null,null,null,null,null,null,null,null,null,null,null,null,null,null,null,null,null,null,null,null,null,null,null,null,null,null,null,null,null,null,null,null,null,null,null,null,null,null,null,null,null,null,null,null,null,null,null,null,null,null,null,null,null,null,null,null,null,null,null,null,null,null,null,null,null,null,null,null,null,null,null,null,null,null,null,null,null,null,null,null,null,null,null,null,null,null,null,null,123310,101450,null,null,96189.78]
[223,null,null,null,null,null,null,null,null,null,null,null,null,null,223,"26.10.08","Buet plint, PL",1,"stk","Insitu kant, LEG",null,null,null,null,null,null,null,null,null,null,null,null,null,null,null,null,null,null,null,null,null,20464,58800,null,null,null,null,null,null,null,null,null,null,null,null,null,null,null,null,null,null,null,null,null,null,null,null,null,null,null,null,null,null,null,null,null,null,null,null,null,null,null,null,24500]
[224,null,null,null,null,null,null,null,null,null,null,null,null,null,224,"26.10.09","Højbed, HØ",3,"stk","Tømre",null,null,null,null,null,null,null,null,null,null,null,null,null,null,null,null,null,null,null,null,null,null,null,null,null,null,null,null,null,null,null,null,null,null,null,null,null,null,null,null,null,null,null,null,null,null,null,null,null,null,null,null,null,null,null,null,null,null,null,null,null,null,null,null,null,null,null,null,null,null,null,null,null,null,null,null,null,null,null,null,null,null,null,null,null,null,null,null,null,null,null,null,null,null,null,null,null,null,null,null,null,null,null,null,null,null,null,null,null,null,null,null,null,null,null,null,null,null,null,null,null,null,null,null,null,null,null,null,null,null,null,null,null,null,null,null,null,null,null,null,null,null,null,23970,11600,null,null,73923.990000000005]
[225,null,null,null,null,null,null,null,null,null,null,null,null,null,225,"26.10.10","Renovationsinddækning, RE1 og RE2",1,"SUM","Tømre, INVENTAR",null,null,null,null,null,null,null,null,null,null,null,null,null,null,null,null,null,null,null,null,null,null,null,null,null,null,null,null,null,null,null,null,null,null,null,null,null,null,null,null,null,null,null,null,null,null,null,null,null,null,null,null,null,null,null,null,null,null,null,null,null,null,null,null,null,null,null,null,null,null,null,null,null,null,null,null,null,null,null,null,null,null,null,null,null,null,null,null,null,null,null,null,null,null,null,null,null,null,null,null,null,null,null,null,null,null,null,null,null,null,null,null,null,null,null,null,null,null,null,null,null,null,null,null,null,null,null,null,null,null,null,null,null,null,null,null,null,null,null,null,null,null,null,261700,163810,null,null,221386]
[226,null,null,null,null,null,null,null,null,null,null,null,null,null,226,"26.10.11","Hegn, HE1",15,"lbm","Tømre, INVENTAR",null,null,null,null,null,null,null,null,null,null,null,null,null,null,null,null,null,null,null,null,null,null,null,null,null,null,null,null,null,null,null,null,null,null,null,null,null,null,null,null,null,null,null,null,null,null,null,null,null,null,null,null,null,null,null,null,null,null,null,null,null,null,null,null,null,null,null,null,null,null,null,null,null,null,null,null,null,null,null,null,null,null,null,null,null,null,null,null,null,null,null,null,null,null,null,null,null,null,null,null,null,null,null,null,null,null,null,null,null,null,null,null,null,null,null,null,null,null,null,null,null,null,null,null,null,null,null,null,null,null,null,null,null,null,null,null,null,null,null,null,null,null,null,61500,40700,null,null,55245]
[227,null,null,null,null,null,null,null,null,null,null,null,null,null,227,"26.11.01","Overdækning cykler OV",1,"stk","INVENTAR",null,null,null,null,null,null,null,null,null,null,null,null,null,null,null,null,null,null,null,null,null,null,null,null,null,null,null,null,null,null,null,null,null,null,null,null,null,null,null,null,null,null,null,null,null,null,null,null,null,null,null,null,null,null,null,null,null,null,null,null,null,null,null,null,null,null,null,null,null,null,null,null,null,null,null,null,null,null,null,null,null,null,null,null,null,null,null,null,null,null,null,null,null,null,null,null,null,null,null,null,null,null,null,null,null,null,null,null,null,null,null,null,null,null,null,null,null,null,null,null,null,null,null,null,null,136148]
[228,null,null,null,null,null,null,null,null,null,null,null,null,null,228,"26.11.02","Cykelstativ, fritstående, CY1",3,"stk","INVENTAR",null,null,null,null,null,null,null,null,null,null,null,null,null,null,null,null,null,null,null,null,null,null,null,null,null,null,null,null,null,null,null,null,null,null,null,null,null,null,null,null,null,null,null,null,null,null,null,null,null,null,null,null,null,null,null,null,null,null,null,null,null,null,null,null,null,null,null,null,null,null,null,null,null,null,null,null,null,null,null,null,null,null,null,null,null,null,null,null,null,null,null,null,null,null,null,null,null,null,null,null,null,null,null,null,null,null,null,null,null,null,null,null,null,null,null,null,null,null,null,null,null,null,null,null,null,9969]
[229,null,null,null,null,null,null,null,null,null,null,null,null,null,229,"26.11.03","Cykelstativ, nedstøbt CY2",4,"stk","INVENTAR",null,null,null,null,null,null,null,null,null,null,null,null,null,null,null,null,null,null,null,null,null,null,null,null,null,null,null,null,null,null,null,null,null,null,null,null,null,null,null,null,null,null,null,null,null,null,null,null,null,null,null,null,null,null,null,null,null,null,null,null,null,null,null,null,null,null,null,null,null,null,null,null,null,null,null,null,null,null,null,null,null,null,null,null,null,null,null,null,null,null,null,null,null,null,null,null,null,null,null,null,null,null,null,null,null,null,null,null,null,null,null,null,null,null,null,null,null,null,null,null,null,null,null,null,null,11964]
[230,null,null,null,null,null,null,null,null,null,null,null,null,null,230,"26.11.04","Arbejdsborde, AR1",1,"stk","INVENTAR"]
[231,null,null,null,null,null,null,null,null,null,null,null,null,null,231,"26.11.05","Arbejdsborde, AR2",4,"stk","INVENTAR"]
[232,null,null,null,null,null,null,null,null,null,null,null,null,null,232,"26.11.06","Arbejdsborde, AR3",1,"stk","INVENTAR"]
[233,null,null,null,null,null,null,null,null,null,null,null,null,null,233,"26.11.07","Træhulsrist, TR",3,"stk","SMED, INVENTAR",null,null,null,null,null,null,null,null,null,null,null,null,null,null,null,null,null,null,null,null,null,null,null,null,null,null,null,null,null,null,null,null,null,null,null,null,null,null,null,null,null,null,null,null,null,null,null,null,null,null,null,null,null,null,null,null,null,null,null,null,null,null,null,null,null,null,null,null,null,null,null,null,null,null,null,null,null,null,null,null,null,null,null,null,null,null,null,null,null,null,null,null,null,null,null,null,null,null,null,null,null,null,null,null,null,null,null,null,null,null,null,null,null,null,null,null,null,null,null,null,null,44874]
[234,null,null,null,null,null,null,null,null,null,null,null,null,null,234,"26.11.08","Rail, RA1",1,"stk","SMED, LEG",null,null,null,null,null,null,null,null,null,null,null,null,null,null,null,null,null,null,null,null,null,null,null,null,null,null,null,null,null,null,null,null,null,null,null,null,null,null,null,null,null,null,null,null,null,null,null,null,null,null,null,null,null,null,null,null,null,null,null,null,null,null,null,null,null,null,null,null,null,null,null,null,null,null,null,null,null,null,null,null,null,null,null,null,null,null,null,null,null,null,null,null,null,null,null,null,null,null,null,null,null,null,null,null,null,null,null,null,null,null,null,null,null,null,null,null,null,null,null,null,null,3560]
[235,null,null,null,null,null,null,null,null,null,null,null,null,null,235,"26.11.09","Rail, RA2",1,"stk","SMED, LEG",null,null,null,null,null,null,null,null,null,null,null,null,null,null,null,null,null,null,null,null,null,null,null,null,null,null,null,null,null,null,null,null,null,null,null,null,null,null,null,null,null,null,null,null,null,null,null,null,null,null,null,null,null,null,null,null,null,null,null,null,null,null,null,null,null,null,null,null,null,null,null,null,null,null,null,null,null,null,null,null,null,null,null,null,null,null,null,null,null,null,null,null,null,null,null,null,null,null,null,null,null,null,null,null,null,null,null,null,null,null,null,null,null,null,null,null,null,null,null,null,null,3592]
[236,null,null,null,null,null,null,null,null,null,null,null,null,null,236,"26.11.10","Kube, KU",12,"stk",""]
[237,null,null,null,null,null,null,null,null,null,null,null,null,null,237,"26.11.11","Trampoliner, TRA",3,"stk","LEG",null,null,null,null,null,null,null,null,null,null,null,null,null,null,null,null,null,null,null,null,null,null,null,null,null,null,null,null,null,null,null,null,null,null,null,null,null,null,null,null,null,null,null,null,null,null,null,null,null,null,null,null,null,null,null,null,null,null,null,null,null,null,null,null,null,null,null,null,null,null,null,null,null,null,null,null,null,null,null,null,null,null,70500,null,84000,null,null,null,null,null,59175]
[238,null,null,null,null,null,null,null,null,null,null,null,null,null,238,"26.11.12","Pennabane, PE",1,"stk","LEG",null,null,null,null,null,null,null,null,null,null,null,null,null,null,null,null,null,null,null,null,null,null,null,null,null,null,null,null,null,null,null,null,null,null,null,null,null,null,null,null,null,null,null,null,null,null,null,null,null,null,null,null,null,null,null,null,null,null,null,null,null,null,null,null,null,null,null,null,null,null,null,null,null,null,null,null,null,null,null,null,null,null,34500,null,29800,null,null,null,null,null,34250]
[239,null,null,null,null,null,null,null,null,null,null,null,null,null,239,"26.11.13","Basketstativ flyttes, BA",2,"stk","LEG",null,null,null,null,null,null,null,null,null,null,null,null,null,null,null,null,null,null,null,null,null,null,null,null,null,null,null,null,null,null,null,null,null,null,null,null,null,null,null,null,null,null,null,null,null,null,null,null,null,null,null,null,null,null,null,null,null,null,null,null,null,null,null,null,null,null,null,null,null,null,null,null,null,null,null,null,null,null,null,null,null,null,5000,null,7000,null,null,null,null,null,10500]
[240,null,null,null,null,null,null,null,null,null,null,null,null,null,240,"26.11.14","Flagstang flyttes, FL",1,"stk",""]
[241,null,null,null,null,null,null,null,null,null,null,null,null,null,241,"26.11.15","Hegn genmonteres, HE2",8,"lbm",""]
[242,null,null,null,null,null,null,null,null,null,null,null,null,null,242,"","","i alt","",""]
[243,null,null,null,null,null,null,null,null,null,null,null,null,null,243,"","","","",""]
[244,null,null,null,null,null,null,null,null,null,null,null,null,null,244,"26","Befæstelser, faste ydelser","","I alt overføres til samleside",""]
[245,null,null,null,null,null,null,null,null,null,null,null,null,null,245,"","","","",""]
[246,null,null,null,null,null,null,null,null,null,null,null,null,null,246,"","","","",""]
[247,null,null,null,null,null,null,null,null,null,null,null,null,null,247,"","","","",""]
[248,null,null,null,null,null,null,null,null,null,null,null,null,null,248,"26.12","Variable ydelser","","",""]
[249,null,null,null,null,null,null,null,null,null,null,null,null,null,249,"","","","",""]
[250,null,null,null,null,null,null,null,null,null,null,null,null,null,250,"26.12.01","Svendetimer, befæstelsesarbejde",50,"timer",""]
[null,null,null,null,null,null,null,null,null,null,null,null,null,null,251,"26.12.02","Lærlingetimer, befæstelsesarbejde",50,"timer",""]
[null,null,null,null,null,null,null,null,null,null,null,null,null,null,252,"","","","",""]
[null,null,null,null,null,null,null,null,null,null,null,null,null,null,253,"26.A","Befæstelser, variable ydelser","","I alt overføres til samleside",""]
[null,null,null,null,null,null,null,null,null,null,null,null,null,null,254,"","","","",""]
[null,null,null,null,null,null,null,null,null,null,null,null,null,null,255,"","","","",""]
[null,null,null,null,null,null,null,null,null,null,null,null,null,null,256,"","","","",""]
[null,null,null,null,null,null,null,null,null,null,null,null,null,null,257,"27","","","",""]
[null,null,null,null,null,null,null,null,null,null,null,null,null,null,258,"","","","",""]
[null,null,null,null,null,null,null,null,null,null,null,null,null,null,259,"Pos. Nr.","Ydelse","Antal","Enhed",""]
[null,null,null,null,null,null,null,null,null,null,null,null,null,null,260,"","","","",""]
[null,null,null,null,null,null,null,null,null,null,null,null,null,null,261,"27.02.01","Levering og udlægning af ny muld, MU1 ",35,"m2",""]
[null,null,null,null,null,null,null,null,null,null,null,null,null,null,262,"27.02.02","Levering og udlægning af ny muld, MU2",75,"m2",""]
[null,null,null,null,null,null,null,null,null,null,null,null,null,null,263,"27.02.03","Levering og udlægning af ny muld, MU3",250,"m2",""]
[null,null,null,null,null,null,null,null,null,null,null,null,null,null,264,"27.03.01","Levering og plantning af TRÆ1",2,"stk","OKN DRIFT",null,null,null,null,null,null,null,null,null,null,null,null,null,null,null,null,null,null,null,null,null,null,null,null,null,null,null,null,null,null,null,null,null,null,null,null,null,null,null,null,null,null,null,null,null,null,null,null,null,null,null,null,null,null,null,null,null,null,null,null,null,null,null,null,null,null,null,null,null,null,null,null,null,null,null,null,null,null,null,null,null,null,null,null,null,null,null,null,null,null,null,null,null,null,null,null,null,null,null,null,null,null,null,null,null,null,null,9618]
[null,null,null,null,null,null,null,null,null,null,null,null,null,null,265,"27.03.02","Levering og plantning af TRÆ2",8,"stk","OKN DRIFT",null,null,null,null,null,null,null,null,null,null,null,null,null,null,null,null,null,null,null,null,null,null,null,null,null,null,null,null,null,null,null,null,null,null,null,null,null,null,null,null,null,null,null,null,null,null,null,null,null,null,null,null,null,null,null,null,null,null,null,null,null,null,null,null,null,null,null,null,null,null,null,null,null,null,null,null,null,null,null,null,null,null,null,null,null,null,null,null,null,null,null,null,null,null,null,null,null,null,null,null,null,null,null,null,null,null,null,41224]
[null,null,null,null,null,null,null,null,null,null,null,null,null,null,266,"27.03.03","Levering og plantning af TRÆ3",2,"stk","OKN DRIFT",null,null,null,null,null,null,null,null,null,null,null,null,null,null,null,null,null,null,null,null,null,null,null,null,null,null,null,null,null,null,null,null,null,null,null,null,null,null,null,null,null,null,null,null,null,null,null,null,null,null,null,null,null,null,null,null,null,null,null,null,null,null,null,null,null,null,null,null,null,null,null,null,null,null,null,null,null,null,null,null,null,null,null,null,null,null,null,null,null,null,null,null,null,null,null,null,null,null,null,null,null,null,null,null,null,null,null,8794]
[null,null,null,null,null,null,null,null,null,null,null,null,null,null,267,"27.03.04","Levering og plantning af TRÆ4",1,"stk","OKN DRIFT",null,null,null,null,null,null,null,null,null,null,null,null,null,null,null,null,null,null,null,null,null,null,null,null,null,null,null,null,null,null,null,null,null,null,null,null,null,null,null,null,null,null,null,null,null,null,null,null,null,null,null,null,null,null,null,null,null,null,null,null,null,null,null,null,null,null,null,null,null,null,null,null,null,null,null,null,null,null,null,null,null,null,null,null,null,null,null,null,null,null,null,null,null,null,null,null,null,null,null,null,null,null,null,null,null,null,null,6406]
[null,null,null,null,null,null,null,null,null,null,null,null,null,null,268,"27.03.05","Levering og plantning af TRÆ5",9,"stk","OKN DRIFT",null,null,null,null,null,null,null,null,null,null,null,null,null,null,null,null,null,null,null,null,null,null,null,null,null,null,null,null,null,null,null,null,null,null,null,null,null,null,null,null,null,null,null,null,null,null,null,null,null,null,null,null,null,null,null,null,null,null,null,null,null,null,null,null,null,null,null,null,null,null,null,null,null,null,null,null,null,null,null,null,null,null,null,null,null,null,null,null,null,null,null,null,null,null,null,null,null,null,null,null,null,null,null,null,null,null,null,46197]
[null,null,null,null,null,null,null,null,null,null,null,null,null,null,269,"27.03.06","Levering og plantning af TRÆ6",2,"stk","OKN DRIFT",null,null,null,null,null,null,null,null,null,null,null,null,null,null,null,null,null,null,null,null,null,null,null,null,null,null,null,null,null,null,null,null,null,null,null,null,null,null,null,null,null,null,null,null,null,null,null,null,null,null,null,null,null,null,null,null,null,null,null,null,null,null,null,null,null,null,null,null,null,null,null,null,null,null,null,null,null,null,null,null,null,null,null,null,null,null,null,null,null,null,null,null,null,null,null,null,null,null,null,null,null,null,null,null,null,null,null,19620]
[null,null,null,null,null,null,null,null,null,null,null,null,null,null,270,"27.03.07","Levering og plantning af TRÆ7",2,"stk","OKN DRIFT",null,null,null,null,null,null,null,null,null,null,null,null,null,null,null,null,null,null,null,null,null,null,null,null,null,null,null,null,null,null,null,null,null,null,null,null,null,null,null,null,null,null,null,null,null,null,null,null,null,null,null,null,null,null,null,null,null,null,null,null,null,null,null,null,null,null,null,null,null,null,null,null,null,null,null,null,null,null,null,null,null,null,null,null,null,null,null,null,null,null,null,null,null,null,null,null,null,null,null,null,null,null,null,null,null,null,null,14444]
[null,null,null,null,null,null,null,null,null,null,null,null,null,null,271,"27.03.08","Levering og plantning af TRÆ8",2,"stk","OKN DRIFT",null,null,null,null,null,null,null,null,null,null,null,null,null,null,null,null,null,null,null,null,null,null,null,null,null,null,null,null,null,null,null,null,null,null,null,null,null,null,null,null,null,null,null,null,null,null,null,null,null,null,null,null,null,null,null,null,null,null,null,null,null,null,null,null,null,null,null,null,null,null,null,null,null,null,null,null,null,null,null,null,null,null,null,null,null,null,null,null,null,null,null,null,null,null,null,null,null,null,null,null,null,null,null,null,null,null,null,10068]
[null,null,null,null,null,null,null,null,null,null,null,null,null,null,272,"27.03.09","Levering og plantning af TRÆ9",3,"stk","OKN DRIFT",null,null,null,null,null,null,null,null,null,null,null,null,null,null,null,null,null,null,null,null,null,null,null,null,null,null,null,null,null,null,null,null,null,null,null,null,null,null,null,null,null,null,null,null,null,null,null,null,null,null,null,null,null,null,null,null,null,null,null,null,null,null,null,null,null,null,null,null,null,null,null,null,null,null,null,null,null,null,null,null,null,null,null,null,null,null,null,null,null,null,null,null,null,null,null,null,null,null,null,null,null,null,null,null,null,null,null,12840]
[null,null,null,null,null,null,null,null,null,null,null,null,null,null,273,"27.03.10","Levering og plantning af FA",50,"stk","OKN DRIFT",null,null,null,null,null,null,null,null,null,null,null,null,null,null,null,null,null,null,null,null,null,null,null,null,null,null,null,null,null,null,null,null,null,null,null,null,null,null,null,null,null,null,null,null,null,null,null,null,null,null,null,null,null,null,null,null,null,null,null,null,null,null,null,null,null,null,null,null,null,null,null,null,null,null,null,null,null,null,null,null,null,null,null,null,null,null,null,null,null,null,null,null,null,null,null,null,null,null,null,null,null,null,null,null,null,null,null,2287.5]
[null,null,null,null,null,null,null,null,null,null,null,null,null,null,274,"27.03.11","Levering og plantning af BP1",130,"stk","OKN DRIFT",null,null,null,null,null,null,null,null,null,null,null,null,null,null,null,null,null,null,null,null,null,null,null,null,null,null,null,null,null,null,null,null,null,null,null,null,null,null,null,null,null,null,null,null,null,null,null,null,null,null,null,null,null,null,null,null,null,null,null,null,null,null,null,null,null,null,null,null,null,null,null,null,null,null,null,null,null,null,null,null,null,null,null,null,null,null,null,null,null,null,null,null,null,null,null,null,null,null,null,null,null,null,null,null,null,null,null,11830]
[null,null,null,null,null,null,null,null,null,null,null,null,null,null,275,"27.03.12","Levering og plantning af BP2",300,"stk","OKN DRIFT",null,null,null,null,null,null,null,null,null,null,null,null,null,null,null,null,null,null,null,null,null,null,null,null,null,null,null,null,null,null,null,null,null,null,null,null,null,null,null,null,null,null,null,null,null,null,null,null,null,null,null,null,null,null,null,null,null,null,null,null,null,null,null,null,null,null,null,null,null,null,null,null,null,null,null,null,null,null,null,null,null,null,null,null,null,null,null,null,null,null,null,null,null,null,null,null,null,null,null,null,null,null,null,null,null,null,null,19500]
[null,null,null,null,null,null,null,null,null,null,null,null,null,null,276,"27.03.12","Levering og plantning af BP3",20,"stk","OKN DRIFT",null,null,null,null,null,null,null,null,null,null,null,null,null,null,null,null,null,null,null,null,null,null,null,null,null,null,null,null,null,null,null,null,null,null,null,null,null,null,null,null,null,null,null,null,null,null,null,null,null,null,null,null,null,null,null,null,null,null,null,null,null,null,null,null,null,null,null,null,null,null,null,null,null,null,null,null,null,null,null,null,null,null,null,null,null,null,null,null,null,null,null,null,null,null,null,null,null,null,null,null,null,null,null,null,null,null,null,2180]
[null,null,null,null,null,null,null,null,null,null,null,null,null,null,277,"27.04.01","Græs",35,"m2","OKN DRIFT",null,null,null,null,null,null,null,null,null,null,null,null,null,null,null,null,null,null,null,null,null,null,null,null,null,null,null,null,null,null,null,null,null,null,null,null,null,null,null,null,null,null,null,null,null,null,null,null,null,null,null,null,null,null,null,null,null,null,null,null,null,null,null,null,null,null,null,null,null,null,null,null,null,null,null,null,null,null,null,null,null,null,null,null,null,null,null,null,null,null,null,null,null,null,null,null,null,null,null,null,null,null,null,null,null,null,null,980]
[null,null,null,null,null,null,null,null,null,null,null,null,null,null,278,"27.05.01","Gødskning",1,"SUM","OKN DRIFT",null,null,null,null,null,null,null,null,null,null,null,null,null,null,null,null,null,null,null,null,null,null,null,null,null,null,null,null,null,null,null,null,null,null,null,null,null,null,null,null,null,null,null,null,null,null,null,null,null,null,null,null,null,null,null,null,null,null,null,null,null,null,null,null,null,null,null,null,null,null,null,null,null,null,null,null,null,null,null,null,null,null,null,null,null,null,null,null,null,null,null,null,null,null,null,null,null,null,null,null,null,null,null,null,null,null,null,2215]
[null,null,null,null,null,null,null,null,null,null,null,null,null,null,279,"27.06.01","1års pleje",1,"SUM","OKN DRIFT",null,null,null,null,null,null,null,null,null,null,null,null,null,null,null,null,null,null,null,null,null,null,null,null,null,null,null,null,null,null,null,null,null,null,null,null,null,null,null,null,null,null,null,null,null,null,null,null,null,null,null,null,null,null,null,null,null,null,null,null,null,null,null,null,null,null,null,null,null,null,null,null,null,null,null,null,null,null,null,null,null,null,null,null,null,null,null,null,null,null,null,null,null,null,null,null,null,null,null,null,null,null,null,null,null,null,null,113355]
[null,null,null,null,null,null,null,null,null,null,null,null,null,null,280,"","","i alt",""]
[null,null,null,null,null,null,null,null,null,null,null,null,null,null,281,"","","",""]
[null,null,null,null,null,null,null,null,null,null,null,null,null,null,282,"27","Beplantning, faste ydelser","","I alt overføres til samleside"]
[null,null,null,null,null,null,null,null,null,null,null,null,null,null,283,"","","",""]
[null,null,null,null,null,null,null,null,null,null,null,null,null,null,284,"","","",""]
[null,null,null,null,null,null,null,null,null,null,null,null,null,null,285,"","","",""]
[null,null,null,null,null,null,null,null,null,null,null,null,null,null,286,"27.06","Variable ydelser","",""]
[null,null,null,null,null,null,null,null,null,null,null,null,null,null,287,"","","",""]
[null,null,null,null,null,null,null,null,null,null,null,null,null,null,288,"27.06.01","Svendetimer, gartnerarbejde",50,"timer"]
[null,null,null,null,null,null,null,null,null,null,null,null,null,null,289,"27.06.02","Lærlingetimer, gartnerarbejde",50,"timer"]
[null,null,null,null,null,null,null,null,null,null,null,null,null,null,290,"","","",""]
[null,null,null,null,null,null,null,null,null,null,null,null,null,null,291,"27.A","Beplantning, variable ydelser","","I alt overføres til samleside"]
[null,null,null,null,null,null,null,null,null,null,null,null,null,null,292,"","","",""]
[null,null,null,null,null,null,null,null,null,null,null,null,null,null,293,"","","",""]
[null,null,null,null,null,null,null,null,null,null,null,null,null,null,294,"","OKN Byggestyring",1,"sum"]
[null,null,null,null,null,null,null,null,null,null,null,null,null,null,295,"","","",""]
[null,null,null,null,null,null,null,null,null,null,null,null,null,null,296,"","","",""]
[null,null,null,null,null,null,null,null,null,null,null,null,null,null,297,"","","",""]
[null,null,null,null,null,null,null,null,null,null,null,null,null,null,298,"","","",""]
[null,null,null,null,null,null,null,null,null,null,null,null,null,null,299,"","","",""]
[null,null,null,null,null,null,null,null,null,null,null,null,null,null,300,"","","",""]
[null,null,null,null,null,null,null,null,null,null,null,null,null,null,301,"","","",""]
[null,null,null,null,null,null,null,null,null,null,null,null,null,null,302,"","","",""]
[null,null,null,null,null,null,null,null,null,null,null,null,null,null,303,"","","",""]
[null,null,null,null,null,null,null,null,null,null,null,null,null,null,304,"","","",""]
[null,null,null,null,null,null,null,null,null,null,null,null,null,null,305,"","","",""]
[null,null,null,null,null,null,null,null,null,null,null,null,null,null,306,"","","",""]
[null,null,null,null,null,null,null,null,null,null,null,null,null,null,307,"","","",""]
[null,null,null,null,null,null,null,null,null,null,null,null,null,null,308,"","","",""]
[null,null,null,null,null,null,null,null,null,null,null,null,null,null,309,"","","",""]
[null,null,null,null,null,null,null,null,null,null,null,null,null,null,310,"","","",""]
[null,null,null,null,null,null,null,null,null,null,null,null,null,null,311,"","","",""]
[null,null,null,null,null,null,null,null,null,null,null,null,null,null,312,"","","",""]
[null,null,null,null,null,null,null,null,null,null,null,null,null,null,313,"","","",""]
[null,null,null,null,null,null,null,null,null,null,null,null,null,null,314,"","","",""]
[null,null,null,null,null,null,null,null,null,null,null,null,null,null,315,"","","",""]
[null,null,null,null,null,null,null,null,null,null,null,null,null,null,316,"","","",""]
[null,null,null,null,null,null,null,null,null,null,null,null,null,null,317,"","","",""]
[null,null,null,null,null,null,null,null,null,null,null,null,null,null,318,"","","",""]
[null,null,null,null,null,null,null,null,null,null,null,null,null,null,319,"","","",""]
[null,null,null,null,null,null,null,null,null,null,null,null,null,null,320,"","","",""]
[null,null,null,null,null,null,null,null,null,null,null,null,null,null,321,"","","",""]
[null,null,null,null,null,null,null,null,null,null,null,null,null,null,322,"","","",""]
[null,null,null,null,null,null,null,null,null,null,null,null,null,null,323,"","","",""]
[null,null,null,null,null,null,null,null,null,null,null,null,null,null,324,"","","",""]
[null,null,null,null,null,null,null,null,null,null,null,null,null,null,325,"","","",""]
[null,null,null,null,null,null,null,null,null,null,null,null,null,null,326,"","","",""]
[null,null,null,null,null,null,null,null,null,null,null,null,null,null,327,"","","",""]
[null,null,null,null,null,null,null,null,null,null,null,null,null,null,328,"","","",""]
[null,null,null,null,null,null,null,null,null,null,null,null,null,null,329,"","","",""]
[null,null,null,null,null,null,null,null,null,null,null,null,null,null,330,"","","",""]
[null,null,null,null,null,null,null,null,null,null,null,null,null,null,331,"","","",""]
[null,null,null,null,null,null,null,null,null,null,null,null,null,null,332,"","","",""]
[null,null,null,null,null,null,null,null,null,null,null,null,null,null,333,"","","",""]
[null,null,null,null,null,null,null,null,null,null,null,null,null,null,334,"","","",""]
[null,null,null,null,null,null,null,null,null,null,null,null,null,null,335,"","","",""]
[null,null,null,null,null,null,null,null,null,null,null,null,null,null,336,"","","",""]
[null,null,null,null,null,null,null,null,null,null,null,null,null,null,337,"","","",""]
[null,null,null,null,null,null,null,null,null,null,null,null,null,null,338,"","","",""]
[null,null,null,null,null,null,null,null,null,null,null,null,null,null,339,"","","",""]
[null,null,null,null,null,null,null,null,null,null,null,null,null,null,340,"","","",""]
[null,null,null,null,null,null,null,null,null,null,null,null,null,null,341,"","","",""]
[null,null,null,null,null,null,null,null,null,null,null,null,null,null,342,"","","",""]
[null,null,null,null,null,null,null,null,null,null,null,null,null,null,343,"","","",""]
[null,null,null,null,null,null,null,null,null,null,null,null,null,null,344,"","","",""]
[null,null,null,null,null,null,null,null,null,null,null,null,null,null,345,"","","",""]
[null,null,null,null,null,null,null,null,null,null,null,null,null,null,346,"","","",""]
[null,null,null,null,null,null,null,null,null,null,null,null,null,null,347,"","","",""]
[null,null,null,null,null,null,null,null,null,null,null,null,null,null,348,"","","",""]
[null,null,null,null,null,null,null,null,null,null,null,null,null,null,349,"","","",""]
[null,null,null,null,null,null,null,null,null,null,null,null,null,null,350,"","","",""]
[null,null,null,null,null,null,null,null,null,null,null,null,null,null,351,"","","",""]
[null,null,null,null,null,null,null,null,null,null,null,null,null,null,352,"","","",""]
[null,null,null,null,null,null,null,null,null,null,null,null,null,null,353,"","","",""]
[null,null,null,null,null,null,null,null,null,null,null,null,null,null,354,"","","",""]
[null,null,null,null,null,null,null,null,null,null,null,null,null,null,355,"","","",""]
[null,null,null,null,null,null,null,null,null,null,null,null,null,null,356,"","","",""]
[null,null,null,null,null,null,null,null,null,null,null,null,null,null,357,"","","",""]
[null,null,null,null,null,null,null,null,null,null,null,null,null,null,358,"","","",""]
[null,null,null,null,null,null,null,null,null,null,null,null,null,null,359,"","","",""]
[null,null,null,null,null,null,null,null,null,null,null,null,null,null,360,"","","",""]
[null,null,null,null,null,null,null,null,null,null,null,null,null,null,361,"","","",""]
[null,null,null,null,null,null,null,null,null,null,null,null,null,null,362,"","","",""]
[null,null,null,null,null,null,null,null,null,null,null,null,null,null,363,"","","",""]
[null,null,null,null,null,null,null,null,null,null,null,null,null,null,364,"","","",""]
[null,null,null,null,null,null,null,null,null,null,null,null,null,null,365,"","","",""]
[null,null,null,null,null,null,null,null,null,null,null,null,null,null,366,"","","",""]
[null,null,null,null,null,null,null,null,null,null,null,null,null,null,367,"","","",""]
[null,null,null,null,null,null,null,null,null,null,null,null,null,null,368,"","","",""]
[null,null,null,null,null,null,null,null,null,null,null,null,null,null,369,"","","",""]
[null,null,null,null,null,null,null,null,null,null,null,null,null,null,370,"","","",""]
[null,null,null,null,null,null,null,null,null,null,null,null,null,null,371,"","","",""]
[null,null,null,null,null,null,null,null,null,null,null,null,null,null,372,"","","",""]
[null,null,null,null,null,null,null,null,null,null,null,null,null,null,373,"","","",""]
[null,null,null,null,null,null,null,null,null,null,null,null,null,null,374,"","","",""]
[null,null,null,null,null,null,null,null,null,null,null,null,null,null,375,"","","",""]
[null,null,null,null,null,null,null,null,null,null,null,null,null,null,376,"","","",""]
[null,null,null,null,null,null,null,null,null,null,null,null,null,null,377,"","","",""]
[null,null,null,null,null,null,null,null,null,null,null,null,null,null,378,"","","",""]
[null,null,null,null,null,null,null,null,null,null,null,null,null,null,379,"","","",""]
[null,null,null,null,null,null,null,null,null,null,null,null,null,null,380,"","","",""]
[null,null,null,null,null,null,null,null,null,null,null,null,null,null,381,"","","",""]
[null,null,null,null,null,null,null,null,null,null,null,null,null,null,382,"","","",""]
[null,null,null,null,null,null,null,null,null,null,null,null,null,null,383,"","","",""]
[null,null,null,null,null,null,null,null,null,null,null,null,null,null,384,"","","",""]
[null,null,null,null,null,null,null,null,null,null,null,null,null,null,385,"","","",""]
[null,null,null,null,null,null,null,null,null,null,null,null,null,null,386,"","","",""]
[null,null,null,null,null,null,null,null,null,null,null,null,null,null,387,"","","",""]
[null,null,null,null,null,null,null,null,null,null,null,null,null,null,388,"","","",""]
[null,null,null,null,null,null,null,null,null,null,null,null,null,null,389,"","","",""]
[null,null,null,null,null,null,null,null,null,null,null,null,null,null,390,"","","",""]
[null,null,null,null,null,null,null,null,null,null,null,null,null,null,391,"","","",""]
[null,null,null,null,null,null,null,null,null,null,null,null,null,null,392,"","","",""]
[null,null,null,null,null,null,null,null,null,null,null,null,null,null,393,"","","",""]
[null,null,null,null,null,null,null,null,null,null,null,null,null,null,394,"","","",""]
[null,null,null,null,null,null,null,null,null,null,null,null,null,null,395,"","","",""]
[null,null,null,null,null,null,null,null,null,null,null,null,null,null,396,"","","",""]
[null,null,null,null,null,null,null,null,null,null,null,null,null,null,397,"","","",""]
[null,null,null,null,null,null,null,null,null,null,null,null,null,null,398,"","","",""]
[null,null,null,null,null,null,null,null,null,null,null,null,null,null,399,"","","",""]
[null,null,null,null,null,null,null,null,null,null,null,null,null,null,400,"","","",""]
[null,null,null,null,null,null,null,null,null,null,null,null,null,null,401,"","","",""]
[null,null,null,null,null,null,null,null,null,null,null,null,null,null,402,"","","",""]
[null,null,null,null,null,null,null,null,null,null,null,null,null,null,403,"","","",""]
[null,null,null,null,null,null,null,null,null,null,null,null,null,null,404,"","","",""]
[null,null,null,null,null,null,null,null,null,null,null,null,null,null,405,"","","",""]
[null,null,null,null,null,null,null,null,null,null,null,null,null,null,406,"","","",""]
[null,null,null,null,null,null,null,null,null,null,null,null,null,null,407,"","","",""]
[null,null,null,null,null,null,null,null,null,null,null,null,null,null,408,"","","",""]
[null,null,null,null,null,null,null,null,null,null,null,null,null,null,409,"","","",""]
[null,null,null,null,null,null,null,null,null,null,null,null,null,null,410,"","","",""]
[null,null,null,null,null,null,null,null,null,null,null,null,null,null,411,"","","",""]
[null,null,null,null,null,null,null,null,null,null,null,null,null,null,412,"","","",""]
[null,null,null,null,null,null,null,null,null,null,null,null,null,null,413,"","","",""]
[null,null,null,null,null,null,null,null,null,null,null,null,null,null,414,"","","",""]
[null,null,null,null,null,null,null,null,null,null,null,null,null,null,415,"","","",""]
[null,null,null,null,null,null,null,null,null,null,null,null,null,null,416,"","","",""]
[null,null,null,null,null,null,null,null,null,null,null,null,null,null,417,"","","",""]
[null,null,null,null,null,null,null,null,null,null,null,null,null,null,418,"","","",""]
[null,null,null,null,null,null,null,null,null,null,null,null,null,null,419,"","","",""]
[null,null,null,null,null,null,null,null,null,null,null,null,null,null,420,"","","",""]
[null,null,null,null,null,null,null,null,null,null,null,null,null,null,421,"","","",""]
[null,null,null,null,null,null,null,null,null,null,null,null,null,null,422,"","","",""]
[null,null,null,null,null,null,null,null,null,null,null,null,null,null,423,"","","",""]
[null,null,null,null,null,null,null,null,null,null,null,null,null,null,424,"","","",""]
[null,null,null,null,null,null,null,null,null,null,null,null,null,null,425,"","","",""]
[null,null,null,null,null,null,null,null,null,null,null,null,null,null,426,"","","",""]
[null,null,null,null,null,null,null,null,null,null,null,null,null,null,427,"","","",""]
[null,null,null,null,null,null,null,null,null,null,null,null,null,null,428,"","","",""]
[null,null,null,null,null,null,null,null,null,null,null,null,null,null,429,"","","",""]
[null,null,null,null,null,null,null,null,null,null,null,null,null,null,430,"","","",""]
[null,null,null,null,null,null,null,null,null,null,null,null,null,null,431,"","","",""]
[null,null,null,null,null,null,null,null,null,null,null,null,null,null,432,"","","",""]
[null,null,null,null,null,null,null,null,null,null,null,null,null,null,433,"","","",""]
[null,null,null,null,null,null,null,null,null,null,null,null,null,null,434,"","","",""]
[null,null,null,null,null,null,null,null,null,null,null,null,null,null,435,"","","",""]
[null,null,null,null,null,null,null,null,null,null,null,null,null,null,436,"","","",""]
[null,null,null,null,null,null,null,null,null,null,null,null,null,null,437,"","","",""]
[null,null,null,null,null,null,null,null,null,null,null,null,null,null,438,"","","",""]
[null,null,null,null,null,null,null,null,null,null,null,null,null,null,439,"","","",""]
[null,null,null,null,null,null,null,null,null,null,null,null,null,null,440,"","","",""]
[null,null,null,null,null,null,null,null,null,null,null,null,null,null,441,"","","",""]
[null,null,null,null,null,null,null,null,null,null,null,null,null,null,442,"","","",""]
[null,null,null,null,null,null,null,null,null,null,null,null,null,null,443,"","","",""]
[null,null,null,null,null,null,null,null,null,null,null,null,null,null,444,"","","",""]
[null,null,null,null,null,null,null,null,null,null,null,null,null,null,445,"","","",""]
[null,null,null,null,null,null,null,null,null,null,null,null,null,null,446,"","","",""]
[null,null,null,null,null,null,null,null,null,null,null,null,null,null,447,"","","",""]
[null,null,null,null,null,null,null,null,null,null,null,null,null,null,448,"","","",""]
[null,null,null,null,null,null,null,null,null,null,null,null,null,null,449,"","","",""]
[null,null,null,null,null,null,null,null,null,null,null,null,null,null,450,"","","",""]
[null,null,null,null,null,null,null,null,null,null,null,null,null,null,451,"","","",""]
[null,null,null,null,null,null,null,null,null,null,null,null,null,null,452,"","","",""]
[null,null,null,null,null,null,null,null,null,null,null,null,null,null,453,"","","",""]
[null,null,null,null,null,null,null,null,null,null,null,null,null,null,454,"","","",""]
[null,null,null,null,null,null,null,null,null,null,null,null,null,null,455,"","","",""]
[null,null,null,null,null,null,null,null,null,null,null,null,null,null,456,"","","",""]
[null,null,null,null,null,null,null,null,null,null,null,null,null,null,457,"","","",""]
[null,null,null,null,null,null,null,null,null,null,null,null,null,null,458,"","","",""]
[null,null,null,null,null,null,null,null,null,null,null,null,null,null,459,"","","",""]
[null,null,null,null,null,null,null,null,null,null,null,null,null,null,460,"","","",""]
[null,null,null,null,null,null,null,null,null,null,null,null,null,null,461,"","","",""]
[null,null,null,null,null,null,null,null,null,null,null,null,null,null,462,"","","",""]
[null,null,null,null,null,null,null,null,null,null,null,null,null,null,463,"","","",""]
[null,null,null,null,null,null,null,null,null,null,null,null,null,null,464,"","","",""]
[null,null,null,null,null,null,null,null,null,null,null,null,null,null,465,"","","",""]
[null,null,null,null,null,null,null,null,null,null,null,null,null,null,466,"","","",""]
[null,null,null,null,null,null,null,null,null,null,null,null,null,null,467,"","","",""]
[null,null,null,null,null,null,null,null,null,null,null,null,null,null,468,"","","",""]
[null,null,null,null,null,null,null,null,null,null,null,null,null,null,469,"","","",""]
[null,null,null,null,null,null,null,null,null,null,null,null,null,null,470,"","","",""]
[null,null,null,null,null,null,null,null,null,null,null,null,null,null,471,"","","",""]
[null,null,null,null,null,null,null,null,null,null,null,null,null,null,472,"","","",""]
[null,null,null,null,null,null,null,null,null,null,null,null,null,null,473,"","","",""]
[null,null,null,null,null,null,null,null,null,null,null,null,null,null,474,"","","",""]
[null,null,null,null,null,null,null,null,null,null,null,null,null,null,475,"","","",""]
[null,null,null,null,null,null,null,null,null,null,null,null,null,null,476,"","","",""]
[null,null,null,null,null,null,null,null,null,null,null,null,null,null,477,"","","",""]
[null,null,null,null,null,null,null,null,null,null,null,null,null,null,478,"","","",""]
[null,null,null,null,null,null,null,null,null,null,null,null,null,null,479,"","","",""]
[null,null,null,null,null,null,null,null,null,null,null,null,null,null,480,"","","",""]
[null,null,null,null,null,null,null,null,null,null,null,null,null,null,481,"","","",""]
[null,null,null,null,null,null,null,null,null,null,null,null,null,null,482,"","","",""]
[null,null,null,null,null,null,null,null,null,null,null,null,null,null,483,"","","",""]
[null,null,null,null,null,null,null,null,null,null,null,null,null,null,484,"","","",""]
[null,null,null,null,null,null,null,null,null,null,null,null,null,null,485,"","","",""]
[null,null,null,null,null,null,null,null,null,null,null,null,null,null,486,"","","",""]
[null,null,null,null,null,null,null,null,null,null,null,null,null,null,487,"","","",""]
[null,null,null,null,null,null,null,null,null,null,null,null,null,null,488,"","","",""]
[null,null,null,null,null,null,null,null,null,null,null,null,null,null,489,"","","",""]
[null,null,null,null,null,null,null,null,null,null,null,null,null,null,490,"","","",""]
[null,null,null,null,null,null,null,null,null,null,null,null,null,null,491,"","","",""]
[null,null,null,null,null,null,null,null,null,null,null,null,null,null,492,"","","",""]
[null,null,null,null,null,null,null,null,null,null,null,null,null,null,493,"","","",""]
[null,null,null,null,null,null,null,null,null,null,null,null,null,null,494,"","","",""]
[null,null,null,null,null,null,null,null,null,null,null,null,null,null,495,"","","",""]
[null,null,null,null,null,null,null,null,null,null,null,null,null,null,496,"","","",""]
[null,null,null,null,null,null,null,null,null,null,null,null,null,null,497,"","","",""]
[null,null,null,null,null,null,null,null,null,null,null,null,null,null,498,"","","",""]
[null,null,null,null,null,null,null,null,null,null,null,null,null,null,499,"","","",""]
[null,null,null,null,null,null,null,null,null,null,null,null,null,null,500,"","","",""]
[null,null,null,null,null,null,null,null,null,null,null,null,null,null,501,"","","",""]
[null,null,null,null,null,null,null,null,null,null,null,null,null,null,502,"","","",""]
[null,null,null,null,null,null,null,null,null,null,null,null,null,null,503,"","","",""]
[null,null,null,null,null,null,null,null,null,null,null,null,null,null,504,"","","",""]
[null,null,null,null,null,null,null,null,null,null,null,null,null,null,505,"","","",""]
[null,null,null,null,null,null,null,null,null,null,null,null,null,null,506,"","","",""]
[null,null,null,null,null,null,null,null,null,null,null,null,null,null,507,"","","",""]
[null,null,null,null,null,null,null,null,null,null,null,null,null,null,508,"","","",""]
[null,null,null,null,null,null,null,null,null,null,null,null,null,null,509,"","","",""]
[null,null,null,null,null,null,null,null,null,null,null,null,null,null,510,"","","",""]
[null,null,null,null,null,null,null,null,null,null,null,null,null,null,511,"","","",""]
[null,null,null,null,null,null,null,null,null,null,null,null,null,null,512,"","","",""]
[null,null,null,null,null,null,null,null,null,null,null,null,null,null,513,"","","",""]
[null,null,null,null,null,null,null,null,null,null,null,null,null,null,514,"","","",""]
[null,null,null,null,null,null,null,null,null,null,null,null,null,null,515,"","","",""]
[null,null,null,null,null,null,null,null,null,null,null,null,null,null,516,"","","",""]
[null,null,null,null,null,null,null,null,null,null,null,null,null,null,517,"","","",""]
[null,null,null,null,null,null,null,null,null,null,null,null,null,null,518,"","","",""]
[null,null,null,null,null,null,null,null,null,null,null,null,null,null,519,"","","",""]
[null,null,null,null,null,null,null,null,null,null,null,null,null,null,520,"","","",""]
[null,null,null,null,null,null,null,null,null,null,null,null,null,null,521,"","","",""]
[null,null,null,null,null,null,null,null,null,null,null,null,null,null,522,"","","",""]
[null,null,null,null,null,null,null,null,null,null,null,null,null,null,523,"","","",""]
[null,null,null,null,null,null,null,null,null,null,null,null,null,null,524,"","","",""]
[null,null,null,null,null,null,null,null,null,null,null,null,null,null,525,"","","",""]
[null,null,null,null,null,null,null,null,null,null,null,null,null,null,526,"","","",""]
[null,null,null,null,null,null,null,null,null,null,null,null,null,null,527,"","","",""]
[null,null,null,null,null,null,null,null,null,null,null,null,null,null,528,"","","",""]
[null,null,null,null,null,null,null,null,null,null,null,null,null,null,529,"","","",""]
[null,null,null,null,null,null,null,null,null,null,null,null,null,null,530,"","","",""]
[null,null,null,null,null,null,null,null,null,null,null,null,null,null,531,"","","",""]
[null,null,null,null,null,null,null,null,null,null,null,null,null,null,532,"","","",""]
[null,null,null,null,null,null,null,null,null,null,null,null,null,null,533,"","","",""]
[null,null,null,null,null,null,null,null,null,null,null,null,null,null,534,"","","",""]
[null,null,null,null,null,null,null,null,null,null,null,null,null,null,535,"","","",""]
[null,null,null,null,null,null,null,null,null,null,null,null,null,null,536,"","","",""]
[null,null,null,null,null,null,null,null,null,null,null,null,null,null,537,"","","",""]
[null,null,null,null,null,null,null,null,null,null,null,null,null,null,538,"","","",""]
[null,null,null,null,null,null,null,null,null,null,null,null,null,null,539,"","","",""]
[null,null,null,null,null,null,null,null,null,null,null,null,null,null,540,"","","",""]
[null,null,null,null,null,null,null,null,null,null,null,null,null,null,541,"","","",""]
[null,null,null,null,null,null,null,null,null,null,null,null,null,null,542,"","","",""]
[null,null,null,null,null,null,null,null,null,null,null,null,null,null,543,"","","",""]
[null,null,null,null,null,null,null,null,null,null,null,null,null,null,544,"","","",""]
[null,null,null,null,null,null,null,null,null,null,null,null,null,null,545,"","","",""]
[null,null,null,null,null,null,null,null,null,null,null,null,null,null,546,"","","",""]
[null,null,null,null,null,null,null,null,null,null,null,null,null,null,547,"","","",""]
[null,null,null,null,null,null,null,null,null,null,null,null,null,null,548,"","","",""]
[null,null,null,null,null,null,null,null,null,null,null,null,null,null,549,"","","",""]
[null,null,null,null,null,null,null,null,null,null,null,null,null,null,550,"","","",""]
[null,null,null,null,null,null,null,null,null,null,null,null,null,null,551,"","","",""]
[null,null,null,null,null,null,null,null,null,null,null,null,null,null,552,"","","",""]
[null,null,null,null,null,null,null,null,null,null,null,null,null,null,553,"","","",""]
[null,null,null,null,null,null,null,null,null,null,null,null,null,null,554,"","","",""]
[null,null,null,null,null,null,null,null,null,null,null,null,null,null,555,"","","",""]
[null,null,null,null,null,null,null,null,null,null,null,null,null,null,556,"","","",""]
[null,null,null,null,null,null,null,null,null,null,null,null,null,null,557,"","","",""]
[null,null,null,null,null,null,null,null,null,null,null,null,null,null,558,"","","",""]
[null,null,null,null,null,null,null,null,null,null,null,null,null,null,559,"","","",""]
[null,null,null,null,null,null,null,null,null,null,null,null,null,null,560,"","","",""]
[null,null,null,null,null,null,null,null,null,null,null,null,null,null,561,"","","",""]
[null,null,null,null,null,null,null,null,null,null,null,null,null,null,562,"","","",""]
[null,null,null,null,null,null,null,null,null,null,null,null,null,null,563,"","","",""]
[null,null,null,null,null,null,null,null,null,null,null,null,null,null,564,"","","",""]
[null,null,null,null,null,null,null,null,null,null,null,null,null,null,565,"","","",""]
[null,null,null,null,null,null,null,null,null,null,null,null,null,null,566,"","","",""]
[null,null,null,null,null,null,null,null,null,null,null,null,null,null,567,"","","",""]
[null,null,null,null,null,null,null,null,null,null,null,null,null,null,568,"","","",""]
[null,null,null,null,null,null,null,null,null,null,null,null,null,null,569,"","","",""]
[null,null,null,null,null,null,null,null,null,null,null,null,null,null,570,"","","",""]
[null,null,null,null,null,null,null,null,null,null,null,null,null,null,571,"","","",""]
[null,null,null,null,null,null,null,null,null,null,null,null,null,null,572,"","","",""]
[null,null,null,null,null,null,null,null,null,null,null,null,null,null,573,"","","",""]
[null,null,null,null,null,null,null,null,null,null,null,null,null,null,574,"","","",""]
[null,null,null,null,null,null,null,null,null,null,null,null,null,null,575,"","","",""]
[null,null,null,null,null,null,null,null,null,null,null,null,null,null,576,"","","",""]
[null,null,null,null,null,null,null,null,null,null,null,null,null,null,577,"","","",""]
[null,null,null,null,null,null,null,null,null,null,null,null,null,null,578,"","","",""]
[null,null,null,null,null,null,null,null,null,null,null,null,null,null,579,"","","",""]
[null,null,null,null,null,null,null,null,null,null,null,null,null,null,580,"","","",""]
[null,null,null,null,null,null,null,null,null,null,null,null,null,null,581,"","","",""]
[null,null,null,null,null,null,null,null,null,null,null,null,null,null,582,"","","",""]
[null,null,null,null,null,null,null,null,null,null,null,null,null,null,583,"","","",""]
[null,null,null,null,null,null,null,null,null,null,null,null,null,null,584,"","","",""]
[null,null,null,null,null,null,null,null,null,null,null,null,null,null,585,"","","",""]
[null,null,null,null,null,null,null,null,null,null,null,null,null,null,586,"","","",""]
[null,null,null,null,null,null,null,null,null,null,null,null,null,null,587,"","","",""]
[null,null,null,null,null,null,null,null,null,null,null,null,null,null,588,"","","",""]
[null,null,null,null,null,null,null,null,null,null,null,null,null,null,589,"","","",""]
[null,null,null,null,null,null,null,null,null,null,null,null,null,null,590,"","","",""]
[null,null,null,null,null,null,null,null,null,null,null,null,null,null,591,"","","",""]
[null,null,null,null,null,null,null,null,null,null,null,null,null,null,592,"","","",""]
[null,null,null,null,null,null,null,null,null,null,null,null,null,null,593,"","","",""]
[null,null,null,null,null,null,null,null,null,null,null,null,null,null,594,"","","",""]
[null,null,null,null,null,null,null,null,null,null,null,null,null,null,595,"","","",""]
[null,null,null,null,null,null,null,null,null,null,null,null,null,null,596,"","","",""]
[null,null,null,null,null,null,null,null,null,null,null,null,null,null,597,"","","",""]
[null,null,null,null,null,null,null,null,null,null,null,null,null,null,598,"","","",""]
[null,null,null,null,null,null,null,null,null,null,null,null,null,null,599,"","","",""]
[null,null,null,null,null,null,null,null,null,null,null,null,null,null,600,"","","",""]
[null,null,null,null,null,null,null,null,null,null,null,null,null,null,601,"","","",""]
[null,null,null,null,null,null,null,null,null,null,null,null,null,null,602,"","","",""]
[null,null,null,null,null,null,null,null,null,null,null,null,null,null,603,"","","",""]
[null,null,null,null,null,null,null,null,null,null,null,null,null,null,604,"","","",""]
[null,null,null,null,null,null,null,null,null,null,null,null,null,null,605,"","","",""]
[null,null,null,null,null,null,null,null,null,null,null,null,null,null,606,"","","",""]
[null,null,null,null,null,null,null,null,null,null,null,null,null,null,607,"","","",""]
[null,null,null,null,null,null,null,null,null,null,null,null,null,null,608,"","","",""]
[null,null,null,null,null,null,null,null,null,null,null,null,null,null,609,"","","",""]
[null,null,null,null,null,null,null,null,null,null,null,null,null,null,610,"","","",""]
[null,null,null,null,null,null,null,null,null,null,null,null,null,null,611,"","","",""]
[null,null,null,null,null,null,null,null,null,null,null,null,null,null,612,"","","",""]
[null,null,null,null,null,null,null,null,null,null,null,null,null,null,613,"","","",""]
[null,null,null,null,null,null,null,null,null,null,null,null,null,null,614,"","","",""]
[null,null,null,null,null,null,null,null,null,null,null,null,null,null,615,"","","",""]
[null,null,null,null,null,null,null,null,null,null,null,null,null,null,616,"","","",""]
[null,null,null,null,null,null,null,null,null,null,null,null,null,null,617,"","","",""]
[null,null,null,null,null,null,null,null,null,null,null,null,null,null,618,"","","",""]
[null,null,null,null,null,null,null,null,null,null,null,null,null,null,619,"","","",""]
[null,null,null,null,null,null,null,null,null,null,null,null,null,null,620,"","","",""]
[null,null,null,null,null,null,null,null,null,null,null,null,null,null,621,"","","",""]
[null,null,null,null,null,null,null,null,null,null,null,null,null,null,622,"","","",""]
[null,null,null,null,null,null,null,null,null,null,null,null,null,null,623,"","","",""]
[null,null,null,null,null,null,null,null,null,null,null,null,null,null,624,"","","",""]
[null,null,null,null,null,null,null,null,null,null,null,null,null,null,625,"","","",""]
[null,null,null,null,null,null,null,null,null,null,null,null,null,null,626,"","","",""]
[null,null,null,null,null,null,null,null,null,null,null,null,null,null,627,"","","",""]
[null,null,null,null,null,null,null,null,null,null,null,null,null,null,628,"","","",""]
[null,null,null,null,null,null,null,null,null,null,null,null,null,null,629,"","","",""]
[null,null,null,null,null,null,null,null,null,null,null,null,null,null,630,"","","",""]
[null,null,null,null,null,null,null,null,null,null,null,null,null,null,631,"","","",""]
[null,null,null,null,null,null,null,null,null,null,null,null,null,null,632,"","","",""]
[null,null,null,null,null,null,null,null,null,null,null,null,null,null,633,"","","",""]
[null,null,null,null,null,null,null,null,null,null,null,null,null,null,634,"","","",""]
[null,null,null,null,null,null,null,null,null,null,null,null,null,null,635,"","","",""]
[null,null,null,null,null,null,null,null,null,null,null,null,null,null,636,"","","",""]
[null,null,null,null,null,null,null,null,null,null,null,null,null,null,637,"","","",""]
[null,null,null,null,null,null,null,null,null,null,null,null,null,null,638,"","","",""]
[null,null,null,null,null,null,null,null,null,null,null,null,null,null,639,"","","",""]
[null,null,null,null,null,null,null,null,null,null,null,null,null,null,640,"","","",""]
[null,null,null,null,null,null,null,null,null,null,null,null,null,null,641,"","","",""]
[null,null,null,null,null,null,null,null,null,null,null,null,null,null,642,"","","",""]
[null,null,null,null,null,null,null,null,null,null,null,null,null,null,643,"","","",""]
[null,null,null,null,null,null,null,null,null,null,null,null,null,null,644,"","","",""]
[null,null,null,null,null,null,null,null,null,null,null,null,null,null,645,"","","",""]
[null,null,null,null,null,null,null,null,null,null,null,null,null,null,646,"","","",""]
[null,null,null,null,null,null,null,null,null,null,null,null,null,null,647,"","","",""]
[null,null,null,null,null,null,null,null,null,null,null,null,null,null,648,"","","",""]
[null,null,null,null,null,null,null,null,null,null,null,null,null,null,649,"","","",""]
[null,null,null,null,null,null,null,null,null,null,null,null,null,null,650,"","","",""]
[null,null,null,null,null,null,null,null,null,null,null,null,null,null,651,"","","",""]
[null,null,null,null,null,null,null,null,null,null,null,null,null,null,652,"","","",""]
[null,null,null,null,null,null,null,null,null,null,null,null,null,null,653,"","","",""]
[null,null,null,null,null,null,null,null,null,null,null,null,null,null,654,"","","",""]
[null,null,null,null,null,null,null,null,null,null,null,null,null,null,655,"","","",""]
[null,null,null,null,null,null,null,null,null,null,null,null,null,null,656,"","","",""]
[null,null,null,null,null,null,null,null,null,null,null,null,null,null,657,"","","",""]
[null,null,null,null,null,null,null,null,null,null,null,null,null,null,658,"","","",""]
[null,null,null,null,null,null,null,null,null,null,null,null,null,null,659,"","","",""]
[null,null,null,null,null,null,null,null,null,null,null,null,null,null,660,"","","",""]
[null,null,null,null,null,null,null,null,null,null,null,null,null,null,661,"","","",""]
[null,null,null,null,null,null,null,null,null,null,null,null,null,null,662,"","","",""]
[null,null,null,null,null,null,null,null,null,null,null,null,null,null,663,"","","",""]
[null,null,null,null,null,null,null,null,null,null,null,null,null,null,664,"","","",""]
[null,null,null,null,null,null,null,null,null,null,null,null,null,null,665,"","","",""]
[null,null,null,null,null,null,null,null,null,null,null,null,null,null,666,"","","",""]
[null,null,null,null,null,null,null,null,null,null,null,null,null,null,667,"","","",""]
[null,null,null,null,null,null,null,null,null,null,null,null,null,null,668,"","","",""]
[null,null,null,null,null,null,null,null,null,null,null,null,null,null,669,"","","",""]
[null,null,null,null,null,null,null,null,null,null,null,null,null,null,670,"","","",""]
[null,null,null,null,null,null,null,null,null,null,null,null,null,null,671,"","","",""]
[null,null,null,null,null,null,null,null,null,null,null,null,null,null,672,"","","",""]
[null,null,null,null,null,null,null,null,null,null,null,null,null,null,673,"","","",""]
[null,null,null,null,null,null,null,null,null,null,null,null,null,null,674,"","","",""]
[null,null,null,null,null,null,null,null,null,null,null,null,null,null,675,"","","",""]
[null,null,null,null,null,null,null,null,null,null,null,null,null,null,676,"","","",""]
[null,null,null,null,null,null,null,null,null,null,null,null,null,null,677,"","","",""]
[null,null,null,null,null,null,null,null,null,null,null,null,null,null,678,"","","",""]
[null,null,null,null,null,null,null,null,null,null,null,null,null,null,679,"","","",""]
[null,null,null,null,null,null,null,null,null,null,null,null,null,null,680,"","","",""]
[null,null,null,null,null,null,null,null,null,null,null,null,null,null,681,"","","",""]
[null,null,null,null,null,null,null,null,null,null,null,null,null,null,682,"","","",""]
[null,null,null,null,null,null,null,null,null,null,null,null,null,null,683,"","","",""]
[null,null,null,null,null,null,null,null,null,null,null,null,null,null,684,"","","",""]
[null,null,null,null,null,null,null,null,null,null,null,null,null,null,685,"","","",""]
[null,null,null,null,null,null,null,null,null,null,null,null,null,null,686,"","","",""]
[null,null,null,null,null,null,null,null,null,null,null,null,null,null,687,"","","",""]
[null,null,null,null,null,null,null,null,null,null,null,null,null,null,688,"","","",""]
[null,null,null,null,null,null,null,null,null,null,null,null,null,null,689,"","","",""]
[null,null,null,null,null,null,null,null,null,null,null,null,null,null,690,"","","",""]
[null,null,null,null,null,null,null,null,null,null,null,null,null,null,691,"","","",""]
[null,null,null,null,null,null,null,null,null,null,null,null,null,null,692,"","","",""]
[null,null,null,null,null,null,null,null,null,null,null,null,null,null,693,"","","",""]
[null,null,null,null,null,null,null,null,null,null,null,null,null,null,694,"","","",""]
[null,null,null,null,null,null,null,null,null,null,null,null,null,null,695,"","","",""]
[null,null,null,null,null,null,null,null,null,null,null,null,null,null,696,"","","",""]
[null,null,null,null,null,null,null,null,null,null,null,null,null,null,697,"","","",""]
[null,null,null,null,null,null,null,null,null,null,null,null,null,null,698,"","","",""]
[null,null,null,null,null,null,null,null,null,null,null,null,null,null,699,"","","",""]
[null,null,null,null,null,null,null,null,null,null,null,null,null,null,700,"","","",""]
[null,null,null,null,null,null,null,null,null,null,null,null,null,null,701,"","","",""]
[null,null,null,null,null,null,null,null,null,null,null,null,null,null,702,"","","",""]
[null,null,null,null,null,null,null,null,null,null,null,null,null,null,703,"","","",""]
[null,null,null,null,null,null,null,null,null,null,null,null,null,null,704,"","","",""]
[null,null,null,null,null,null,null,null,null,null,null,null,null,null,705,"","","",""]
[null,null,null,null,null,null,null,null,null,null,null,null,null,null,706,"","","",""]
[null,null,null,null,null,null,null,null,null,null,null,null,null,null,707,"","","",""]
[null,null,null,null,null,null,null,null,null,null,null,null,null,null,708,"","","",""]
[null,null,null,null,null,null,null,null,null,null,null,null,null,null,709,"","","",""]
[null,null,null,null,null,null,null,null,null,null,null,null,null,null,710,"","","",""]
[null,null,null,null,null,null,null,null,null,null,null,null,null,null,711,"","","",""]
[null,null,null,null,null,null,null,null,null,null,null,null,null,null,712,"","","",""]
[null,null,null,null,null,null,null,null,null,null,null,null,null,null,713,"","","",""]
[null,null,null,null,null,null,null,null,null,null,null,null,null,null,714,"","","",""]
[null,null,null,null,null,null,null,null,null,null,null,null,null,null,715,"","","",""]
[null,null,null,null,null,null,null,null,null,null,null,null,null,null,716,"","","",""]
[null,null,null,null,null,null,null,null,null,null,null,null,null,null,717,"","","",""]
[null,null,null,null,null,null,null,null,null,null,null,null,null,null,718,"","","",""]
[null,null,null,null,null,null,null,null,null,null,null,null,null,null,719,"","","",""]
[null,null,null,null,null,null,null,null,null,null,null,null,null,null,720,"","","",""]
[null,null,null,null,null,null,null,null,null,null,null,null,null,null,721,"","","",""]
[null,null,null,null,null,null,null,null,null,null,null,null,null,null,722,"","","",""]
[null,null,null,null,null,null,null,null,null,null,null,null,null,null,723,"","","",""]
[null,null,null,null,null,null,null,null,null,null,null,null,null,null,724,"","","",""]
[null,null,null,null,null,null,null,null,null,null,null,null,null,null,725,"","","",""]
[null,null,null,null,null,null,null,null,null,null,null,null,null,null,726,"","","",""]
[null,null,null,null,null,null,null,null,null,null,null,null,null,null,727,"","","",""]
[null,null,null,null,null,null,null,null,null,null,null,null,null,null,728,"","","",""]
[null,null,null,null,null,null,null,null,null,null,null,null,null,null,729,"","","",""]
[null,null,null,null,null,null,null,null,null,null,null,null,null,null,730,"","","",""]
[null,null,null,null,null,null,null,null,null,null,null,null,null,null,731,"","","",""]
[null,null,null,null,null,null,null,null,null,null,null,null,null,null,732,"","","",""]
[null,null,null,null,null,null,null,null,null,null,null,null,null,null,733,"","","",""]
[null,null,null,null,null,null,null,null,null,null,null,null,null,null,734,"","","",""]
[null,null,null,null,null,null,null,null,null,null,null,null,null,null,735,"","","",""]
[null,null,null,null,null,null,null,null,null,null,null,null,null,null,736,"","","",""]
[null,null,null,null,null,null,null,null,null,null,null,null,null,null,737,"","","",""]
[null,null,null,null,null,null,null,null,null,null,null,null,null,null,738,"","","",""]
[null,null,null,null,null,null,null,null,null,null,null,null,null,null,739,"","","",""]
[null,null,null,null,null,null,null,null,null,null,null,null,null,null,740,"","","",""]
[null,null,null,null,null,null,null,null,null,null,null,null,null,null,741,"","","",""]
[null,null,null,null,null,null,null,null,null,null,null,null,null,null,742,"","","",""]
[null,null,null,null,null,null,null,null,null,null,null,null,null,null,743,"","","",""]
[null,null,null,null,null,null,null,null,null,null,null,null,null,null,744,"","","",""]
[null,null,null,null,null,null,null,null,null,null,null,null,null,null,745,"","","",""]
[null,null,null,null,null,null,null,null,null,null,null,null,null,null,746,"","","",""]
[null,null,null,null,null,null,null,null,null,null,null,null,null,null,747,"","","",""]
[null,null,null,null,null,null,null,null,null,null,null,null,null,null,748,"","","",""]
[null,null,null,null,null,null,null,null,null,null,null,null,null,null,749,"","","",""]
[null,null,null,null,null,null,null,null,null,null,null,null,null,null,750,"","","",""]
[null,null,null,null,null,null,null,null,null,null,null,null,null,null,751,"","","",""]
[null,null,null,null,null,null,null,null,null,null,null,null,null,null,752,"","","",""]
[null,null,null,null,null,null,null,null,null,null,null,null,null,null,753,"","","",""]
[null,null,null,null,null,null,null,null,null,null,null,null,null,null,754,"","","",""]
[null,null,null,null,null,null,null,null,null,null,null,null,null,null,755,"","","",""]
[null,null,null,null,null,null,null,null,null,null,null,null,null,null,756,"","","",""]
[null,null,null,null,null,null,null,null,null,null,null,null,null,null,757,"","","",""]
[null,null,null,null,null,null,null,null,null,null,null,null,null,null,758,"","","",""]
[null,null,null,null,null,null,null,null,null,null,null,null,null,null,759,"","","",""]
[null,null,null,null,null,null,null,null,null,null,null,null,null,null,760,"","","",""]
[null,null,null,null,null,null,null,null,null,null,null,null,null,null,761,"","","",""]
[null,null,null,null,null,null,null,null,null,null,null,null,null,null,762,"","","",""]
[null,null,null,null,null,null,null,null,null,null,null,null,null,null,763,"","","",""]
[null,null,null,null,null,null,null,null,null,null,null,null,null,null,764,"","","",""]
[null,null,null,null,null,null,null,null,null,null,null,null,null,null,765,"","","",""]
[null,null,null,null,null,null,null,null,null,null,null,null,null,null,766,"","","",""]
[null,null,null,null,null,null,null,null,null,null,null,null,null,null,767,"","","",""]
[null,null,null,null,null,null,null,null,null,null,null,null,null,null,768,"","","",""]
[null,null,null,null,null,null,null,null,null,null,null,null,null,null,769,"","","",""]
[null,null,null,null,null,null,null,null,null,null,null,null,null,null,770,"","","",""]
[null,null,null,null,null,null,null,null,null,null,null,null,null,null,771,"","","",""]
[null,null,null,null,null,null,null,null,null,null,null,null,null,null,772,"","","",""]
[null,null,null,null,null,null,null,null,null,null,null,null,null,null,773,"","","",""]
[null,null,null,null,null,null,null,null,null,null,null,null,null,null,774,"","","",""]
[null,null,null,null,null,null,null,null,null,null,null,null,null,null,775,"","","",""]
[null,null,null,null,null,null,null,null,null,null,null,null,null,null,776,"","","",""]
[null,null,null,null,null,null,null,null,null,null,null,null,null,null,777,"","","",""]
[null,null,null,null,null,null,null,null,null,null,null,null,null,null,778,"","","",""]
[null,null,null,null,null,null,null,null,null,null,null,null,null,null,779,"","","",""]
[null,null,null,null,null,null,null,null,null,null,null,null,null,null,780,"","","",""]
[null,null,null,null,null,null,null,null,null,null,null,null,null,null,781,"","","",""]
[null,null,null,null,null,null,null,null,null,null,null,null,null,null,782,"","","",""]
[null,null,null,null,null,null,null,null,null,null,null,null,null,null,783,"","","",""]
[null,null,null,null,null,null,null,null,null,null,null,null,null,null,784,"","","",""]
[null,null,null,null,null,null,null,null,null,null,null,null,null,null,785,"","","",""]
[null,null,null,null,null,null,null,null,null,null,null,null,null,null,786,"","","",""]
[null,null,null,null,null,null,null,null,null,null,null,null,null,null,787,"","","",""]
[null,null,null,null,null,null,null,null,null,null,null,null,null,null,788,"","","",""]
[null,null,null,null,null,null,null,null,null,null,null,null,null,null,789,"","","",""]
[null,null,null,null,null,null,null,null,null,null,null,null,null,null,790,"","","",""]
[null,null,null,null,null,null,null,null,null,null,null,null,null,null,791,"","","",""]
[null,null,null,null,null,null,null,null,null,null,null,null,null,null,792,"","","",""]
[null,null,null,null,null,null,null,null,null,null,null,null,null,null,793,"","","",""]
[null,null,null,null,null,null,null,null,null,null,null,null,null,null,794,"","","",""]
[null,null,null,null,null,null,null,null,null,null,null,null,null,null,795,"","","",""]
[null,null,null,null,null,null,null,null,null,null,null,null,null,null,796,"","","",""]
[null,null,null,null,null,null,null,null,null,null,null,null,null,null,797,"","","",""]
[null,null,null,null,null,null,null,null,null,null,null,null,null,null,798,"","","",""]
[null,null,null,null,null,null,null,null,null,null,null,null,null,null,799,"","","",""]
[null,null,null,null,null,null,null,null,null,null,null,null,null,null,800,"","","",""]
[null,null,null,null,null,null,null,null,null,null,null,null,null,null,801,"","","",""]
[null,null,null,null,null,null,null,null,null,null,null,null,null,null,802,"","","",""]
[null,null,null,null,null,null,null,null,null,null,null,null,null,null,803,"","","",""]
[null,null,null,null,null,null,null,null,null,null,null,null,null,null,804,"","","",""]
[null,null,null,null,null,null,null,null,null,null,null,null,null,null,805,"","","",""]
[null,null,null,null,null,null,null,null,null,null,null,null,null,null,806,"","","",""]
[null,null,null,null,null,null,null,null,null,null,null,null,null,null,807,"","","",""]
[null,null,null,null,null,null,null,null,null,null,null,null,null,null,808,"","","",""]
[null,null,null,null,null,null,null,null,null,null,null,null,null,null,809,"","","",""]
[null,null,null,null,null,null,null,null,null,null,null,null,null,null,810,"","","",""]
[null,null,null,null,null,null,null,null,null,null,null,null,null,null,811,"","","",""]
[null,null,null,null,null,null,null,null,null,null,null,null,null,null,812,"","","",""]
[null,null,null,null,null,null,null,null,null,null,null,null,null,null,813,"","","",""]
[null,null,null,null,null,null,null,null,null,null,null,null,null,null,814,"","","",""]
[null,null,null,null,null,null,null,null,null,null,null,null,null,null,815,"","","",""]
[null,null,null,null,null,null,null,null,null,null,null,null,null,null,816,"","","",""]
[null,null,null,null,null,null,null,null,null,null,null,null,null,null,817,"","","",""]
[null,null,null,null,null,null,null,null,null,null,null,null,null,null,818,"","","",""]
[null,null,null,null,null,null,null,null,null,null,null,null,null,null,819,"","","",""]
[null,null,null,null,null,null,null,null,null,null,null,null,null,null,820,"","","",""]
[null,null,null,null,null,null,null,null,null,null,null,null,null,null,821,"","","",""]
[null,null,null,null,null,null,null,null,null,null,null,null,null,null,822,"","","",""]
[null,null,null,null,null,null,null,null,null,null,null,null,null,null,823,"","","",""]
[null,null,null,null,null,null,null,null,null,null,null,null,null,null,824,"","","",""]
[null,null,null,null,null,null,null,null,null,null,null,null,null,null,825,"","","",""]
[null,null,null,null,null,null,null,null,null,null,null,null,null,null,826,"","","",""]
[null,null,null,null,null,null,null,null,null,null,null,null,null,null,827,"","","",""]
[null,null,null,null,null,null,null,null,null,null,null,null,null,null,828,"","","",""]
[null,null,null,null,null,null,null,null,null,null,null,null,null,null,829,"","","",""]
[null,null,null,null,null,null,null,null,null,null,null,null,null,null,830,"","","",""]
[null,null,null,null,null,null,null,null,null,null,null,null,null,null,831,"","","",""]
[null,null,null,null,null,null,null,null,null,null,null,null,null,null,832,"","","",""]
[null,null,null,null,null,null,null,null,null,null,null,null,null,null,833,"","","",""]
[null,null,null,null,null,null,null,null,null,null,null,null,null,null,834,"","","",""]
[null,null,null,null,null,null,null,null,null,null,null,null,null,null,835,"","","",""]
[null,null,null,null,null,null,null,null,null,null,null,null,null,null,836,"","","",""]
[null,null,null,null,null,null,null,null,null,null,null,null,null,null,837,"","","",""]
[null,null,null,null,null,null,null,null,null,null,null,null,null,null,838,"","","",""]
[null,null,null,null,null,null,null,null,null,null,null,null,null,null,839,"","","",""]
[null,null,null,null,null,null,null,null,null,null,null,null,null,null,840,"","","",""]
[null,null,null,null,null,null,null,null,null,null,null,null,null,null,841,"","","",""]
[null,null,null,null,null,null,null,null,null,null,null,null,null,null,842,"","","",""]
[null,null,null,null,null,null,null,null,null,null,null,null,null,null,843,"","","",""]
[null,null,null,null,null,null,null,null,null,null,null,null,null,null,844,"","","",""]
[null,null,null,null,null,null,null,null,null,null,null,null,null,null,845,"","","",""]
[null,null,null,null,null,null,null,null,null,null,null,null,null,null,846,"","","",""]
[null,null,null,null,null,null,null,null,null,null,null,null,null,null,847,"","","",""]
[null,null,null,null,null,null,null,null,null,null,null,null,null,null,848,"","","",""]
[null,null,null,null,null,null,null,null,null,null,null,null,null,null,849,"","","",""]
[null,null,null,null,null,null,null,null,null,null,null,null,null,null,850,"","","",""]
[null,null,null,null,null,null,null,null,null,null,null,null,null,null,851,"","","",""]
[null,null,null,null,null,null,null,null,null,null,null,null,null,null,852,"","","",""]
[null,null,null,null,null,null,null,null,null,null,null,null,null,null,853,"","","",""]
[null,null,null,null,null,null,null,null,null,null,null,null,null,null,854,"","","",""]
[null,null,null,null,null,null,null,null,null,null,null,null,null,null,855,"","","",""]
[null,null,null,null,null,null,null,null,null,null,null,null,null,null,856,"","","",""]
[null,null,null,null,null,null,null,null,null,null,null,null,null,null,857,"","","",""]
[null,null,null,null,null,null,null,null,null,null,null,null,null,null,858,"","","",""]
[null,null,null,null,null,null,null,null,null,null,null,null,null,null,859,"","","",""]
[null,null,null,null,null,null,null,null,null,null,null,null,null,null,860,"","","",""]
[null,null,null,null,null,null,null,null,null,null,null,null,null,null,861,"","","",""]
[null,null,null,null,null,null,null,null,null,null,null,null,null,null,862,"","","",""]
[null,null,null,null,null,null,null,null,null,null,null,null,null,null,863,"","","",""]
[null,null,null,null,null,null,null,null,null,null,null,null,null,null,864,"","","",""]
[null,null,null,null,null,null,null,null,null,null,null,null,null,null,865,"","","",""]
[null,null,null,null,null,null,null,null,null,null,null,null,null,null,866,"","","",""]
[null,null,null,null,null,null,null,null,null,null,null,null,null,null,867,"","","",""]
[null,null,null,null,null,null,null,null,null,null,null,null,null,null,868,"","","",""]
[null,null,null,null,null,null,null,null,null,null,null,null,null,null,869,"","","",""]
[null,null,null,null,null,null,null,null,null,null,null,null,null,null,870,"","","",""]
[null,null,null,null,null,null,null,null,null,null,null,null,null,null,871,"","","",""]
[null,null,null,null,null,null,null,null,null,null,null,null,null,null,872,"","","",""]
[null,null,null,null,null,null,null,null,null,null,null,null,null,null,873,"","","",""]
[null,null,null,null,null,null,null,null,null,null,null,null,null,null,874,"","","",""]
[null,null,null,null,null,null,null,null,null,null,null,null,null,null,875,"","","",""]
[null,null,null,null,null,null,null,null,null,null,null,null,null,null,876,"","","",""]
[null,null,null,null,null,null,null,null,null,null,null,null,null,null,877,"","","",""]
[null,null,null,null,null,null,null,null,null,null,null,null,null,null,878,"","","",""]
[null,null,null,null,null,null,null,null,null,null,null,null,null,null,879,"","","",""]
[null,null,null,null,null,null,null,null,null,null,null,null,null,null,880,"","","",""]
[null,null,null,null,null,null,null,null,null,null,null,null,null,null,881,"","","",""]
[null,null,null,null,null,null,null,null,null,null,null,null,null,null,882,"","","",""]
[null,null,null,null,null,null,null,null,null,null,null,null,null,null,883,"","","",""]
[null,null,null,null,null,null,null,null,null,null,null,null,null,null,884,"","","",""]
[null,null,null,null,null,null,null,null,null,null,null,null,null,null,885,"","","",""]
[null,null,null,null,null,null,null,null,null,null,null,null,null,null,886,"","","",""]
[null,null,null,null,null,null,null,null,null,null,null,null,null,null,887,"","","",""]
[null,null,null,null,null,null,null,null,null,null,null,null,null,null,888,"","","",""]
[null,null,null,null,null,null,null,null,null,null,null,null,null,null,889,"","","",""]
[null,null,null,null,null,null,null,null,null,null,null,null,null,null,890,"","","",""]
[null,null,null,null,null,null,null,null,null,null,null,null,null,null,891,"","","",""]
[null,null,null,null,null,null,null,null,null,null,null,null,null,null,892,"","","",""]
[null,null,null,null,null,null,null,null,null,null,null,null,null,null,893,"","","",""]
[null,null,null,null,null,null,null,null,null,null,null,null,null,null,894,"","","",""]
[null,null,null,null,null,null,null,null,null,null,null,null,null,null,895,"","","",""]
[null,null,null,null,null,null,null,null,null,null,null,null,null,null,896,"","","",""]
[null,null,null,null,null,null,null,null,null,null,null,null,null,null,897,"","","",""]
[null,null,null,null,null,null,null,null,null,null,null,null,null,null,898,"","","",""]
[null,null,null,null,null,null,null,null,null,null,null,null,null,null,899,"","","",""]
[null,null,null,null,null,null,null,null,null,null,null,null,null,null,900,"","","",""]
[null,null,null,null,null,null,null,null,null,null,null,null,null,null,901,"","","",""]
[null,null,null,null,null,null,null,null,null,null,null,null,null,null,902,"","","",""]
[null,null,null,null,null,null,null,null,null,null,null,null,null,null,903,"","","",""]
[null,null,null,null,null,null,null,null,null,null,null,null,null,null,904,"","","",""]
[null,null,null,null,null,null,null,null,null,null,null,null,null,null,905,"","","",""]
[null,null,null,null,null,null,null,null,null,null,null,null,null,null,906,"","","",""]
[null,null,null,null,null,null,null,null,null,null,null,null,null,null,907,"","","",""]
[null,null,null,null,null,null,null,null,null,null,null,null,null,null,908,"","","",""]
[null,null,null,null,null,null,null,null,null,null,null,null,null,null,909,"","","",""]
[null,null,null,null,null,null,null,null,null,null,null,null,null,null,910,"","","",""]
[null,null,null,null,null,null,null,null,null,null,null,null,null,null,911,"","","",""]
[null,null,null,null,null,null,null,null,null,null,null,null,null,null,912,"","","",""]
[null,null,null,null,null,null,null,null,null,null,null,null,null,null,913,"","","",""]
[null,null,null,null,null,null,null,null,null,null,null,null,null,null,914,"","","",""]
[null,null,null,null,null,null,null,null,null,null,null,null,null,null,915,"","","",""]
[null,null,null,null,null,null,null,null,null,null,null,null,null,null,916,"","","",""]
[null,null,null,null,null,null,null,null,null,null,null,null,null,null,917,"","","",""]
[null,null,null,null,null,null,null,null,null,null,null,null,null,null,918,"","","",""]
[null,null,null,null,null,null,null,null,null,null,null,null,null,null,919,"","","",""]
[null,null,null,null,null,null,null,null,null,null,null,null,null,null,920,"","","",""]
[null,null,null,null,null,null,null,null,null,null,null,null,null,null,921,"","","",""]
[null,null,null,null,null,null,null,null,null,null,null,null,null,null,922,"","","",""]
[null,null,null,null,null,null,null,null,null,null,null,null,null,null,923,"","","",""]
[null,null,null,null,null,null,null,null,null,null,null,null,null,null,924,"","","",""]
[null,null,null,null,null,null,null,null,null,null,null,null,null,null,925,"","","",""]
[null,null,null,null,null,null,null,null,null,null,null,null,null,null,926,"","","",""]
[null,null,null,null,null,null,null,null,null,null,null,null,null,null,927,"","","",""]
[null,null,null,null,null,null,null,null,null,null,null,null,null,null,928,"","","",""]
[null,null,null,null,null,null,null,null,null,null,null,null,null,null,929,"","","",""]
[null,null,null,null,null,null,null,null,null,null,null,null,null,null,930,"","","",""]
[null,null,null,null,null,null,null,null,null,null,null,null,null,null,931,"","","",""]
[null,null,null,null,null,null,null,null,null,null,null,null,null,null,932,"","","",""]
[null,null,null,null,null,null,null,null,null,null,null,null,null,null,933,"","","",""]
[null,null,null,null,null,null,null,null,null,null,null,null,null,null,934,"","","",""]
[null,null,null,null,null,null,null,null,null,null,null,null,null,null,935,"","","",""]
[null,null,null,null,null,null,null,null,null,null,null,null,null,null,936,"","","",""]
[null,null,null,null,null,null,null,null,null,null,null,null,null,null,937,"","","",""]
[null,null,null,null,null,null,null,null,null,null,null,null,null,null,938,"","","",""]
[null,null,null,null,null,null,null,null,null,null,null,null,null,null,939,"","","",""]
[null,null,null,null,null,null,null,null,null,null,null,null,null,null,940,"","","",""]
[null,null,null,null,null,null,null,null,null,null,null,null,null,null,941,"","","",""]
[null,null,null,null,null,null,null,null,null,null,null,null,null,null,942,"","","",""]
[null,null,null,null,null,null,null,null,null,null,null,null,null,null,943,"","","",""]
[null,null,null,null,null,null,null,null,null,null,null,null,null,null,944,"","","",""]
[null,null,null,null,null,null,null,null,null,null,null,null,null,null,945,"","","",""]
[null,null,null,null,null,null,null,null,null,null,null,null,null,null,946,"","","",""]
[null,null,null,null,null,null,null,null,null,null,null,null,null,null,947,"","","",""]
[null,null,null,null,null,null,null,null,null,null,null,null,null,null,948,"","","",""]
[null,null,null,null,null,null,null,null,null,null,null,null,null,null,949,"","","",""]
[null,null,null,null,null,null,null,null,null,null,null,null,null,null,950,"","","",""]
[null,null,null,null,null,null,null,null,null,null,null,null,null,null,951,"","","",""]
[null,null,null,null,null,null,null,null,null,null,null,null,null,null,952,"","","",""]
[null,null,null,null,null,null,null,null,null,null,null,null,null,null,953,"","","",""]
[null,null,null,null,null,null,null,null,null,null,null,null,null,null,954,"","","",""]
[null,null,null,null,null,null,null,null,null,null,null,null,null,null,955,"","","",""]
[null,null,null,null,null,null,null,null,null,null,null,null,null,null,956,"","","",""]
[null,null,null,null,null,null,null,null,null,null,null,null,null,null,957,"","","",""]
[null,null,null,null,null,null,null,null,null,null,null,null,null,null,958,"","","",""]
[null,null,null,null,null,null,null,null,null,null,null,null,null,null,959,"","","",""]
[null,null,null,null,null,null,null,null,null,null,null,null,null,null,960,"","","",""]
[null,null,null,null,null,null,null,null,null,null,null,null,null,null,961,"","","",""]
[null,null,null,null,null,null,null,null,null,null,null,null,null,null,962,"","","",""]
[null,null,null,null,null,null,null,null,null,null,null,null,null,null,963,"","","",""]
[null,null,null,null,null,null,null,null,null,null,null,null,null,null,964,"","","",""]
[null,null,null,null,null,null,null,null,null,null,null,null,null,null,965,"","","",""]
[null,null,null,null,null,null,null,null,null,null,null,null,null,null,966,"","","",""]
[null,null,null,null,null,null,null,null,null,null,null,null,null,null,967,"","","",""]
[null,null,null,null,null,null,null,null,null,null,null,null,null,null,968,"","","",""]
[null,null,null,null,null,null,null,null,null,null,null,null,null,null,969,"","","",""]
[null,null,null,null,null,null,null,null,null,null,null,null,null,null,970,"","","",""]
[null,null,null,null,null,null,null,null,null,null,null,null,null,null,971,"","","",""]
[null,null,null,null,null,null,null,null,null,null,null,null,null,null,972,"","","",""]
[null,null,null,null,null,null,null,null,null,null,null,null,null,null,973,"","","",""]
[null,null,null,null,null,null,null,null,null,null,null,null,null,null,974,"","","",""]
[null,null,null,null,null,null,null,null,null,null,null,null,null,null,975,"","","",""]
[null,null,null,null,null,null,null,null,null,null,null,null,null,null,976,"","","",""]
[null,null,null,null,null,null,null,null,null,null,null,null,null,null,977,"","","",""]
[null,null,null,null,null,null,null,null,null,null,null,null,null,null,978,"","","",""]
[null,null,null,null,null,null,null,null,null,null,null,null,null,null,979,"","","",""]
[null,null,null,null,null,null,null,null,null,null,null,null,null,null,980,"","","",""]
[null,null,null,null,null,null,null,null,null,null,null,null,null,null,981,"","","",""]
[null,null,null,null,null,null,null,null,null,null,null,null,null,null,982,"","","",""]
[null,null,null,null,null,null,null,null,null,null,null,null,null,null,983,"","","",""]
[null,null,null,null,null,null,null,null,null,null,null,null,null,null,984,"","","",""]
[null,null,null,null,null,null,null,null,null,null,null,null,null,null,985,"","","",""]
[null,null,null,null,null,null,null,null,null,null,null,null,null,null,986,"","","",""]
[null,null,null,null,null,null,null,null,null,null,null,null,null,null,987,"","","",""]
[null,null,null,null,null,null,null,null,null,null,null,null,null,null,988,"","","",""]
[null,null,null,null,null,null,null,null,null,null,null,null,null,null,989,"","","",""]
[null,null,null,null,null,null,null,null,null,null,null,null,null,null,990,"","","",""]
[null,null,null,null,null,null,null,null,null,null,null,null,null,null,991,"","","",""]
[null,null,null,null,null,null,null,null,null,null,null,null,null,null,992,"","","",""]
[null,null,null,null,null,null,null,null,null,null,null,null,null,null,993,"","","",""]
[null,null,null,null,null,null,null,null,null,null,null,null,null,null,994,"","","",""]
[null,null,null,null,null,null,null,null,null,null,null,null,null,null,995,"","","",""]
[null,null,null,null,null,null,null,null,null,null,null,null,null,null,996,"","","",""]
[null,null,null,null,null,null,null,null,null,null,null,null,null,null,997,"","","",""]
[null,null,null,null,null,null,null,null,null,null,null,null,null,null,998,"","","",""]
[null,null,null,null,null,null,null,null,null,null,null,null,null,null,999,"","","",""]
[null,null,null,null,null,null,null,null,null,null,null,null,null,null,1000,"","","",""]
[null,null,null,null,null,null,null,null,null,null,null,null,null,null,1001,"","","",""]
[null,null,null,null,null,null,null,null,null,null,null,null,null,null,1002,"","","",""]
[null,null,null,null,null,null,null,null,null,null,null,null,null,null,1003,"","","",""]
[null,null,null,null,null,null,null,null,null,null,null,null,null,null,1004,"","","",""]
[null,null,null,null,null,null,null,null,null,null,null,null,null,null,1005,"","","",""]
[null,null,null,null,null,null,null,null,null,null,null,null,null,null,1006,"","","",""]
[null,null,null,null,null,null,null,null,null,null,null,null,null,null,1007,"","","",""]
[null,null,null,null,null,null,null,null,null,null,null,null,null,null,1008,"","","",""]
[null,null,null,null,null,null,null,null,null,null,null,null,null,null,1009,"","","",""]
[null,null,null,null,null,null,null,null,null,null,null,null,null,null,1010,"","","",""]
[null,null,null,null,null,null,null,null,null,null,null,null,null,null,1011,"","","",""]
[null,null,null,null,null,null,null,null,null,null,null,null,null,null,1012,"","","",""]
[null,null,null,null,null,null,null,null,null,null,null,null,null,null,1013,"","","",""]
[null,null,null,null,null,null,null,null,null,null,null,null,null,null,1014,"","","",""]
[null,null,null,null,null,null,null,null,null,null,null,null,null,null,1015,"","","",""]
[null,null,null,null,null,null,null,null,null,null,null,null,null,null,1016,"","","",""]
[null,null,null,null,null,null,null,null,null,null,null,null,null,null,1017,"","","",""]
[null,null,null,null,null,null,null,null,null,null,null,null,null,null,1018,"","","",""]
[null,null,null,null,null,null,null,null,null,null,null,null,null,null,1019,"","","",""]
[null,null,null,null,null,null,null,null,null,null,null,null,null,null,1020,"","","",""]
[null,null,null,null,null,null,null,null,null,null,null,null,null,null,1021,"","","",""]
[null,null,null,null,null,null,null,null,null,null,null,null,null,null,1022,"","","",""]
[null,null,null,null,null,null,null,null,null,null,null,null,null,null,1023,"","","",""]
[null,null,null,null,null,null,null,null,null,null,null,null,null,null,1024,"","","",""]
[null,null,null,null,null,null,null,null,null,null,null,null,null,null,1025,"","","",""]
[null,null,null,null,null,null,null,null,null,null,null,null,null,null,1026,"","","",""]
[null,null,null,null,null,null,null,null,null,null,null,null,null,null,1027,"","","",""]
[null,null,null,null,null,null,null,null,null,null,null,null,null,null,1028,"","","",""]
[null,null,null,null,null,null,null,null,null,null,null,null,null,null,1029,"","","",""]
[null,null,null,null,null,null,null,null,null,null,null,null,null,null,1030,"","","",""]
[null,null,null,null,null,null,null,null,null,null,null,null,null,null,1031,"","","",""]
[null,null,null,null,null,null,null,null,null,null,null,null,null,null,1032,"","","",""]
[null,null,null,null,null,null,null,null,null,null,null,null,null,null,1033,"","","",""]
[null,null,null,null,null,null,null,null,null,null,null,null,null,null,1034,"","","",""]
[null,null,null,null,null,null,null,null,null,null,null,null,null,null,1035,"","","",""]
[null,null,null,null,null,null,null,null,null,null,null,null,null,null,1036,"","","",""]
[null,null,null,null,null,null,null,null,null,null,null,null,null,null,1037,"","","",""]
[null,null,null,null,null,null,null,null,null,null,null,null,null,null,1038,"","","",""]
[null,null,null,null,null,null,null,null,null,null,null,null,null,null,1039,"","","",""]
[null,null,null,null,null,null,null,null,null,null,null,null,null,null,1040,"","","",""]
[null,null,null,null,null,null,null,null,null,null,null,null,null,null,1041,"","","",""]
[null,null,null,null,null,null,null,null,null,null,null,null,null,null,1042,"","","",""]
[null,null,null,null,null,null,null,null,null,null,null,null,null,null,1043,"","","",""]
[null,null,null,null,null,null,null,null,null,null,null,null,null,null,1044,"","","",""]
[null,null,null,null,null,null,null,null,null,null,null,null,null,null,1045,"","","",""]
[null,null,null,null,null,null,null,null,null,null,null,null,null,null,1046,"","","",""]
[null,null,null,null,null,null,null,null,null,null,null,null,null,null,1047,"","","",""]
[null,null,null,null,null,null,null,null,null,null,null,null,null,null,1048,"","","",""]
[null,null,null,null,null,null,null,null,null,null,null,null,null,null,1049,"","","",""]
[null,null,null,null,null,null,null,null,null,null,null,null,null,null,1050,"","","",""]
[null,null,null,null,null,null,null,null,null,null,null,null,null,null,1051,"","","",""]
[null,null,null,null,null,null,null,null,null,null,null,null,null,null,1052,"","","",""]
[null,null,null,null,null,null,null,null,null,null,null,null,null,null,1053,"","","",""]
[null,null,null,null,null,null,null,null,null,null,null,null,null,null,1054,"","","",""]
[null,null,null,null,null,null,null,null,null,null,null,null,null,null,1055,"","","",""]
[null,null,null,null,null,null,null,null,null,null,null,null,null,null,1056,"","","",""]
[null,null,null,null,null,null,null,null,null,null,null,null,null,null,1057,"","","",""]
[null,null,null,null,null,null,null,null,null,null,null,null,null,null,1058,"","","",""]
[null,null,null,null,null,null,null,null,null,null,null,null,null,null,1059,"","","",""]
[null,null,null,null,null,null,null,null,null,null,null,null,null,null,1060,"","","",""]
[null,null,null,null,null,null,null,null,null,null,null,null,null,null,1061,"","","",""]
[null,null,null,null,null,null,null,null,null,null,null,null,null,null,1062,"","","",""]
[null,null,null,null,null,null,null,null,null,null,null,null,null,null,1063,"","","",""]
[null,null,null,null,null,null,null,null,null,null,null,null,null,null,1064,"","","",""]
[null,null,null,null,null,null,null,null,null,null,null,null,null,null,1065,"","","",""]
[null,null,null,null,null,null,null,null,null,null,null,null,null,null,1066,"","","",""]
[null,null,null,null,null,null,null,null,null,null,null,null,null,null,1067,"","","",""]
[null,null,null,null,null,null,null,null,null,null,null,null,null,null,1068,"","","",""]
[null,null,null,null,null,null,null,null,null,null,null,null,null,null,1069,"","","",""]
[null,null,null,null,null,null,null,null,null,null,null,null,null,null,1070,"","","",""]
[null,null,null,null,null,null,null,null,null,null,null,null,null,null,1071,"","","",""]
[null,null,null,null,null,null,null,null,null,null,null,null,null,null,1072,"","","",""]
[null,null,null,null,null,null,null,null,null,null,null,null,null,null,1073,"","","",""]
[null,null,null,null,null,null,null,null,null,null,null,null,null,null,1074,"","","",""]
[null,null,null,null,null,null,null,null,null,null,null,null,null,null,1075,"","","",""]
[null,null,null,null,null,null,null,null,null,null,null,null,null,null,1076,"","","",""]
[null,null,null,null,null,null,null,null,null,null,null,null,null,null,1077,"","","",""]
[null,null,null,null,null,null,null,null,null,null,null,null,null,null,1078,"","","",""]
[null,null,null,null,null,null,null,null,null,null,null,null,null,null,1079,"","","",""]
[null,null,null,null,null,null,null,null,null,null,null,null,null,null,1080,"","","",""]
[null,null,null,null,null,null,null,null,null,null,null,null,null,null,1081,"","","",""]
[null,null,null,null,null,null,null,null,null,null,null,null,null,null,1082,"","","",""]
[null,null,null,null,null,null,null,null,null,null,null,null,null,null,1083,"","","",""]
[null,null,null,null,null,null,null,null,null,null,null,null,null,null,1084,"","","",""]
[null,null,null,null,null,null,null,null,null,null,null,null,null,null,1085,"","","",""]
[null,null,null,null,null,null,null,null,null,null,null,null,null,null,1086,"","","",""]
[null,null,null,null,null,null,null,null,null,null,null,null,null,null,1087,"","","",""]
[null,null,null,null,null,null,null,null,null,null,null,null,null,null,1088,"","","",""]
[null,null,null,null,null,null,null,null,null,null,null,null,null,null,1089,"","","",""]
[null,null,null,null,null,null,null,null,null,null,null,null,null,null,1090,"","","",""]
[null,null,null,null,null,null,null,null,null,null,null,null,null,null,1091,"","","",""]
[null,null,null,null,null,null,null,null,null,null,null,null,null,null,1092,"","","",""]
[null,null,null,null,null,null,null,null,null,null,null,null,null,null,1093,"","","",""]
[null,null,null,null,null,null,null,null,null,null,null,null,null,null,1094,"","","",""]
[null,null,null,null,null,null,null,null,null,null,null,null,null,null,1095,"","","",""]
[null,null,null,null,null,null,null,null,null,null,null,null,null,null,1096,"","","",""]
[null,null,null,null,null,null,null,null,null,null,null,null,null,null,1097,"","","",""]
[null,null,null,null,null,null,null,null,null,null,null,null,null,null,1098,"","","",""]
[null,null,null,null,null,null,null,null,null,null,null,null,null,null,1099,"","","",""]
[null,null,null,null,null,null,null,null,null,null,null,null,null,null,1100,"","","",""]
[null,null,null,null,null,null,null,null,null,null,null,null,null,null,1101,"","","",""]
[null,null,null,null,null,null,null,null,null,null,null,null,null,null,1102,"","","",""]
[null,null,null,null,null,null,null,null,null,null,null,null,null,null,1103,"","","",""]
[null,null,null,null,null,null,null,null,null,null,null,null,null,null,1104,"","","",""]
[null,null,null,null,null,null,null,null,null,null,null,null,null,null,1105,"","","",""]
[null,null,null,null,null,null,null,null,null,null,null,null,null,null,1106,"","","",""]
[null,null,null,null,null,null,null,null,null,null,null,null,null,null,1107,"","","",""]
[null,null,null,null,null,null,null,null,null,null,null,null,null,null,1108,"","","",""]
[null,null,null,null,null,null,null,null,null,null,null,null,null,null,1109,"","","",""]
[null,null,null,null,null,null,null,null,null,null,null,null,null,null,1110,"","","",""]
[null,null,null,null,null,null,null,null,null,null,null,null,null,null,1111,"","","",""]
[null,null,null,null,null,null,null,null,null,null,null,null,null,null,1112,"","","",""]
[null,null,null,null,null,null,null,null,null,null,null,null,null,null,1113,"","","",""]
[null,null,null,null,null,null,null,null,null,null,null,null,null,null,1114,"","","",""]
[null,null,null,null,null,null,null,null,null,null,null,null,null,null,1115,"","","",""]
[null,null,null,null,null,null,null,null,null,null,null,null,null,null,1116,"","","",""]
[null,null,null,null,null,null,null,null,null,null,null,null,null,null,1117,"","","",""]
[null,null,null,null,null,null,null,null,null,null,null,null,null,null,1118,"","","",""]
[null,null,null,null,null,null,null,null,null,null,null,null,null,null,1119,"","","",""]
[null,null,null,null,null,null,null,null,null,null,null,null,null,null,1120,"","","",""]
[null,null,null,null,null,null,null,null,null,null,null,null,null,null,1121,"","","",""]
[null,null,null,null,null,null,null,null,null,null,null,null,null,null,1122,"","","",""]
[null,null,null,null,null,null,null,null,null,null,null,null,null,null,1123,"","","",""]
[null,null,null,null,null,null,null,null,null,null,null,null,null,null,1124,"","","",""]
[null,null,null,null,null,null,null,null,null,null,null,null,null,null,1125,"","","",""]
[null,null,null,null,null,null,null,null,null,null,null,null,null,null,1126,"","","",""]
[null,null,null,null,null,null,null,null,null,null,null,null,null,null,1127,"","","",""]
[null,null,null,null,null,null,null,null,null,null,null,null,null,null,1128,"","","",""]
[null,null,null,null,null,null,null,null,null,null,null,null,null,null,1129,"","","",""]
[null,null,null,null,null,null,null,null,null,null,null,null,null,null,1130,"","","",""]
[null,null,null,null,null,null,null,null,null,null,null,null,null,null,1131,"","","",""]
[null,null,null,null,null,null,null,null,null,null,null,null,null,null,1132,"","","",""]
[null,null,null,null,null,null,null,null,null,null,null,null,null,null,1133,"","","",""]
[null,null,null,null,null,null,null,null,null,null,null,null,null,null,1134,"","","",""]
[null,null,null,null,null,null,null,null,null,null,null,null,null,null,1135,"","","",""]
[null,null,null,null,null,null,null,null,null,null,null,null,null,null,1136,"","","",""]
[null,null,null,null,null,null,null,null,null,null,null,null,null,null,1137,"","","",""]
[null,null,null,null,null,null,null,null,null,null,null,null,null,null,1138,"","","",""]
[null,null,null,null,null,null,null,null,null,null,null,null,null,null,1139,"","","",""]
[null,null,null,null,null,null,null,null,null,null,null,null,null,null,1140,"","","",""]
[null,null,null,null,null,null,null,null,null,null,null,null,null,null,1141,"","","",""]
[null,null,null,null,null,null,null,null,null,null,null,null,null,null,1142,"","","",""]
[null,null,null,null,null,null,null,null,null,null,null,null,null,null,1143,"","","",""]
[null,null,null,null,null,null,null,null,null,null,null,null,null,null,1144,"","","",""]
[null,null,null,null,null,null,null,null,null,null,null,null,null,null,1145,"","","",""]
[null,null,null,null,null,null,null,null,null,null,null,null,null,null,1146,"","","",""]
[null,null,null,null,null,null,null,null,null,null,null,null,null,null,1147,"","","",""]
[null,null,null,null,null,null,null,null,null,null,null,null,null,null,1148,"","","",""]
[null,null,null,null,null,null,null,null,null,null,null,null,null,null,1149,"","","",""]
[null,null,null,null,null,null,null,null,null,null,null,null,null,null,1150,"","","",""]
[null,null,null,null,null,null,null,null,null,null,null,null,null,null,1151,"","","",""]
[null,null,null,null,null,null,null,null,null,null,null,null,null,null,1152,"","","",""]
[null,null,null,null,null,null,null,null,null,null,null,null,null,null,1153,"","","",""]
[null,null,null,null,null,null,null,null,null,null,null,null,null,null,1154,"","","",""]
[null,null,null,null,null,null,null,null,null,null,null,null,null,null,1155,"","","",""]
[null,null,null,null,null,null,null,null,null,null,null,null,null,null,1156,"","","",""]
[null,null,null,null,null,null,null,null,null,null,null,null,null,null,1157,"","","",""]
[null,null,null,null,null,null,null,null,null,null,null,null,null,null,1158,"","","",""]
[null,null,null,null,null,null,null,null,null,null,null,null,null,null,1159,"","","",""]
[null,null,null,null,null,null,null,null,null,null,null,null,null,null,1160,"","","",""]
[null,null,null,null,null,null,null,null,null,null,null,null,null,null,1161,"","","",""]
[null,null,null,null,null,null,null,null,null,null,null,null,null,null,1162,"","","",""]
[null,null,null,null,null,null,null,null,null,null,null,null,null,null,1163,"","","",""]
[null,null,null,null,null,null,null,null,null,null,null,null,null,null,1164,"","","",""]
[null,null,null,null,null,null,null,null,null,null,null,null,null,null,1165,"","","",""]
[null,null,null,null,null,null,null,null,null,null,null,null,null,null,1166,"","","",""]
[null,null,null,null,null,null,null,null,null,null,null,null,null,null,1167,"","","",""]
[null,null,null,null,null,null,null,null,null,null,null,null,null,null,1168,"","","",""]
[null,null,null,null,null,null,null,null,null,null,null,null,null,null,1169,"","","",""]
[null,null,null,null,null,null,null,null,null,null,null,null,null,null,1170,"","","",""]
[null,null,null,null,null,null,null,null,null,null,null,null,null,null,1171,"","","",""]
[null,null,null,null,null,null,null,null,null,null,null,null,null,null,1172,"","","",""]
[null,null,null,null,null,null,null,null,null,null,null,null,null,null,1173,"","","",""]
[null,null,null,null,null,null,null,null,null,null,null,null,null,null,1174,"","","",""]
[null,null,null,null,null,null,null,null,null,null,null,null,null,null,1175,"","","",""]
[null,null,null,null,null,null,null,null,null,null,null,null,null,null,1176,"","","",""]
[null,null,null,null,null,null,null,null,null,null,null,null,null,null,1177,"","","",""]
[null,null,null,null,null,null,null,null,null,null,null,null,null,null,1178,"","","",""]
[null,null,null,null,null,null,null,null,null,null,null,null,null,null,1179,"","","",""]
[null,null,null,null,null,null,null,null,null,null,null,null,null,null,1180,"","","",""]
[null,null,null,null,null,null,null,null,null,null,null,null,null,null,1181,"","","",""]
[null,null,null,null,null,null,null,null,null,null,null,null,null,null,1182,"","","",""]
[null,null,null,null,null,null,null,null,null,null,null,null,null,null,1183,"","","",""]
[null,null,null,null,null,null,null,null,null,null,null,null,null,null,1184,"","","",""]
[null,null,null,null,null,null,null,null,null,null,null,null,null,null,1185,"","","",""]
[null,null,null,null,null,null,null,null,null,null,null,null,null,null,1186,"","","",""]
[null,null,null,null,null,null,null,null,null,null,null,null,null,null,1187,"","","",""]
[null,null,null,null,null,null,null,null,null,null,null,null,null,null,1188,"","","",""]
[null,null,null,null,null,null,null,null,null,null,null,null,null,null,1189,"","","",""]
[null,null,null,null,null,null,null,null,null,null,null,null,null,null,1190,"","","",""]
[null,null,null,null,null,null,null,null,null,null,null,null,null,null,1191,"","","",""]
[null,null,null,null,null,null,null,null,null,null,null,null,null,null,1192,"","","",""]
[null,null,null,null,null,null,null,null,null,null,null,null,null,null,1193,"","","",""]
[null,null,null,null,null,null,null,null,null,null,null,null,null,null,1194,"","","",""]
[null,null,null,null,null,null,null,null,null,null,null,null,null,null,1195,"","","",""]
[null,null,null,null,null,null,null,null,null,null,null,null,null,null,1196,"","","",""]
[null,null,null,null,null,null,null,null,null,null,null,null,null,null,1197,"","","",""]
[null,null,null,null,null,null,null,null,null,null,null,null,null,null,1198,"","","",""]
[null,null,null,null,null,null,null,null,null,null,null,null,null,null,1199,"","","",""]
[null,null,null,null,null,null,null,null,null,null,null,null,null,null,1200,"","","",""]
[null,null,null,null,null,null,null,null,null,null,null,null,null,null,1201,"","","",""]
[null,null,null,null,null,null,null,null,null,null,null,null,null,null,1202,"","","",""]
[null,null,null,null,null,null,null,null,null,null,null,null,null,null,1203,"","","",""]
[null,null,null,null,null,null,null,null,null,null,null,null,null,null,1204,"","","",""]
[null,null,null,null,null,null,null,null,null,null,null,null,null,null,1205,"","","",""]
[null,null,null,null,null,null,null,null,null,null,null,null,null,null,1206,"","","",""]
[null,null,null,null,null,null,null,null,null,null,null,null,null,null,1207,"","","",""]
[null,null,null,null,null,null,null,null,null,null,null,null,null,null,1208,"","","",""]
[null,null,null,null,null,null,null,null,null,null,null,null,null,null,1209,"","","",""]
[null,null,null,null,null,null,null,null,null,null,null,null,null,null,1210,"","","",""]
[null,null,null,null,null,null,null,null,null,null,null,null,null,null,1211,"","","",""]
[null,null,null,null,null,null,null,null,null,null,null,null,null,null,1212,"","","",""]
[null,null,null,null,null,null,null,null,null,null,null,null,null,null,1213,"","","",""]
[null,null,null,null,null,null,null,null,null,null,null,null,null,null,1214,"","","",""]
[null,null,null,null,null,null,null,null,null,null,null,null,null,null,1215,"","","",""]
[null,null,null,null,null,null,null,null,null,null,null,null,null,null,1216,"","","",""]
[null,null,null,null,null,null,null,null,null,null,null,null,null,null,1217,"","","",""]
[null,null,null,null,null,null,null,null,null,null,null,null,null,null,1218,"","","",""]
[null,null,null,null,null,null,null,null,null,null,null,null,null,null,1219,"","","",""]
[null,null,null,null,null,null,null,null,null,null,null,null,null,null,1220,"","","",""]
[null,null,null,null,null,null,null,null,null,null,null,null,null,null,1221,"","","",""]
[null,null,null,null,null,null,null,null,null,null,null,null,null,null,1222,"","","",""]
[null,null,null,null,null,null,null,null,null,null,null,null,null,null,1223,"","","",""]
[null,null,null,null,null,null,null,null,null,null,null,null,null,null,1224,"","","",""]
[null,null,null,null,null,null,null,null,null,null,null,null,null,null,1225,"","","",""]
[null,null,null,null,null,null,null,null,null,null,null,null,null,null,1226,"","","",""]
[null,null,null,null,null,null,null,null,null,null,null,null,null,null,1227,"","","",""]
[null,null,null,null,null,null,null,null,null,null,null,null,null,null,1228,"","","",""]
[null,null,null,null,null,null,null,null,null,null,null,null,null,null,1229,"","","",""]
[null,null,null,null,null,null,null,null,null,null,null,null,null,null,1230,"","","",""]
[null,null,null,null,null,null,null,null,null,null,null,null,null,null,1231,"","","",""]
[null,null,null,null,null,null,null,null,null,null,null,null,null,null,1232,"","","",""]
[null,null,null,null,null,null,null,null,null,null,null,null,null,null,1233,"","","",""]
[null,null,null,null,null,null,null,null,null,null,null,null,null,null,1234,"","","",""]
[null,null,null,null,null,null,null,null,null,null,null,null,null,null,1235,"","","",""]
[null,null,null,null,null,null,null,null,null,null,null,null,null,null,1236,"","","",""]
[null,null,null,null,null,null,null,null,null,null,null,null,null,null,1237,"","","",""]
[null,null,null,null,null,null,null,null,null,null,null,null,null,null,1238,"","","",""]
[null,null,null,null,null,null,null,null,null,null,null,null,null,null,1239,"","","",""]
[null,null,null,null,null,null,null,null,null,null,null,null,null,null,1240,"","","",""]
[null,null,null,null,null,null,null,null,null,null,null,null,null,null,1241,"","","",""]
[null,null,null,null,null,null,null,null,null,null,null,null,null,null,1242,"","","",""]
[null,null,null,null,null,null,null,null,null,null,null,null,null,null,1243,"","","",""]
[null,null,null,null,null,null,null,null,null,null,null,null,null,null,1244,"","","",""]
[null,null,null,null,null,null,null,null,null,null,null,null,null,null,1245,"","","",""]
[null,null,null,null,null,null,null,null,null,null,null,null,null,null,1246,"","","",""]
[null,null,null,null,null,null,null,null,null,null,null,null,null,null,1247,"","","",""]
[null,null,null,null,null,null,null,null,null,null,null,null,null,null,1248,"","","",""]
[null,null,null,null,null,null,null,null,null,null,null,null,null,null,1249,"","","",""]
[null,null,null,null,null,null,null,null,null,null,null,null,null,null,1250,"","","",""]
[null,null,null,null,null,null,null,null,null,null,null,null,null,null,1251,"","","",""]
[null,null,null,null,null,null,null,null,null,null,null,null,null,null,1252,"","","",""]
[null,null,null,null,null,null,null,null,null,null,null,null,null,null,1253,"","","",""]
[null,null,null,null,null,null,null,null,null,null,null,null,null,null,1254,"","","",""]
[null,null,null,null,null,null,null,null,null,null,null,null,null,null,1255,"","","",""]
[null,null,null,null,null,null,null,null,null,null,null,null,null,null,1256,"","","",""]
[null,null,null,null,null,null,null,null,null,null,null,null,null,null,1257,"","","",""]
[null,null,null,null,null,null,null,null,null,null,null,null,null,null,1258,"","","",""]
[null,null,null,null,null,null,null,null,null,null,null,null,null,null,1259,"","","",""]
[null,null,null,null,null,null,null,null,null,null,null,null,null,null,1260,"","","",""]
[null,null,null,null,null,null,null,null,null,null,null,null,null,null,1261,"","","",""]
[null,null,null,null,null,null,null,null,null,null,null,null,null,null,1262,"","","",""]
[null,null,null,null,null,null,null,null,null,null,null,null,null,null,1263,"","","",""]
[null,null,null,null,null,null,null,null,null,null,null,null,null,null,1264,"","","",""]
[null,null,null,null,null,null,null,null,null,null,null,null,null,null,1265,"","","",""]
[null,null,null,null,null,null,null,null,null,null,null,null,null,null,1266,"","","",""]
[null,null,null,null,null,null,null,null,null,null,null,null,null,null,1267,"","","",""]
[null,null,null,null,null,null,null,null,null,null,null,null,null,null,1268,"","","",""]
[null,null,null,null,null,null,null,null,null,null,null,null,null,null,1269,"","","",""]
[null,null,null,null,null,null,null,null,null,null,null,null,null,null,1270,"","","",""]
[null,null,null,null,null,null,null,null,null,null,null,null,null,null,1271,"","","",""]
[null,null,null,null,null,null,null,null,null,null,null,null,null,null,1272,"","","",""]
[null,null,null,null,null,null,null,null,null,null,null,null,null,null,1273,"","","",""]
[null,null,null,null,null,null,null,null,null,null,null,null,null,null,1274,"","","",""]
[null,null,null,null,null,null,null,null,null,null,null,null,null,null,1275,"","","",""]
[null,null,null,null,null,null,null,null,null,null,null,null,null,null,1276,"","","",""]
[null,null,null,null,null,null,null,null,null,null,null,null,null,null,1277,"","","",""]
[null,null,null,null,null,null,null,null,null,null,null,null,null,null,1278,"","","",""]
[null,null,null,null,null,null,null,null,null,null,null,null,null,null,1279,"","","",""]
[null,null,null,null,null,null,null,null,null,null,null,null,null,null,1280,"","","",""]
[null,null,null,null,null,null,null,null,null,null,null,null,null,null,1281,"","","",""]
[null,null,null,null,null,null,null,null,null,null,null,null,null,null,1282,"","","",""]
[null,null,null,null,null,null,null,null,null,null,null,null,null,null,1283,"","","",""]
[null,null,null,null,null,null,null,null,null,null,null,null,null,null,1284,"","","",""]
[null,null,null,null,null,null,null,null,null,null,null,null,null,null,1285,"","","",""]
[null,null,null,null,null,null,null,null,null,null,null,null,null,null,1286,"","","",""]
[null,null,null,null,null,null,null,null,null,null,null,null,null,null,1287,"","","",""]
[null,null,null,null,null,null,null,null,null,null,null,null,null,null,1288,"","","",""]
[null,null,null,null,null,null,null,null,null,null,null,null,null,null,1289,"","","",""]
[null,null,null,null,null,null,null,null,null,null,null,null,null,null,1290,"","","",""]
[null,null,null,null,null,null,null,null,null,null,null,null,null,null,1291,"","","",""]
[null,null,null,null,null,null,null,null,null,null,null,null,null,null,1292,"","","",""]
[null,null,null,null,null,null,null,null,null,null,null,null,null,null,1293,"","","",""]
[null,null,null,null,null,null,null,null,null,null,null,null,null,null,1294,"","","",""]
[null,null,null,null,null,null,null,null,null,null,null,null,null,null,1295,"","","",""]
[null,null,null,null,null,null,null,null,null,null,null,null,null,null,1296,"","","",""]
[null,null,null,null,null,null,null,null,null,null,null,null,null,null,1297,"","","",""]
[null,null,null,null,null,null,null,null,null,null,null,null,null,null,1298,"","","",""]
[null,null,null,null,null,null,null,null,null,null,null,null,null,null,1299,"","","",""]
[null,null,null,null,null,null,null,null,null,null,null,null,null,null,1300,"","","",""]
[null,null,null,null,null,null,null,null,null,null,null,null,null,null,1301,"","","",""]
[null,null,null,null,null,null,null,null,null,null,null,null,null,null,1302,"","","",""]
[null,null,null,null,null,null,null,null,null,null,null,null,null,null,1303,"","","",""]
[null,null,null,null,null,null,null,null,null,null,null,null,null,null,1304,"","","",""]
[null,null,null,null,null,null,null,null,null,null,null,null,null,null,1305,"","","",""]
[null,null,null,null,null,null,null,null,null,null,null,null,null,null,1306,"","","",""]
[null,null,null,null,null,null,null,null,null,null,null,null,null,null,1307,"","","",""]
[null,null,null,null,null,null,null,null,null,null,null,null,null,null,1308,"","","",""]
[null,null,null,null,null,null,null,null,null,null,null,null,null,null,1309,"","","",""]
[null,null,null,null,null,null,null,null,null,null,null,null,null,null,1310,"","","",""]
[null,null,null,null,null,null,null,null,null,null,null,null,null,null,1311,"","","",""]
[null,null,null,null,null,null,null,null,null,null,null,null,null,null,1312,"","","",""]
[null,null,null,null,null,null,null,null,null,null,null,null,null,null,1313,"","","",""]
[null,null,null,null,null,null,null,null,null,null,null,null,null,null,1314,"","","",""]
[null,null,null,null,null,null,null,null,null,null,null,null,null,null,1315,"","","",""]
[null,null,null,null,null,null,null,null,null,null,null,null,null,null,1316,"","","",""]
[null,null,null,null,null,null,null,null,null,null,null,null,null,null,1317,"","","",""]
[null,null,null,null,null,null,null,null,null,null,null,null,null,null,1318,"","","",""]
[null,null,null,null,null,null,null,null,null,null,null,null,null,null,1319,"","","",""]
[null,null,null,null,null,null,null,null,null,null,null,null,null,null,1320,"","","",""]
[null,null,null,null,null,null,null,null,null,null,null,null,null,null,1321,"","","",""]
[null,null,null,null,null,null,null,null,null,null,null,null,null,null,1322,"","","",""]
[null,null,null,null,null,null,null,null,null,null,null,null,null,null,1323,"","","",""]
[null,null,null,null,null,null,null,null,null,null,null,null,null,null,1324,"","","",""]
[null,null,null,null,null,null,null,null,null,null,null,null,null,null,1325,"","","",""]
[null,null,null,null,null,null,null,null,null,null,null,null,null,null,1326,"","","",""]
[null,null,null,null,null,null,null,null,null,null,null,null,null,null,1327,"","","",""]
[null,null,null,null,null,null,null,null,null,null,null,null,null,null,1328,"","","",""]
[null,null,null,null,null,null,null,null,null,null,null,null,null,null,1329,"","","",""]
[null,null,null,null,null,null,null,null,null,null,null,null,null,null,1330,"","","",""]
[null,null,null,null,null,null,null,null,null,null,null,null,null,null,1331,"","","",""]
[null,null,null,null,null,null,null,null,null,null,null,null,null,null,1332,"","","",""]
[null,null,null,null,null,null,null,null,null,null,null,null,null,null,1333,"","","",""]
[null,null,null,null,null,null,null,null,null,null,null,null,null,null,1334,"","","",""]
[null,null,null,null,null,null,null,null,null,null,null,null,null,null,1335,"","","",""]
[null,null,null,null,null,null,null,null,null,null,null,null,null,null,1336,"","","",""]
[null,null,null,null,null,null,null,null,null,null,null,null,null,null,1337,"","","",""]
[null,null,null,null,null,null,null,null,null,null,null,null,null,null,1338,"","","",""]
[null,null,null,null,null,null,null,null,null,null,null,null,null,null,1339,"","","",""]
[null,null,null,null,null,null,null,null,null,null,null,null,null,null,1340,"","","",""]
[null,null,null,null,null,null,null,null,null,null,null,null,null,null,1341,"","","",""]
[null,null,null,null,null,null,null,null,null,null,null,null,null,null,1342,"","","",""]
[null,null,null,null,null,null,null,null,null,null,null,null,null,null,1343,"","","",""]
[null,null,null,null,null,null,null,null,null,null,null,null,null,null,1344,"","","",""]
[null,null,null,null,null,null,null,null,null,null,null,null,null,null,1345,"","","",""]
[null,null,null,null,null,null,null,null,null,null,null,null,null,null,1346,"","","",""]
[null,null,null,null,null,null,null,null,null,null,null,null,null,null,1347,"","","",""]
[null,null,null,null,null,null,null,null,null,null,null,null,null,null,1348,"","","",""]
[null,null,null,null,null,null,null,null,null,null,null,null,null,null,1349,"","","",""]
[null,null,null,null,null,null,null,null,null,null,null,null,null,null,1350,"","","",""]
[null,null,null,null,null,null,null,null,null,null,null,null,null,null,1351,"","","",""]
[null,null,null,null,null,null,null,null,null,null,null,null,null,null,1352,"","","",""]
[null,null,null,null,null,null,null,null,null,null,null,null,null,null,1353,"","","",""]
[null,null,null,null,null,null,null,null,null,null,null,null,null,null,1354,"","","",""]
[null,null,null,null,null,null,null,null,null,null,null,null,null,null,1355,"","","",""]
[null,null,null,null,null,null,null,null,null,null,null,null,null,null,1356,"","","",""]
[null,null,null,null,null,null,null,null,null,null,null,null,null,null,1357,"","","",""]
[null,null,null,null,null,null,null,null,null,null,null,null,null,null,1358,"","","",""]
[null,null,null,null,null,null,null,null,null,null,null,null,null,null,1359,"","","",""]
[null,null,null,null,null,null,null,null,null,null,null,null,null,null,1360,"","","",""]
[null,null,null,null,null,null,null,null,null,null,null,null,null,null,1361,"","","",""]
[null,null,null,null,null,null,null,null,null,null,null,null,null,null,1362,"","","",""]
[null,null,null,null,null,null,null,null,null,null,null,null,null,null,1363,"","","",""]
[null,null,null,null,null,null,null,null,null,null,null,null,null,null,1364,"","","",""]
[null,null,null,null,null,null,null,null,null,null,null,null,null,null,1365,"","","",""]
[null,null,null,null,null,null,null,null,null,null,null,null,null,null,1366,"","","",""]
[null,null,null,null,null,null,null,null,null,null,null,null,null,null,1367,"","","",""]
[null,null,null,null,null,null,null,null,null,null,null,null,null,null,1368,"","","",""]
[null,null,null,null,null,null,null,null,null,null,null,null,null,null,1369,"","","",""]
[null,null,null,null,null,null,null,null,null,null,null,null,null,null,1370,"","","",""]
[null,null,null,null,null,null,null,null,null,null,null,null,null,null,1371,"","","",""]
[null,null,null,null,null,null,null,null,null,null,null,null,null,null,1372,"","","",""]
[null,null,null,null,null,null,null,null,null,null,null,null,null,null,1373,"","","",""]
[null,null,null,null,null,null,null,null,null,null,null,null,null,null,1374,"","","",""]
[null,null,null,null,null,null,null,null,null,null,null,null,null,null,1375,"","","",""]
[null,null,null,null,null,null,null,null,null,null,null,null,null,null,1376,"","","",""]
[null,null,null,null,null,null,null,null,null,null,null,null,null,null,1377,"","","",""]
[null,null,null,null,null,null,null,null,null,null,null,null,null,null,1378,"","","",""]
[null,null,null,null,null,null,null,null,null,null,null,null,null,null,1379,"","","",""]
[null,null,null,null,null,null,null,null,null,null,null,null,null,null,1380,"","","",""]
[null,null,null,null,null,null,null,null,null,null,null,null,null,null,1381,"","","",""]
[null,null,null,null,null,null,null,null,null,null,null,null,null,null,1382,"","","",""]
[null,null,null,null,null,null,null,null,null,null,null,null,null,null,1383,"","","",""]
[null,null,null,null,null,null,null,null,null,null,null,null,null,null,1384,"","","",""]
[null,null,null,null,null,null,null,null,null,null,null,null,null,null,1385,"","","",""]
[null,null,null,null,null,null,null,null,null,null,null,null,null,null,1386,"","","",""]
[null,null,null,null,null,null,null,null,null,null,null,null,null,null,1387,"","","",""]
[null,null,null,null,null,null,null,null,null,null,null,null,null,null,1388,"","","",""]
[null,null,null,null,null,null,null,null,null,null,null,null,null,null,1389,"","","",""]
[null,null,null,null,null,null,null,null,null,null,null,null,null,null,1390,"","","",""]
[null,null,null,null,null,null,null,null,null,null,null,null,null,null,1391,"","","",""]
[null,null,null,null,null,null,null,null,null,null,null,null,null,null,1392,"","","",""]
[null,null,null,null,null,null,null,null,null,null,null,null,null,null,1393,"","","",""]
[null,null,null,null,null,null,null,null,null,null,null,null,null,null,1394,"","","",""]
[null,null,null,null,null,null,null,null,null,null,null,null,null,null,1395,"","","",""]
[null,null,null,null,null,null,null,null,null,null,null,null,null,null,1396,"","","",""]
[null,null,null,null,null,null,null,null,null,null,null,null,null,null,1397,"","","",""]
[null,null,null,null,null,null,null,null,null,null,null,null,null,null,1398,"","","",""]
[null,null,null,null,null,null,null,null,null,null,null,null,null,null,1399,"","","",""]
[null,null,null,null,null,null,null,null,null,null,null,null,null,null,1400,"","","",""]
[null,null,null,null,null,null,null,null,null,null,null,null,null,null,1401,"","","",""]
[null,null,null,null,null,null,null,null,null,null,null,null,null,null,1402,"","","",""]
[null,null,null,null,null,null,null,null,null,null,null,null,null,null,1403,"","","",""]
[null,null,null,null,null,null,null,null,null,null,null,null,null,null,1404,"","","",""]
[null,null,null,null,null,null,null,null,null,null,null,null,null,null,1405,"","","",""]
[null,null,null,null,null,null,null,null,null,null,null,null,null,null,1406,"","","",""]
[null,null,null,null,null,null,null,null,null,null,null,null,null,null,1407,"","","",""]
[null,null,null,null,null,null,null,null,null,null,null,null,null,null,1408,"","","",""]
[null,null,null,null,null,null,null,null,null,null,null,null,null,null,1409,"","","",""]
[null,null,null,null,null,null,null,null,null,null,null,null,null,null,1410,"","","",""]
[null,null,null,null,null,null,null,null,null,null,null,null,null,null,1411,"","","",""]
[null,null,null,null,null,null,null,null,null,null,null,null,null,null,1412,"","","",""]
[null,null,null,null,null,null,null,null,null,null,null,null,null,null,1413,"","","",""]
[null,null,null,null,null,null,null,null,null,null,null,null,null,null,1414,"","","",""]
[null,null,null,null,null,null,null,null,null,null,null,null,null,null,1415,"","","",""]
[null,null,null,null,null,null,null,null,null,null,null,null,null,null,1416,"","","",""]
[null,null,null,null,null,null,null,null,null,null,null,null,null,null,1417,"","","",""]
[null,null,null,null,null,null,null,null,null,null,null,null,null,null,1418,"","","",""]
[null,null,null,null,null,null,null,null,null,null,null,null,null,null,1419,"","","",""]
[null,null,null,null,null,null,null,null,null,null,null,null,null,null,1420,"","","",""]
[null,null,null,null,null,null,null,null,null,null,null,null,null,null,1421,"","","",""]
[null,null,null,null,null,null,null,null,null,null,null,null,null,null,1422,"","","",""]
[null,null,null,null,null,null,null,null,null,null,null,null,null,null,1423,"","","",""]
[null,null,null,null,null,null,null,null,null,null,null,null,null,null,1424,"","","",""]
[null,null,null,null,null,null,null,null,null,null,null,null,null,null,1425,"","","",""]
[null,null,null,null,null,null,null,null,null,null,null,null,null,null,1426,"","","",""]
[null,null,null,null,null,null,null,null,null,null,null,null,null,null,1427,"","","",""]
[null,null,null,null,null,null,null,null,null,null,null,null,null,null,1428,"","","",""]
[null,null,null,null,null,null,null,null,null,null,null,null,null,null,1429,"","","",""]
[null,null,null,null,null,null,null,null,null,null,null,null,null,null,1430,"","","",""]
[null,null,null,null,null,null,null,null,null,null,null,null,null,null,1431,"","","",""]
[null,null,null,null,null,null,null,null,null,null,null,null,null,null,1432,"","","",""]
[null,null,null,null,null,null,null,null,null,null,null,null,null,null,1433,"","","",""]
[null,null,null,null,null,null,null,null,null,null,null,null,null,null,1434,"","","",""]
[null,null,null,null,null,null,null,null,null,null,null,null,null,null,1435,"","","",""]
[null,null,null,null,null,null,null,null,null,null,null,null,null,null,1436,"","","",""]
[null,null,null,null,null,null,null,null,null,null,null,null,null,null,1437,"","","",""]
[null,null,null,null,null,null,null,null,null,null,null,null,null,null,1438,"","","",""]
[null,null,null,null,null,null,null,null,null,null,null,null,null,null,1439,"","","",""]
[null,null,null,null,null,null,null,null,null,null,null,null,null,null,1440,"","","",""]
[null,null,null,null,null,null,null,null,null,null,null,null,null,null,1441,"","","",""]
[null,null,null,null,null,null,null,null,null,null,null,null,null,null,1442,"","","",""]
[null,null,null,null,null,null,null,null,null,null,null,null,null,null,1443,"","","",""]
[null,null,null,null,null,null,null,null,null,null,null,null,null,null,1444,"","","",""]
[null,null,null,null,null,null,null,null,null,null,null,null,null,null,1445,"","","",""]
[null,null,null,null,null,null,null,null,null,null,null,null,null,null,1446,"","","",""]
[null,null,null,null,null,null,null,null,null,null,null,null,null,null,1447,"","","",""]
[null,null,null,null,null,null,null,null,null,null,null,null,null,null,1448,"","","",""]
[null,null,null,null,null,null,null,null,null,null,null,null,null,null,1449,"","","",""]
[null,null,null,null,null,null,null,null,null,null,null,null,null,null,1450,"","","",""]
[null,null,null,null,null,null,null,null,null,null,null,null,null,null,1451,"","","",""]
[null,null,null,null,null,null,null,null,null,null,null,null,null,null,1452,"","","",""]
[null,null,null,null,null,null,null,null,null,null,null,null,null,null,1453,"","","",""]
[null,null,null,null,null,null,null,null,null,null,null,null,null,null,1454,"","","",""]
[null,null,null,null,null,null,null,null,null,null,null,null,null,null,1455,"","","",""]
[null,null,null,null,null,null,null,null,null,null,null,null,null,null,1456,"","","",""]
[null,null,null,null,null,null,null,null,null,null,null,null,null,null,1457,"","","",""]
[null,null,null,null,null,null,null,null,null,null,null,null,null,null,1458,"","","",""]
[null,null,null,null,null,null,null,null,null,null,null,null,null,null,1459,"","","",""]
[null,null,null,null,null,null,null,null,null,null,null,null,null,null,1460,"","","",""]
[null,null,null,null,null,null,null,null,null,null,null,null,null,null,1461,"","","",""]
[null,null,null,null,null,null,null,null,null,null,null,null,null,null,1462,"","","",""]
[null,null,null,null,null,null,null,null,null,null,null,null,null,null,1463,"","","",""]
[null,null,null,null,null,null,null,null,null,null,null,null,null,null,1464,"","","",""]
[null,null,null,null,null,null,null,null,null,null,null,null,null,null,1465,"","","",""]
[null,null,null,null,null,null,null,null,null,null,null,null,null,null,1466,"","","",""]
[null,null,null,null,null,null,null,null,null,null,null,null,null,null,1467,"","","",""]
[null,null,null,null,null,null,null,null,null,null,null,null,null,null,1468,"","","",""]
[null,null,null,null,null,null,null,null,null,null,null,null,null,null,1469,"","","",""]
[null,null,null,null,null,null,null,null,null,null,null,null,null,null,1470,"","","",""]
[null,null,null,null,null,null,null,null,null,null,null,null,null,null,1471,"","","",""]
[null,null,null,null,null,null,null,null,null,null,null,null,null,null,1472,"","","",""]
[null,null,null,null,null,null,null,null,null,null,null,null,null,null,1473,"","","",""]
[null,null,null,null,null,null,null,null,null,null,null,null,null,null,1474,"","","",""]
[null,null,null,null,null,null,null,null,null,null,null,null,null,null,1475,"","","",""]
[null,null,null,null,null,null,null,null,null,null,null,null,null,null,1476,"","","",""]
[null,null,null,null,null,null,null,null,null,null,null,null,null,null,1477,"","","",""]
[null,null,null,null,null,null,null,null,null,null,null,null,null,null,1478,"","","",""]
[null,null,null,null,null,null,null,null,null,null,null,null,null,null,1479,"","","",""]
[null,null,null,null,null,null,null,null,null,null,null,null,null,null,1480,"","","",""]
[null,null,null,null,null,null,null,null,null,null,null,null,null,null,1481,"","","",""]
[null,null,null,null,null,null,null,null,null,null,null,null,null,null,1482,"","","",""]
[null,null,null,null,null,null,null,null,null,null,null,null,null,null,1483,"","","",""]
[null,null,null,null,null,null,null,null,null,null,null,null,null,null,1484,"","","",""]
[null,null,null,null,null,null,null,null,null,null,null,null,null,null,1485,"","","",""]
[null,null,null,null,null,null,null,null,null,null,null,null,null,null,1486,"","","",""]
[null,null,null,null,null,null,null,null,null,null,null,null,null,null,1487,"","","",""]
[null,null,null,null,null,null,null,null,null,null,null,null,null,null,1488,"","","",""]
[null,null,null,null,null,null,null,null,null,null,null,null,null,null,1489,"","","",""]
[null,null,null,null,null,null,null,null,null,null,null,null,null,null,1490,"","","",""]
[null,null,null,null,null,null,null,null,null,null,null,null,null,null,1491,"","","",""]
[null,null,null,null,null,null,null,null,null,null,null,null,null,null,1492,"","","",""]
[null,null,null,null,null,null,null,null,null,null,null,null,null,null,1493,"","","",""]
[null,null,null,null,null,null,null,null,null,null,null,null,null,null,1494,"","","",""]
[null,null,null,null,null,null,null,null,null,null,null,null,null,null,1495,"","","",""]
[null,null,null,null,null,null,null,null,null,null,null,null,null,null,1496,"","","",""]
[null,null,null,null,null,null,null,null,null,null,null,null,null,null,1497,"","","",""]
[null,null,null,null,null,null,null,null,null,null,null,null,null,null,1498,"","","",""]
[null,null,null,null,null,null,null,null,null,null,null,null,null,null,1499,"","","",""]
[null,null,null,null,null,null,null,null,null,null,null,null,null,null,1500,"","","",""]
[null,null,null,null,null,null,null,null,null,null,null,null,null,null,1501,"","","",""]
[null,null,null,null,null,null,null,null,null,null,null,null,null,null,1502,"","","",""]
[null,null,null,null,null,null,null,null,null,null,null,null,null,null,1503,"","","",""]
[null,null,null,null,null,null,null,null,null,null,null,null,null,null,1504,"","","",""]
[null,null,null,null,null,null,null,null,null,null,null,null,null,null,1505,"","","",""]
[null,null,null,null,null,null,null,null,null,null,null,null,null,null,1506,"","","",""]
[null,null,null,null,null,null,null,null,null,null,null,null,null,null,1507,"","","",""]
[null,null,null,null,null,null,null,null,null,null,null,null,null,null,1508,"","","",""]
[null,null,null,null,null,null,null,null,null,null,null,null,null,null,1509,"","","",""]
[null,null,null,null,null,null,null,null,null,null,null,null,null,null,1510,"","","",""]
[null,null,null,null,null,null,null,null,null,null,null,null,null,null,1511,"","","",""]
[null,null,null,null,null,null,null,null,null,null,null,null,null,null,1512,"","","",""]
[null,null,null,null,null,null,null,null,null,null,null,null,null,null,1513,"","","",""]
[null,null,null,null,null,null,null,null,null,null,null,null,null,null,1514,"","","",""]
[null,null,null,null,null,null,null,null,null,null,null,null,null,null,1515,"","","",""]
[null,null,null,null,null,null,null,null,null,null,null,null,null,null,1516,"","","",""]
[null,null,null,null,null,null,null,null,null,null,null,null,null,null,1517,"","","",""]
[null,null,null,null,null,null,null,null,null,null,null,null,null,null,1518,"","","",""]
[null,null,null,null,null,null,null,null,null,null,null,null,null,null,1519,"","","",""]
[null,null,null,null,null,null,null,null,null,null,null,null,null,null,1520,"","","",""]
[null,null,null,null,null,null,null,null,null,null,null,null,null,null,1521,"","","",""]
[null,null,null,null,null,null,null,null,null,null,null,null,null,null,1522,"","","",""]
[null,null,null,null,null,null,null,null,null,null,null,null,null,null,1523,"","","",""]
[null,null,null,null,null,null,null,null,null,null,null,null,null,null,1524,"","","",""]
[null,null,null,null,null,null,null,null,null,null,null,null,null,null,1525,"","","",""]